{"text_format":"1","workbook":"xlsx","n_sheets":12,"sheets":["Blatt1","Blatt2","2","3","4","5","6","7","8","9","Eingabe","RekursionsSpeicher"],"not_rendered":{"charts":0,"images":0,"macros":1,"external_links":0,"defined_names":18,"comments":0,"pivot_tables":0},"unopened":[],"bounds":{"document_bytes":16777216,"sheet_cells":100000,"rows_first":2000,"rows_last":500,"rows_between":2000,"halvings":0,"cell_chars":16384,"cell_head_chars":4096},"cells_cut":0,"cells_raw":0,"read":"whole","date_system":"1900"}

{"sheet":"Blatt1","index":0,"n_rows":100,"n_cols":174,"rows_kept":100,"cut":false,"hidden":false,"merged":[[73,120,75,122],[73,123,75,125],[73,129,75,131],[73,132,75,134],[67,135,69,137],[67,138,69,140],[70,114,72,116],[70,117,72,119],[70,120,72,122],[70,123,72,125],[70,129,72,131],[70,132,72,134],[70,135,72,137],[70,138,72,140],[67,114,69,116],[67,117,69,119],[67,123,69,125],[67,126,69,128],[67,129,69,131],[61,132,63,134],[61,135,63,137],[61,138,63,140],[64,120,66,122],[64,123,66,125],[64,126,66,128],[64,129,66,131],[64,132,66,134],[61,114,63,116],[61,117,63,119],[61,120,63,122],[61,123,63,125],[61,129,63,131],[55,135,57,137],[55,138,57,140],[58,114,60,116],[58,117,60,119],[58,120,60,122],[58,132,60,134],[58,135,60,137],[58,138,60,140],[52,132,54,134],[55,114,57,116],[55,117,57,119],[55,120,57,122],[55,123,57,125],[55,129,57,131],[55,132,57,134],[46,138,48,140],[49,114,51,116],[49,117,51,119],[49,123,51,125],[49,126,51,128],[49,129,51,131],[49,135,51,137],[49,138,51,140],[38,138,38,140],[39,111,39,114],[43,120,45,122],[43,123,45,125],[43,129,45,131],[43,132,45,134],[73,54,75,56],[73,57,75,59],[73,63,75,65],[73,66,75,68],[38,132,38,137],[46,114,48,116],[46,117,48,119],[46,120,48,122],[46,123,48,125],[46,129,48,131],[46,132,48,134],[46,135,48,137],[52,120,54,122],[52,123,54,125],[52,126,54,128],[52,129,54,131],[67,69,69,71],[67,72,69,74],[61,66,63,68],[61,69,63,71],[61,72,63,74],[64,54,66,56],[64,57,66,59],[64,60,66,62],[70,48,72,50],[70,51,72,53],[70,54,72,56],[70,57,72,59],[70,63,72,65],[70,66,72,68],[70,69,72,71],[70,72,72,74],[67,48,69,50],[67,51,69,53],[67,57,69,59],[67,60,69,62],[67,63,69,65],[64,63,66,65],[64,66,66,68],[61,48,63,50],[61,51,63,53],[61,54,63,56],[61,57,63,59],[61,63,63,65],[55,66,57,68],[55,69,57,71],[55,72,57,74],[58,48,60,50],[58,51,60,53],[58,54,60,56],[58,66,60,68],[58,69,60,71],[58,72,60,74],[55,48,57,50],[55,51,57,53],[55,54,57,56],[55,57,57,59],[55,63,57,65],[52,63,54,65],[52,66,54,68],[46,69,48,71],[46,72,48,74],[49,48,51,50],[49,51,51,53],[49,57,51,59],[49,60,51,62],[49,63,51,65],[49,69,51,71],[49,72,51,74],[0,111,0,118],[39,12,39,17],[77,39,77,65],[77,69,77,92],[77,93,77,95],[39,45,39,48],[43,54,45,56],[43,57,45,59],[43,63,45,65],[43,66,45,68],[46,48,48,50],[46,51,48,53],[46,54,48,56],[46,57,48,59],[46,63,48,65],[46,66,48,68],[37,39,37,41],[0,45,0,48],[38,66,38,71],[38,72,38,74],[0,78,0,85],[52,54,54,56],[52,57,54,59],[52,60,54,62],[0,0,0,11],[0,12,0,14],[0,17,0,19],[25,0,28,0],[30,0,31,0],[33,0,35,0],[37,0,39,0],[2,0,3,0],[13,0,14,0],[99,0,99,4],[99,7,99,8],[41,0,43,0],[45,0,47,0],[49,0,51,0],[56,0,58,0],[60,0,62,0],[64,0,66,0],[68,0,70,0]]}
["Kakuro: Peter Gallin (akt. 07.04.20)",null,null,null,null,null,null,null,null,null,null,null,"Horizontal:",null,null,10,null,"Vertikal:",null,null,12,null,null,null,null,null,null,null,null,null,null,null,null,null,null,null,null,null,null,null,null,null,null,null,null,"Spielfeld",null,null,null,null,null,null,null,null,null,null,null,null,null,null,null,null,null,null,null,null,null,null,null,null,null,null,null,null,null,null,null,null,"Feldlängen",null,null,null,null,null,null,null,null,null,null,null,null,null,null,null,null,null,null,null,null,null,null,null,null,null,null,null,null,null,null,null,null,"Sicherungen"]
[]
[null,null,null,null,null,null,null,null,null,null,null,null,null,null,null,null,null,null,null,null,null,null,null,0,null,null,0,null,null,null,null,null,0,null,null,0,null,null,null,null,null,null,null,null,null,null,null,null,null,null,null,null,null,null,null,null,0,null,null,0,null,null,null,null,null,0,null,null,0,null,null,null,null,null,null,null,null,null,null,null,null,null,null,null,null,null,null,null,null,0,null,null,0,null,null,null,null,null,0,null,null,0,null,null,null,null,null,null,null,null,null,null,null,null,null,null,null,null,null,null,null,null,0,null,null,0,null,null,null,null,null,0,null,null,0,null,null,null,null,null,null,null,null,null,null,null,null,null,null,null,null,null,null,null,null,0,null,null,0,null,null,null,null,null,0,null,null,0]
[null,null,null,null,null,null,null,null,null,null,null,null,null,null,null,null,null,null,null,null,null,null,16,null,null,35,null,null,null,null,null,15,null,null,4,null,null,null,null,null,null,null,null,null,null,null,null,null,null,null,null,null,null,null,null,16,null,null,35,null,null,null,null,null,15,null,null,4,null,null,null,null,null,null,null,null,null,null,null,null,null,null,null,null,null,null,null,null,16,null,null,35,null,null,null,null,null,15,null,null,4,null,null,null,null,null,null,null,null,null,null,null,null,null,null,null,null,null,null,null,null,16,null,null,35,null,null,null,null,null,15,null,null,4,null,null,null,null,null,null,null,null,null,null,null,null,null,null,null,null,null,null,null,null,16,null,null,35,null,null,null,null,null,15,null,null,4]
[null,null,null,null,null,null,null,null,null,null,null,null,null,null,null,null,null,null,null,null,null,null,null,null,null,null,null,null,null,null,null,null,null,null,null,null,null,null,null,null,null,null,null,null,null,null,null,null,null,null,null,null,null,null,null,null,null,null,null,null,null,null,null,null,null,null,null,null,null,null,null,null,null,null,null,null,null,null,null,null,null,null,null,null,null,null,null,null,null,null,null,null,null,null,null,null,null,null,null,null,null,null,null,null,null,null,null,null,null,null,null,null,null,null,null,null,null,null,null,null,null,null,null,null,null,null,null,null,null,null,null,null,null,null,null,null,null,null,null,null,null,null,null,null,null,null,null,null,null,null,null,null,null,null,16,null,null,35,null,null,null,null,null,15,null,null,4]
[null,null,null,null,null,null,null,null,null,null,null,null,null,null,null,null,null,0,null,null,13,null,null,null,null,null,null,null,null,6,null,null,null,null,null,null,null,null,0,null,null,0,null,null,null,null,null,null,null,null,0,null,null,13,null,null,null,null,null,null,null,null,6,null,null,null,null,null,null,null,null,0,null,null,0,null,null,null,null,null,null,null,null,0,null,null,13,null,7,null,null,6,null,null,null,6,null,5,null,null,1,null,null,null,0,null,null,0,null,null,null,null,null,null,null,null,0,null,null,13,null,null,null,null,null,null,null,null,6,null,null,null,null,null,null,null,null,0,null,null,0,null,null,null,null,null,null,null,null,0,null,null,13,13,null,2,13,null,2,null,null,6,6,null,2,6,null,2,null,null,0,null,null,0]
[null,null,null,null,null,null,null,null,null,null,null,null,null,null,null,null,13,null,null,16,null,null,null,null,null,null,null,null,0,null,null,null,null,null,null,null,null,4,null,null,3,null,null,null,null,null,null,null,null,13,null,null,16,null,null,null,null,null,null,null,null,0,null,null,null,null,null,null,null,null,4,null,null,3,null,null,null,null,null,null,null,null,13,null,null,16,null,null,null,null,null,null,null,null,0,null,null,null,null,null,null,null,null,4,null,null,3,null,null,null,null,null,null,null,null,13,null,null,16,null,null,null,null,null,null,null,null,0,null,null,null,null,null,null,null,null,4,null,null,3,null,null,null,null,null,null,null,null,13,null,null,16,null,null,2,null,null,5,null,null,0,null,null,5,null,null,2,null,null,4,null,null,3]
[null,null,null,null,null,null,null,null,null,null,null,null,null,null,null,null,null,null,null,null,null,null,null,null,null,null,null,null,null,null,null,null,null,null,null,null,null,null,null,null,null,null,null,null,null,null,null,null,null,null,null,null,null,null,null,null,null,null,null,null,null,null,null,null,null,null,null,null,null,null,null,null,null,null,null,null,null,null,null,null,null,null,null,null,null,null,null,null,null,null,null,null,null,null,null,null,null,null,null,null,null,null,null,null,null,null,null,null,null,null,null,null,null,null,null,null,null,null,null,null,null,null,null,null,null,null,null,null,null,null,null,null,null,null,null,null,null,null,null,null,null,null,null,null,null,null,null,null,13,null,null,16,null,null,16,null,null,35,null,null,null,null,null,15,null,null,4,null,null,4,null,null,3]
[null,null,null,null,null,null,null,null,null,null,null,null,null,null,29,null,null,null,null,null,null,null,null,null,null,null,null,null,null,10,null,null,null,null,null,null,null,null,null,null,null,null,null,null,null,null,null,29,null,null,null,null,null,null,null,null,null,null,null,null,null,null,10,null,null,null,null,null,null,null,null,null,null,null,null,null,null,null,null,null,29,null,8,null,null,7,null,null,9,null,null,5,null,null,null,10,null,4,null,null,3,null,null,1,null,null,2,null,null,null,null,null,null,29,null,null,null,null,null,null,null,null,null,null,null,null,null,null,10,null,null,null,null,null,null,null,null,null,null,null,null,null,null,null,null,null,29,29,null,4,29,null,4,29,null,4,29,null,4,null,null,10,10,null,4,10,null,4,10,null,4,10,null,4]
[null,null,null,null,null,null,null,null,null,null,null,null,null,0,null,null,null,null,null,null,null,null,null,null,null,null,null,null,16,null,null,null,null,null,null,null,null,null,null,null,null,null,null,null,null,null,0,null,null,null,null,null,null,null,null,null,null,null,null,null,null,16,null,null,null,null,null,null,null,null,null,null,null,null,null,null,null,null,null,0,null,null,null,null,null,null,null,null,null,null,null,null,null,null,16,null,null,null,null,null,null,null,null,null,null,null,null,null,null,null,null,null,0,null,null,null,null,null,null,null,null,null,null,null,null,null,null,16,null,null,null,null,null,null,null,null,null,null,null,null,null,null,null,null,null,0,null,null,2,null,null,2,null,null,2,null,null,5,null,null,16,null,null,5,null,null,2,null,null,2,null,null,2]
[null,null,null,null,null,null,null,null,null,null,null,null,null,null,null,null,null,null,null,null,null,null,null,null,null,null,null,null,null,null,null,null,null,null,null,null,null,null,null,null,null,null,null,null,null,null,null,null,null,null,null,null,null,null,null,null,null,null,null,null,null,null,null,null,null,null,null,null,null,null,null,null,null,null,null,null,null,null,null,null,null,null,null,null,null,null,null,null,null,null,null,null,null,null,null,null,null,null,null,null,null,null,null,null,null,null,null,null,null,null,null,null,null,null,null,null,null,null,null,null,null,null,null,null,null,null,null,null,null,null,null,null,null,null,null,null,null,null,null,null,null,null,null,null,null,null,null,null,13,null,null,16,null,null,null,null,null,35,null,null,16,null,null,15,null,null,null,null,null,4,null,null,3]
[null,null,null,null,null,null,null,null,null,null,null,null,null,null,14,null,null,null,null,null,null,null,null,20,null,null,null,null,null,null,null,null,null,null,null,4,null,null,null,null,null,null,null,null,null,null,null,14,null,null,null,null,null,null,null,null,20,null,null,null,null,null,null,null,null,null,null,null,4,null,null,null,null,null,null,null,null,null,null,null,14,null,5,null,null,9,null,null,null,20,null,8,null,null,9,null,null,3,null,null,null,4,null,3,null,null,1,null,null,null,null,null,null,14,null,null,null,null,null,null,null,null,20,null,null,null,null,null,null,null,null,null,null,null,4,null,null,null,null,null,null,null,null,null,null,null,14,14,null,2,14,null,2,null,null,20,20,null,3,20,null,3,20,null,3,null,null,4,4,null,2,4,null,2]
[null,null,null,null,null,null,null,null,null,null,null,null,null,0,null,null,null,null,null,null,null,null,33,null,null,null,null,null,null,null,null,null,null,null,16,null,null,null,null,null,null,null,null,null,null,null,0,null,null,null,null,null,null,null,null,33,null,null,null,null,null,null,null,null,null,null,null,16,null,null,null,null,null,null,null,null,null,null,null,0,null,null,null,null,null,null,null,null,33,null,null,null,null,null,null,null,null,null,null,null,16,null,null,null,null,null,null,null,null,null,null,null,0,null,null,null,null,null,null,null,null,33,null,null,null,null,null,null,null,null,null,null,null,16,null,null,null,null,null,null,null,null,null,null,null,0,null,null,2,null,null,2,null,null,33,null,null,5,null,null,2,null,null,5,null,null,16,null,null,2,null,null,2]
[null,null,null,null,null,null,null,null,null,null,null,null,null,null,null,null,null,null,null,null,null,null,null,null,null,null,null,null,null,null,null,null,null,null,null,null,null,null,null,null,null,null,null,null,null,null,null,null,null,null,null,null,null,null,null,null,null,null,null,null,null,null,null,null,null,null,null,null,null,null,null,null,null,null,null,null,null,null,null,null,null,null,null,null,null,null,null,null,null,null,null,null,null,null,null,null,null,null,null,null,null,null,null,null,null,null,null,null,null,null,null,null,null,null,null,null,null,null,null,null,null,null,null,null,null,null,null,null,null,null,null,null,null,null,null,null,null,null,null,null,null,null,null,null,null,null,null,null,null,null,null,null,null,null,33,null,null,35,null,null,16,null,null,15,null,null,16]
[null,null,null,null,null,null,null,null,null,null,null,null,null,null,null,null,null,0,null,null,28,null,null,null,null,null,null,null,null,null,null,null,null,null,null,null,null,null,0,null,null,0,null,null,null,null,null,null,null,null,0,null,null,28,null,null,null,null,null,null,null,null,null,null,null,null,null,null,null,null,null,0,null,null,0,null,null,null,null,null,null,null,null,0,null,null,28,null,8,null,null,9,null,null,7,null,null,1,null,null,3,null,null,null,0,null,null,0,null,null,null,null,null,null,null,null,0,null,null,28,null,null,null,null,null,null,null,null,null,null,null,null,null,null,null,null,null,0,null,null,0,null,null,null,null,null,null,null,null,0,null,null,28,28,null,5,28,null,5,28,null,5,28,null,5,28,null,5,null,null,0,null,null,0]
[null,null,null,null,null,null,null,null,null,null,null,null,null,null,null,null,7,null,null,6,null,null,null,null,null,null,null,null,null,null,null,null,null,null,null,null,null,24,null,null,23,null,null,null,null,null,null,null,null,7,null,null,6,null,null,null,null,null,null,null,null,null,null,null,null,null,null,null,null,null,24,null,null,23,null,null,null,null,null,null,null,null,7,null,null,6,null,null,null,null,null,null,null,null,null,null,null,null,null,null,null,null,null,24,null,null,23,null,null,null,null,null,null,null,null,7,null,null,6,null,null,null,null,null,null,null,null,null,null,null,null,null,null,null,null,null,24,null,null,23,null,null,null,null,null,null,null,null,7,null,null,6,null,null,5,null,null,5,null,null,2,null,null,5,null,null,5,null,null,24,null,null,23]
[null,null,null,null,null,null,null,null,null,null,null,null,null,null,null,null,null,null,null,null,null,null,null,null,null,null,null,null,null,null,null,null,null,null,null,null,null,null,null,null,null,null,null,null,null,null,null,null,null,null,null,null,null,null,null,null,null,null,null,null,null,null,null,null,null,null,null,null,null,null,null,null,null,null,null,null,null,null,null,null,null,null,null,null,null,null,null,null,null,null,null,null,null,null,null,null,null,null,null,null,null,null,null,null,null,null,null,null,null,null,null,null,null,null,null,null,null,null,null,null,null,null,null,null,null,null,null,null,null,null,null,null,null,null,null,null,null,null,null,null,null,null,null,null,null,null,null,null,7,null,null,6,null,null,33,null,null,35,null,null,null,null,null,15,null,null,16,null,null,24,null,null,23]
[null,null,null,null,null,null,null,null,null,null,null,null,null,null,22,null,null,null,null,null,null,null,null,null,null,null,null,null,null,17,null,null,null,null,null,null,null,null,null,null,null,null,null,null,null,null,null,22,null,null,null,null,null,null,null,null,null,null,null,null,null,null,17,null,null,null,null,null,null,null,null,null,null,null,null,null,null,null,null,null,22,null,4,null,null,2,null,null,9,null,null,7,null,null,null,17,null,2,null,null,1,null,null,8,null,null,6,null,null,null,null,null,null,22,null,null,null,null,null,null,null,null,null,null,null,null,null,null,17,null,null,null,null,null,null,null,null,null,null,null,null,null,null,null,null,null,22,22,null,4,22,null,4,22,null,4,22,null,4,null,null,17,17,null,4,17,null,4,17,null,4,17,null,4]
[null,null,null,null,null,null,null,null,null,null,null,null,null,0,null,null,null,null,null,null,null,null,null,null,null,null,null,null,0,null,null,null,null,null,null,null,null,null,null,null,null,null,null,null,null,null,0,null,null,null,null,null,null,null,null,null,null,null,null,null,null,0,null,null,null,null,null,null,null,null,null,null,null,null,null,null,null,null,null,0,null,null,null,null,null,null,null,null,null,null,null,null,null,null,0,null,null,null,null,null,null,null,null,null,null,null,null,null,null,null,null,null,0,null,null,null,null,null,null,null,null,null,null,null,null,null,null,0,null,null,null,null,null,null,null,null,null,null,null,null,null,null,null,null,null,0,null,null,3,null,null,3,null,null,5,null,null,5,null,null,0,null,null,5,null,null,5,null,null,3,null,null,3]
[null,null,null,null,null,null,null,null,null,null,null,null,null,null,null,null,null,null,null,null,null,null,null,null,null,null,null,null,null,null,null,null,null,null,null,null,null,null,null,null,null,null,null,null,null,null,null,null,null,null,null,null,null,null,null,null,null,null,null,null,null,null,null,null,null,null,null,null,null,null,null,null,null,null,null,null,null,null,null,null,null,null,null,null,null,null,null,null,null,null,null,null,null,null,null,null,null,null,null,null,null,null,null,null,null,null,null,null,null,null,null,null,null,null,null,null,null,null,null,null,null,null,null,null,null,null,null,null,null,null,null,null,null,null,null,null,null,null,null,null,null,null,null,null,null,null,null,null,7,null,null,6,null,null,33,null,null,null,null,null,null,null,null,null,null,null,16,null,null,24,null,null,23]
[null,null,null,null,null,null,null,null,null,null,null,null,null,null,7,null,null,null,null,null,null,null,null,null,null,null,0,null,null,null,null,null,23,null,null,null,null,null,null,null,null,null,null,null,null,null,null,7,null,null,null,null,null,null,null,null,null,null,null,0,null,null,null,null,null,23,null,null,null,null,null,null,null,null,null,null,null,null,null,null,7,null,2,null,null,1,null,null,4,null,null,null,0,null,null,null,null,null,23,null,6,null,null,9,null,null,8,null,null,null,null,null,null,7,null,null,null,null,null,null,null,null,null,null,null,0,null,null,null,null,null,23,null,null,null,null,null,null,null,null,null,null,null,null,null,null,7,7,null,3,7,null,3,7,null,3,null,null,0,null,null,null,null,null,23,23,null,3,23,null,3,23,null,3]
[null,null,null,null,null,null,null,null,null,null,null,null,null,0,null,null,null,null,null,null,null,null,null,null,null,15,null,null,null,null,null,35,null,null,null,null,null,null,null,null,null,null,null,null,null,null,0,null,null,null,null,null,null,null,null,null,null,null,15,null,null,null,null,null,35,null,null,null,null,null,null,null,null,null,null,null,null,null,null,0,null,null,null,null,null,null,null,null,null,null,null,15,null,null,null,null,null,35,null,null,null,null,null,null,null,null,null,null,null,null,null,null,0,null,null,null,null,null,null,null,null,null,null,null,15,null,null,null,null,null,35,null,null,null,null,null,null,null,null,null,null,null,null,null,null,0,null,null,3,null,null,3,null,null,5,null,null,15,null,null,null,null,null,35,null,null,5,null,null,3,null,null,3]
[null,null,null,null,null,null,null,null,null,null,null,null,null,null,null,null,null,null,null,null,null,null,null,null,null,null,null,null,null,null,null,null,null,null,null,null,null,null,null,null,null,null,null,null,null,null,null,null,null,null,null,null,null,null,null,null,null,null,null,null,null,null,null,null,null,null,null,null,null,null,null,null,null,null,null,null,null,null,null,null,null,null,null,null,null,null,null,null,null,null,null,null,null,null,null,null,null,null,null,null,null,null,null,null,null,null,null,null,null,null,null,null,null,null,null,null,null,null,null,null,null,null,null,null,null,null,null,null,null,null,null,null,null,null,null,null,null,null,null,null,null,null,null,null,null,null,null,null,7,null,null,6,null,null,33,null,null,15,null,null,null,null,null,35,null,null,16,null,null,24,null,null,23]
[null,null,null,null,null,null,null,null,null,null,null,null,null,null,11,null,null,null,null,null,null,null,null,null,null,null,null,null,null,28,null,null,null,null,null,null,null,null,null,null,null,null,null,null,null,null,null,11,null,null,null,null,null,null,null,null,null,null,null,null,null,null,28,null,null,null,null,null,null,null,null,null,null,null,null,null,null,null,null,null,11,null,1,null,null,3,null,null,5,null,null,2,null,null,null,28,null,8,null,null,4,null,null,7,null,null,9,null,null,null,null,null,null,11,null,null,null,null,null,null,null,null,null,null,null,null,null,null,28,null,null,null,null,null,null,null,null,null,null,null,null,null,null,null,null,null,11,11,null,4,11,null,4,11,null,4,11,null,4,null,null,28,28,null,4,28,null,4,28,null,4,28,null,4]
[null,null,null,null,null,null,null,null,null,null,null,null,null,0,null,null,null,null,null,null,null,null,null,null,null,null,null,null,10,null,null,null,null,null,null,null,null,null,null,null,null,null,null,null,null,null,0,null,null,null,null,null,null,null,null,null,null,null,null,null,null,10,null,null,null,null,null,null,null,null,null,null,null,null,null,null,null,null,null,0,null,null,null,null,null,null,null,null,null,null,null,null,null,null,10,null,null,null,null,null,null,null,null,null,null,null,null,null,null,null,null,null,0,null,null,null,null,null,null,null,null,null,null,null,null,null,null,10,null,null,null,null,null,null,null,null,null,null,null,null,null,null,null,null,null,0,null,null,3,null,null,3,null,null,5,null,null,5,null,null,10,null,null,5,null,null,5,null,null,3,null,null,3]
[null,null,null,null,null,null,null,null,null,null,null,null,null,null,null,null,null,null,null,null,null,null,null,null,null,null,null,null,null,null,null,null,null,null,null,null,null,null,null,null,null,null,null,null,null,null,null,null,null,null,null,null,null,null,null,null,null,null,null,null,null,null,null,null,null,null,null,null,null,null,null,null,null,null,null,null,null,null,null,null,null,null,null,null,null,null,null,null,null,null,null,null,null,null,null,null,null,null,null,null,null,null,null,null,null,null,null,null,null,null,null,null,null,null,null,null,null,null,null,null,null,null,null,null,null,null,null,null,null,null,null,null,null,null,null,null,null,null,null,null,null,null,null,null,null,null,null,null,null,null,null,null,null,null,33,null,null,15,null,null,10,null,null,35,null,null,16]
[null,null,null,null,null,null,null,null,null,null,null,null,null,null,null,null,null,0,null,null,19,null,null,null,null,null,null,null,null,null,null,null,null,null,null,null,null,null,0,null,null,0,null,null,null,null,null,null,null,null,0,null,null,19,null,null,null,null,null,null,null,null,null,null,null,null,null,null,null,null,null,0,null,null,0,null,null,null,null,null,null,null,null,0,null,null,19,null,7,null,null,1,null,null,3,null,null,6,null,null,2,null,null,null,0,null,null,0,null,null,null,null,null,null,null,null,0,null,null,19,null,null,null,null,null,null,null,null,null,null,null,null,null,null,null,null,null,0,null,null,0,null,null,null,null,null,null,null,null,0,null,null,19,19,null,5,19,null,5,19,null,5,19,null,5,19,null,5,null,null,0,null,null,0]
[null,null,null,null,null,null,null,null,null,null,null,null,null,null,null,null,17,null,null,16,null,null,null,null,null,null,null,null,null,null,null,null,null,null,null,null,null,4,null,null,3,null,null,null,null,null,null,null,null,17,null,null,16,null,null,null,null,null,null,null,null,null,null,null,null,null,null,null,null,null,4,null,null,3,null,null,null,null,null,null,null,null,17,null,null,16,null,null,null,null,null,null,null,null,null,null,null,null,null,null,null,null,null,4,null,null,3,null,null,null,null,null,null,null,null,17,null,null,16,null,null,null,null,null,null,null,null,null,null,null,null,null,null,null,null,null,4,null,null,3,null,null,null,null,null,null,null,null,17,null,null,16,null,null,5,null,null,5,null,null,2,null,null,5,null,null,5,null,null,4,null,null,3]
[null,null,null,null,null,null,null,null,null,null,null,null,null,null,null,null,null,null,null,null,null,null,null,null,null,null,null,null,null,null,null,null,null,null,null,null,null,null,null,null,null,null,null,null,null,null,null,null,null,null,null,null,null,null,null,null,null,null,null,null,null,null,null,null,null,null,null,null,null,null,null,null,null,null,null,null,null,null,null,null,null,null,null,null,null,null,null,null,null,null,null,null,null,null,null,null,null,null,null,null,null,null,null,null,null,null,null,null,null,null,null,null,null,null,null,null,null,null,null,null,null,null,null,null,null,null,null,null,null,null,null,null,null,null,null,null,null,null,null,null,null,null,null,null,null,null,null,null,17,null,null,16,null,null,null,null,null,15,null,null,10,null,null,35,null,null,null,null,null,4,null,null,3]
[null,null,null,null,null,null,null,null,null,null,null,null,null,null,16,null,null,null,null,null,null,null,null,19,null,null,null,null,null,null,null,null,null,null,null,4,null,null,null,null,null,null,null,null,null,null,null,16,null,null,null,null,null,null,null,null,19,null,null,null,null,null,null,null,null,null,null,null,4,null,null,null,null,null,null,null,null,null,null,null,16,null,9,null,null,7,null,null,null,19,null,3,null,null,7,null,null,9,null,null,null,4,null,3,null,null,1,null,null,null,null,null,null,16,null,null,null,null,null,null,null,null,19,null,null,null,null,null,null,null,null,null,null,null,4,null,null,null,null,null,null,null,null,null,null,null,16,16,null,2,16,null,2,null,null,19,19,null,3,19,null,3,19,null,3,null,null,4,4,null,2,4,null,2]
[null,null,null,null,null,null,null,null,null,null,null,null,null,0,null,null,null,null,null,null,null,null,4,null,null,null,null,null,null,null,null,null,null,null,17,null,null,null,null,null,null,null,null,null,null,null,0,null,null,null,null,null,null,null,null,4,null,null,null,null,null,null,null,null,null,null,null,17,null,null,null,null,null,null,null,null,null,null,null,0,null,null,null,null,null,null,null,null,4,null,null,null,null,null,null,null,null,null,null,null,17,null,null,null,null,null,null,null,null,null,null,null,0,null,null,null,null,null,null,null,null,4,null,null,null,null,null,null,null,null,null,null,null,17,null,null,null,null,null,null,null,null,null,null,null,0,null,null,2,null,null,2,null,null,4,null,null,5,null,null,2,null,null,5,null,null,17,null,null,2,null,null,2]
[null,null,null,null,null,null,null,null,null,null,null,null,null,null,null,null,null,null,null,null,null,null,null,null,null,null,null,null,null,null,null,null,null,null,null,null,null,null,null,null,null,null,null,null,null,null,null,null,null,null,null,null,null,null,null,null,null,null,null,null,null,null,null,null,null,null,null,null,null,null,null,null,null,null,null,null,null,null,null,null,null,null,null,null,null,null,null,null,null,null,null,null,null,null,null,null,null,null,null,null,null,null,null,null,null,null,null,null,null,null,null,null,null,null,null,null,null,null,null,null,null,null,null,null,null,null,null,null,null,null,null,null,null,null,null,null,null,null,null,null,null,null,null,null,null,null,null,null,17,null,null,16,null,null,4,null,null,15,null,null,null,null,null,35,null,null,17,null,null,4,null,null,3]
[null,null,null,null,null,null,null,null,null,null,null,null,null,null,23,null,null,null,null,null,null,null,null,null,null,null,null,null,null,16,null,null,null,null,null,null,null,null,null,null,null,null,null,null,null,null,null,23,null,null,null,null,null,null,null,null,null,null,null,null,null,null,16,null,null,null,null,null,null,null,null,null,null,null,null,null,null,null,null,null,23,null,8,null,null,9,null,null,1,null,null,5,null,null,null,16,null,5,null,null,8,null,null,1,null,null,2,null,null,null,null,null,null,23,null,null,null,null,null,null,null,null,null,null,null,null,null,null,16,null,null,null,null,null,null,null,null,null,null,null,null,null,null,null,null,null,23,23,null,4,23,null,4,23,null,4,23,null,4,null,null,16,16,null,4,16,null,4,16,null,4,16,null,4]
[null,null,null,null,null,null,null,null,null,null,null,null,null,0,null,null,null,null,null,null,null,null,null,null,null,null,null,null,0,null,null,null,null,null,null,null,null,null,null,null,null,null,null,null,null,null,0,null,null,null,null,null,null,null,null,null,null,null,null,null,null,0,null,null,null,null,null,null,null,null,null,null,null,null,null,null,null,null,null,0,null,null,null,null,null,null,null,null,null,null,null,null,null,null,0,null,null,null,null,null,null,null,null,null,null,null,null,null,null,null,null,null,0,null,null,null,null,null,null,null,null,null,null,null,null,null,null,0,null,null,null,null,null,null,null,null,null,null,null,null,null,null,null,null,null,0,null,null,2,null,null,2,null,null,2,null,null,5,null,null,0,null,null,5,null,null,2,null,null,2,null,null,2]
[null,null,null,null,null,null,null,null,null,null,null,null,null,null,null,null,null,null,null,null,null,null,null,null,null,null,null,null,null,null,null,null,null,null,null,null,null,null,null,null,null,null,null,null,null,null,null,null,null,null,null,null,null,null,null,null,null,null,null,null,null,null,null,null,null,null,null,null,null,null,null,null,null,null,null,null,null,null,null,null,null,null,null,null,null,null,null,null,null,null,null,null,null,null,null,null,null,null,null,null,null,null,null,null,null,null,null,null,null,null,null,null,null,null,null,null,null,null,null,null,null,null,null,null,null,null,null,null,null,null,null,null,null,null,null,null,null,null,null,null,null,null,null,null,null,null,null,null,null,null,null,null,null,null,4,null,null,15,null,null,null,null,null,35,null,null,17]
[null,null,null,null,null,null,null,null,null,null,null,null,null,null,null,null,null,null,null,null,7,null,null,null,null,null,null,null,null,16,null,null,null,null,null,null,null,null,null,null,null,null,null,null,null,null,null,null,null,null,null,null,null,7,null,null,null,null,null,null,null,null,16,null,null,null,null,null,null,null,null,null,null,null,null,null,null,null,null,null,null,null,null,null,null,null,7,null,3,null,null,4,null,null,null,16,null,7,null,null,9,null,null,null,null,null,null,null,null,null,null,null,null,null,null,null,null,null,null,7,null,null,null,null,null,null,null,null,16,null,null,null,null,null,null,null,null,null,null,null,null,null,null,null,null,null,null,null,null,null,null,null,7,7,null,2,7,null,2,null,null,16,16,null,2,16,null,2]
[null,null,null,null,null,null,null,null,null,null,null,null,null,null,null,null,null,null,null,0,null,null,null,null,null,null,null,null,0,null,null,null,null,null,null,null,null,null,null,null,null,null,null,null,null,null,null,null,null,null,null,null,0,null,null,null,null,null,null,null,null,0,null,null,null,null,null,null,null,null,null,null,null,null,null,null,null,null,null,null,null,null,null,null,null,0,null,null,null,null,null,null,null,null,0,null,null,null,null,null,null,null,null,null,null,null,null,null,null,null,null,null,null,null,null,null,null,null,0,null,null,null,null,null,null,null,null,0,null,null,null,null,null,null,null,null,null,null,null,null,null,null,null,null,null,null,null,null,null,null,null,0,null,null,2,null,null,5,null,null,0,null,null,5,null,null,2]
[null,null,null,null,null,null,null,null,null,null,null,null,null,null,null,null,null,null,null,null,null,null,null,null,null,null,null,null,null,null,null,null,null,null,null,null,null,null,null,"Gegeben"]
[null,null,null,null,null,null,null,null,null,null,null,null,null,null,null,null,null,null,null,null,null,null,null,null,null,null,null,null,null,null,null,null,null,null,null,null,null,null,null,null,null,null,null,null,null,null,null,null,null,null,null,null,null,null,null,null,null,null,null,null,null,null,null,null,null,null,"Gesamtsumme =",null,null,null,null,null,{"$f":"SUM(Spielfeld)","v":704},null,null,null,null,null,null,null,null,null,null,null,null,null,null,null,null,null,null,null,null,null,null,null,null,null,null,null,null,null,null,null,null,null,null,null,null,null,null,null,null,null,null,null,null,null,null,null,null,null,null,null,null,null,null,null,null,null,null,null,"Gesamtsumme =",null,null,null,null,null,{"$f":"SUM(Spielfeld)","v":704}]
[null,null,null,null,null,null,null,null,null,null,null,null,"Anzahl Kandidaten",null,null,null,null,null,null,null,null,null,null,null,null,null,null,null,null,null,null,null,null,null,null,null,null,null,null,null,null,null,null,null,null,"Einsetzfeld",null,null,null,null,null,null,null,null,null,null,null,null,null,null,null,null,null,null,null,null,null,null,null,null,null,null,null,null,null,null,null,null,null,null,null,null,null,null,null,null,null,null,null,null,null,null,null,null,null,null,null,null,null,null,null,null,null,null,null,null,null,null,null,null,null,"Einsetzfeld"]
[]
[null,null,null,null,null,null,null,null,null,null,null,null,null,null,null,null,null,null,null,null,null,null,null,0,null,null,0,null,null,null,null,null,0,null,null,0,null,null,null,null,null,null,null,null,null,null,null,null,null,null,null,null,null,null,null,null,0,null,null,0,null,null,null,null,null,0,null,null,0,null,null,null,null,null,null,null,null,null,null,null,null,null,null,null,null,null,null,null,null,null,null,null,null,null,null,null,null,null,null,null,null,null,null,null,null,null,null,null,null,null,null,null,null,null,null,null,null,null,null,null,null,null,0,null,null,0,null,null,null,null,null,0,null,null,0]
[null,null,null,null,null,null,null,null,null,null,null,null,null,null,null,null,null,null,null,null,null,null,16,null,null,35,null,null,null,null,null,15,null,null,4,null,null,null,null,null,null,null,null,null,null,null,null,null,null,null,null,null,null,null,null,16,null,null,35,null,null,null,null,null,15,null,null,4,null,null,null,null,null,null,null,null,null,null,null,null,null,null,null,null,null,null,null,null,null,null,null,null,null,null,null,null,null,null,null,null,null,null,null,null,null,null,null,null,null,null,null,null,null,null,null,null,null,null,null,null,null,16,null,null,35,null,null,null,null,null,15,null,null,4]
[null,null,null,null,null,null,null,null,null,null,null,null,null,null,null,null,null,null,null,null,null,null,null,null,null,null,null,null,null,null,null,null,null,null,null,null,null,null,null,null,null,null,null,null,null,null,null,null,null,null,null,null,null,null,7,null,null,6,null,null,null,null,null,5,null,null,1]
[null,null,null,null,null,null,null,null,null,null,null,null,null,null,null,null,null,0,null,null,13,null,{"$f":"9-COUNTIF(OFFSET(V44:X46,-3*($U$1+1),3*($P$1+1)),\"\")","v":0},null,null,{"$f":"9-COUNTIF(OFFSET(Y44:AA46,-3*($U$1+1),3*($P$1+1)),\"\")","v":0},null,null,null,6,null,{"$f":"9-COUNTIF(OFFSET(AE44:AG46,-3*($U$1+1),3*($P$1+1)),\"\")","v":0},null,null,{"$f":"9-COUNTIF(OFFSET(AH44:AJ46,-3*($U$1+1),3*($P$1+1)),\"\")","v":0},null,null,null,0,null,null,0,null,null,null,null,null,null,null,null,0,null,null,13,null,null,null,null,null,null,null,null,6,null,null,null,null,null,null,null,null,0,null,null,0,null,null,null,null,null,null,null,null,null,null,null,null,null,null,null,null,null,null,null,null,null,null,null,null,null,null,null,null,null,null,null,null,null,null,null,null,null,null,null,null,null,0,null,null,13,null,null,null,null,null,null,null,null,6,null,null,null,null,null,null,null,null,0,null,null,0]
[null,null,null,null,null,null,null,null,null,null,null,null,null,null,null,null,13,null,null,16,null,null,null,{"$f":"SUM(OFFSET(V44:X46,-3*($U$1+1),3*($P$1+1)))","v":0},null,null,{"$f":"SUM(OFFSET(Y44:AA46,-3*($U$1+1),3*($P$1+1)))","v":0},null,0,null,null,null,{"$f":"SUM(OFFSET(AE44:AG46,-3*($U$1+1),3*($P$1+1)))","v":0},null,null,{"$f":"SUM(OFFSET(AH44:AJ46,-3*($U$1+1),3*($P$1+1)))","v":0},null,4,null,null,3,null,null,null,null,null,null,null,null,13,null,null,16,null,null,null,null,null,null,null,null,0,null,null,null,null,null,null,null,null,4,null,null,3,null,null,null,null,null,null,null,null,null,null,null,null,null,null,null,null,null,null,null,null,null,null,null,null,null,null,null,null,null,null,null,null,null,null,null,null,null,null,null,null,null,13,null,null,16,null,null,null,null,null,null,null,null,0,null,null,null,null,null,null,null,null,4,null,null,3]
[null,null,null,null,null,null,null,null,null,null,null,null,null,null,null,null,null,null,null,null,null,null,null,null,null,null,null,null,null,null,null,null,null,null,null,null,null,null,null,null,null,null,null,null,null,null,null,null,8,null,null,7,null,null,9,null,null,5,null,null,null,null,null,4,null,null,3,null,null,1,null,null,2]
[null,null,null,null,null,null,null,null,null,null,null,null,null,null,29,null,{"$f":"9-COUNTIF(OFFSET(P47:R49,-3*($U$1+1),3*($P$1+1)),\"\")","v":0},null,null,{"$f":"9-COUNTIF(OFFSET(S47:U49,-3*($U$1+1),3*($P$1+1)),\"\")","v":0},null,null,{"$f":"9-COUNTIF(OFFSET(V47:X49,-3*($U$1+1),3*($P$1+1)),\"\")","v":0},null,null,{"$f":"9-COUNTIF(OFFSET(Y47:AA49,-3*($U$1+1),3*($P$1+1)),\"\")","v":0},null,null,null,10,null,{"$f":"9-COUNTIF(OFFSET(AE47:AG49,-3*($U$1+1),3*($P$1+1)),\"\")","v":0},null,null,{"$f":"9-COUNTIF(OFFSET(AH47:AJ49,-3*($U$1+1),3*($P$1+1)),\"\")","v":0},null,null,{"$f":"9-COUNTIF(OFFSET(AK47:AM49,-3*($U$1+1),3*($P$1+1)),\"\")","v":0},null,null,{"$f":"9-COUNTIF(OFFSET(AN47:AP49,-3*($U$1+1),3*($P$1+1)),\"\")","v":0},null,null,null,null,null,null,29,null,null,null,null,null,null,null,null,null,null,null,null,null,null,10,null,null,null,null,null,null,null,null,null,null,null,null,null,null,null,null,null,null,null,null,null,null,null,null,null,null,null,null,null,null,null,null,null,null,null,null,null,null,null,null,null,null,null,null,null,null,null,null,null,null,29,null,null,null,null,null,null,null,null,null,null,null,null,null,null,10]
[null,null,null,null,null,null,null,null,null,null,null,null,null,0,null,null,null,{"$f":"SUM(OFFSET(P47:R49,-3*($U$1+1),3*($P$1+1)))","v":0},null,null,{"$f":"SUM(OFFSET(S47:U49,-3*($U$1+1),3*($P$1+1)))","v":0},null,null,{"$f":"SUM(OFFSET(V47:X49,-3*($U$1+1),3*($P$1+1)))","v":0},null,null,{"$f":"SUM(OFFSET(Y47:AA49,-3*($U$1+1),3*($P$1+1)))","v":0},null,16,null,null,null,{"$f":"SUM(OFFSET(AE47:AG49,-3*($U$1+1),3*($P$1+1)))","v":0},null,null,{"$f":"SUM(OFFSET(AH47:AJ49,-3*($U$1+1),3*($P$1+1)))","v":0},null,null,{"$f":"SUM(OFFSET(AK47:AM49,-3*($U$1+1),3*($P$1+1)))","v":0},null,null,{"$f":"SUM(OFFSET(AN47:AP49,-3*($U$1+1),3*($P$1+1)))","v":0},null,null,null,null,0,null,null,null,null,null,null,null,null,null,null,null,null,null,null,16,null,null,null,null,null,null,null,null,null,null,null,null,null,null,null,null,null,null,null,null,null,null,null,null,null,null,null,null,null,null,null,null,null,null,null,null,null,null,null,null,null,null,null,null,null,null,null,null,null,null,0,null,null,null,null,null,null,null,null,null,null,null,null,null,null,16]
[null,null,null,null,null,null,null,null,null,null,null,null,null,null,null,null,null,null,null,null,null,null,null,null,null,null,null,null,null,null,null,null,null,null,null,null,null,null,null,null,null,null,null,null,null,null,null,null,5,null,null,9,null,null,null,null,null,8,null,null,9,null,null,3,null,null,null,null,null,3,null,null,1]
[null,null,null,null,null,null,null,null,null,null,null,null,null,null,14,null,{"$f":"9-COUNTIF(OFFSET(P50:R52,-3*($U$1+1),3*($P$1+1)),\"\")","v":0},null,null,{"$f":"9-COUNTIF(OFFSET(S50:U52,-3*($U$1+1),3*($P$1+1)),\"\")","v":0},null,null,null,20,null,{"$f":"9-COUNTIF(OFFSET(Y50:AA52,-3*($U$1+1),3*($P$1+1)),\"\")","v":0},null,null,{"$f":"9-COUNTIF(OFFSET(AB50:AD52,-3*($U$1+1),3*($P$1+1)),\"\")","v":0},null,null,{"$f":"9-COUNTIF(OFFSET(AE50:AG52,-3*($U$1+1),3*($P$1+1)),\"\")","v":0},null,null,null,4,null,{"$f":"9-COUNTIF(OFFSET(AK50:AM52,-3*($U$1+1),3*($P$1+1)),\"\")","v":0},null,null,{"$f":"9-COUNTIF(OFFSET(AN50:AP52,-3*($U$1+1),3*($P$1+1)),\"\")","v":0},null,null,null,null,null,null,14,null,null,null,null,null,null,null,null,20,null,null,null,null,null,null,null,null,null,null,null,4,null,null,null,null,null,null,null,null,null,null,null,null,null,null,null,null,null,null,null,null,null,null,null,null,null,null,null,null,null,null,null,null,null,null,null,null,null,null,null,null,null,null,null,null,14,null,null,null,null,null,null,null,null,20,null,null,null,null,null,null,null,null,null,null,null,4]
[null,null,null,null,null,null,null,null,null,null,null,null,null,0,null,null,null,{"$f":"SUM(OFFSET(P50:R52,-3*($U$1+1),3*($P$1+1)))","v":0},null,null,{"$f":"SUM(OFFSET(S50:U52,-3*($U$1+1),3*($P$1+1)))","v":0},null,33,null,null,null,{"$f":"SUM(OFFSET(Y50:AA52,-3*($U$1+1),3*($P$1+1)))","v":0},null,null,{"$f":"SUM(OFFSET(AB50:AD52,-3*($U$1+1),3*($P$1+1)))","v":0},null,null,{"$f":"SUM(OFFSET(AE50:AG52,-3*($U$1+1),3*($P$1+1)))","v":0},null,16,null,null,null,{"$f":"SUM(OFFSET(AK50:AM52,-3*($U$1+1),3*($P$1+1)))","v":0},null,null,{"$f":"SUM(OFFSET(AN50:AP52,-3*($U$1+1),3*($P$1+1)))","v":0},null,null,null,null,0,null,null,null,null,null,null,null,null,33,null,null,null,null,null,null,null,null,null,null,null,16,null,null,null,null,null,null,null,null,null,null,null,null,null,null,null,null,null,null,null,null,null,null,null,null,null,null,null,null,null,null,null,null,null,null,null,null,null,null,null,null,null,null,null,null,0,null,null,null,null,null,null,null,null,33,null,null,null,null,null,null,null,null,null,null,null,16]
[null,null,null,null,null,null,null,null,null,null,null,null,null,null,null,null,null,null,null,null,null,null,null,null,null,null,null,null,null,null,null,null,null,null,null,null,null,null,null,null,null,null,null,null,null,null,null,null,null,null,null,null,null,null,8,null,null,9,null,null,7,null,null,1,null,null,3]
[null,null,null,null,null,null,null,null,null,null,null,null,null,null,null,null,null,0,null,null,28,null,{"$f":"9-COUNTIF(OFFSET(V53:X55,-3*($U$1+1),3*($P$1+1)),\"\")","v":0},null,null,{"$f":"9-COUNTIF(OFFSET(Y53:AA55,-3*($U$1+1),3*($P$1+1)),\"\")","v":0},null,null,{"$f":"9-COUNTIF(OFFSET(AB53:AD55,-3*($U$1+1),3*($P$1+1)),\"\")","v":0},null,null,{"$f":"9-COUNTIF(OFFSET(AE53:AG55,-3*($U$1+1),3*($P$1+1)),\"\")","v":0},null,null,{"$f":"9-COUNTIF(OFFSET(AH53:AJ55,-3*($U$1+1),3*($P$1+1)),\"\")","v":0},null,null,null,0,null,null,0,null,null,null,null,null,null,null,null,0,null,null,28,null,null,null,null,null,null,null,null,null,null,null,null,null,null,null,null,null,0,null,null,0,null,null,null,null,null,null,null,null,null,null,null,null,null,null,null,null,null,null,null,null,null,null,null,null,null,null,null,null,null,null,null,null,null,null,null,null,null,null,null,null,null,0,null,null,28,null,null,null,null,null,null,null,null,null,null,null,null,null,null,null,null,null,0,null,null,0]
[null,null,null,null,null,null,null,null,null,null,null,null,null,null,null,null,7,null,null,6,null,null,null,{"$f":"SUM(OFFSET(V53:X55,-3*($U$1+1),3*($P$1+1)))","v":0},null,null,{"$f":"SUM(OFFSET(Y53:AA55,-3*($U$1+1),3*($P$1+1)))","v":0},null,null,{"$f":"SUM(OFFSET(AB53:AD55,-3*($U$1+1),3*($P$1+1)))","v":0},null,null,{"$f":"SUM(OFFSET(AE53:AG55,-3*($U$1+1),3*($P$1+1)))","v":0},null,null,{"$f":"SUM(OFFSET(AH53:AJ55,-3*($U$1+1),3*($P$1+1)))","v":0},null,24,null,null,23,null,null,null,null,null,null,null,null,7,null,null,6,null,null,null,null,null,null,null,null,null,null,null,null,null,null,null,null,null,24,null,null,23,null,null,null,null,null,null,null,null,null,null,null,null,null,null,null,null,null,null,null,null,null,null,null,null,null,null,null,null,null,null,null,null,null,null,null,null,null,null,null,null,null,7,null,null,6,null,null,null,null,null,null,null,null,null,null,null,null,null,null,null,null,null,24,null,null,23]
[null,null,null,null,null,null,null,null,null,null,null,null,null,null,null,null,null,null,null,null,null,null,null,null,null,null,null,null,null,null,null,null,null,null,null,null,null,null,null,null,null,null,null,null,null,null,null,null,4,null,null,2,null,null,9,null,null,7,null,null,null,null,null,2,null,null,1,null,null,8,null,null,6]
[null,null,null,null,null,null,null,null,null,null,null,null,null,null,22,null,{"$f":"9-COUNTIF(OFFSET(P56:R58,-3*($U$1+1),3*($P$1+1)),\"\")","v":0},null,null,{"$f":"9-COUNTIF(OFFSET(S56:U58,-3*($U$1+1),3*($P$1+1)),\"\")","v":0},null,null,{"$f":"9-COUNTIF(OFFSET(V56:X58,-3*($U$1+1),3*($P$1+1)),\"\")","v":0},null,null,{"$f":"9-COUNTIF(OFFSET(Y56:AA58,-3*($U$1+1),3*($P$1+1)),\"\")","v":0},null,null,null,17,null,{"$f":"9-COUNTIF(OFFSET(AE56:AG58,-3*($U$1+1),3*($P$1+1)),\"\")","v":0},null,null,{"$f":"9-COUNTIF(OFFSET(AH56:AJ58,-3*($U$1+1),3*($P$1+1)),\"\")","v":0},null,null,{"$f":"9-COUNTIF(OFFSET(AK56:AM58,-3*($U$1+1),3*($P$1+1)),\"\")","v":0},null,null,{"$f":"9-COUNTIF(OFFSET(AN56:AP58,-3*($U$1+1),3*($P$1+1)),\"\")","v":0},null,null,null,null,null,null,22,null,null,null,null,null,null,null,null,null,null,null,null,null,null,17,null,null,null,null,null,null,null,null,null,null,null,null,null,null,null,null,null,null,null,null,null,null,null,null,null,null,null,null,null,null,null,null,null,null,null,null,null,null,null,null,null,null,null,null,null,null,null,null,null,null,22,null,null,null,null,null,null,null,null,null,null,null,null,null,null,17]
[null,null,null,null,null,null,null,null,null,null,null,null,null,0,null,null,null,{"$f":"SUM(OFFSET(P56:R58,-3*($U$1+1),3*($P$1+1)))","v":0},null,null,{"$f":"SUM(OFFSET(S56:U58,-3*($U$1+1),3*($P$1+1)))","v":0},null,null,{"$f":"SUM(OFFSET(V56:X58,-3*($U$1+1),3*($P$1+1)))","v":0},null,null,{"$f":"SUM(OFFSET(Y56:AA58,-3*($U$1+1),3*($P$1+1)))","v":0},null,0,null,null,null,{"$f":"SUM(OFFSET(AE56:AG58,-3*($U$1+1),3*($P$1+1)))","v":0},null,null,{"$f":"SUM(OFFSET(AH56:AJ58,-3*($U$1+1),3*($P$1+1)))","v":0},null,null,{"$f":"SUM(OFFSET(AK56:AM58,-3*($U$1+1),3*($P$1+1)))","v":0},null,null,{"$f":"SUM(OFFSET(AN56:AP58,-3*($U$1+1),3*($P$1+1)))","v":0},null,null,null,null,0,null,null,null,null,null,null,null,null,null,null,null,null,null,null,0,null,null,null,null,null,null,null,null,null,null,null,null,null,null,null,null,null,null,null,null,null,null,null,null,null,null,null,null,null,null,null,null,null,null,null,null,null,null,null,null,null,null,null,null,null,null,null,null,null,null,0,null,null,null,null,null,null,null,null,null,null,null,null,null,null,0]
[null,null,null,null,null,null,null,null,null,null,null,null,null,null,null,null,null,null,null,null,null,null,null,null,null,null,null,null,null,null,null,null,null,null,null,null,null,null,null,null,null,null,null,null,null,null,null,null,2,null,null,1,null,null,4,null,null,null,null,null,null,null,null,null,null,null,6,null,null,9,null,null,8]
[null,null,null,null,null,null,null,null,null,null,null,null,null,null,7,null,{"$f":"9-COUNTIF(OFFSET(P59:R61,-3*($U$1+1),3*($P$1+1)),\"\")","v":0},null,null,{"$f":"9-COUNTIF(OFFSET(S59:U61,-3*($U$1+1),3*($P$1+1)),\"\")","v":0},null,null,{"$f":"9-COUNTIF(OFFSET(V59:X61,-3*($U$1+1),3*($P$1+1)),\"\")","v":0},null,null,null,0,null,null,null,null,null,23,null,{"$f":"9-COUNTIF(OFFSET(AH59:AJ61,-3*($U$1+1),3*($P$1+1)),\"\")","v":0},null,null,{"$f":"9-COUNTIF(OFFSET(AK59:AM61,-3*($U$1+1),3*($P$1+1)),\"\")","v":0},null,null,{"$f":"9-COUNTIF(OFFSET(AN59:AP61,-3*($U$1+1),3*($P$1+1)),\"\")","v":0},null,null,null,null,null,null,7,null,null,null,null,null,null,null,null,null,null,null,0,null,null,null,null,null,23,null,null,null,null,null,null,null,null,null,null,null,null,null,null,null,null,null,null,null,null,null,null,null,null,null,null,null,null,null,null,null,null,null,null,null,null,null,null,null,null,null,null,null,null,null,null,null,7,null,null,null,null,null,null,null,null,null,null,null,0,null,null,null,null,null,23]
[null,null,null,null,null,null,null,null,null,null,null,null,null,0,null,null,null,{"$f":"SUM(OFFSET(P59:R61,-3*($U$1+1),3*($P$1+1)))","v":0},null,null,{"$f":"SUM(OFFSET(S59:U61,-3*($U$1+1),3*($P$1+1)))","v":0},null,null,{"$f":"SUM(OFFSET(V59:X61,-3*($U$1+1),3*($P$1+1)))","v":0},null,15,null,null,null,null,null,35,null,null,null,{"$f":"SUM(OFFSET(AH59:AJ61,-3*($U$1+1),3*($P$1+1)))","v":0},null,null,{"$f":"SUM(OFFSET(AK59:AM61,-3*($U$1+1),3*($P$1+1)))","v":0},null,null,{"$f":"SUM(OFFSET(AN59:AP61,-3*($U$1+1),3*($P$1+1)))","v":0},null,null,null,null,0,null,null,null,null,null,null,null,null,null,null,null,15,null,null,null,null,null,35,null,null,null,null,null,null,null,null,null,null,null,null,null,null,null,null,null,null,null,null,null,null,null,null,null,null,null,null,null,null,null,null,null,null,null,null,null,null,null,null,null,null,null,null,null,null,null,0,null,null,null,null,null,null,null,null,null,null,null,15,null,null,null,null,null,35]
[null,null,null,null,null,null,null,null,null,null,null,null,null,null,null,null,null,null,null,null,null,null,null,null,null,null,null,null,null,null,null,null,null,null,null,null,null,null,null,null,null,null,null,null,null,null,null,null,1,null,null,3,null,null,5,null,null,2,null,null,null,null,null,8,null,null,4,null,null,7,null,null,9]
[null,null,null,null,null,null,null,null,null,null,null,null,null,null,11,null,{"$f":"9-COUNTIF(OFFSET(P62:R64,-3*($U$1+1),3*($P$1+1)),\"\")","v":0},null,null,{"$f":"9-COUNTIF(OFFSET(S62:U64,-3*($U$1+1),3*($P$1+1)),\"\")","v":0},null,null,{"$f":"9-COUNTIF(OFFSET(V62:X64,-3*($U$1+1),3*($P$1+1)),\"\")","v":0},null,null,{"$f":"9-COUNTIF(OFFSET(Y62:AA64,-3*($U$1+1),3*($P$1+1)),\"\")","v":0},null,null,null,28,null,{"$f":"9-COUNTIF(OFFSET(AE62:AG64,-3*($U$1+1),3*($P$1+1)),\"\")","v":0},null,null,{"$f":"9-COUNTIF(OFFSET(AH62:AJ64,-3*($U$1+1),3*($P$1+1)),\"\")","v":0},null,null,{"$f":"9-COUNTIF(OFFSET(AK62:AM64,-3*($U$1+1),3*($P$1+1)),\"\")","v":0},null,null,{"$f":"9-COUNTIF(OFFSET(AN62:AP64,-3*($U$1+1),3*($P$1+1)),\"\")","v":0},null,null,null,null,null,null,11,null,null,null,null,null,null,null,null,null,null,null,null,null,null,28,null,null,null,null,null,null,null,null,null,null,null,null,null,null,null,null,null,null,null,null,null,null,null,null,null,null,null,null,null,null,null,null,null,null,null,null,null,null,null,null,null,null,null,null,null,null,null,null,null,null,11,null,null,null,null,null,null,null,null,null,null,null,null,null,null,28]
[null,null,null,null,null,null,null,null,null,null,null,null,null,0,null,null,null,{"$f":"SUM(OFFSET(P62:R64,-3*($U$1+1),3*($P$1+1)))","v":0},null,null,{"$f":"SUM(OFFSET(S62:U64,-3*($U$1+1),3*($P$1+1)))","v":0},null,null,{"$f":"SUM(OFFSET(V62:X64,-3*($U$1+1),3*($P$1+1)))","v":0},null,null,{"$f":"SUM(OFFSET(Y62:AA64,-3*($U$1+1),3*($P$1+1)))","v":0},null,10,null,null,null,{"$f":"SUM(OFFSET(AE62:AG64,-3*($U$1+1),3*($P$1+1)))","v":0},null,null,{"$f":"SUM(OFFSET(AH62:AJ64,-3*($U$1+1),3*($P$1+1)))","v":0},null,null,{"$f":"SUM(OFFSET(AK62:AM64,-3*($U$1+1),3*($P$1+1)))","v":0},null,null,{"$f":"SUM(OFFSET(AN62:AP64,-3*($U$1+1),3*($P$1+1)))","v":0},null,null,null,null,0,null,null,null,null,null,null,null,null,null,null,null,null,null,null,10,null,null,null,null,null,null,null,null,null,null,null,null,null,null,null,null,null,null,null,null,null,null,null,null,null,null,null,null,null,null,null,null,null,null,null,null,null,null,null,null,null,null,null,null,null,null,null,null,null,null,0,null,null,null,null,null,null,null,null,null,null,null,null,null,null,10]
[null,null,null,null,null,null,null,null,null,null,null,null,null,null,null,null,null,null,null,null,null,null,null,null,null,null,null,null,null,null,null,null,null,null,null,null,null,null,null,null,null,null,null,null,null,null,null,null,null,null,null,null,null,null,7,null,null,1,null,null,3,null,null,6,null,null,2]
[null,null,null,null,null,null,null,null,null,null,null,null,null,null,null,null,null,0,null,null,19,null,{"$f":"9-COUNTIF(OFFSET(V65:X67,-3*($U$1+1),3*($P$1+1)),\"\")","v":0},null,null,{"$f":"9-COUNTIF(OFFSET(Y65:AA67,-3*($U$1+1),3*($P$1+1)),\"\")","v":0},null,null,{"$f":"9-COUNTIF(OFFSET(AB65:AD67,-3*($U$1+1),3*($P$1+1)),\"\")","v":0},null,null,{"$f":"9-COUNTIF(OFFSET(AE65:AG67,-3*($U$1+1),3*($P$1+1)),\"\")","v":0},null,null,{"$f":"9-COUNTIF(OFFSET(AH65:AJ67,-3*($U$1+1),3*($P$1+1)),\"\")","v":0},null,null,null,0,null,null,0,null,null,null,null,null,null,null,null,0,null,null,19,null,null,null,null,null,null,null,null,null,null,null,null,null,null,null,null,null,0,null,null,0,null,null,null,null,null,null,null,null,null,null,null,null,null,null,null,null,null,null,null,null,null,null,null,null,null,null,null,null,null,null,null,null,null,null,null,null,null,null,null,null,null,0,null,null,19,null,null,null,null,null,null,null,null,null,null,null,null,null,null,null,null,null,0,null,null,0]
[null,null,null,null,null,null,null,null,null,null,null,null,null,null,null,null,17,null,null,16,null,null,null,{"$f":"SUM(OFFSET(V65:X67,-3*($U$1+1),3*($P$1+1)))","v":0},null,null,{"$f":"SUM(OFFSET(Y65:AA67,-3*($U$1+1),3*($P$1+1)))","v":0},null,null,{"$f":"SUM(OFFSET(AB65:AD67,-3*($U$1+1),3*($P$1+1)))","v":0},null,null,{"$f":"SUM(OFFSET(AE65:AG67,-3*($U$1+1),3*($P$1+1)))","v":0},null,null,{"$f":"SUM(OFFSET(AH65:AJ67,-3*($U$1+1),3*($P$1+1)))","v":0},null,4,null,null,3,null,null,null,null,null,null,null,null,17,null,null,16,null,null,null,null,null,null,null,null,null,null,null,null,null,null,null,null,null,4,null,null,3,null,null,null,null,null,null,null,null,null,null,null,null,null,null,null,null,null,null,null,null,null,null,null,null,null,null,null,null,null,null,null,null,null,null,null,null,null,null,null,null,null,17,null,null,16,null,null,null,null,null,null,null,null,null,null,null,null,null,null,null,null,null,4,null,null,3]
[null,null,null,null,null,null,null,null,null,null,null,null,null,null,null,null,null,null,null,null,null,null,null,null,null,null,null,null,null,null,null,null,null,null,null,null,null,null,null,null,null,null,null,null,null,null,null,null,9,null,null,7,null,null,null,null,null,3,null,null,7,null,null,9,null,null,null,null,null,3,null,null,1]
[null,null,null,null,null,null,null,null,null,null,null,null,null,null,16,null,{"$f":"9-COUNTIF(OFFSET(P68:R70,-3*($U$1+1),3*($P$1+1)),\"\")","v":0},null,null,{"$f":"9-COUNTIF(OFFSET(S68:U70,-3*($U$1+1),3*($P$1+1)),\"\")","v":0},null,null,null,19,null,{"$f":"9-COUNTIF(OFFSET(Y68:AA70,-3*($U$1+1),3*($P$1+1)),\"\")","v":0},null,null,{"$f":"9-COUNTIF(OFFSET(AB68:AD70,-3*($U$1+1),3*($P$1+1)),\"\")","v":0},null,null,{"$f":"9-COUNTIF(OFFSET(AE68:AG70,-3*($U$1+1),3*($P$1+1)),\"\")","v":0},null,null,null,4,null,{"$f":"9-COUNTIF(OFFSET(AK68:AM70,-3*($U$1+1),3*($P$1+1)),\"\")","v":0},null,null,{"$f":"9-COUNTIF(OFFSET(AN68:AP70,-3*($U$1+1),3*($P$1+1)),\"\")","v":0},null,null,null,null,null,null,16,null,null,null,null,null,null,null,null,19,null,null,null,null,null,null,null,null,null,null,null,4,null,null,null,null,null,null,null,null,null,null,null,null,null,null,null,null,null,null,null,null,null,null,null,null,null,null,null,null,null,null,null,null,null,null,null,null,null,null,null,null,null,null,null,null,16,null,null,null,null,null,null,null,null,19,null,null,null,null,null,null,null,null,null,null,null,4]
[null,null,null,null,null,null,null,null,null,null,null,null,null,0,null,null,null,{"$f":"SUM(OFFSET(P68:R70,-3*($U$1+1),3*($P$1+1)))","v":0},null,null,{"$f":"SUM(OFFSET(S68:U70,-3*($U$1+1),3*($P$1+1)))","v":0},null,4,null,null,null,{"$f":"SUM(OFFSET(Y68:AA70,-3*($U$1+1),3*($P$1+1)))","v":0},null,null,{"$f":"SUM(OFFSET(AB68:AD70,-3*($U$1+1),3*($P$1+1)))","v":0},null,null,{"$f":"SUM(OFFSET(AE68:AG70,-3*($U$1+1),3*($P$1+1)))","v":0},null,17,null,null,null,{"$f":"SUM(OFFSET(AK68:AM70,-3*($U$1+1),3*($P$1+1)))","v":0},null,null,{"$f":"SUM(OFFSET(AN68:AP70,-3*($U$1+1),3*($P$1+1)))","v":0},null,null,null,null,0,null,null,null,null,null,null,null,null,4,null,null,null,null,null,null,null,null,null,null,null,17,null,null,null,null,null,null,null,null,null,null,null,null,null,null,null,null,null,null,null,null,null,null,null,null,null,null,null,null,null,null,null,null,null,null,null,null,null,null,null,null,null,null,null,null,0,null,null,null,null,null,null,null,null,4,null,null,null,null,null,null,null,null,null,null,null,17]
[null,null,null,null,null,null,null,null,null,null,null,null,null,null,null,null,null,null,null,null,null,null,null,null,null,null,null,null,null,null,null,null,null,null,null,null,null,null,null,null,null,null,null,null,null,null,null,null,8,null,null,9,null,null,1,null,null,5,null,null,null,null,null,5,null,null,8,null,null,1,null,null,2]
[null,null,null,null,null,null,null,null,null,null,null,null,null,null,23,null,{"$f":"9-COUNTIF(OFFSET(P71:R73,-3*($U$1+1),3*($P$1+1)),\"\")","v":0},null,null,{"$f":"9-COUNTIF(OFFSET(S71:U73,-3*($U$1+1),3*($P$1+1)),\"\")","v":0},null,null,{"$f":"9-COUNTIF(OFFSET(V71:X73,-3*($U$1+1),3*($P$1+1)),\"\")","v":0},null,null,{"$f":"9-COUNTIF(OFFSET(Y71:AA73,-3*($U$1+1),3*($P$1+1)),\"\")","v":0},null,null,null,16,null,{"$f":"9-COUNTIF(OFFSET(AE71:AG73,-3*($U$1+1),3*($P$1+1)),\"\")","v":0},null,null,{"$f":"9-COUNTIF(OFFSET(AH71:AJ73,-3*($U$1+1),3*($P$1+1)),\"\")","v":0},null,null,{"$f":"9-COUNTIF(OFFSET(AK71:AM73,-3*($U$1+1),3*($P$1+1)),\"\")","v":0},null,null,{"$f":"9-COUNTIF(OFFSET(AN71:AP73,-3*($U$1+1),3*($P$1+1)),\"\")","v":0},null,null,null,null,null,null,23,null,null,null,null,null,null,null,null,null,null,null,null,null,null,16,null,null,null,null,null,null,null,null,null,null,null,null,null,null,null,null,null,null,null,null,null,null,null,null,null,null,null,null,null,null,null,null,null,null,null,null,null,null,null,null,null,null,null,null,null,null,null,null,null,null,23,null,null,null,null,null,null,null,null,null,null,null,null,null,null,16]
[null,null,null,null,null,null,null,null,null,null,null,null,null,0,null,null,null,{"$f":"SUM(OFFSET(P71:R73,-3*($U$1+1),3*($P$1+1)))","v":0},null,null,{"$f":"SUM(OFFSET(S71:U73,-3*($U$1+1),3*($P$1+1)))","v":0},null,null,{"$f":"SUM(OFFSET(V71:X73,-3*($U$1+1),3*($P$1+1)))","v":0},null,null,{"$f":"SUM(OFFSET(Y71:AA73,-3*($U$1+1),3*($P$1+1)))","v":0},null,0,null,null,null,{"$f":"SUM(OFFSET(AE71:AG73,-3*($U$1+1),3*($P$1+1)))","v":0},null,null,{"$f":"SUM(OFFSET(AH71:AJ73,-3*($U$1+1),3*($P$1+1)))","v":0},null,null,{"$f":"SUM(OFFSET(AK71:AM73,-3*($U$1+1),3*($P$1+1)))","v":0},null,null,{"$f":"SUM(OFFSET(AN71:AP73,-3*($U$1+1),3*($P$1+1)))","v":0},null,null,null,null,0,null,null,null,null,null,null,null,null,null,null,null,null,null,null,0,null,null,null,null,null,null,null,null,null,null,null,null,null,null,null,null,null,null,null,null,null,null,null,null,null,null,null,null,null,null,null,null,null,null,null,null,null,null,null,null,null,null,null,null,null,null,null,null,null,null,0,null,null,null,null,null,null,null,null,null,null,null,null,null,null,0]
[null,null,null,null,null,null,null,null,null,null,null,null,null,null,null,null,null,null,null,null,null,null,null,null,null,null,null,null,null,null,null,null,null,null,null,null,null,null,null,null,null,null,null,null,null,null,null,null,null,null,null,null,null,null,3,null,null,4,null,null,null,null,null,7,null,null,9]
[null,null,null,null,null,null,null,null,null,null,null,null,null,null,null,null,null,null,null,null,7,null,{"$f":"9-COUNTIF(OFFSET(V74:X76,-3*($U$1+1),3*($P$1+1)),\"\")","v":0},null,null,{"$f":"9-COUNTIF(OFFSET(Y74:AA76,-3*($U$1+1),3*($P$1+1)),\"\")","v":0},null,null,null,16,null,{"$f":"9-COUNTIF(OFFSET(AE74:AG76,-3*($U$1+1),3*($P$1+1)),\"\")","v":0},null,null,{"$f":"9-COUNTIF(OFFSET(AH74:AJ76,-3*($U$1+1),3*($P$1+1)),\"\")","v":0},null,null,null,null,null,null,null,null,null,null,null,null,null,null,null,null,null,null,7,null,null,null,null,null,null,null,null,16,null,null,null,null,null,null,null,null,null,null,null,null,null,null,null,null,null,null,null,null,null,null,null,null,null,null,null,null,null,null,null,null,null,null,null,null,null,null,null,null,null,null,null,null,null,null,null,null,null,null,null,null,null,null,null,null,7,null,null,null,null,null,null,null,null,16]
[null,null,null,null,null,null,null,null,null,null,null,null,null,null,null,null,null,null,null,0,null,null,null,{"$f":"SUM(OFFSET(V74:X76,-3*($U$1+1),3*($P$1+1)))","v":0},null,null,{"$f":"SUM(OFFSET(Y74:AA76,-3*($U$1+1),3*($P$1+1)))","v":0},null,0,null,null,null,{"$f":"SUM(OFFSET(AE74:AG76,-3*($U$1+1),3*($P$1+1)))","v":0},null,null,{"$f":"SUM(OFFSET(AH74:AJ76,-3*($U$1+1),3*($P$1+1)))","v":0},null,null,null,null,null,null,null,null,null,null,null,null,null,null,null,null,0,null,null,null,null,null,null,null,null,0,null,null,null,null,null,null,null,null,null,null,null,null,null,null,null,null,null,null,null,null,null,null,null,null,null,null,null,null,null,null,null,null,null,null,null,null,null,null,null,null,null,null,null,null,null,null,null,null,null,null,null,null,null,null,null,null,0,null,null,null,null,null,null,null,null,0]
[]
[null,null,null,null,null,null,null,null,null,null,null,null,null,null,null,null,null,null,null,null,null,null,null,null,null,null,null,null,null,null,null,null,null,null,null,null,null,null,null,"Protokoll der Rekursion: Niveau,  brauchbar/unbrauchbar Kandidat,  Zeile,  Spalte",null,null,null,null,null,null,null,null,null,null,null,null,null,null,null,null,null,null,null,null,null,null,null,null,null,null,null,null,null,"Protokoll der Paaruntersuchung: Paarnummer und F oder OK. Anzahl Fälle ="]
[]
[]
[]
[]
[]
[]
[]
[]
[]
[]
[]
[]
[]
[]
[]
[]
[]
[]
[]
[]
[]
["Testbereich",null,null,null,null,null,null,"Summe:"]

{"sheet":"Blatt2","index":1,"n_rows":130,"n_cols":19,"rows_kept":130,"cut":false,"hidden":false,"merged":[]}
["Liste aller Kombinationen ohne Wiederholung",null,null,null,null,null," i = ",1,2,3,4,5,6,7,8,9,10]
["n = ",9,null,null,null,null," a(i) = ",9,8,7,6,5,4,3,2,1,0]
["k = ",9]
[null,null,null,null,null,null,null,null,null,null,null,null,null,null,null,null,null,null,"Summe"]
[null,1,2,3,4,5,6,7,8,9,null,null,null,null,null,null,null,null,{"$f":"SUM(B5:J5)","v":45}]
[null,null,null,null,null,null,null,null,null,null,null,null,null,null,null,null,null,null,{"$f":"SUM(B6:J6)","v":0}]
[null,null,null,null,null,null,null,null,null,null,null,null,null,null,null,null,null,null,0]
[null,null,null,null,null,null,null,null,null,null,null,null,null,null,null,null,null,null,0]
[null,null,null,null,null,null,null,null,null,null,null,null,null,null,null,null,null,null,0]
[null,null,null,null,null,null,null,null,null,null,null,null,null,null,null,null,null,null,0]
[null,null,null,null,null,null,null,null,null,null,null,null,null,null,null,null,null,null,0]
[null,null,null,null,null,null,null,null,null,null,null,null,null,null,null,null,null,null,0]
[null,null,null,null,null,null,null,null,null,null,null,null,null,null,null,null,null,null,0]
[null,null,null,null,null,null,null,null,null,null,null,null,null,null,null,null,null,null,0]
[null,null,null,null,null,null,null,null,null,null,null,null,null,null,null,null,null,null,0]
[null,null,null,null,null,null,null,null,null,null,null,null,null,null,null,null,null,null,0]
[null,null,null,null,null,null,null,null,null,null,null,null,null,null,null,null,null,null,0]
[null,null,null,null,null,null,null,null,null,null,null,null,null,null,null,null,null,null,0]
[null,null,null,null,null,null,null,null,null,null,null,null,null,null,null,null,null,null,0]
[null,null,null,null,null,null,null,null,null,null,null,null,null,null,null,null,null,null,0]
[null,null,null,null,null,null,null,null,null,null,null,null,null,null,null,null,null,null,0]
[null,null,null,null,null,null,null,null,null,null,null,null,null,null,null,null,null,null,0]
[null,null,null,null,null,null,null,null,null,null,null,null,null,null,null,null,null,null,0]
[null,null,null,null,null,null,null,null,null,null,null,null,null,null,null,null,null,null,0]
[null,null,null,null,null,null,null,null,null,null,null,null,null,null,null,null,null,null,0]
[null,null,null,null,null,null,null,null,null,null,null,null,null,null,null,null,null,null,0]
[null,null,null,null,null,null,null,null,null,null,null,null,null,null,null,null,null,null,0]
[null,null,null,null,null,null,null,null,null,null,null,null,null,null,null,null,null,null,0]
[null,null,null,null,null,null,null,null,null,null,null,null,null,null,null,null,null,null,0]
[null,null,null,null,null,null,null,null,null,null,null,null,null,null,null,null,null,null,0]
[null,null,null,null,null,null,null,null,null,null,null,null,null,null,null,null,null,null,0]
[null,null,null,null,null,null,null,null,null,null,null,null,null,null,null,null,null,null,0]
[null,null,null,null,null,null,null,null,null,null,null,null,null,null,null,null,null,null,0]
[null,null,null,null,null,null,null,null,null,null,null,null,null,null,null,null,null,null,0]
[null,null,null,null,null,null,null,null,null,null,null,null,null,null,null,null,null,null,0]
[null,null,null,null,null,null,null,null,null,null,null,null,null,null,null,null,null,null,0]
[null,null,null,null,null,null,null,null,null,null,null,null,null,null,null,null,null,null,0]
[null,null,null,null,null,null,null,null,null,null,null,null,null,null,null,null,null,null,0]
[null,null,null,null,null,null,null,null,null,null,null,null,null,null,null,null,null,null,0]
[null,null,null,null,null,null,null,null,null,null,null,null,null,null,null,null,null,null,0]
[null,null,null,null,null,null,null,null,null,null,null,null,null,null,null,null,null,null,0]
[null,null,null,null,null,null,null,null,null,null,null,null,null,null,null,null,null,null,0]
[null,null,null,null,null,null,null,null,null,null,null,null,null,null,null,null,null,null,0]
[null,null,null,null,null,null,null,null,null,null,null,null,null,null,null,null,null,null,0]
[null,null,null,null,null,null,null,null,null,null,null,null,null,null,null,null,null,null,0]
[null,null,null,null,null,null,null,null,null,null,null,null,null,null,null,null,null,null,0]
[null,null,null,null,null,null,null,null,null,null,null,null,null,null,null,null,null,null,0]
[null,null,null,null,null,null,null,null,null,null,null,null,null,null,null,null,null,null,0]
[null,null,null,null,null,null,null,null,null,null,null,null,null,null,null,null,null,null,0]
[null,null,null,null,null,null,null,null,null,null,null,null,null,null,null,null,null,null,0]
[null,null,null,null,null,null,null,null,null,null,null,null,null,null,null,null,null,null,0]
[null,null,null,null,null,null,null,null,null,null,null,null,null,null,null,null,null,null,0]
[null,null,null,null,null,null,null,null,null,null,null,null,null,null,null,null,null,null,0]
[null,null,null,null,null,null,null,null,null,null,null,null,null,null,null,null,null,null,0]
[null,null,null,null,null,null,null,null,null,null,null,null,null,null,null,null,null,null,0]
[null,null,null,null,null,null,null,null,null,null,null,null,null,null,null,null,null,null,0]
[null,null,null,null,null,null,null,null,null,null,null,null,null,null,null,null,null,null,0]
[null,null,null,null,null,null,null,null,null,null,null,null,null,null,null,null,null,null,0]
[null,null,null,null,null,null,null,null,null,null,null,null,null,null,null,null,null,null,0]
[null,null,null,null,null,null,null,null,null,null,null,null,null,null,null,null,null,null,0]
[null,null,null,null,null,null,null,null,null,null,null,null,null,null,null,null,null,null,0]
[null,null,null,null,null,null,null,null,null,null,null,null,null,null,null,null,null,null,0]
[null,null,null,null,null,null,null,null,null,null,null,null,null,null,null,null,null,null,0]
[null,null,null,null,null,null,null,null,null,null,null,null,null,null,null,null,null,null,0]
[null,null,null,null,null,null,null,null,null,null,null,null,null,null,null,null,null,null,0]
[null,null,null,null,null,null,null,null,null,null,null,null,null,null,null,null,null,null,0]
[null,null,null,null,null,null,null,null,null,null,null,null,null,null,null,null,null,null,0]
[null,null,null,null,null,null,null,null,null,null,null,null,null,null,null,null,null,null,0]
[null,null,null,null,null,null,null,null,null,null,null,null,null,null,null,null,null,null,0]
[null,null,null,null,null,null,null,null,null,null,null,null,null,null,null,null,null,null,{"$f":"SUM(B70:J70)","v":0}]
[null,null,null,null,null,null,null,null,null,null,null,null,null,null,null,null,null,null,0]
[null,null,null,null,null,null,null,null,null,null,null,null,null,null,null,null,null,null,0]
[null,null,null,null,null,null,null,null,null,null,null,null,null,null,null,null,null,null,0]
[null,null,null,null,null,null,null,null,null,null,null,null,null,null,null,null,null,null,0]
[null,null,null,null,null,null,null,null,null,null,null,null,null,null,null,null,null,null,0]
[null,null,null,null,null,null,null,null,null,null,null,null,null,null,null,null,null,null,0]
[null,null,null,null,null,null,null,null,null,null,null,null,null,null,null,null,null,null,0]
[null,null,null,null,null,null,null,null,null,null,null,null,null,null,null,null,null,null,0]
[null,null,null,null,null,null,null,null,null,null,null,null,null,null,null,null,null,null,0]
[null,null,null,null,null,null,null,null,null,null,null,null,null,null,null,null,null,null,0]
[null,null,null,null,null,null,null,null,null,null,null,null,null,null,null,null,null,null,0]
[null,null,null,null,null,null,null,null,null,null,null,null,null,null,null,null,null,null,0]
[null,null,null,null,null,null,null,null,null,null,null,null,null,null,null,null,null,null,0]
[null,null,null,null,null,null,null,null,null,null,null,null,null,null,null,null,null,null,0]
[null,null,null,null,null,null,null,null,null,null,null,null,null,null,null,null,null,null,0]
[null,null,null,null,null,null,null,null,null,null,null,null,null,null,null,null,null,null,0]
[null,null,null,null,null,null,null,null,null,null,null,null,null,null,null,null,null,null,0]
[null,null,null,null,null,null,null,null,null,null,null,null,null,null,null,null,null,null,0]
[null,null,null,null,null,null,null,null,null,null,null,null,null,null,null,null,null,null,0]
[null,null,null,null,null,null,null,null,null,null,null,null,null,null,null,null,null,null,0]
[null,null,null,null,null,null,null,null,null,null,null,null,null,null,null,null,null,null,0]
[null,null,null,null,null,null,null,null,null,null,null,null,null,null,null,null,null,null,0]
[null,null,null,null,null,null,null,null,null,null,null,null,null,null,null,null,null,null,0]
[null,null,null,null,null,null,null,null,null,null,null,null,null,null,null,null,null,null,0]
[null,null,null,null,null,null,null,null,null,null,null,null,null,null,null,null,null,null,0]
[null,null,null,null,null,null,null,null,null,null,null,null,null,null,null,null,null,null,0]
[null,null,null,null,null,null,null,null,null,null,null,null,null,null,null,null,null,null,0]
[null,null,null,null,null,null,null,null,null,null,null,null,null,null,null,null,null,null,0]
[null,null,null,null,null,null,null,null,null,null,null,null,null,null,null,null,null,null,0]
[null,null,null,null,null,null,null,null,null,null,null,null,null,null,null,null,null,null,0]
[null,null,null,null,null,null,null,null,null,null,null,null,null,null,null,null,null,null,0]
[null,null,null,null,null,null,null,null,null,null,null,null,null,null,null,null,null,null,0]
[null,null,null,null,null,null,null,null,null,null,null,null,null,null,null,null,null,null,0]
[null,null,null,null,null,null,null,null,null,null,null,null,null,null,null,null,null,null,0]
[null,null,null,null,null,null,null,null,null,null,null,null,null,null,null,null,null,null,0]
[null,null,null,null,null,null,null,null,null,null,null,null,null,null,null,null,null,null,0]
[null,null,null,null,null,null,null,null,null,null,null,null,null,null,null,null,null,null,0]
[null,null,null,null,null,null,null,null,null,null,null,null,null,null,null,null,null,null,0]
[null,null,null,null,null,null,null,null,null,null,null,null,null,null,null,null,null,null,0]
[null,null,null,null,null,null,null,null,null,null,null,null,null,null,null,null,null,null,0]
[null,null,null,null,null,null,null,null,null,null,null,null,null,null,null,null,null,null,0]
[null,null,null,null,null,null,null,null,null,null,null,null,null,null,null,null,null,null,0]
[null,null,null,null,null,null,null,null,null,null,null,null,null,null,null,null,null,null,0]
[null,null,null,null,null,null,null,null,null,null,null,null,null,null,null,null,null,null,0]
[null,null,null,null,null,null,null,null,null,null,null,null,null,null,null,null,null,null,0]
[null,null,null,null,null,null,null,null,null,null,null,null,null,null,null,null,null,null,0]
[null,null,null,null,null,null,null,null,null,null,null,null,null,null,null,null,null,null,0]
[null,null,null,null,null,null,null,null,null,null,null,null,null,null,null,null,null,null,0]
[null,null,null,null,null,null,null,null,null,null,null,null,null,null,null,null,null,null,0]
[null,null,null,null,null,null,null,null,null,null,null,null,null,null,null,null,null,null,0]
[null,null,null,null,null,null,null,null,null,null,null,null,null,null,null,null,null,null,0]
[null,null,null,null,null,null,null,null,null,null,null,null,null,null,null,null,null,null,0]
[null,null,null,null,null,null,null,null,null,null,null,null,null,null,null,null,null,null,0]
[null,null,null,null,null,null,null,null,null,null,null,null,null,null,null,null,null,null,0]
[null,null,null,null,null,null,null,null,null,null,null,null,null,null,null,null,null,null,0]
[null,null,null,null,null,null,null,null,null,null,null,null,null,null,null,null,null,null,0]
[null,null,null,null,null,null,null,null,null,null,null,null,null,null,null,null,null,null,0]
[null,null,null,null,null,null,null,null,null,null,null,null,null,null,null,null,null,null,0]
[null,null,null,null,null,null,null,null,null,null,null,null,null,null,null,null,null,null,0]
[null,null,null,null,null,null,null,null,null,null,null,null,null,null,null,null,null,null,0]

{"sheet":"2","index":2,"n_rows":46,"n_cols":90,"rows_kept":46,"cut":false,"hidden":false,"merged":[]}
["Summe",null,null,null,null,null,null,null,null,null,null,null,null,null,null,null,null,null,null,null,null,null,null,null,null,null,null,null,null,null,null,null,null,null,null,null,null,null,null,null,null,null,null,null,null,null,null,null,null,null,null,null,null,null,null,null,null,null,null,null,null,null,null,null,null,null,null,null,null,null,null,null,null,null,null,null,null,null,null,null,"Vorkommens-quotient von 1","Vorkommens-quotient von 2","Vorkommens-quotient von 3","Vorkommens-quotient von 4","Vorkommens-quotient von 5","Vorkommens-quotient von 6","Vorkommens-quotient von 7","Vorkommens-quotient von 8","Vorkommens-quotient von 9","Anzahl Zerlegungen der Summe"]
[1,null,null,null,null,null,null,null,null,null,null,null,null,null,null,null,null,null,null,null,null,null,null,null,null,null,null,null,null,null,null,null,null,null,null,null,null,null,null,null,null,null,null,null,null,null,null,null,null,null,null,null,null,null,null,null,null,null,null,null,null,null,null,null,null,null,null,null,null,null,null,null,null,null,null,null,null,null,null,null,{"$f":"IFERROR(COUNTIF($B2:$CB2,1)/$CL2,\"\")","v":""},{"$f":"IFERROR(COUNTIF($B2:$CB2,2)/$CL2,\"\")","v":""},{"$f":"IFERROR(COUNTIF($B2:$CB2,3)/$CL2,\"\")","v":""},{"$f":"IFERROR(COUNTIF($B2:$CB2,4)/$CL2,\"\")","v":""},{"$f":"IFERROR(COUNTIF($B2:$CB2,5)/$CL2,\"\")","v":""},{"$f":"IFERROR(COUNTIF($B2:$CB2,6)/$CL2,\"\")","v":""},{"$f":"IFERROR(COUNTIF($B2:$CB2,7)/$CL2,\"\")","v":""},{"$f":"IFERROR(COUNTIF($B2:$CB2,8)/$CL2,\"\")","v":""},{"$f":"IFERROR(COUNTIF($B2:$CB2,9)/$CL2,\"\")","v":""},{"$f":"COUNTIF(B2:CB2,\"x\")","v":0}]
[2,null,null,null,null,null,null,null,null,null,null,null,null,null,null,null,null,null,null,null,null,null,null,null,null,null,null,null,null,null,null,null,null,null,null,null,null,null,null,null,null,null,null,null,null,null,null,null,null,null,null,null,null,null,null,null,null,null,null,null,null,null,null,null,null,null,null,null,null,null,null,null,null,null,null,null,null,null,null,null,{"$f":"IFERROR(COUNTIF($B3:$CB3,1)/$CL3,\"\")","v":""},{"$f":"IFERROR(COUNTIF($B3:$CB3,2)/$CL3,\"\")","v":""},{"$f":"IFERROR(COUNTIF($B3:$CB3,3)/$CL3,\"\")","v":""},{"$f":"IFERROR(COUNTIF($B3:$CB3,4)/$CL3,\"\")","v":""},{"$f":"IFERROR(COUNTIF($B3:$CB3,5)/$CL3,\"\")","v":""},{"$f":"IFERROR(COUNTIF($B3:$CB3,6)/$CL3,\"\")","v":""},{"$f":"IFERROR(COUNTIF($B3:$CB3,7)/$CL3,\"\")","v":""},{"$f":"IFERROR(COUNTIF($B3:$CB3,8)/$CL3,\"\")","v":""},{"$f":"IFERROR(COUNTIF($B3:$CB3,9)/$CL3,\"\")","v":""},{"$f":"COUNTIF(B3:CB3,\"x\")","v":0}]
[3,null,"x",1,2,null,null,null,null,null,null,null,null,null,null,null,null,null,null,null,null,null,null,null,null,null,null,null,null,null,null,null,null,null,null,null,null,null,null,null,null,null,null,null,null,null,null,null,null,null,null,null,null,null,null,null,null,null,null,null,null,null,null,null,null,null,null,null,null,null,null,null,null,null,null,null,null,null,null,null,1,1,0,0,0,0,0,0,0,1]
[4,null,"x",1,3,null,null,null,null,null,null,null,null,null,null,null,null,null,null,null,null,null,null,null,null,null,null,null,null,null,null,null,null,null,null,null,null,null,null,null,null,null,null,null,null,null,null,null,null,null,null,null,null,null,null,null,null,null,null,null,null,null,null,null,null,null,null,null,null,null,null,null,null,null,null,null,null,null,null,null,1,0,1,0,0,0,0,0,0,1]
[5,null,"x",1,4,"x",2,3,null,null,null,null,null,null,null,null,null,null,null,null,null,null,null,null,null,null,null,null,null,null,null,null,null,null,null,null,null,null,null,null,null,null,null,null,null,null,null,null,null,null,null,null,null,null,null,null,null,null,null,null,null,null,null,null,null,null,null,null,null,null,null,null,null,null,null,null,null,null,null,null,0.5,0.5,0.5,0.5,0,0,0,0,0,{"$f":"COUNTIF(B6:CB6,\"x\")","v":2}]
[6,null,"x",1,5,"x",2,4,null,null,null,null,null,null,null,null,null,null,null,null,null,null,null,null,null,null,null,null,null,null,null,null,null,null,null,null,null,null,null,null,null,null,null,null,null,null,null,null,null,null,null,null,null,null,null,null,null,null,null,null,null,null,null,null,null,null,null,null,null,null,null,null,null,null,null,null,null,null,null,null,0.5,0.5,0,0.5,0.5,0,0,0,0,2]
[7,null,"x",1,6,"x",2,5,"x",3,4,null,null,null,null,null,null,null,null,null,null,null,null,null,null,null,null,null,null,null,null,null,null,null,null,null,null,null,null,null,null,null,null,null,null,null,null,null,null,null,null,null,null,null,null,null,null,null,null,null,null,null,null,null,null,null,null,null,null,null,null,null,null,null,null,null,null,null,null,null,0.33333333333333331,0.33333333333333331,0.33333333333333331,0.33333333333333331,0.33333333333333331,0.33333333333333331,0,0,0,3]
[8,null,"x",1,7,"x",2,6,"x",3,5,null,null,null,null,null,null,null,null,null,null,null,null,null,null,null,null,null,null,null,null,null,null,null,null,null,null,null,null,null,null,null,null,null,null,null,null,null,null,null,null,null,null,null,null,null,null,null,null,null,null,null,null,null,null,null,null,null,null,null,null,null,null,null,null,null,null,null,null,null,0.33333333333333331,0.33333333333333331,0.33333333333333331,0,0.33333333333333331,0.33333333333333331,0.33333333333333331,0,0,3]
[9,null,"x",1,8,"x",2,7,"x",3,6,"x",4,5,null,null,null,null,null,null,null,null,null,null,null,null,null,null,null,null,null,null,null,null,null,null,null,null,null,null,null,null,null,null,null,null,null,null,null,null,null,null,null,null,null,null,null,null,null,null,null,null,null,null,null,null,null,null,null,null,null,null,null,null,null,null,null,null,null,null,0.25,0.25,0.25,0.25,0.25,0.25,0.25,0.25,0,4]
[10,null,"x",1,9,"x",2,8,"x",3,7,"x",4,6,null,null,null,null,null,null,null,null,null,null,null,null,null,null,null,null,null,null,null,null,null,null,null,null,null,null,null,null,null,null,null,null,null,null,null,null,null,null,null,null,null,null,null,null,null,null,null,null,null,null,null,null,null,null,null,null,null,null,null,null,null,null,null,null,null,null,0.25,0.25,0.25,0.25,0,0.25,0.25,0.25,0.25,4]
[11,null,"x",2,9,"x",3,8,"x",4,7,"x",5,6,null,null,null,null,null,null,null,null,null,null,null,null,null,null,null,null,null,null,null,null,null,null,null,null,null,null,null,null,null,null,null,null,null,null,null,null,null,null,null,null,null,null,null,null,null,null,null,null,null,null,null,null,null,null,null,null,null,null,null,null,null,null,null,null,null,null,0,0.25,0.25,0.25,0.25,0.25,0.25,0.25,0.25,4]
[12,null,"x",3,9,"x",4,8,"x",5,7,null,null,null,null,null,null,null,null,null,null,null,null,null,null,null,null,null,null,null,null,null,null,null,null,null,null,null,null,null,null,null,null,null,null,null,null,null,null,null,null,null,null,null,null,null,null,null,null,null,null,null,null,null,null,null,null,null,null,null,null,null,null,null,null,null,null,null,null,null,0,0,0.33333333333333331,0.33333333333333331,0.33333333333333331,0,0.33333333333333331,0.33333333333333331,0.33333333333333331,3]
[13,null,"x",4,9,"x",5,8,"x",6,7,null,null,null,null,null,null,null,null,null,null,null,null,null,null,null,null,null,null,null,null,null,null,null,null,null,null,null,null,null,null,null,null,null,null,null,null,null,null,null,null,null,null,null,null,null,null,null,null,null,null,null,null,null,null,null,null,null,null,null,null,null,null,null,null,null,null,null,null,null,0,0,0,0.33333333333333331,0.33333333333333331,0.33333333333333331,0.33333333333333331,0.33333333333333331,0.33333333333333331,3]
[14,null,"x",5,9,"x",6,8,null,null,null,null,null,null,null,null,null,null,null,null,null,null,null,null,null,null,null,null,null,null,null,null,null,null,null,null,null,null,null,null,null,null,null,null,null,null,null,null,null,null,null,null,null,null,null,null,null,null,null,null,null,null,null,null,null,null,null,null,null,null,null,null,null,null,null,null,null,null,null,null,0,0,0,0,0.5,0.5,0,0.5,0.5,2]
[15,null,"x",6,9,"x",7,8,null,null,null,null,null,null,null,null,null,null,null,null,null,null,null,null,null,null,null,null,null,null,null,null,null,null,null,null,null,null,null,null,null,null,null,null,null,null,null,null,null,null,null,null,null,null,null,null,null,null,null,null,null,null,null,null,null,null,null,null,null,null,null,null,null,null,null,null,null,null,null,null,0,0,0,0,0,0.5,0.5,0.5,0.5,2]
[16,null,"x",7,9,null,null,null,null,null,null,null,null,null,null,null,null,null,null,null,null,null,null,null,null,null,null,null,null,null,null,null,null,null,null,null,null,null,null,null,null,null,null,null,null,null,null,null,null,null,null,null,null,null,null,null,null,null,null,null,null,null,null,null,null,null,null,null,null,null,null,null,null,null,null,null,null,null,null,null,0,0,0,0,0,0,1,0,1,1]
[17,null,"x",8,9,null,null,null,null,null,null,null,null,null,null,null,null,null,null,null,null,null,null,null,null,null,null,null,null,null,null,null,null,null,null,null,null,null,null,null,null,null,null,null,null,null,null,null,null,null,null,null,null,null,null,null,null,null,null,null,null,null,null,null,null,null,null,null,null,null,null,null,null,null,null,null,null,null,null,null,0,0,0,0,0,0,0,1,1,1]
[18,null,null,null,null,null,null,null,null,null,null,null,null,null,null,null,null,null,null,null,null,null,null,null,null,null,null,null,null,null,null,null,null,null,null,null,null,null,null,null,null,null,null,null,null,null,null,null,null,null,null,null,null,null,null,null,null,null,null,null,null,null,null,null,null,null,null,null,null,null,null,null,null,null,null,null,null,null,null,null,"","","","","","","","","",0]
[19,null,null,null,null,null,null,null,null,null,null,null,null,null,null,null,null,null,null,null,null,null,null,null,null,null,null,null,null,null,null,null,null,null,null,null,null,null,null,null,null,null,null,null,null,null,null,null,null,null,null,null,null,null,null,null,null,null,null,null,null,null,null,null,null,null,null,null,null,null,null,null,null,null,null,null,null,null,null,null,"","","","","","","","","",0]
[20,null,null,null,null,null,null,null,null,null,null,null,null,null,null,null,null,null,null,null,null,null,null,null,null,null,null,null,null,null,null,null,null,null,null,null,null,null,null,null,null,null,null,null,null,null,null,null,null,null,null,null,null,null,null,null,null,null,null,null,null,null,null,null,null,null,null,null,null,null,null,null,null,null,null,null,null,null,null,null,"","","","","","","","","",0]
[21,null,null,null,null,null,null,null,null,null,null,null,null,null,null,null,null,null,null,null,null,null,null,null,null,null,null,null,null,null,null,null,null,null,null,null,null,null,null,null,null,null,null,null,null,null,null,null,null,null,null,null,null,null,null,null,null,null,null,null,null,null,null,null,null,null,null,null,null,null,null,null,null,null,null,null,null,null,null,null,"","","","","","","","","",0]
[22,null,null,null,null,null,null,null,null,null,null,null,null,null,null,null,null,null,null,null,null,null,null,null,null,null,null,null,null,null,null,null,null,null,null,null,null,null,null,null,null,null,null,null,null,null,null,null,null,null,null,null,null,null,null,null,null,null,null,null,null,null,null,null,null,null,null,null,null,null,null,null,null,null,null,null,null,null,null,null,"","","","","","","","","",0]
[23,null,null,null,null,null,null,null,null,null,null,null,null,null,null,null,null,null,null,null,null,null,null,null,null,null,null,null,null,null,null,null,null,null,null,null,null,null,null,null,null,null,null,null,null,null,null,null,null,null,null,null,null,null,null,null,null,null,null,null,null,null,null,null,null,null,null,null,null,null,null,null,null,null,null,null,null,null,null,null,"","","","","","","","","",0]
[24,null,null,null,null,null,null,null,null,null,null,null,null,null,null,null,null,null,null,null,null,null,null,null,null,null,null,null,null,null,null,null,null,null,null,null,null,null,null,null,null,null,null,null,null,null,null,null,null,null,null,null,null,null,null,null,null,null,null,null,null,null,null,null,null,null,null,null,null,null,null,null,null,null,null,null,null,null,null,null,"","","","","","","","","",0]
[25,null,null,null,null,null,null,null,null,null,null,null,null,null,null,null,null,null,null,null,null,null,null,null,null,null,null,null,null,null,null,null,null,null,null,null,null,null,null,null,null,null,null,null,null,null,null,null,null,null,null,null,null,null,null,null,null,null,null,null,null,null,null,null,null,null,null,null,null,null,null,null,null,null,null,null,null,null,null,null,"","","","","","","","","",0]
[26,null,null,null,null,null,null,null,null,null,null,null,null,null,null,null,null,null,null,null,null,null,null,null,null,null,null,null,null,null,null,null,null,null,null,null,null,null,null,null,null,null,null,null,null,null,null,null,null,null,null,null,null,null,null,null,null,null,null,null,null,null,null,null,null,null,null,null,null,null,null,null,null,null,null,null,null,null,null,null,"","","","","","","","","",0]
[27,null,null,null,null,null,null,null,null,null,null,null,null,null,null,null,null,null,null,null,null,null,null,null,null,null,null,null,null,null,null,null,null,null,null,null,null,null,null,null,null,null,null,null,null,null,null,null,null,null,null,null,null,null,null,null,null,null,null,null,null,null,null,null,null,null,null,null,null,null,null,null,null,null,null,null,null,null,null,null,"","","","","","","","","",0]
[28,null,null,null,null,null,null,null,null,null,null,null,null,null,null,null,null,null,null,null,null,null,null,null,null,null,null,null,null,null,null,null,null,null,null,null,null,null,null,null,null,null,null,null,null,null,null,null,null,null,null,null,null,null,null,null,null,null,null,null,null,null,null,null,null,null,null,null,null,null,null,null,null,null,null,null,null,null,null,null,"","","","","","","","","",0]
[29,null,null,null,null,null,null,null,null,null,null,null,null,null,null,null,null,null,null,null,null,null,null,null,null,null,null,null,null,null,null,null,null,null,null,null,null,null,null,null,null,null,null,null,null,null,null,null,null,null,null,null,null,null,null,null,null,null,null,null,null,null,null,null,null,null,null,null,null,null,null,null,null,null,null,null,null,null,null,null,"","","","","","","","","",0]
[30,null,null,null,null,null,null,null,null,null,null,null,null,null,null,null,null,null,null,null,null,null,null,null,null,null,null,null,null,null,null,null,null,null,null,null,null,null,null,null,null,null,null,null,null,null,null,null,null,null,null,null,null,null,null,null,null,null,null,null,null,null,null,null,null,null,null,null,null,null,null,null,null,null,null,null,null,null,null,null,"","","","","","","","","",0]
[31,null,null,null,null,null,null,null,null,null,null,null,null,null,null,null,null,null,null,null,null,null,null,null,null,null,null,null,null,null,null,null,null,null,null,null,null,null,null,null,null,null,null,null,null,null,null,null,null,null,null,null,null,null,null,null,null,null,null,null,null,null,null,null,null,null,null,null,null,null,null,null,null,null,null,null,null,null,null,null,"","","","","","","","","",0]
[32,null,null,null,null,null,null,null,null,null,null,null,null,null,null,null,null,null,null,null,null,null,null,null,null,null,null,null,null,null,null,null,null,null,null,null,null,null,null,null,null,null,null,null,null,null,null,null,null,null,null,null,null,null,null,null,null,null,null,null,null,null,null,null,null,null,null,null,null,null,null,null,null,null,null,null,null,null,null,null,"","","","","","","","","",0]
[33,null,null,null,null,null,null,null,null,null,null,null,null,null,null,null,null,null,null,null,null,null,null,null,null,null,null,null,null,null,null,null,null,null,null,null,null,null,null,null,null,null,null,null,null,null,null,null,null,null,null,null,null,null,null,null,null,null,null,null,null,null,null,null,null,null,null,null,null,null,null,null,null,null,null,null,null,null,null,null,"","","","","","","","","",0]
[34,null,null,null,null,null,null,null,null,null,null,null,null,null,null,null,null,null,null,null,null,null,null,null,null,null,null,null,null,null,null,null,null,null,null,null,null,null,null,null,null,null,null,null,null,null,null,null,null,null,null,null,null,null,null,null,null,null,null,null,null,null,null,null,null,null,null,null,null,null,null,null,null,null,null,null,null,null,null,null,"","","","","","","","","",0]
[35,null,null,null,null,null,null,null,null,null,null,null,null,null,null,null,null,null,null,null,null,null,null,null,null,null,null,null,null,null,null,null,null,null,null,null,null,null,null,null,null,null,null,null,null,null,null,null,null,null,null,null,null,null,null,null,null,null,null,null,null,null,null,null,null,null,null,null,null,null,null,null,null,null,null,null,null,null,null,null,"","","","","","","","","",0]
[36,null,null,null,null,null,null,null,null,null,null,null,null,null,null,null,null,null,null,null,null,null,null,null,null,null,null,null,null,null,null,null,null,null,null,null,null,null,null,null,null,null,null,null,null,null,null,null,null,null,null,null,null,null,null,null,null,null,null,null,null,null,null,null,null,null,null,null,null,null,null,null,null,null,null,null,null,null,null,null,"","","","","","","","","",0]
[37,null,null,null,null,null,null,null,null,null,null,null,null,null,null,null,null,null,null,null,null,null,null,null,null,null,null,null,null,null,null,null,null,null,null,null,null,null,null,null,null,null,null,null,null,null,null,null,null,null,null,null,null,null,null,null,null,null,null,null,null,null,null,null,null,null,null,null,null,null,null,null,null,null,null,null,null,null,null,null,"","","","","","","","","",0]
[38,null,null,null,null,null,null,null,null,null,null,null,null,null,null,null,null,null,null,null,null,null,null,null,null,null,null,null,null,null,null,null,null,null,null,null,null,null,null,null,null,null,null,null,null,null,null,null,null,null,null,null,null,null,null,null,null,null,null,null,null,null,null,null,null,null,null,null,null,null,null,null,null,null,null,null,null,null,null,null,"","","","","","","","","",0]
[39,null,null,null,null,null,null,null,null,null,null,null,null,null,null,null,null,null,null,null,null,null,null,null,null,null,null,null,null,null,null,null,null,null,null,null,null,null,null,null,null,null,null,null,null,null,null,null,null,null,null,null,null,null,null,null,null,null,null,null,null,null,null,null,null,null,null,null,null,null,null,null,null,null,null,null,null,null,null,null,"","","","","","","","","",0]
[40,null,null,null,null,null,null,null,null,null,null,null,null,null,null,null,null,null,null,null,null,null,null,null,null,null,null,null,null,null,null,null,null,null,null,null,null,null,null,null,null,null,null,null,null,null,null,null,null,null,null,null,null,null,null,null,null,null,null,null,null,null,null,null,null,null,null,null,null,null,null,null,null,null,null,null,null,null,null,null,"","","","","","","","","",0]
[41,null,null,null,null,null,null,null,null,null,null,null,null,null,null,null,null,null,null,null,null,null,null,null,null,null,null,null,null,null,null,null,null,null,null,null,null,null,null,null,null,null,null,null,null,null,null,null,null,null,null,null,null,null,null,null,null,null,null,null,null,null,null,null,null,null,null,null,null,null,null,null,null,null,null,null,null,null,null,null,"","","","","","","","","",0]
[42,null,null,null,null,null,null,null,null,null,null,null,null,null,null,null,null,null,null,null,null,null,null,null,null,null,null,null,null,null,null,null,null,null,null,null,null,null,null,null,null,null,null,null,null,null,null,null,null,null,null,null,null,null,null,null,null,null,null,null,null,null,null,null,null,null,null,null,null,null,null,null,null,null,null,null,null,null,null,null,"","","","","","","","","",0]
[43,null,null,null,null,null,null,null,null,null,null,null,null,null,null,null,null,null,null,null,null,null,null,null,null,null,null,null,null,null,null,null,null,null,null,null,null,null,null,null,null,null,null,null,null,null,null,null,null,null,null,null,null,null,null,null,null,null,null,null,null,null,null,null,null,null,null,null,null,null,null,null,null,null,null,null,null,null,null,null,"","","","","","","","","",0]
[44,null,null,null,null,null,null,null,null,null,null,null,null,null,null,null,null,null,null,null,null,null,null,null,null,null,null,null,null,null,null,null,null,null,null,null,null,null,null,null,null,null,null,null,null,null,null,null,null,null,null,null,null,null,null,null,null,null,null,null,null,null,null,null,null,null,null,null,null,null,null,null,null,null,null,null,null,null,null,null,"","","","","","","","","",0]
[45,null,null,null,null,null,null,null,null,null,null,null,null,null,null,null,null,null,null,null,null,null,null,null,null,null,null,null,null,null,null,null,null,null,null,null,null,null,null,null,null,null,null,null,null,null,null,null,null,null,null,null,null,null,null,null,null,null,null,null,null,null,null,null,null,null,null,null,null,null,null,null,null,null,null,null,null,null,null,null,"","","","","","","","","",0]

{"sheet":"3","index":3,"n_rows":46,"n_cols":90,"rows_kept":46,"cut":false,"hidden":false,"merged":[]}
["Summe",null,null,null,null,null,null,null,null,null,null,null,null,null,null,null,null,null,null,null,null,null,null,null,null,null,null,null,null,null,null,null,null,null,null,null,null,null,null,null,null,null,null,null,null,null,null,null,null,null,null,null,null,null,null,null,null,null,null,null,null,null,null,null,null,null,null,null,null,null,null,null,null,null,null,null,null,null,null,null,"Vorkommens-quotient von 1","Vorkommens-quotient von 2","Vorkommens-quotient von 3","Vorkommens-quotient von 4","Vorkommens-quotient von 5","Vorkommens-quotient von 6","Vorkommens-quotient von 7","Vorkommens-quotient von 8","Vorkommens-quotient von 9","Anzahl Zerlegungen der Summe"]
[1,null,null,null,null,null,null,null,null,null,null,null,null,null,null,null,null,null,null,null,null,null,null,null,null,null,null,null,null,null,null,null,null,null,null,null,null,null,null,null,null,null,null,null,null,null,null,null,null,null,null,null,null,null,null,null,null,null,null,null,null,null,null,null,null,null,null,null,null,null,null,null,null,null,null,null,null,null,null,null,{"$f":"IFERROR(COUNTIF($B2:$CB2,1)/$CL2,\"\")","v":""},{"$f":"IFERROR(COUNTIF($B2:$CB2,2)/$CL2,\"\")","v":""},{"$f":"IFERROR(COUNTIF($B2:$CB2,3)/$CL2,\"\")","v":""},{"$f":"IFERROR(COUNTIF($B2:$CB2,4)/$CL2,\"\")","v":""},{"$f":"IFERROR(COUNTIF($B2:$CB2,5)/$CL2,\"\")","v":""},{"$f":"IFERROR(COUNTIF($B2:$CB2,6)/$CL2,\"\")","v":""},{"$f":"IFERROR(COUNTIF($B2:$CB2,7)/$CL2,\"\")","v":""},{"$f":"IFERROR(COUNTIF($B2:$CB2,8)/$CL2,\"\")","v":""},{"$f":"IFERROR(COUNTIF($B2:$CB2,9)/$CL2,\"\")","v":""},{"$f":"COUNTIF(B2:CB2,\"x\")","v":0}]
[2,null,null,null,null,null,null,null,null,null,null,null,null,null,null,null,null,null,null,null,null,null,null,null,null,null,null,null,null,null,null,null,null,null,null,null,null,null,null,null,null,null,null,null,null,null,null,null,null,null,null,null,null,null,null,null,null,null,null,null,null,null,null,null,null,null,null,null,null,null,null,null,null,null,null,null,null,null,null,null,{"$f":"IFERROR(COUNTIF($B3:$CB3,1)/$CL3,\"\")","v":""},{"$f":"IFERROR(COUNTIF($B3:$CB3,2)/$CL3,\"\")","v":""},{"$f":"IFERROR(COUNTIF($B3:$CB3,3)/$CL3,\"\")","v":""},{"$f":"IFERROR(COUNTIF($B3:$CB3,4)/$CL3,\"\")","v":""},{"$f":"IFERROR(COUNTIF($B3:$CB3,5)/$CL3,\"\")","v":""},{"$f":"IFERROR(COUNTIF($B3:$CB3,6)/$CL3,\"\")","v":""},{"$f":"IFERROR(COUNTIF($B3:$CB3,7)/$CL3,\"\")","v":""},{"$f":"IFERROR(COUNTIF($B3:$CB3,8)/$CL3,\"\")","v":""},{"$f":"IFERROR(COUNTIF($B3:$CB3,9)/$CL3,\"\")","v":""},{"$f":"COUNTIF(B3:CB3,\"x\")","v":0}]
[3,null,null,null,null,null,null,null,null,null,null,null,null,null,null,null,null,null,null,null,null,null,null,null,null,null,null,null,null,null,null,null,null,null,null,null,null,null,null,null,null,null,null,null,null,null,null,null,null,null,null,null,null,null,null,null,null,null,null,null,null,null,null,null,null,null,null,null,null,null,null,null,null,null,null,null,null,null,null,null,"","","","","","","","","",0]
[4,null,null,null,null,null,null,null,null,null,null,null,null,null,null,null,null,null,null,null,null,null,null,null,null,null,null,null,null,null,null,null,null,null,null,null,null,null,null,null,null,null,null,null,null,null,null,null,null,null,null,null,null,null,null,null,null,null,null,null,null,null,null,null,null,null,null,null,null,null,null,null,null,null,null,null,null,null,null,null,"","","","","","","","","",0]
[5,null,null,null,null,null,null,null,null,null,null,null,null,null,null,null,null,null,null,null,null,null,null,null,null,null,null,null,null,null,null,null,null,null,null,null,null,null,null,null,null,null,null,null,null,null,null,null,null,null,null,null,null,null,null,null,null,null,null,null,null,null,null,null,null,null,null,null,null,null,null,null,null,null,null,null,null,null,null,null,"","","","","","","","","",{"$f":"COUNTIF(B6:CB6,\"x\")","v":0}]
[6,null,null,"x",1,2,3,null,null,null,null,null,null,null,null,null,null,null,null,null,null,null,null,null,null,null,null,null,null,null,null,null,null,null,null,null,null,null,null,null,null,null,null,null,null,null,null,null,null,null,null,null,null,null,null,null,null,null,null,null,null,null,null,null,null,null,null,null,null,null,null,null,null,null,null,null,null,null,null,null,1,1,1,0,0,0,0,0,0,1]
[7,null,null,"x",1,2,4,null,null,null,null,null,null,null,null,null,null,null,null,null,null,null,null,null,null,null,null,null,null,null,null,null,null,null,null,null,null,null,null,null,null,null,null,null,null,null,null,null,null,null,null,null,null,null,null,null,null,null,null,null,null,null,null,null,null,null,null,null,null,null,null,null,null,null,null,null,null,null,null,null,1,1,0,1,0,0,0,0,0,1]
[8,null,null,"x",1,2,5,"x",1,3,4,null,null,null,null,null,null,null,null,null,null,null,null,null,null,null,null,null,null,null,null,null,null,null,null,null,null,null,null,null,null,null,null,null,null,null,null,null,null,null,null,null,null,null,null,null,null,null,null,null,null,null,null,null,null,null,null,null,null,null,null,null,null,null,null,null,null,null,null,null,1,0.5,0.5,0.5,0.5,0,0,0,0,2]
[9,null,null,"x",1,2,6,"x",1,3,5,"x",2,3,4,null,null,null,null,null,null,null,null,null,null,null,null,null,null,null,null,null,null,null,null,null,null,null,null,null,null,null,null,null,null,null,null,null,null,null,null,null,null,null,null,null,null,null,null,null,null,null,null,null,null,null,null,null,null,null,null,null,null,null,null,null,null,null,null,null,0.66666666666666663,0.66666666666666663,0.66666666666666663,0.33333333333333331,0.33333333333333331,0.33333333333333331,0,0,0,3]
[10,null,null,"x",1,2,7,"x",1,3,6,"x",1,4,5,"x",2,3,5,null,null,null,null,null,null,null,null,null,null,null,null,null,null,null,null,null,null,null,null,null,null,null,null,null,null,null,null,null,null,null,null,null,null,null,null,null,null,null,null,null,null,null,null,null,null,null,null,null,null,null,null,null,null,null,null,null,null,null,null,null,0.75,0.5,0.5,0.25,0.5,0.25,0.25,0,0,4]
[11,null,null,"x",1,2,8,"x",1,3,7,"x",1,4,6,"x",2,3,6,"x",2,4,5,null,null,null,null,null,null,null,null,null,null,null,null,null,null,null,null,null,null,null,null,null,null,null,null,null,null,null,null,null,null,null,null,null,null,null,null,null,null,null,null,null,null,null,null,null,null,null,null,null,null,null,null,null,null,null,null,null,0.6,0.6,0.4,0.4,0.2,0.4,0.2,0.2,0,5]
[12,null,null,"x",1,2,9,"x",1,3,8,"x",1,4,7,"x",1,5,6,"x",2,3,7,"x",2,4,6,"x",3,4,5,null,null,null,null,null,null,null,null,null,null,null,null,null,null,null,null,null,null,null,null,null,null,null,null,null,null,null,null,null,null,null,null,null,null,null,null,null,null,null,null,null,null,null,null,null,null,null,null,null,0.5714285714285714,0.42857142857142855,0.42857142857142855,0.42857142857142855,0.2857142857142857,0.2857142857142857,0.2857142857142857,0.14285714285714285,0.14285714285714285,7]
[13,null,null,"x",1,3,9,"x",1,4,8,"x",1,5,7,"x",2,3,8,"x",2,4,7,"x",2,5,6,"x",3,4,6,null,null,null,null,null,null,null,null,null,null,null,null,null,null,null,null,null,null,null,null,null,null,null,null,null,null,null,null,null,null,null,null,null,null,null,null,null,null,null,null,null,null,null,null,null,null,null,null,null,0.42857142857142855,0.42857142857142855,0.42857142857142855,0.42857142857142855,0.2857142857142857,0.2857142857142857,0.2857142857142857,0.2857142857142857,0.14285714285714285,7]
[14,null,null,"x",1,4,9,"x",1,5,8,"x",1,6,7,"x",2,3,9,"x",2,4,8,"x",2,5,7,"x",3,4,7,"x",3,5,6,null,null,null,null,null,null,null,null,null,null,null,null,null,null,null,null,null,null,null,null,null,null,null,null,null,null,null,null,null,null,null,null,null,null,null,null,null,null,null,null,null,null,null,null,null,0.375,0.375,0.375,0.375,0.375,0.25,0.375,0.25,0.25,8]
[15,null,null,"x",1,5,9,"x",1,6,8,"x",2,4,9,"x",2,5,8,"x",2,6,7,"x",3,4,8,"x",3,5,7,"x",4,5,6,null,null,null,null,null,null,null,null,null,null,null,null,null,null,null,null,null,null,null,null,null,null,null,null,null,null,null,null,null,null,null,null,null,null,null,null,null,null,null,null,null,null,null,null,null,0.25,0.375,0.25,0.375,0.5,0.375,0.25,0.375,0.25,8]
[16,null,null,"x",1,6,9,"x",1,7,8,"x",2,5,9,"x",2,6,8,"x",3,4,9,"x",3,5,8,"x",3,6,7,"x",4,5,7,null,null,null,null,null,null,null,null,null,null,null,null,null,null,null,null,null,null,null,null,null,null,null,null,null,null,null,null,null,null,null,null,null,null,null,null,null,null,null,null,null,null,null,null,null,0.25,0.25,0.375,0.25,0.375,0.375,0.375,0.375,0.375,8]
[17,null,null,"x",1,7,9,"x",2,6,9,"x",2,7,8,"x",3,5,9,"x",3,6,8,"x",4,5,8,"x",4,6,7,null,null,null,null,null,null,null,null,null,null,null,null,null,null,null,null,null,null,null,null,null,null,null,null,null,null,null,null,null,null,null,null,null,null,null,null,null,null,null,null,null,null,null,null,null,null,null,null,null,0.14285714285714285,0.2857142857142857,0.2857142857142857,0.2857142857142857,0.2857142857142857,0.42857142857142855,0.42857142857142855,0.42857142857142855,0.42857142857142855,7]
[18,null,null,"x",1,8,9,"x",2,7,9,"x",3,6,9,"x",3,7,8,"x",4,5,9,"x",4,6,8,"x",5,6,7,null,null,null,null,null,null,null,null,null,null,null,null,null,null,null,null,null,null,null,null,null,null,null,null,null,null,null,null,null,null,null,null,null,null,null,null,null,null,null,null,null,null,null,null,null,null,null,null,null,0.14285714285714285,0.14285714285714285,0.2857142857142857,0.2857142857142857,0.2857142857142857,0.42857142857142855,0.42857142857142855,0.42857142857142855,0.5714285714285714,7]
[19,null,null,"x",2,8,9,"x",3,7,9,"x",4,6,9,"x",4,7,8,"x",5,6,8,null,null,null,null,null,null,null,null,null,null,null,null,null,null,null,null,null,null,null,null,null,null,null,null,null,null,null,null,null,null,null,null,null,null,null,null,null,null,null,null,null,null,null,null,null,null,null,null,null,null,null,null,null,null,null,null,null,0,0.2,0.2,0.4,0.2,0.4,0.4,0.6,0.6,5]
[20,null,null,"x",3,8,9,"x",4,7,9,"x",5,6,9,"x",5,7,8,null,null,null,null,null,null,null,null,null,null,null,null,null,null,null,null,null,null,null,null,null,null,null,null,null,null,null,null,null,null,null,null,null,null,null,null,null,null,null,null,null,null,null,null,null,null,null,null,null,null,null,null,null,null,null,null,null,null,null,null,null,0,0,0.25,0.25,0.5,0.25,0.5,0.5,0.75,4]
[21,null,null,"x",4,8,9,"x",5,7,9,"x",6,7,8,null,null,null,null,null,null,null,null,null,null,null,null,null,null,null,null,null,null,null,null,null,null,null,null,null,null,null,null,null,null,null,null,null,null,null,null,null,null,null,null,null,null,null,null,null,null,null,null,null,null,null,null,null,null,null,null,null,null,null,null,null,null,null,null,null,0,0,0,0.33333333333333331,0.33333333333333331,0.33333333333333331,0.66666666666666663,0.66666666666666663,0.66666666666666663,3]
[22,null,null,"x",5,8,9,"x",6,7,9,null,null,null,null,null,null,null,null,null,null,null,null,null,null,null,null,null,null,null,null,null,null,null,null,null,null,null,null,null,null,null,null,null,null,null,null,null,null,null,null,null,null,null,null,null,null,null,null,null,null,null,null,null,null,null,null,null,null,null,null,null,null,null,null,null,null,null,null,null,0,0,0,0,0.5,0.5,0.5,0.5,1,2]
[23,null,null,"x",6,8,9,null,null,null,null,null,null,null,null,null,null,null,null,null,null,null,null,null,null,null,null,null,null,null,null,null,null,null,null,null,null,null,null,null,null,null,null,null,null,null,null,null,null,null,null,null,null,null,null,null,null,null,null,null,null,null,null,null,null,null,null,null,null,null,null,null,null,null,null,null,null,null,null,null,0,0,0,0,0,1,0,1,1,1]
[24,null,null,"x",7,8,9,null,null,null,null,null,null,null,null,null,null,null,null,null,null,null,null,null,null,null,null,null,null,null,null,null,null,null,null,null,null,null,null,null,null,null,null,null,null,null,null,null,null,null,null,null,null,null,null,null,null,null,null,null,null,null,null,null,null,null,null,null,null,null,null,null,null,null,null,null,null,null,null,null,0,0,0,0,0,0,1,1,1,1]
[25,null,null,null,null,null,null,null,null,null,null,null,null,null,null,null,null,null,null,null,null,null,null,null,null,null,null,null,null,null,null,null,null,null,null,null,null,null,null,null,null,null,null,null,null,null,null,null,null,null,null,null,null,null,null,null,null,null,null,null,null,null,null,null,null,null,null,null,null,null,null,null,null,null,null,null,null,null,null,null,"","","","","","","","","",0]
[26,null,null,null,null,null,null,null,null,null,null,null,null,null,null,null,null,null,null,null,null,null,null,null,null,null,null,null,null,null,null,null,null,null,null,null,null,null,null,null,null,null,null,null,null,null,null,null,null,null,null,null,null,null,null,null,null,null,null,null,null,null,null,null,null,null,null,null,null,null,null,null,null,null,null,null,null,null,null,null,"","","","","","","","","",0]
[27,null,null,null,null,null,null,null,null,null,null,null,null,null,null,null,null,null,null,null,null,null,null,null,null,null,null,null,null,null,null,null,null,null,null,null,null,null,null,null,null,null,null,null,null,null,null,null,null,null,null,null,null,null,null,null,null,null,null,null,null,null,null,null,null,null,null,null,null,null,null,null,null,null,null,null,null,null,null,null,"","","","","","","","","",0]
[28,null,null,null,null,null,null,null,null,null,null,null,null,null,null,null,null,null,null,null,null,null,null,null,null,null,null,null,null,null,null,null,null,null,null,null,null,null,null,null,null,null,null,null,null,null,null,null,null,null,null,null,null,null,null,null,null,null,null,null,null,null,null,null,null,null,null,null,null,null,null,null,null,null,null,null,null,null,null,null,"","","","","","","","","",0]
[29,null,null,null,null,null,null,null,null,null,null,null,null,null,null,null,null,null,null,null,null,null,null,null,null,null,null,null,null,null,null,null,null,null,null,null,null,null,null,null,null,null,null,null,null,null,null,null,null,null,null,null,null,null,null,null,null,null,null,null,null,null,null,null,null,null,null,null,null,null,null,null,null,null,null,null,null,null,null,null,"","","","","","","","","",0]
[30,null,null,null,null,null,null,null,null,null,null,null,null,null,null,null,null,null,null,null,null,null,null,null,null,null,null,null,null,null,null,null,null,null,null,null,null,null,null,null,null,null,null,null,null,null,null,null,null,null,null,null,null,null,null,null,null,null,null,null,null,null,null,null,null,null,null,null,null,null,null,null,null,null,null,null,null,null,null,null,"","","","","","","","","",0]
[31,null,null,null,null,null,null,null,null,null,null,null,null,null,null,null,null,null,null,null,null,null,null,null,null,null,null,null,null,null,null,null,null,null,null,null,null,null,null,null,null,null,null,null,null,null,null,null,null,null,null,null,null,null,null,null,null,null,null,null,null,null,null,null,null,null,null,null,null,null,null,null,null,null,null,null,null,null,null,null,"","","","","","","","","",0]
[32,null,null,null,null,null,null,null,null,null,null,null,null,null,null,null,null,null,null,null,null,null,null,null,null,null,null,null,null,null,null,null,null,null,null,null,null,null,null,null,null,null,null,null,null,null,null,null,null,null,null,null,null,null,null,null,null,null,null,null,null,null,null,null,null,null,null,null,null,null,null,null,null,null,null,null,null,null,null,null,"","","","","","","","","",0]
[33,null,null,null,null,null,null,null,null,null,null,null,null,null,null,null,null,null,null,null,null,null,null,null,null,null,null,null,null,null,null,null,null,null,null,null,null,null,null,null,null,null,null,null,null,null,null,null,null,null,null,null,null,null,null,null,null,null,null,null,null,null,null,null,null,null,null,null,null,null,null,null,null,null,null,null,null,null,null,null,"","","","","","","","","",0]
[34,null,null,null,null,null,null,null,null,null,null,null,null,null,null,null,null,null,null,null,null,null,null,null,null,null,null,null,null,null,null,null,null,null,null,null,null,null,null,null,null,null,null,null,null,null,null,null,null,null,null,null,null,null,null,null,null,null,null,null,null,null,null,null,null,null,null,null,null,null,null,null,null,null,null,null,null,null,null,null,"","","","","","","","","",0]
[35,null,null,null,null,null,null,null,null,null,null,null,null,null,null,null,null,null,null,null,null,null,null,null,null,null,null,null,null,null,null,null,null,null,null,null,null,null,null,null,null,null,null,null,null,null,null,null,null,null,null,null,null,null,null,null,null,null,null,null,null,null,null,null,null,null,null,null,null,null,null,null,null,null,null,null,null,null,null,null,"","","","","","","","","",0]
[36,null,null,null,null,null,null,null,null,null,null,null,null,null,null,null,null,null,null,null,null,null,null,null,null,null,null,null,null,null,null,null,null,null,null,null,null,null,null,null,null,null,null,null,null,null,null,null,null,null,null,null,null,null,null,null,null,null,null,null,null,null,null,null,null,null,null,null,null,null,null,null,null,null,null,null,null,null,null,null,"","","","","","","","","",0]
[37,null,null,null,null,null,null,null,null,null,null,null,null,null,null,null,null,null,null,null,null,null,null,null,null,null,null,null,null,null,null,null,null,null,null,null,null,null,null,null,null,null,null,null,null,null,null,null,null,null,null,null,null,null,null,null,null,null,null,null,null,null,null,null,null,null,null,null,null,null,null,null,null,null,null,null,null,null,null,null,"","","","","","","","","",0]
[38,null,null,null,null,null,null,null,null,null,null,null,null,null,null,null,null,null,null,null,null,null,null,null,null,null,null,null,null,null,null,null,null,null,null,null,null,null,null,null,null,null,null,null,null,null,null,null,null,null,null,null,null,null,null,null,null,null,null,null,null,null,null,null,null,null,null,null,null,null,null,null,null,null,null,null,null,null,null,null,"","","","","","","","","",0]
[39,null,null,null,null,null,null,null,null,null,null,null,null,null,null,null,null,null,null,null,null,null,null,null,null,null,null,null,null,null,null,null,null,null,null,null,null,null,null,null,null,null,null,null,null,null,null,null,null,null,null,null,null,null,null,null,null,null,null,null,null,null,null,null,null,null,null,null,null,null,null,null,null,null,null,null,null,null,null,null,"","","","","","","","","",0]
[40,null,null,null,null,null,null,null,null,null,null,null,null,null,null,null,null,null,null,null,null,null,null,null,null,null,null,null,null,null,null,null,null,null,null,null,null,null,null,null,null,null,null,null,null,null,null,null,null,null,null,null,null,null,null,null,null,null,null,null,null,null,null,null,null,null,null,null,null,null,null,null,null,null,null,null,null,null,null,null,"","","","","","","","","",0]
[41,null,null,null,null,null,null,null,null,null,null,null,null,null,null,null,null,null,null,null,null,null,null,null,null,null,null,null,null,null,null,null,null,null,null,null,null,null,null,null,null,null,null,null,null,null,null,null,null,null,null,null,null,null,null,null,null,null,null,null,null,null,null,null,null,null,null,null,null,null,null,null,null,null,null,null,null,null,null,null,"","","","","","","","","",0]
[42,null,null,null,null,null,null,null,null,null,null,null,null,null,null,null,null,null,null,null,null,null,null,null,null,null,null,null,null,null,null,null,null,null,null,null,null,null,null,null,null,null,null,null,null,null,null,null,null,null,null,null,null,null,null,null,null,null,null,null,null,null,null,null,null,null,null,null,null,null,null,null,null,null,null,null,null,null,null,null,"","","","","","","","","",0]
[43,null,null,null,null,null,null,null,null,null,null,null,null,null,null,null,null,null,null,null,null,null,null,null,null,null,null,null,null,null,null,null,null,null,null,null,null,null,null,null,null,null,null,null,null,null,null,null,null,null,null,null,null,null,null,null,null,null,null,null,null,null,null,null,null,null,null,null,null,null,null,null,null,null,null,null,null,null,null,null,"","","","","","","","","",0]
[44,null,null,null,null,null,null,null,null,null,null,null,null,null,null,null,null,null,null,null,null,null,null,null,null,null,null,null,null,null,null,null,null,null,null,null,null,null,null,null,null,null,null,null,null,null,null,null,null,null,null,null,null,null,null,null,null,null,null,null,null,null,null,null,null,null,null,null,null,null,null,null,null,null,null,null,null,null,null,null,"","","","","","","","","",0]
[45,null,null,null,null,null,null,null,null,null,null,null,null,null,null,null,null,null,null,null,null,null,null,null,null,null,null,null,null,null,null,null,null,null,null,null,null,null,null,null,null,null,null,null,null,null,null,null,null,null,null,null,null,null,null,null,null,null,null,null,null,null,null,null,null,null,null,null,null,null,null,null,null,null,null,null,null,null,null,null,"","","","","","","","","",0]

{"sheet":"4","index":4,"n_rows":68,"n_cols":90,"rows_kept":68,"cut":false,"hidden":false,"merged":[]}
["Summe",null,null,null,null,null,null,null,null,null,null,null,null,null,null,null,null,null,null,null,null,null,null,null,null,null,null,null,null,null,null,null,null,null,null,null,null,null,null,null,null,null,null,null,null,null,null,null,null,null,null,null,null,null,null,null,null,null,null,null,null,null,null,null,null,null,null,null,null,null,null,null,null,null,null,null,null,null,null,null,"Vorkommens-quotient von 1","Vorkommens-quotient von 2","Vorkommens-quotient von 3","Vorkommens-quotient von 4","Vorkommens-quotient von 5","Vorkommens-quotient von 6","Vorkommens-quotient von 7","Vorkommens-quotient von 8","Vorkommens-quotient von 9","Anzahl Zerlegungen der Summe"]
[1,null,null,null,null,null,null,null,null,null,null,null,null,null,null,null,null,null,null,null,null,null,null,null,null,null,null,null,null,null,null,null,null,null,null,null,null,null,null,null,null,null,null,null,null,null,null,null,null,null,null,null,null,null,null,null,null,null,null,null,null,null,null,null,null,null,null,null,null,null,null,null,null,null,null,null,null,null,null,null,{"$f":"IFERROR(COUNTIF($B2:$CB2,1)/$CL2,\"\")","v":""},{"$f":"IFERROR(COUNTIF($B2:$CB2,2)/$CL2,\"\")","v":""},{"$f":"IFERROR(COUNTIF($B2:$CB2,3)/$CL2,\"\")","v":""},{"$f":"IFERROR(COUNTIF($B2:$CB2,4)/$CL2,\"\")","v":""},{"$f":"IFERROR(COUNTIF($B2:$CB2,5)/$CL2,\"\")","v":""},{"$f":"IFERROR(COUNTIF($B2:$CB2,6)/$CL2,\"\")","v":""},{"$f":"IFERROR(COUNTIF($B2:$CB2,7)/$CL2,\"\")","v":""},{"$f":"IFERROR(COUNTIF($B2:$CB2,8)/$CL2,\"\")","v":""},{"$f":"IFERROR(COUNTIF($B2:$CB2,9)/$CL2,\"\")","v":""},{"$f":"COUNTIF(B2:CB2,\"x\")","v":0}]
[2,null,null,null,null,null,null,null,null,null,null,null,null,null,null,null,null,null,null,null,null,null,null,null,null,null,null,null,null,null,null,null,null,null,null,null,null,null,null,null,null,null,null,null,null,null,null,null,null,null,null,null,null,null,null,null,null,null,null,null,null,null,null,null,null,null,null,null,null,null,null,null,null,null,null,null,null,null,null,null,{"$f":"IFERROR(COUNTIF($B3:$CB3,1)/$CL3,\"\")","v":""},{"$f":"IFERROR(COUNTIF($B3:$CB3,2)/$CL3,\"\")","v":""},{"$f":"IFERROR(COUNTIF($B3:$CB3,3)/$CL3,\"\")","v":""},{"$f":"IFERROR(COUNTIF($B3:$CB3,4)/$CL3,\"\")","v":""},{"$f":"IFERROR(COUNTIF($B3:$CB3,5)/$CL3,\"\")","v":""},{"$f":"IFERROR(COUNTIF($B3:$CB3,6)/$CL3,\"\")","v":""},{"$f":"IFERROR(COUNTIF($B3:$CB3,7)/$CL3,\"\")","v":""},{"$f":"IFERROR(COUNTIF($B3:$CB3,8)/$CL3,\"\")","v":""},{"$f":"IFERROR(COUNTIF($B3:$CB3,9)/$CL3,\"\")","v":""},{"$f":"COUNTIF(B3:CB3,\"x\")","v":0}]
[3,null,null,null,null,null,null,null,null,null,null,null,null,null,null,null,null,null,null,null,null,null,null,null,null,null,null,null,null,null,null,null,null,null,null,null,null,null,null,null,null,null,null,null,null,null,null,null,null,null,null,null,null,null,null,null,null,null,null,null,null,null,null,null,null,null,null,null,null,null,null,null,null,null,null,null,null,null,null,null,"","","","","","","","","",0]
[4,null,null,null,null,null,null,null,null,null,null,null,null,null,null,null,null,null,null,null,null,null,null,null,null,null,null,null,null,null,null,null,null,null,null,null,null,null,null,null,null,null,null,null,null,null,null,null,null,null,null,null,null,null,null,null,null,null,null,null,null,null,null,null,null,null,null,null,null,null,null,null,null,null,null,null,null,null,null,null,"","","","","","","","","",0]
[5,null,null,null,null,null,null,null,null,null,null,null,null,null,null,null,null,null,null,null,null,null,null,null,null,null,null,null,null,null,null,null,null,null,null,null,null,null,null,null,null,null,null,null,null,null,null,null,null,null,null,null,null,null,null,null,null,null,null,null,null,null,null,null,null,null,null,null,null,null,null,null,null,null,null,null,null,null,null,null,"","","","","","","","","",{"$f":"COUNTIF(B6:CB6,\"x\")","v":0}]
[6,null,null,null,null,null,null,null,null,null,null,null,null,null,null,null,null,null,null,null,null,null,null,null,null,null,null,null,null,null,null,null,null,null,null,null,null,null,null,null,null,null,null,null,null,null,null,null,null,null,null,null,null,null,null,null,null,null,null,null,null,null,null,null,null,null,null,null,null,null,null,null,null,null,null,null,null,null,null,null,"","","","","","","","","",0]
[7,null,null,null,null,null,null,null,null,null,null,null,null,null,null,null,null,null,null,null,null,null,null,null,null,null,null,null,null,null,null,null,null,null,null,null,null,null,null,null,null,null,null,null,null,null,null,null,null,null,null,null,null,null,null,null,null,null,null,null,null,null,null,null,null,null,null,null,null,null,null,null,null,null,null,null,null,null,null,null,"","","","","","","","","",0]
[8,null,null,null,null,null,null,null,null,null,null,null,null,null,null,null,null,null,null,null,null,null,null,null,null,null,null,null,null,null,null,null,null,null,null,null,null,null,null,null,null,null,null,null,null,null,null,null,null,null,null,null,null,null,null,null,null,null,null,null,null,null,null,null,null,null,null,null,null,null,null,null,null,null,null,null,null,null,null,null,"","","","","","","","","",0]
[9,null,null,null,null,null,null,null,null,null,null,null,null,null,null,null,null,null,null,null,null,null,null,null,null,null,null,null,null,null,null,null,null,null,null,null,null,null,null,null,null,null,null,null,null,null,null,null,null,null,null,null,null,null,null,null,null,null,null,null,null,null,null,null,null,null,null,null,null,null,null,null,null,null,null,null,null,null,null,null,"","","","","","","","","",0]
[10,null,null,null,"x",1,2,3,4,null,null,null,null,null,null,null,null,null,null,null,null,null,null,null,null,null,null,null,null,null,null,null,null,null,null,null,null,null,null,null,null,null,null,null,null,null,null,null,null,null,null,null,null,null,null,null,null,null,null,null,null,null,null,null,null,null,null,null,null,null,null,null,null,null,null,null,null,null,null,null,1,1,1,1,0,0,0,0,0,1]
[11,null,null,null,"x",1,2,3,5,null,null,null,null,null,null,null,null,null,null,null,null,null,null,null,null,null,null,null,null,null,null,null,null,null,null,null,null,null,null,null,null,null,null,null,null,null,null,null,null,null,null,null,null,null,null,null,null,null,null,null,null,null,null,null,null,null,null,null,null,null,null,null,null,null,null,null,null,null,null,null,1,1,1,0,1,0,0,0,0,1]
[12,null,null,null,"x",1,2,3,6,"x",1,2,4,5,null,null,null,null,null,null,null,null,null,null,null,null,null,null,null,null,null,null,null,null,null,null,null,null,null,null,null,null,null,null,null,null,null,null,null,null,null,null,null,null,null,null,null,null,null,null,null,null,null,null,null,null,null,null,null,null,null,null,null,null,null,null,null,null,null,null,1,1,0.5,0.5,0.5,0.5,0,0,0,2]
[13,null,null,null,"x",1,2,3,7,"x",1,2,4,6,"x",1,3,4,5,null,null,null,null,null,null,null,null,null,null,null,null,null,null,null,null,null,null,null,null,null,null,null,null,null,null,null,null,null,null,null,null,null,null,null,null,null,null,null,null,null,null,null,null,null,null,null,null,null,null,null,null,null,null,null,null,null,null,null,null,null,1,0.66666666666666663,0.66666666666666663,0.66666666666666663,0.33333333333333331,0.33333333333333331,0.33333333333333331,0,0,3]
[14,null,null,null,"x",1,2,3,8,"x",1,2,4,7,"x",1,2,5,6,"x",1,3,4,6,"x",2,3,4,5,null,null,null,null,null,null,null,null,null,null,null,null,null,null,null,null,null,null,null,null,null,null,null,null,null,null,null,null,null,null,null,null,null,null,null,null,null,null,null,null,null,null,null,null,null,null,null,null,null,null,null,0.8,0.8,0.6,0.6,0.4,0.4,0.2,0.2,0,5]
[15,null,null,null,"x",1,2,3,9,"x",1,2,4,8,"x",1,2,5,7,"x",1,3,4,7,"x",1,3,5,6,"x",2,3,4,6,null,null,null,null,null,null,null,null,null,null,null,null,null,null,null,null,null,null,null,null,null,null,null,null,null,null,null,null,null,null,null,null,null,null,null,null,null,null,null,null,null,null,null,null,null,null,0.83333333333333337,0.66666666666666663,0.66666666666666663,0.5,0.33333333333333331,0.33333333333333331,0.33333333333333331,0.16666666666666666,0.16666666666666666,6]
[16,null,null,null,"x",1,2,4,9,"x",1,2,5,8,"x",1,2,6,7,"x",1,3,4,8,"x",1,3,5,7,"x",1,4,5,6,"x",2,3,4,7,"x",2,3,5,6,null,null,null,null,null,null,null,null,null,null,null,null,null,null,null,null,null,null,null,null,null,null,null,null,null,null,null,null,null,null,null,null,null,null,null,null,0.75,0.625,0.5,0.5,0.5,0.375,0.375,0.25,0.125,8]
[17,null,null,null,"x",1,2,5,9,"x",1,2,6,8,"x",1,3,4,9,"x",1,3,5,8,"x",1,3,6,7,"x",1,4,5,7,"x",2,3,4,8,"x",2,3,5,7,"x",2,4,5,6,null,null,null,null,null,null,null,null,null,null,null,null,null,null,null,null,null,null,null,null,null,null,null,null,null,null,null,null,null,null,null,0.66666666666666663,0.55555555555555558,0.55555555555555558,0.44444444444444442,0.55555555555555558,0.33333333333333331,0.33333333333333331,0.33333333333333331,0.22222222222222221,9]
[18,null,null,null,"x",1,2,6,9,"x",1,2,7,8,"x",1,3,5,9,"x",1,3,6,8,"x",1,4,5,8,"x",1,4,6,7,"x",2,3,4,9,"x",2,3,5,8,"x",2,3,6,7,"x",2,4,5,7,"x",3,4,5,6,null,null,null,null,null,null,null,null,null,null,null,null,null,null,null,null,null,null,null,null,null,0.54545454545454541,0.54545454545454541,0.54545454545454541,0.45454545454545453,0.45454545454545453,0.45454545454545453,0.36363636363636365,0.36363636363636365,0.27272727272727271,11]
[19,null,null,null,"x",1,2,7,9,"x",1,3,6,9,"x",1,3,7,8,"x",1,4,5,9,"x",1,4,6,8,"x",1,5,6,7,"x",2,3,5,9,"x",2,3,6,8,"x",2,4,5,8,"x",2,4,6,7,"x",3,4,5,7,null,null,null,null,null,null,null,null,null,null,null,null,null,null,null,null,null,null,null,null,null,0.54545454545454541,0.45454545454545453,0.45454545454545453,0.45454545454545453,0.45454545454545453,0.45454545454545453,0.45454545454545453,0.36363636363636365,0.36363636363636365,11]
[20,null,null,null,"x",1,2,8,9,"x",1,3,7,9,"x",1,4,6,9,"x",1,4,7,8,"x",1,5,6,8,"x",2,3,6,9,"x",2,3,7,8,"x",2,4,5,9,"x",2,4,6,8,"x",2,5,6,7,"x",3,4,5,8,"x",3,4,6,7,null,null,null,null,null,null,null,null,null,null,null,null,null,null,null,null,0.41666666666666669,0.5,0.41666666666666669,0.5,0.33333333333333331,0.5,0.41666666666666669,0.5,0.41666666666666669,12]
[21,null,null,null,"x",1,3,8,9,"x",1,4,7,9,"x",1,5,6,9,"x",1,5,7,8,"x",2,3,7,9,"x",2,4,6,9,"x",2,4,7,8,"x",2,5,6,8,"x",3,4,5,9,"x",3,4,6,8,"x",3,5,6,7,null,null,null,null,null,null,null,null,null,null,null,null,null,null,null,null,null,null,null,null,null,0.36363636363636365,0.36363636363636365,0.45454545454545453,0.45454545454545453,0.45454545454545453,0.45454545454545453,0.45454545454545453,0.45454545454545453,0.54545454545454541,11]
[22,null,null,null,"x",1,4,8,9,"x",1,5,7,9,"x",1,6,7,8,"x",2,3,8,9,"x",2,4,7,9,"x",2,5,6,9,"x",2,5,7,8,"x",3,4,6,9,"x",3,4,7,8,"x",3,5,6,8,"x",4,5,6,7,null,null,null,null,null,null,null,null,null,null,null,null,null,null,null,null,null,null,null,null,null,0.27272727272727271,0.36363636363636365,0.36363636363636365,0.45454545454545453,0.45454545454545453,0.45454545454545453,0.54545454545454541,0.54545454545454541,0.54545454545454541,11]
[23,null,null,null,"x",1,5,8,9,"x",1,6,7,9,"x",2,4,8,9,"x",2,5,7,9,"x",2,6,7,8,"x",3,4,7,9,"x",3,5,6,9,"x",3,5,7,8,"x",4,5,6,8,null,null,null,null,null,null,null,null,null,null,null,null,null,null,null,null,null,null,null,null,null,null,null,null,null,null,null,null,null,null,null,0.22222222222222221,0.33333333333333331,0.33333333333333331,0.33333333333333331,0.55555555555555558,0.44444444444444442,0.55555555555555558,0.55555555555555558,0.66666666666666663,9]
[24,null,null,null,"x",1,6,8,9,"x",2,5,8,9,"x",2,6,7,9,"x",3,4,8,9,"x",3,5,7,9,"x",3,6,7,8,"x",4,5,6,9,"x",4,5,7,8,null,null,null,null,null,null,null,null,null,null,null,null,null,null,null,null,null,null,null,null,null,null,null,null,null,null,null,null,null,null,null,null,null,null,null,null,0.125,0.25,0.375,0.375,0.5,0.5,0.5,0.625,0.75,8]
[25,null,null,null,"x",1,7,8,9,"x",2,6,8,9,"x",3,5,8,9,"x",3,6,7,9,"x",4,5,7,9,"x",4,6,7,8,null,null,null,null,null,null,null,null,null,null,null,null,null,null,null,null,null,null,null,null,null,null,null,null,null,null,null,null,null,null,null,null,null,null,null,null,null,null,null,null,null,null,null,null,null,null,0.16666666666666666,0.16666666666666666,0.33333333333333331,0.33333333333333331,0.33333333333333331,0.5,0.66666666666666663,0.66666666666666663,0.83333333333333337,6]
[26,null,null,null,"x",2,7,8,9,"x",3,6,8,9,"x",4,5,8,9,"x",4,6,7,9,"x",5,6,7,8,null,null,null,null,null,null,null,null,null,null,null,null,null,null,null,null,null,null,null,null,null,null,null,null,null,null,null,null,null,null,null,null,null,null,null,null,null,null,null,null,null,null,null,null,null,null,null,null,null,null,null,0,0.2,0.2,0.4,0.4,0.6,0.6,0.8,0.8,5]
[27,null,null,null,"x",3,7,8,9,"x",4,6,8,9,"x",5,6,7,9,null,null,null,null,null,null,null,null,null,null,null,null,null,null,null,null,null,null,null,null,null,null,null,null,null,null,null,null,null,null,null,null,null,null,null,null,null,null,null,null,null,null,null,null,null,null,null,null,null,null,null,null,null,null,null,null,null,null,null,null,null,0,0,0.33333333333333331,0.33333333333333331,0.33333333333333331,0.66666666666666663,0.66666666666666663,0.66666666666666663,1,3]
[28,null,null,null,"x",4,7,8,9,"x",5,6,8,9,null,null,null,null,null,null,null,null,null,null,null,null,null,null,null,null,null,null,null,null,null,null,null,null,null,null,null,null,null,null,null,null,null,null,null,null,null,null,null,null,null,null,null,null,null,null,null,null,null,null,null,null,null,null,null,null,null,null,null,null,null,null,null,null,null,null,0,0,0,0.5,0.5,0.5,0.5,1,1,2]
[29,null,null,null,"x",5,7,8,9,null,null,null,null,null,null,null,null,null,null,null,null,null,null,null,null,null,null,null,null,null,null,null,null,null,null,null,null,null,null,null,null,null,null,null,null,null,null,null,null,null,null,null,null,null,null,null,null,null,null,null,null,null,null,null,null,null,null,null,null,null,null,null,null,null,null,null,null,null,null,null,0,0,0,0,1,0,1,1,1,1]
[30,null,null,null,"x",6,7,8,9,null,null,null,null,null,null,null,null,null,null,null,null,null,null,null,null,null,null,null,null,null,null,null,null,null,null,null,null,null,null,null,null,null,null,null,null,null,null,null,null,null,null,null,null,null,null,null,null,null,null,null,null,null,null,null,null,null,null,null,null,null,null,null,null,null,null,null,null,null,null,null,0,0,0,0,0,1,1,1,1,1]
[31,null,null,null,null,null,null,null,null,null,null,null,null,null,null,null,null,null,null,null,null,null,null,null,null,null,null,null,null,null,null,null,null,null,null,null,null,null,null,null,null,null,null,null,null,null,null,null,null,null,null,null,null,null,null,null,null,null,null,null,null,null,null,null,null,null,null,null,null,null,null,null,null,null,null,null,null,null,null,null,"","","","","","","","","",0]
[32,null,null,null,null,null,null,null,null,null,null,null,null,null,null,null,null,null,null,null,null,null,null,null,null,null,null,null,null,null,null,null,null,null,null,null,null,null,null,null,null,null,null,null,null,null,null,null,null,null,null,null,null,null,null,null,null,null,null,null,null,null,null,null,null,null,null,null,null,null,null,null,null,null,null,null,null,null,null,null,"","","","","","","","","",0]
[33,null,null,null,null,null,null,null,null,null,null,null,null,null,null,null,null,null,null,null,null,null,null,null,null,null,null,null,null,null,null,null,null,null,null,null,null,null,null,null,null,null,null,null,null,null,null,null,null,null,null,null,null,null,null,null,null,null,null,null,null,null,null,null,null,null,null,null,null,null,null,null,null,null,null,null,null,null,null,null,"","","","","","","","","",0]
[34,null,null,null,null,null,null,null,null,null,null,null,null,null,null,null,null,null,null,null,null,null,null,null,null,null,null,null,null,null,null,null,null,null,null,null,null,null,null,null,null,null,null,null,null,null,null,null,null,null,null,null,null,null,null,null,null,null,null,null,null,null,null,null,null,null,null,null,null,null,null,null,null,null,null,null,null,null,null,null,"","","","","","","","","",0]
[35,null,null,null,null,null,null,null,null,null,null,null,null,null,null,null,null,null,null,null,null,null,null,null,null,null,null,null,null,null,null,null,null,null,null,null,null,null,null,null,null,null,null,null,null,null,null,null,null,null,null,null,null,null,null,null,null,null,null,null,null,null,null,null,null,null,null,null,null,null,null,null,null,null,null,null,null,null,null,null,"","","","","","","","","",0]
[36,null,null,null,null,null,null,null,null,null,null,null,null,null,null,null,null,null,null,null,null,null,null,null,null,null,null,null,null,null,null,null,null,null,null,null,null,null,null,null,null,null,null,null,null,null,null,null,null,null,null,null,null,null,null,null,null,null,null,null,null,null,null,null,null,null,null,null,null,null,null,null,null,null,null,null,null,null,null,null,"","","","","","","","","",0]
[37,null,null,null,null,null,null,null,null,null,null,null,null,null,null,null,null,null,null,null,null,null,null,null,null,null,null,null,null,null,null,null,null,null,null,null,null,null,null,null,null,null,null,null,null,null,null,null,null,null,null,null,null,null,null,null,null,null,null,null,null,null,null,null,null,null,null,null,null,null,null,null,null,null,null,null,null,null,null,null,"","","","","","","","","",0]
[38,null,null,null,null,null,null,null,null,null,null,null,null,null,null,null,null,null,null,null,null,null,null,null,null,null,null,null,null,null,null,null,null,null,null,null,null,null,null,null,null,null,null,null,null,null,null,null,null,null,null,null,null,null,null,null,null,null,null,null,null,null,null,null,null,null,null,null,null,null,null,null,null,null,null,null,null,null,null,null,"","","","","","","","","",0]
[39,null,null,null,null,null,null,null,null,null,null,null,null,null,null,null,null,null,null,null,null,null,null,null,null,null,null,null,null,null,null,null,null,null,null,null,null,null,null,null,null,null,null,null,null,null,null,null,null,null,null,null,null,null,null,null,null,null,null,null,null,null,null,null,null,null,null,null,null,null,null,null,null,null,null,null,null,null,null,null,"","","","","","","","","",0]
[40,null,null,null,null,null,null,null,null,null,null,null,null,null,null,null,null,null,null,null,null,null,null,null,null,null,null,null,null,null,null,null,null,null,null,null,null,null,null,null,null,null,null,null,null,null,null,null,null,null,null,null,null,null,null,null,null,null,null,null,null,null,null,null,null,null,null,null,null,null,null,null,null,null,null,null,null,null,null,null,"","","","","","","","","",0]
[41,null,null,null,null,null,null,null,null,null,null,null,null,null,null,null,null,null,null,null,null,null,null,null,null,null,null,null,null,null,null,null,null,null,null,null,null,null,null,null,null,null,null,null,null,null,null,null,null,null,null,null,null,null,null,null,null,null,null,null,null,null,null,null,null,null,null,null,null,null,null,null,null,null,null,null,null,null,null,null,"","","","","","","","","",0]
[42,null,null,null,null,null,null,null,null,null,null,null,null,null,null,null,null,null,null,null,null,null,null,null,null,null,null,null,null,null,null,null,null,null,null,null,null,null,null,null,null,null,null,null,null,null,null,null,null,null,null,null,null,null,null,null,null,null,null,null,null,null,null,null,null,null,null,null,null,null,null,null,null,null,null,null,null,null,null,null,"","","","","","","","","",0]
[43,null,null,null,null,null,null,null,null,null,null,null,null,null,null,null,null,null,null,null,null,null,null,null,null,null,null,null,null,null,null,null,null,null,null,null,null,null,null,null,null,null,null,null,null,null,null,null,null,null,null,null,null,null,null,null,null,null,null,null,null,null,null,null,null,null,null,null,null,null,null,null,null,null,null,null,null,null,null,null,"","","","","","","","","",0]
[44,null,null,null,null,null,null,null,null,null,null,null,null,null,null,null,null,null,null,null,null,null,null,null,null,null,null,null,null,null,null,null,null,null,null,null,null,null,null,null,null,null,null,null,null,null,null,null,null,null,null,null,null,null,null,null,null,null,null,null,null,null,null,null,null,null,null,null,null,null,null,null,null,null,null,null,null,null,null,null,"","","","","","","","","",0]
[45,null,null,null,null,null,null,null,null,null,null,null,null,null,null,null,null,null,null,null,null,null,null,null,null,null,null,null,null,null,null,null,null,null,null,null,null,null,null,null,null,null,null,null,null,null,null,null,null,null,null,null,null,null,null,null,null,null,null,null,null,null,null,null,null,null,null,null,null,null,null,null,null,null,null,null,null,null,null,null,"","","","","","","","","",0]
[]
[]
[]
[]
[]
[]
[]
[]
[]
[]
[]
[]
[]
[]
[]
[]
[]
[]
[null,null,null,null,null,null,null,null,null,null,null,null,null,null,null,null,null,null,null,null,null,null,null,null,null,null,null,null,null,null,null,null,null,null,null,null,null,null,null,null,null,null,null,null,null,null,null,null,null,null,null,null,null,null,null,null,null,null,null,null,null,null,null,null,null,null,null,null,null,null,null,null,null,null,null,null,null,null,0.16666666666666666]
[]
[]
[null,null,null,null,null,null,null,null,null,null,null,null,null,null,null,null,null,null,null,null,null,null,null,null,null,null,null,null,null,null,null,null,null,null,null,null,null,null,null,null,null,null,null,null,null,null,null,null,null,null,null,null,null,null,null,null,null,null,null,null,null,null,null,null,null,null,null,null,null,null,null,null,null,null,null,null,null,null,null,null,null,0.5]

{"sheet":"5","index":5,"n_rows":46,"n_cols":90,"rows_kept":46,"cut":false,"hidden":false,"merged":[]}
["Summe",null,null,null,null,null,null,null,null,null,null,null,null,null,null,null,null,null,null,null,null,null,null,null,null,null,null,null,null,null,null,null,null,null,null,null,null,null,null,null,null,null,null,null,null,null,null,null,null,null,null,null,null,null,null,null,null,null,null,null,null,null,null,null,null,null,null,null,null,null,null,null,null,null,null,null,null,null,null,null,"Vorkommens-quotient von 1","Vorkommens-quotient von 2","Vorkommens-quotient von 3","Vorkommens-quotient von 4","Vorkommens-quotient von 5","Vorkommens-quotient von 6","Vorkommens-quotient von 7","Vorkommens-quotient von 8","Vorkommens-quotient von 9","Anzahl Zerlegungen der Summe"]
[1,null,null,null,null,null,null,null,null,null,null,null,null,null,null,null,null,null,null,null,null,null,null,null,null,null,null,null,null,null,null,null,null,null,null,null,null,null,null,null,null,null,null,null,null,null,null,null,null,null,null,null,null,null,null,null,null,null,null,null,null,null,null,null,null,null,null,null,null,null,null,null,null,null,null,null,null,null,null,null,{"$f":"IFERROR(COUNTIF($B2:$CB2,1)/$CL2,\"\")","v":""},{"$f":"IFERROR(COUNTIF($B2:$CB2,2)/$CL2,\"\")","v":""},{"$f":"IFERROR(COUNTIF($B2:$CB2,3)/$CL2,\"\")","v":""},{"$f":"IFERROR(COUNTIF($B2:$CB2,4)/$CL2,\"\")","v":""},{"$f":"IFERROR(COUNTIF($B2:$CB2,5)/$CL2,\"\")","v":""},{"$f":"IFERROR(COUNTIF($B2:$CB2,6)/$CL2,\"\")","v":""},{"$f":"IFERROR(COUNTIF($B2:$CB2,7)/$CL2,\"\")","v":""},{"$f":"IFERROR(COUNTIF($B2:$CB2,8)/$CL2,\"\")","v":""},{"$f":"IFERROR(COUNTIF($B2:$CB2,9)/$CL2,\"\")","v":""},{"$f":"COUNTIF(B2:CB2,\"x\")","v":0}]
[2,null,null,null,null,null,null,null,null,null,null,null,null,null,null,null,null,null,null,null,null,null,null,null,null,null,null,null,null,null,null,null,null,null,null,null,null,null,null,null,null,null,null,null,null,null,null,null,null,null,null,null,null,null,null,null,null,null,null,null,null,null,null,null,null,null,null,null,null,null,null,null,null,null,null,null,null,null,null,null,{"$f":"IFERROR(COUNTIF($B3:$CB3,1)/$CL3,\"\")","v":""},{"$f":"IFERROR(COUNTIF($B3:$CB3,2)/$CL3,\"\")","v":""},{"$f":"IFERROR(COUNTIF($B3:$CB3,3)/$CL3,\"\")","v":""},{"$f":"IFERROR(COUNTIF($B3:$CB3,4)/$CL3,\"\")","v":""},{"$f":"IFERROR(COUNTIF($B3:$CB3,5)/$CL3,\"\")","v":""},{"$f":"IFERROR(COUNTIF($B3:$CB3,6)/$CL3,\"\")","v":""},{"$f":"IFERROR(COUNTIF($B3:$CB3,7)/$CL3,\"\")","v":""},{"$f":"IFERROR(COUNTIF($B3:$CB3,8)/$CL3,\"\")","v":""},{"$f":"IFERROR(COUNTIF($B3:$CB3,9)/$CL3,\"\")","v":""},{"$f":"COUNTIF(B3:CB3,\"x\")","v":0}]
[3,null,null,null,null,null,null,null,null,null,null,null,null,null,null,null,null,null,null,null,null,null,null,null,null,null,null,null,null,null,null,null,null,null,null,null,null,null,null,null,null,null,null,null,null,null,null,null,null,null,null,null,null,null,null,null,null,null,null,null,null,null,null,null,null,null,null,null,null,null,null,null,null,null,null,null,null,null,null,null,"","","","","","","","","",0]
[4,null,null,null,null,null,null,null,null,null,null,null,null,null,null,null,null,null,null,null,null,null,null,null,null,null,null,null,null,null,null,null,null,null,null,null,null,null,null,null,null,null,null,null,null,null,null,null,null,null,null,null,null,null,null,null,null,null,null,null,null,null,null,null,null,null,null,null,null,null,null,null,null,null,null,null,null,null,null,null,"","","","","","","","","",0]
[5,null,null,null,null,null,null,null,null,null,null,null,null,null,null,null,null,null,null,null,null,null,null,null,null,null,null,null,null,null,null,null,null,null,null,null,null,null,null,null,null,null,null,null,null,null,null,null,null,null,null,null,null,null,null,null,null,null,null,null,null,null,null,null,null,null,null,null,null,null,null,null,null,null,null,null,null,null,null,null,"","","","","","","","","",{"$f":"COUNTIF(B6:CB6,\"x\")","v":0}]
[6,null,null,null,null,null,null,null,null,null,null,null,null,null,null,null,null,null,null,null,null,null,null,null,null,null,null,null,null,null,null,null,null,null,null,null,null,null,null,null,null,null,null,null,null,null,null,null,null,null,null,null,null,null,null,null,null,null,null,null,null,null,null,null,null,null,null,null,null,null,null,null,null,null,null,null,null,null,null,null,"","","","","","","","","",0]
[7,null,null,null,null,null,null,null,null,null,null,null,null,null,null,null,null,null,null,null,null,null,null,null,null,null,null,null,null,null,null,null,null,null,null,null,null,null,null,null,null,null,null,null,null,null,null,null,null,null,null,null,null,null,null,null,null,null,null,null,null,null,null,null,null,null,null,null,null,null,null,null,null,null,null,null,null,null,null,null,"","","","","","","","","",0]
[8,null,null,null,null,null,null,null,null,null,null,null,null,null,null,null,null,null,null,null,null,null,null,null,null,null,null,null,null,null,null,null,null,null,null,null,null,null,null,null,null,null,null,null,null,null,null,null,null,null,null,null,null,null,null,null,null,null,null,null,null,null,null,null,null,null,null,null,null,null,null,null,null,null,null,null,null,null,null,null,"","","","","","","","","",0]
[9,null,null,null,null,null,null,null,null,null,null,null,null,null,null,null,null,null,null,null,null,null,null,null,null,null,null,null,null,null,null,null,null,null,null,null,null,null,null,null,null,null,null,null,null,null,null,null,null,null,null,null,null,null,null,null,null,null,null,null,null,null,null,null,null,null,null,null,null,null,null,null,null,null,null,null,null,null,null,null,"","","","","","","","","",0]
[10,null,null,null,null,null,null,null,null,null,null,null,null,null,null,null,null,null,null,null,null,null,null,null,null,null,null,null,null,null,null,null,null,null,null,null,null,null,null,null,null,null,null,null,null,null,null,null,null,null,null,null,null,null,null,null,null,null,null,null,null,null,null,null,null,null,null,null,null,null,null,null,null,null,null,null,null,null,null,null,"","","","","","","","","",0]
[11,null,null,null,null,null,null,null,null,null,null,null,null,null,null,null,null,null,null,null,null,null,null,null,null,null,null,null,null,null,null,null,null,null,null,null,null,null,null,null,null,null,null,null,null,null,null,null,null,null,null,null,null,null,null,null,null,null,null,null,null,null,null,null,null,null,null,null,null,null,null,null,null,null,null,null,null,null,null,null,"","","","","","","","","",0]
[12,null,null,null,null,null,null,null,null,null,null,null,null,null,null,null,null,null,null,null,null,null,null,null,null,null,null,null,null,null,null,null,null,null,null,null,null,null,null,null,null,null,null,null,null,null,null,null,null,null,null,null,null,null,null,null,null,null,null,null,null,null,null,null,null,null,null,null,null,null,null,null,null,null,null,null,null,null,null,null,"","","","","","","","","",0]
[13,null,null,null,null,null,null,null,null,null,null,null,null,null,null,null,null,null,null,null,null,null,null,null,null,null,null,null,null,null,null,null,null,null,null,null,null,null,null,null,null,null,null,null,null,null,null,null,null,null,null,null,null,null,null,null,null,null,null,null,null,null,null,null,null,null,null,null,null,null,null,null,null,null,null,null,null,null,null,null,"","","","","","","","","",0]
[14,null,null,null,null,null,null,null,null,null,null,null,null,null,null,null,null,null,null,null,null,null,null,null,null,null,null,null,null,null,null,null,null,null,null,null,null,null,null,null,null,null,null,null,null,null,null,null,null,null,null,null,null,null,null,null,null,null,null,null,null,null,null,null,null,null,null,null,null,null,null,null,null,null,null,null,null,null,null,null,"","","","","","","","","",0]
[15,null,null,null,null,"x",1,2,3,4,5,null,null,null,null,null,null,null,null,null,null,null,null,null,null,null,null,null,null,null,null,null,null,null,null,null,null,null,null,null,null,null,null,null,null,null,null,null,null,null,null,null,null,null,null,null,null,null,null,null,null,null,null,null,null,null,null,null,null,null,null,null,null,null,null,null,null,null,null,null,1,1,1,1,1,0,0,0,0,1]
[16,null,null,null,null,"x",1,2,3,4,6,null,null,null,null,null,null,null,null,null,null,null,null,null,null,null,null,null,null,null,null,null,null,null,null,null,null,null,null,null,null,null,null,null,null,null,null,null,null,null,null,null,null,null,null,null,null,null,null,null,null,null,null,null,null,null,null,null,null,null,null,null,null,null,null,null,null,null,null,null,1,1,1,1,0,1,0,0,0,1]
[17,null,null,null,null,"x",1,2,3,4,7,"x",1,2,3,5,6,null,null,null,null,null,null,null,null,null,null,null,null,null,null,null,null,null,null,null,null,null,null,null,null,null,null,null,null,null,null,null,null,null,null,null,null,null,null,null,null,null,null,null,null,null,null,null,null,null,null,null,null,null,null,null,null,null,null,null,null,null,null,null,1,1,1,0.5,0.5,0.5,0.5,0,0,2]
[18,null,null,null,null,"x",1,2,3,4,8,"x",1,2,3,5,7,"x",1,2,4,5,6,null,null,null,null,null,null,null,null,null,null,null,null,null,null,null,null,null,null,null,null,null,null,null,null,null,null,null,null,null,null,null,null,null,null,null,null,null,null,null,null,null,null,null,null,null,null,null,null,null,null,null,null,null,null,null,null,null,1,1,0.66666666666666663,0.66666666666666663,0.66666666666666663,0.33333333333333331,0.33333333333333331,0.33333333333333331,0,3]
[19,null,null,null,null,"x",1,2,3,4,9,"x",1,2,3,5,8,"x",1,2,3,6,7,"x",1,2,4,5,7,"x",1,3,4,5,6,null,null,null,null,null,null,null,null,null,null,null,null,null,null,null,null,null,null,null,null,null,null,null,null,null,null,null,null,null,null,null,null,null,null,null,null,null,null,null,null,null,null,null,null,null,1,0.8,0.8,0.6,0.6,0.4,0.4,0.2,0.2,5]
[20,null,null,null,null,"x",1,2,3,5,9,"x",1,2,3,6,8,"x",1,2,4,5,8,"x",1,2,4,6,7,"x",1,3,4,5,7,"x",2,3,4,5,6,null,null,null,null,null,null,null,null,null,null,null,null,null,null,null,null,null,null,null,null,null,null,null,null,null,null,null,null,null,null,null,null,null,null,null,null,null,null,null,0.83333333333333337,0.83333333333333337,0.66666666666666663,0.66666666666666663,0.66666666666666663,0.5,0.33333333333333331,0.33333333333333331,0.16666666666666666,6]
[21,null,null,null,null,"x",1,2,3,6,9,"x",1,2,3,7,8,"x",1,2,4,5,9,"x",1,2,4,6,8,"x",1,2,5,6,7,"x",1,3,4,5,8,"x",1,3,4,6,7,"x",2,3,4,5,7,null,null,null,null,null,null,null,null,null,null,null,null,null,null,null,null,null,null,null,null,null,null,null,null,null,null,null,0.875,0.75,0.625,0.625,0.5,0.5,0.5,0.375,0.25,8]
[22,null,null,null,null,"x",1,2,3,7,9,"x",1,2,4,6,9,"x",1,2,4,7,8,"x",1,2,5,6,8,"x",1,3,4,5,9,"x",1,3,4,6,8,"x",1,3,5,6,7,"x",2,3,4,5,8,"x",2,3,4,6,7,null,null,null,null,null,null,null,null,null,null,null,null,null,null,null,null,null,null,null,null,null,0.77777777777777779,0.66666666666666663,0.66666666666666663,0.66666666666666663,0.44444444444444442,0.55555555555555558,0.44444444444444442,0.44444444444444442,0.33333333333333331,9]
[23,null,null,null,null,"x",1,2,3,8,9,"x",1,2,4,7,9,"x",1,2,5,6,9,"x",1,2,5,7,8,"x",1,3,4,6,9,"x",1,3,4,7,8,"x",1,3,5,6,8,"x",1,4,5,6,7,"x",2,3,4,5,9,"x",2,3,4,6,8,"x",2,3,5,6,7,null,null,null,null,null,null,null,null,null,0.72727272727272729,0.63636363636363635,0.63636363636363635,0.54545454545454541,0.54545454545454541,0.54545454545454541,0.45454545454545453,0.45454545454545453,0.45454545454545453,11]
[24,null,null,null,null,"x",1,2,4,8,9,"x",1,2,5,7,9,"x",1,2,6,7,8,"x",1,3,4,7,9,"x",1,3,5,6,9,"x",1,3,5,7,8,"x",1,4,5,6,8,"x",2,3,4,6,9,"x",2,3,4,7,8,"x",2,3,5,6,8,"x",2,4,5,6,7,null,null,null,null,null,null,null,null,null,0.63636363636363635,0.63636363636363635,0.54545454545454541,0.54545454545454541,0.54545454545454541,0.54545454545454541,0.54545454545454541,0.54545454545454541,0.45454545454545453,11]
[25,null,null,null,null,"x",1,2,5,8,9,"x",1,2,6,7,9,"x",1,3,4,8,9,"x",1,3,5,7,9,"x",1,3,6,7,8,"x",1,4,5,6,9,"x",1,4,5,7,8,"x",2,3,4,7,9,"x",2,3,5,6,9,"x",2,3,5,7,8,"x",2,4,5,6,8,"x",3,4,5,6,7,null,null,null,0.58333333333333337,0.5,0.58333333333333337,0.5,0.66666666666666663,0.5,0.58333333333333337,0.5,0.58333333333333337,12]
[26,null,null,null,null,"x",1,2,6,8,9,"x",1,3,5,8,9,"x",1,3,6,7,9,"x",1,4,5,7,9,"x",1,4,6,7,8,"x",2,3,4,8,9,"x",2,3,5,7,9,"x",2,3,6,7,8,"x",2,4,5,6,9,"x",2,4,5,7,8,"x",3,4,5,6,8,null,null,null,null,null,null,null,null,null,0.45454545454545453,0.54545454545454541,0.54545454545454541,0.54545454545454541,0.54545454545454541,0.54545454545454541,0.54545454545454541,0.63636363636363635,0.63636363636363635,11]
[27,null,null,null,null,"x",1,2,7,8,9,"x",1,3,6,8,9,"x",1,4,5,8,9,"x",1,4,6,7,9,"x",1,5,6,7,8,"x",2,3,5,8,9,"x",2,3,6,7,9,"x",2,4,5,7,9,"x",2,4,6,7,8,"x",3,4,5,6,9,"x",3,4,5,7,8,null,null,null,null,null,null,null,null,null,0.45454545454545453,0.45454545454545453,0.45454545454545453,0.54545454545454541,0.54545454545454541,0.54545454545454541,0.63636363636363635,0.63636363636363635,0.72727272727272729,11]
[28,null,null,null,null,"x",1,3,7,8,9,"x",1,4,6,8,9,"x",1,5,6,7,9,"x",2,3,6,8,9,"x",2,4,5,8,9,"x",2,4,6,7,9,"x",2,5,6,7,8,"x",3,4,5,7,9,"x",3,4,6,7,8,null,null,null,null,null,null,null,null,null,null,null,null,null,null,null,null,null,null,null,null,null,0.33333333333333331,0.44444444444444442,0.44444444444444442,0.55555555555555558,0.44444444444444442,0.66666666666666663,0.66666666666666663,0.66666666666666663,0.77777777777777779,9]
[29,null,null,null,null,"x",1,4,7,8,9,"x",1,5,6,8,9,"x",2,3,7,8,9,"x",2,4,6,8,9,"x",2,5,6,7,9,"x",3,4,5,8,9,"x",3,4,6,7,9,"x",3,5,6,7,8,null,null,null,null,null,null,null,null,null,null,null,null,null,null,null,null,null,null,null,null,null,null,null,null,null,null,null,0.25,0.375,0.5,0.5,0.5,0.625,0.625,0.75,0.875,8]
[30,null,null,null,null,"x",1,5,7,8,9,"x",2,4,7,8,9,"x",2,5,6,8,9,"x",3,4,6,8,9,"x",3,5,6,7,9,"x",4,5,6,7,8,null,null,null,null,null,null,null,null,null,null,null,null,null,null,null,null,null,null,null,null,null,null,null,null,null,null,null,null,null,null,null,null,null,null,null,null,null,null,null,0.16666666666666666,0.33333333333333331,0.33333333333333331,0.5,0.66666666666666663,0.66666666666666663,0.66666666666666663,0.83333333333333337,0.83333333333333337,6]
[31,null,null,null,null,"x",1,6,7,8,9,"x",2,5,7,8,9,"x",3,4,7,8,9,"x",3,5,6,8,9,"x",4,5,6,7,9,null,null,null,null,null,null,null,null,null,null,null,null,null,null,null,null,null,null,null,null,null,null,null,null,null,null,null,null,null,null,null,null,null,null,null,null,null,null,null,null,null,null,null,null,null,0.2,0.2,0.4,0.4,0.6,0.6,0.8,0.8,1,5]
[32,null,null,null,null,"x",2,6,7,8,9,"x",3,5,7,8,9,"x",4,5,6,8,9,null,null,null,null,null,null,null,null,null,null,null,null,null,null,null,null,null,null,null,null,null,null,null,null,null,null,null,null,null,null,null,null,null,null,null,null,null,null,null,null,null,null,null,null,null,null,null,null,null,null,null,null,null,null,null,null,null,0,0.33333333333333331,0.33333333333333331,0.33333333333333331,0.66666666666666663,0.66666666666666663,0.66666666666666663,1,1,3]
[33,null,null,null,null,"x",3,6,7,8,9,"x",4,5,7,8,9,null,null,null,null,null,null,null,null,null,null,null,null,null,null,null,null,null,null,null,null,null,null,null,null,null,null,null,null,null,null,null,null,null,null,null,null,null,null,null,null,null,null,null,null,null,null,null,null,null,null,null,null,null,null,null,null,null,null,null,null,null,null,null,0,0,0.5,0.5,0.5,0.5,1,1,1,2]
[34,null,null,null,null,"x",4,6,7,8,9,null,null,null,null,null,null,null,null,null,null,null,null,null,null,null,null,null,null,null,null,null,null,null,null,null,null,null,null,null,null,null,null,null,null,null,null,null,null,null,null,null,null,null,null,null,null,null,null,null,null,null,null,null,null,null,null,null,null,null,null,null,null,null,null,null,null,null,null,null,0,0,0,1,0,1,1,1,1,1]
[35,null,null,null,null,"x",5,6,7,8,9,null,null,null,null,null,null,null,null,null,null,null,null,null,null,null,null,null,null,null,null,null,null,null,null,null,null,null,null,null,null,null,null,null,null,null,null,null,null,null,null,null,null,null,null,null,null,null,null,null,null,null,null,null,null,null,null,null,null,null,null,null,null,null,null,null,null,null,null,null,0,0,0,0,1,1,1,1,1,1]
[36,null,null,null,null,null,null,null,null,null,null,null,null,null,null,null,null,null,null,null,null,null,null,null,null,null,null,null,null,null,null,null,null,null,null,null,null,null,null,null,null,null,null,null,null,null,null,null,null,null,null,null,null,null,null,null,null,null,null,null,null,null,null,null,null,null,null,null,null,null,null,null,null,null,null,null,null,null,null,null,"","","","","","","","","",0]
[37,null,null,null,null,null,null,null,null,null,null,null,null,null,null,null,null,null,null,null,null,null,null,null,null,null,null,null,null,null,null,null,null,null,null,null,null,null,null,null,null,null,null,null,null,null,null,null,null,null,null,null,null,null,null,null,null,null,null,null,null,null,null,null,null,null,null,null,null,null,null,null,null,null,null,null,null,null,null,null,"","","","","","","","","",0]
[38,null,null,null,null,null,null,null,null,null,null,null,null,null,null,null,null,null,null,null,null,null,null,null,null,null,null,null,null,null,null,null,null,null,null,null,null,null,null,null,null,null,null,null,null,null,null,null,null,null,null,null,null,null,null,null,null,null,null,null,null,null,null,null,null,null,null,null,null,null,null,null,null,null,null,null,null,null,null,null,"","","","","","","","","",0]
[39,null,null,null,null,null,null,null,null,null,null,null,null,null,null,null,null,null,null,null,null,null,null,null,null,null,null,null,null,null,null,null,null,null,null,null,null,null,null,null,null,null,null,null,null,null,null,null,null,null,null,null,null,null,null,null,null,null,null,null,null,null,null,null,null,null,null,null,null,null,null,null,null,null,null,null,null,null,null,null,"","","","","","","","","",0]
[40,null,null,null,null,null,null,null,null,null,null,null,null,null,null,null,null,null,null,null,null,null,null,null,null,null,null,null,null,null,null,null,null,null,null,null,null,null,null,null,null,null,null,null,null,null,null,null,null,null,null,null,null,null,null,null,null,null,null,null,null,null,null,null,null,null,null,null,null,null,null,null,null,null,null,null,null,null,null,null,"","","","","","","","","",0]
[41,null,null,null,null,null,null,null,null,null,null,null,null,null,null,null,null,null,null,null,null,null,null,null,null,null,null,null,null,null,null,null,null,null,null,null,null,null,null,null,null,null,null,null,null,null,null,null,null,null,null,null,null,null,null,null,null,null,null,null,null,null,null,null,null,null,null,null,null,null,null,null,null,null,null,null,null,null,null,null,"","","","","","","","","",0]
[42,null,null,null,null,null,null,null,null,null,null,null,null,null,null,null,null,null,null,null,null,null,null,null,null,null,null,null,null,null,null,null,null,null,null,null,null,null,null,null,null,null,null,null,null,null,null,null,null,null,null,null,null,null,null,null,null,null,null,null,null,null,null,null,null,null,null,null,null,null,null,null,null,null,null,null,null,null,null,null,"","","","","","","","","",0]
[43,null,null,null,null,null,null,null,null,null,null,null,null,null,null,null,null,null,null,null,null,null,null,null,null,null,null,null,null,null,null,null,null,null,null,null,null,null,null,null,null,null,null,null,null,null,null,null,null,null,null,null,null,null,null,null,null,null,null,null,null,null,null,null,null,null,null,null,null,null,null,null,null,null,null,null,null,null,null,null,"","","","","","","","","",0]
[44,null,null,null,null,null,null,null,null,null,null,null,null,null,null,null,null,null,null,null,null,null,null,null,null,null,null,null,null,null,null,null,null,null,null,null,null,null,null,null,null,null,null,null,null,null,null,null,null,null,null,null,null,null,null,null,null,null,null,null,null,null,null,null,null,null,null,null,null,null,null,null,null,null,null,null,null,null,null,null,"","","","","","","","","",0]
[45,null,null,null,null,null,null,null,null,null,null,null,null,null,null,null,null,null,null,null,null,null,null,null,null,null,null,null,null,null,null,null,null,null,null,null,null,null,null,null,null,null,null,null,null,null,null,null,null,null,null,null,null,null,null,null,null,null,null,null,null,null,null,null,null,null,null,null,null,null,null,null,null,null,null,null,null,null,null,null,"","","","","","","","","",0]

{"sheet":"6","index":6,"n_rows":46,"n_cols":90,"rows_kept":46,"cut":false,"hidden":false,"merged":[]}
["Summe",null,null,null,null,null,null,null,null,null,null,null,null,null,null,null,null,null,null,null,null,null,null,null,null,null,null,null,null,null,null,null,null,null,null,null,null,null,null,null,null,null,null,null,null,null,null,null,null,null,null,null,null,null,null,null,null,null,null,null,null,null,null,null,null,null,null,null,null,null,null,null,null,null,null,null,null,null,null,null,"Vorkommens-quotient von 1","Vorkommens-quotient von 2","Vorkommens-quotient von 3","Vorkommens-quotient von 4","Vorkommens-quotient von 5","Vorkommens-quotient von 6","Vorkommens-quotient von 7","Vorkommens-quotient von 8","Vorkommens-quotient von 9","Anzahl Zerlegungen der Summe"]
[1,null,null,null,null,null,null,null,null,null,null,null,null,null,null,null,null,null,null,null,null,null,null,null,null,null,null,null,null,null,null,null,null,null,null,null,null,null,null,null,null,null,null,null,null,null,null,null,null,null,null,null,null,null,null,null,null,null,null,null,null,null,null,null,null,null,null,null,null,null,null,null,null,null,null,null,null,null,null,null,{"$f":"IFERROR(COUNTIF($B2:$CB2,1)/$CL2,\"\")","v":""},{"$f":"IFERROR(COUNTIF($B2:$CB2,2)/$CL2,\"\")","v":""},{"$f":"IFERROR(COUNTIF($B2:$CB2,3)/$CL2,\"\")","v":""},{"$f":"IFERROR(COUNTIF($B2:$CB2,4)/$CL2,\"\")","v":""},{"$f":"IFERROR(COUNTIF($B2:$CB2,5)/$CL2,\"\")","v":""},{"$f":"IFERROR(COUNTIF($B2:$CB2,6)/$CL2,\"\")","v":""},{"$f":"IFERROR(COUNTIF($B2:$CB2,7)/$CL2,\"\")","v":""},{"$f":"IFERROR(COUNTIF($B2:$CB2,8)/$CL2,\"\")","v":""},{"$f":"IFERROR(COUNTIF($B2:$CB2,9)/$CL2,\"\")","v":""},{"$f":"COUNTIF(B2:CB2,\"x\")","v":0}]
[2,null,null,null,null,null,null,null,null,null,null,null,null,null,null,null,null,null,null,null,null,null,null,null,null,null,null,null,null,null,null,null,null,null,null,null,null,null,null,null,null,null,null,null,null,null,null,null,null,null,null,null,null,null,null,null,null,null,null,null,null,null,null,null,null,null,null,null,null,null,null,null,null,null,null,null,null,null,null,null,{"$f":"IFERROR(COUNTIF($B3:$CB3,1)/$CL3,\"\")","v":""},{"$f":"IFERROR(COUNTIF($B3:$CB3,2)/$CL3,\"\")","v":""},{"$f":"IFERROR(COUNTIF($B3:$CB3,3)/$CL3,\"\")","v":""},{"$f":"IFERROR(COUNTIF($B3:$CB3,4)/$CL3,\"\")","v":""},{"$f":"IFERROR(COUNTIF($B3:$CB3,5)/$CL3,\"\")","v":""},{"$f":"IFERROR(COUNTIF($B3:$CB3,6)/$CL3,\"\")","v":""},{"$f":"IFERROR(COUNTIF($B3:$CB3,7)/$CL3,\"\")","v":""},{"$f":"IFERROR(COUNTIF($B3:$CB3,8)/$CL3,\"\")","v":""},{"$f":"IFERROR(COUNTIF($B3:$CB3,9)/$CL3,\"\")","v":""},{"$f":"COUNTIF(B3:CB3,\"x\")","v":0}]
[3,null,null,null,null,null,null,null,null,null,null,null,null,null,null,null,null,null,null,null,null,null,null,null,null,null,null,null,null,null,null,null,null,null,null,null,null,null,null,null,null,null,null,null,null,null,null,null,null,null,null,null,null,null,null,null,null,null,null,null,null,null,null,null,null,null,null,null,null,null,null,null,null,null,null,null,null,null,null,null,"","","","","","","","","",0]
[4,null,null,null,null,null,null,null,null,null,null,null,null,null,null,null,null,null,null,null,null,null,null,null,null,null,null,null,null,null,null,null,null,null,null,null,null,null,null,null,null,null,null,null,null,null,null,null,null,null,null,null,null,null,null,null,null,null,null,null,null,null,null,null,null,null,null,null,null,null,null,null,null,null,null,null,null,null,null,null,"","","","","","","","","",0]
[5,null,null,null,null,null,null,null,null,null,null,null,null,null,null,null,null,null,null,null,null,null,null,null,null,null,null,null,null,null,null,null,null,null,null,null,null,null,null,null,null,null,null,null,null,null,null,null,null,null,null,null,null,null,null,null,null,null,null,null,null,null,null,null,null,null,null,null,null,null,null,null,null,null,null,null,null,null,null,null,"","","","","","","","","",{"$f":"COUNTIF(B6:CB6,\"x\")","v":0}]
[6,null,null,null,null,null,null,null,null,null,null,null,null,null,null,null,null,null,null,null,null,null,null,null,null,null,null,null,null,null,null,null,null,null,null,null,null,null,null,null,null,null,null,null,null,null,null,null,null,null,null,null,null,null,null,null,null,null,null,null,null,null,null,null,null,null,null,null,null,null,null,null,null,null,null,null,null,null,null,null,"","","","","","","","","",0]
[7,null,null,null,null,null,null,null,null,null,null,null,null,null,null,null,null,null,null,null,null,null,null,null,null,null,null,null,null,null,null,null,null,null,null,null,null,null,null,null,null,null,null,null,null,null,null,null,null,null,null,null,null,null,null,null,null,null,null,null,null,null,null,null,null,null,null,null,null,null,null,null,null,null,null,null,null,null,null,null,"","","","","","","","","",0]
[8,null,null,null,null,null,null,null,null,null,null,null,null,null,null,null,null,null,null,null,null,null,null,null,null,null,null,null,null,null,null,null,null,null,null,null,null,null,null,null,null,null,null,null,null,null,null,null,null,null,null,null,null,null,null,null,null,null,null,null,null,null,null,null,null,null,null,null,null,null,null,null,null,null,null,null,null,null,null,null,"","","","","","","","","",0]
[9,null,null,null,null,null,null,null,null,null,null,null,null,null,null,null,null,null,null,null,null,null,null,null,null,null,null,null,null,null,null,null,null,null,null,null,null,null,null,null,null,null,null,null,null,null,null,null,null,null,null,null,null,null,null,null,null,null,null,null,null,null,null,null,null,null,null,null,null,null,null,null,null,null,null,null,null,null,null,null,"","","","","","","","","",0]
[10,null,null,null,null,null,null,null,null,null,null,null,null,null,null,null,null,null,null,null,null,null,null,null,null,null,null,null,null,null,null,null,null,null,null,null,null,null,null,null,null,null,null,null,null,null,null,null,null,null,null,null,null,null,null,null,null,null,null,null,null,null,null,null,null,null,null,null,null,null,null,null,null,null,null,null,null,null,null,null,"","","","","","","","","",0]
[11,null,null,null,null,null,null,null,null,null,null,null,null,null,null,null,null,null,null,null,null,null,null,null,null,null,null,null,null,null,null,null,null,null,null,null,null,null,null,null,null,null,null,null,null,null,null,null,null,null,null,null,null,null,null,null,null,null,null,null,null,null,null,null,null,null,null,null,null,null,null,null,null,null,null,null,null,null,null,null,"","","","","","","","","",0]
[12,null,null,null,null,null,null,null,null,null,null,null,null,null,null,null,null,null,null,null,null,null,null,null,null,null,null,null,null,null,null,null,null,null,null,null,null,null,null,null,null,null,null,null,null,null,null,null,null,null,null,null,null,null,null,null,null,null,null,null,null,null,null,null,null,null,null,null,null,null,null,null,null,null,null,null,null,null,null,null,"","","","","","","","","",0]
[13,null,null,null,null,null,null,null,null,null,null,null,null,null,null,null,null,null,null,null,null,null,null,null,null,null,null,null,null,null,null,null,null,null,null,null,null,null,null,null,null,null,null,null,null,null,null,null,null,null,null,null,null,null,null,null,null,null,null,null,null,null,null,null,null,null,null,null,null,null,null,null,null,null,null,null,null,null,null,null,"","","","","","","","","",0]
[14,null,null,null,null,null,null,null,null,null,null,null,null,null,null,null,null,null,null,null,null,null,null,null,null,null,null,null,null,null,null,null,null,null,null,null,null,null,null,null,null,null,null,null,null,null,null,null,null,null,null,null,null,null,null,null,null,null,null,null,null,null,null,null,null,null,null,null,null,null,null,null,null,null,null,null,null,null,null,null,"","","","","","","","","",0]
[15,null,null,null,null,null,null,null,null,null,null,null,null,null,null,null,null,null,null,null,null,null,null,null,null,null,null,null,null,null,null,null,null,null,null,null,null,null,null,null,null,null,null,null,null,null,null,null,null,null,null,null,null,null,null,null,null,null,null,null,null,null,null,null,null,null,null,null,null,null,null,null,null,null,null,null,null,null,null,null,"","","","","","","","","",0]
[16,null,null,null,null,null,null,null,null,null,null,null,null,null,null,null,null,null,null,null,null,null,null,null,null,null,null,null,null,null,null,null,null,null,null,null,null,null,null,null,null,null,null,null,null,null,null,null,null,null,null,null,null,null,null,null,null,null,null,null,null,null,null,null,null,null,null,null,null,null,null,null,null,null,null,null,null,null,null,null,"","","","","","","","","",0]
[17,null,null,null,null,null,null,null,null,null,null,null,null,null,null,null,null,null,null,null,null,null,null,null,null,null,null,null,null,null,null,null,null,null,null,null,null,null,null,null,null,null,null,null,null,null,null,null,null,null,null,null,null,null,null,null,null,null,null,null,null,null,null,null,null,null,null,null,null,null,null,null,null,null,null,null,null,null,null,null,"","","","","","","","","",0]
[18,null,null,null,null,null,null,null,null,null,null,null,null,null,null,null,null,null,null,null,null,null,null,null,null,null,null,null,null,null,null,null,null,null,null,null,null,null,null,null,null,null,null,null,null,null,null,null,null,null,null,null,null,null,null,null,null,null,null,null,null,null,null,null,null,null,null,null,null,null,null,null,null,null,null,null,null,null,null,null,"","","","","","","","","",0]
[19,null,null,null,null,null,null,null,null,null,null,null,null,null,null,null,null,null,null,null,null,null,null,null,null,null,null,null,null,null,null,null,null,null,null,null,null,null,null,null,null,null,null,null,null,null,null,null,null,null,null,null,null,null,null,null,null,null,null,null,null,null,null,null,null,null,null,null,null,null,null,null,null,null,null,null,null,null,null,null,"","","","","","","","","",0]
[20,null,null,null,null,null,null,null,null,null,null,null,null,null,null,null,null,null,null,null,null,null,null,null,null,null,null,null,null,null,null,null,null,null,null,null,null,null,null,null,null,null,null,null,null,null,null,null,null,null,null,null,null,null,null,null,null,null,null,null,null,null,null,null,null,null,null,null,null,null,null,null,null,null,null,null,null,null,null,null,"","","","","","","","","",0]
[21,null,null,null,null,null,"x",1,2,3,4,5,6,null,null,null,null,null,null,null,null,null,null,null,null,null,null,null,null,null,null,null,null,null,null,null,null,null,null,null,null,null,null,null,null,null,null,null,null,null,null,null,null,null,null,null,null,null,null,null,null,null,null,null,null,null,null,null,null,null,null,null,null,null,null,null,null,null,null,null,1,1,1,1,1,1,0,0,0,1]
[22,null,null,null,null,null,"x",1,2,3,4,5,7,null,null,null,null,null,null,null,null,null,null,null,null,null,null,null,null,null,null,null,null,null,null,null,null,null,null,null,null,null,null,null,null,null,null,null,null,null,null,null,null,null,null,null,null,null,null,null,null,null,null,null,null,null,null,null,null,null,null,null,null,null,null,null,null,null,null,null,1,1,1,1,1,0,1,0,0,1]
[23,null,null,null,null,null,"x",1,2,3,4,5,8,"x",1,2,3,4,6,7,null,null,null,null,null,null,null,null,null,null,null,null,null,null,null,null,null,null,null,null,null,null,null,null,null,null,null,null,null,null,null,null,null,null,null,null,null,null,null,null,null,null,null,null,null,null,null,null,null,null,null,null,null,null,null,null,null,null,null,null,1,1,1,1,0.5,0.5,0.5,0.5,0,2]
[24,null,null,null,null,null,"x",1,2,3,4,5,9,"x",1,2,3,4,6,8,"x",1,2,3,5,6,7,null,null,null,null,null,null,null,null,null,null,null,null,null,null,null,null,null,null,null,null,null,null,null,null,null,null,null,null,null,null,null,null,null,null,null,null,null,null,null,null,null,null,null,null,null,null,null,null,null,null,null,null,null,1,1,1,0.66666666666666663,0.66666666666666663,0.66666666666666663,0.33333333333333331,0.33333333333333331,0.33333333333333331,3]
[25,null,null,null,null,null,"x",1,2,3,4,6,9,"x",1,2,3,4,7,8,"x",1,2,3,5,6,8,"x",1,2,4,5,6,7,null,null,null,null,null,null,null,null,null,null,null,null,null,null,null,null,null,null,null,null,null,null,null,null,null,null,null,null,null,null,null,null,null,null,null,null,null,null,null,null,null,null,null,null,null,null,1,1,0.75,0.75,0.5,0.75,0.5,0.5,0.25,4]
[26,null,null,null,null,null,"x",1,2,3,4,7,9,"x",1,2,3,5,6,9,"x",1,2,3,5,7,8,"x",1,2,4,5,6,8,"x",1,3,4,5,6,7,null,null,null,null,null,null,null,null,null,null,null,null,null,null,null,null,null,null,null,null,null,null,null,null,null,null,null,null,null,null,null,null,null,null,null,null,null,null,null,1,0.8,0.8,0.6,0.8,0.6,0.6,0.4,0.4,5]
[27,null,null,null,null,null,"x",1,2,3,4,8,9,"x",1,2,3,5,7,9,"x",1,2,3,6,7,8,"x",1,2,4,5,6,9,"x",1,2,4,5,7,8,"x",1,3,4,5,6,8,"x",2,3,4,5,6,7,null,null,null,null,null,null,null,null,null,null,null,null,null,null,null,null,null,null,null,null,null,null,null,null,null,0.8571428571428571,0.8571428571428571,0.7142857142857143,0.7142857142857143,0.7142857142857143,0.5714285714285714,0.5714285714285714,0.5714285714285714,0.42857142857142855,7]
[28,null,null,null,null,null,"x",1,2,3,5,8,9,"x",1,2,3,6,7,9,"x",1,2,4,5,7,9,"x",1,2,4,6,7,8,"x",1,3,4,5,6,9,"x",1,3,4,5,7,8,"x",2,3,4,5,6,8,null,null,null,null,null,null,null,null,null,null,null,null,null,null,null,null,null,null,null,null,null,null,null,null,null,0.8571428571428571,0.7142857142857143,0.7142857142857143,0.7142857142857143,0.7142857142857143,0.5714285714285714,0.5714285714285714,0.5714285714285714,0.5714285714285714,7]
[29,null,null,null,null,null,"x",1,2,3,6,8,9,"x",1,2,4,5,8,9,"x",1,2,4,6,7,9,"x",1,2,5,6,7,8,"x",1,3,4,5,7,9,"x",1,3,4,6,7,8,"x",2,3,4,5,6,9,"x",2,3,4,5,7,8,null,null,null,null,null,null,null,null,null,null,null,null,null,null,null,null,null,null,0.75,0.75,0.625,0.75,0.625,0.625,0.625,0.625,0.625,8]
[30,null,null,null,null,null,"x",1,2,3,7,8,9,"x",1,2,4,6,8,9,"x",1,2,5,6,7,9,"x",1,3,4,5,8,9,"x",1,3,4,6,7,9,"x",1,3,5,6,7,8,"x",2,3,4,5,7,9,"x",2,3,4,6,7,8,null,null,null,null,null,null,null,null,null,null,null,null,null,null,null,null,null,null,0.75,0.625,0.75,0.625,0.5,0.625,0.75,0.625,0.75,8]
[31,null,null,null,null,null,"x",1,2,4,7,8,9,"x",1,2,5,6,8,9,"x",1,3,4,6,8,9,"x",1,3,5,6,7,9,"x",1,4,5,6,7,8,"x",2,3,4,5,8,9,"x",2,3,4,6,7,9,"x",2,3,5,6,7,8,null,null,null,null,null,null,null,null,null,null,null,null,null,null,null,null,null,null,0.625,0.625,0.625,0.625,0.625,0.75,0.625,0.75,0.75,8]
[32,null,null,null,null,null,"x",1,2,5,7,8,9,"x",1,3,4,7,8,9,"x",1,3,5,6,8,9,"x",1,4,5,6,7,9,"x",2,3,4,6,8,9,"x",2,3,5,6,7,9,"x",2,4,5,6,7,8,null,null,null,null,null,null,null,null,null,null,null,null,null,null,null,null,null,null,null,null,null,null,null,null,null,0.5714285714285714,0.5714285714285714,0.5714285714285714,0.5714285714285714,0.7142857142857143,0.7142857142857143,0.7142857142857143,0.7142857142857143,0.8571428571428571,7]
[33,null,null,null,null,null,"x",1,2,6,7,8,9,"x",1,3,5,7,8,9,"x",1,4,5,6,8,9,"x",2,3,4,7,8,9,"x",2,3,5,6,8,9,"x",2,4,5,6,7,9,"x",3,4,5,6,7,8,null,null,null,null,null,null,null,null,null,null,null,null,null,null,null,null,null,null,null,null,null,null,null,null,null,0.42857142857142855,0.5714285714285714,0.5714285714285714,0.5714285714285714,0.7142857142857143,0.7142857142857143,0.7142857142857143,0.8571428571428571,0.8571428571428571,7]
[34,null,null,null,null,null,"x",1,3,6,7,8,9,"x",1,4,5,7,8,9,"x",2,3,5,7,8,9,"x",2,4,5,6,8,9,"x",3,4,5,6,7,9,null,null,null,null,null,null,null,null,null,null,null,null,null,null,null,null,null,null,null,null,null,null,null,null,null,null,null,null,null,null,null,null,null,null,null,null,null,null,null,0.4,0.4,0.6,0.6,0.8,0.6,0.8,0.8,1,5]
[35,null,null,null,null,null,"x",1,4,6,7,8,9,"x",2,3,6,7,8,9,"x",2,4,5,7,8,9,"x",3,4,5,6,8,9,null,null,null,null,null,null,null,null,null,null,null,null,null,null,null,null,null,null,null,null,null,null,null,null,null,null,null,null,null,null,null,null,null,null,null,null,null,null,null,null,null,null,null,null,null,null,0.25,0.5,0.5,0.75,0.5,0.75,0.75,1,1,4]
[36,null,null,null,null,null,"x",1,5,6,7,8,9,"x",2,4,6,7,8,9,"x",3,4,5,7,8,9,null,null,null,null,null,null,null,null,null,null,null,null,null,null,null,null,null,null,null,null,null,null,null,null,null,null,null,null,null,null,null,null,null,null,null,null,null,null,null,null,null,null,null,null,null,null,null,null,null,null,null,null,null,0.33333333333333331,0.33333333333333331,0.33333333333333331,0.66666666666666663,0.66666666666666663,0.66666666666666663,1,1,1,3]
[37,null,null,null,null,null,"x",2,5,6,7,8,9,"x",3,4,6,7,8,9,null,null,null,null,null,null,null,null,null,null,null,null,null,null,null,null,null,null,null,null,null,null,null,null,null,null,null,null,null,null,null,null,null,null,null,null,null,null,null,null,null,null,null,null,null,null,null,null,null,null,null,null,null,null,null,null,null,null,null,null,0,0.5,0.5,0.5,0.5,1,1,1,1,2]
[38,null,null,null,null,null,"x",3,5,6,7,8,9,null,null,null,null,null,null,null,null,null,null,null,null,null,null,null,null,null,null,null,null,null,null,null,null,null,null,null,null,null,null,null,null,null,null,null,null,null,null,null,null,null,null,null,null,null,null,null,null,null,null,null,null,null,null,null,null,null,null,null,null,null,null,null,null,null,null,null,0,0,1,0,1,1,1,1,1,1]
[39,null,null,null,null,null,"x",4,5,6,7,8,9,null,null,null,null,null,null,null,null,null,null,null,null,null,null,null,null,null,null,null,null,null,null,null,null,null,null,null,null,null,null,null,null,null,null,null,null,null,null,null,null,null,null,null,null,null,null,null,null,null,null,null,null,null,null,null,null,null,null,null,null,null,null,null,null,null,null,null,0,0,0,1,1,1,1,1,1,1]
[40,null,null,null,null,null,null,null,null,null,null,null,null,null,null,null,null,null,null,null,null,null,null,null,null,null,null,null,null,null,null,null,null,null,null,null,null,null,null,null,null,null,null,null,null,null,null,null,null,null,null,null,null,null,null,null,null,null,null,null,null,null,null,null,null,null,null,null,null,null,null,null,null,null,null,null,null,null,null,null,"","","","","","","","","",0]
[41,null,null,null,null,null,null,null,null,null,null,null,null,null,null,null,null,null,null,null,null,null,null,null,null,null,null,null,null,null,null,null,null,null,null,null,null,null,null,null,null,null,null,null,null,null,null,null,null,null,null,null,null,null,null,null,null,null,null,null,null,null,null,null,null,null,null,null,null,null,null,null,null,null,null,null,null,null,null,null,"","","","","","","","","",0]
[42,null,null,null,null,null,null,null,null,null,null,null,null,null,null,null,null,null,null,null,null,null,null,null,null,null,null,null,null,null,null,null,null,null,null,null,null,null,null,null,null,null,null,null,null,null,null,null,null,null,null,null,null,null,null,null,null,null,null,null,null,null,null,null,null,null,null,null,null,null,null,null,null,null,null,null,null,null,null,null,"","","","","","","","","",0]
[43,null,null,null,null,null,null,null,null,null,null,null,null,null,null,null,null,null,null,null,null,null,null,null,null,null,null,null,null,null,null,null,null,null,null,null,null,null,null,null,null,null,null,null,null,null,null,null,null,null,null,null,null,null,null,null,null,null,null,null,null,null,null,null,null,null,null,null,null,null,null,null,null,null,null,null,null,null,null,null,"","","","","","","","","",0]
[44,null,null,null,null,null,null,null,null,null,null,null,null,null,null,null,null,null,null,null,null,null,null,null,null,null,null,null,null,null,null,null,null,null,null,null,null,null,null,null,null,null,null,null,null,null,null,null,null,null,null,null,null,null,null,null,null,null,null,null,null,null,null,null,null,null,null,null,null,null,null,null,null,null,null,null,null,null,null,null,"","","","","","","","","",0]
[45,null,null,null,null,null,null,null,null,null,null,null,null,null,null,null,null,null,null,null,null,null,null,null,null,null,null,null,null,null,null,null,null,null,null,null,null,null,null,null,null,null,null,null,null,null,null,null,null,null,null,null,null,null,null,null,null,null,null,null,null,null,null,null,null,null,null,null,null,null,null,null,null,null,null,null,null,null,null,null,"","","","","","","","","",0]

{"sheet":"7","index":7,"n_rows":46,"n_cols":90,"rows_kept":46,"cut":false,"hidden":false,"merged":[]}
["Summe",null,null,null,null,null,null,null,null,null,null,null,null,null,null,null,null,null,null,null,null,null,null,null,null,null,null,null,null,null,null,null,null,null,null,null,null,null,null,null,null,null,null,null,null,null,null,null,null,null,null,null,null,null,null,null,null,null,null,null,null,null,null,null,null,null,null,null,null,null,null,null,null,null,null,null,null,null,null,null,"Vorkommens-quotient von 1","Vorkommens-quotient von 2","Vorkommens-quotient von 3","Vorkommens-quotient von 4","Vorkommens-quotient von 5","Vorkommens-quotient von 6","Vorkommens-quotient von 7","Vorkommens-quotient von 8","Vorkommens-quotient von 9","Anzahl Zerlegungen der Summe"]
[1,null,null,null,null,null,null,null,null,null,null,null,null,null,null,null,null,null,null,null,null,null,null,null,null,null,null,null,null,null,null,null,null,null,null,null,null,null,null,null,null,null,null,null,null,null,null,null,null,null,null,null,null,null,null,null,null,null,null,null,null,null,null,null,null,null,null,null,null,null,null,null,null,null,null,null,null,null,null,null,{"$f":"IFERROR(COUNTIF($B2:$CB2,1)/$CL2,\"\")","v":""},{"$f":"IFERROR(COUNTIF($B2:$CB2,2)/$CL2,\"\")","v":""},{"$f":"IFERROR(COUNTIF($B2:$CB2,3)/$CL2,\"\")","v":""},{"$f":"IFERROR(COUNTIF($B2:$CB2,4)/$CL2,\"\")","v":""},{"$f":"IFERROR(COUNTIF($B2:$CB2,5)/$CL2,\"\")","v":""},{"$f":"IFERROR(COUNTIF($B2:$CB2,6)/$CL2,\"\")","v":""},{"$f":"IFERROR(COUNTIF($B2:$CB2,7)/$CL2,\"\")","v":""},{"$f":"IFERROR(COUNTIF($B2:$CB2,8)/$CL2,\"\")","v":""},{"$f":"IFERROR(COUNTIF($B2:$CB2,9)/$CL2,\"\")","v":""},{"$f":"COUNTIF(B2:CB2,\"x\")","v":0}]
[2,null,null,null,null,null,null,null,null,null,null,null,null,null,null,null,null,null,null,null,null,null,null,null,null,null,null,null,null,null,null,null,null,null,null,null,null,null,null,null,null,null,null,null,null,null,null,null,null,null,null,null,null,null,null,null,null,null,null,null,null,null,null,null,null,null,null,null,null,null,null,null,null,null,null,null,null,null,null,null,{"$f":"IFERROR(COUNTIF($B3:$CB3,1)/$CL3,\"\")","v":""},{"$f":"IFERROR(COUNTIF($B3:$CB3,2)/$CL3,\"\")","v":""},{"$f":"IFERROR(COUNTIF($B3:$CB3,3)/$CL3,\"\")","v":""},{"$f":"IFERROR(COUNTIF($B3:$CB3,4)/$CL3,\"\")","v":""},{"$f":"IFERROR(COUNTIF($B3:$CB3,5)/$CL3,\"\")","v":""},{"$f":"IFERROR(COUNTIF($B3:$CB3,6)/$CL3,\"\")","v":""},{"$f":"IFERROR(COUNTIF($B3:$CB3,7)/$CL3,\"\")","v":""},{"$f":"IFERROR(COUNTIF($B3:$CB3,8)/$CL3,\"\")","v":""},{"$f":"IFERROR(COUNTIF($B3:$CB3,9)/$CL3,\"\")","v":""},{"$f":"COUNTIF(B3:CB3,\"x\")","v":0}]
[3,null,null,null,null,null,null,null,null,null,null,null,null,null,null,null,null,null,null,null,null,null,null,null,null,null,null,null,null,null,null,null,null,null,null,null,null,null,null,null,null,null,null,null,null,null,null,null,null,null,null,null,null,null,null,null,null,null,null,null,null,null,null,null,null,null,null,null,null,null,null,null,null,null,null,null,null,null,null,null,"","","","","","","","","",0]
[4,null,null,null,null,null,null,null,null,null,null,null,null,null,null,null,null,null,null,null,null,null,null,null,null,null,null,null,null,null,null,null,null,null,null,null,null,null,null,null,null,null,null,null,null,null,null,null,null,null,null,null,null,null,null,null,null,null,null,null,null,null,null,null,null,null,null,null,null,null,null,null,null,null,null,null,null,null,null,null,"","","","","","","","","",0]
[5,null,null,null,null,null,null,null,null,null,null,null,null,null,null,null,null,null,null,null,null,null,null,null,null,null,null,null,null,null,null,null,null,null,null,null,null,null,null,null,null,null,null,null,null,null,null,null,null,null,null,null,null,null,null,null,null,null,null,null,null,null,null,null,null,null,null,null,null,null,null,null,null,null,null,null,null,null,null,null,"","","","","","","","","",{"$f":"COUNTIF(B6:CB6,\"x\")","v":0}]
[6,null,null,null,null,null,null,null,null,null,null,null,null,null,null,null,null,null,null,null,null,null,null,null,null,null,null,null,null,null,null,null,null,null,null,null,null,null,null,null,null,null,null,null,null,null,null,null,null,null,null,null,null,null,null,null,null,null,null,null,null,null,null,null,null,null,null,null,null,null,null,null,null,null,null,null,null,null,null,null,"","","","","","","","","",0]
[7,null,null,null,null,null,null,null,null,null,null,null,null,null,null,null,null,null,null,null,null,null,null,null,null,null,null,null,null,null,null,null,null,null,null,null,null,null,null,null,null,null,null,null,null,null,null,null,null,null,null,null,null,null,null,null,null,null,null,null,null,null,null,null,null,null,null,null,null,null,null,null,null,null,null,null,null,null,null,null,"","","","","","","","","",0]
[8,null,null,null,null,null,null,null,null,null,null,null,null,null,null,null,null,null,null,null,null,null,null,null,null,null,null,null,null,null,null,null,null,null,null,null,null,null,null,null,null,null,null,null,null,null,null,null,null,null,null,null,null,null,null,null,null,null,null,null,null,null,null,null,null,null,null,null,null,null,null,null,null,null,null,null,null,null,null,null,"","","","","","","","","",0]
[9,null,null,null,null,null,null,null,null,null,null,null,null,null,null,null,null,null,null,null,null,null,null,null,null,null,null,null,null,null,null,null,null,null,null,null,null,null,null,null,null,null,null,null,null,null,null,null,null,null,null,null,null,null,null,null,null,null,null,null,null,null,null,null,null,null,null,null,null,null,null,null,null,null,null,null,null,null,null,null,"","","","","","","","","",0]
[10,null,null,null,null,null,null,null,null,null,null,null,null,null,null,null,null,null,null,null,null,null,null,null,null,null,null,null,null,null,null,null,null,null,null,null,null,null,null,null,null,null,null,null,null,null,null,null,null,null,null,null,null,null,null,null,null,null,null,null,null,null,null,null,null,null,null,null,null,null,null,null,null,null,null,null,null,null,null,null,"","","","","","","","","",0]
[11,null,null,null,null,null,null,null,null,null,null,null,null,null,null,null,null,null,null,null,null,null,null,null,null,null,null,null,null,null,null,null,null,null,null,null,null,null,null,null,null,null,null,null,null,null,null,null,null,null,null,null,null,null,null,null,null,null,null,null,null,null,null,null,null,null,null,null,null,null,null,null,null,null,null,null,null,null,null,null,"","","","","","","","","",0]
[12,null,null,null,null,null,null,null,null,null,null,null,null,null,null,null,null,null,null,null,null,null,null,null,null,null,null,null,null,null,null,null,null,null,null,null,null,null,null,null,null,null,null,null,null,null,null,null,null,null,null,null,null,null,null,null,null,null,null,null,null,null,null,null,null,null,null,null,null,null,null,null,null,null,null,null,null,null,null,null,"","","","","","","","","",0]
[13,null,null,null,null,null,null,null,null,null,null,null,null,null,null,null,null,null,null,null,null,null,null,null,null,null,null,null,null,null,null,null,null,null,null,null,null,null,null,null,null,null,null,null,null,null,null,null,null,null,null,null,null,null,null,null,null,null,null,null,null,null,null,null,null,null,null,null,null,null,null,null,null,null,null,null,null,null,null,null,"","","","","","","","","",0]
[14,null,null,null,null,null,null,null,null,null,null,null,null,null,null,null,null,null,null,null,null,null,null,null,null,null,null,null,null,null,null,null,null,null,null,null,null,null,null,null,null,null,null,null,null,null,null,null,null,null,null,null,null,null,null,null,null,null,null,null,null,null,null,null,null,null,null,null,null,null,null,null,null,null,null,null,null,null,null,null,"","","","","","","","","",0]
[15,null,null,null,null,null,null,null,null,null,null,null,null,null,null,null,null,null,null,null,null,null,null,null,null,null,null,null,null,null,null,null,null,null,null,null,null,null,null,null,null,null,null,null,null,null,null,null,null,null,null,null,null,null,null,null,null,null,null,null,null,null,null,null,null,null,null,null,null,null,null,null,null,null,null,null,null,null,null,null,"","","","","","","","","",0]
[16,null,null,null,null,null,null,null,null,null,null,null,null,null,null,null,null,null,null,null,null,null,null,null,null,null,null,null,null,null,null,null,null,null,null,null,null,null,null,null,null,null,null,null,null,null,null,null,null,null,null,null,null,null,null,null,null,null,null,null,null,null,null,null,null,null,null,null,null,null,null,null,null,null,null,null,null,null,null,null,"","","","","","","","","",0]
[17,null,null,null,null,null,null,null,null,null,null,null,null,null,null,null,null,null,null,null,null,null,null,null,null,null,null,null,null,null,null,null,null,null,null,null,null,null,null,null,null,null,null,null,null,null,null,null,null,null,null,null,null,null,null,null,null,null,null,null,null,null,null,null,null,null,null,null,null,null,null,null,null,null,null,null,null,null,null,null,"","","","","","","","","",0]
[18,null,null,null,null,null,null,null,null,null,null,null,null,null,null,null,null,null,null,null,null,null,null,null,null,null,null,null,null,null,null,null,null,null,null,null,null,null,null,null,null,null,null,null,null,null,null,null,null,null,null,null,null,null,null,null,null,null,null,null,null,null,null,null,null,null,null,null,null,null,null,null,null,null,null,null,null,null,null,null,"","","","","","","","","",0]
[19,null,null,null,null,null,null,null,null,null,null,null,null,null,null,null,null,null,null,null,null,null,null,null,null,null,null,null,null,null,null,null,null,null,null,null,null,null,null,null,null,null,null,null,null,null,null,null,null,null,null,null,null,null,null,null,null,null,null,null,null,null,null,null,null,null,null,null,null,null,null,null,null,null,null,null,null,null,null,null,"","","","","","","","","",0]
[20,null,null,null,null,null,null,null,null,null,null,null,null,null,null,null,null,null,null,null,null,null,null,null,null,null,null,null,null,null,null,null,null,null,null,null,null,null,null,null,null,null,null,null,null,null,null,null,null,null,null,null,null,null,null,null,null,null,null,null,null,null,null,null,null,null,null,null,null,null,null,null,null,null,null,null,null,null,null,null,"","","","","","","","","",0]
[21,null,null,null,null,null,null,null,null,null,null,null,null,null,null,null,null,null,null,null,null,null,null,null,null,null,null,null,null,null,null,null,null,null,null,null,null,null,null,null,null,null,null,null,null,null,null,null,null,null,null,null,null,null,null,null,null,null,null,null,null,null,null,null,null,null,null,null,null,null,null,null,null,null,null,null,null,null,null,null,"","","","","","","","","",0]
[22,null,null,null,null,null,null,null,null,null,null,null,null,null,null,null,null,null,null,null,null,null,null,null,null,null,null,null,null,null,null,null,null,null,null,null,null,null,null,null,null,null,null,null,null,null,null,null,null,null,null,null,null,null,null,null,null,null,null,null,null,null,null,null,null,null,null,null,null,null,null,null,null,null,null,null,null,null,null,null,"","","","","","","","","",0]
[23,null,null,null,null,null,null,null,null,null,null,null,null,null,null,null,null,null,null,null,null,null,null,null,null,null,null,null,null,null,null,null,null,null,null,null,null,null,null,null,null,null,null,null,null,null,null,null,null,null,null,null,null,null,null,null,null,null,null,null,null,null,null,null,null,null,null,null,null,null,null,null,null,null,null,null,null,null,null,null,"","","","","","","","","",0]
[24,null,null,null,null,null,null,null,null,null,null,null,null,null,null,null,null,null,null,null,null,null,null,null,null,null,null,null,null,null,null,null,null,null,null,null,null,null,null,null,null,null,null,null,null,null,null,null,null,null,null,null,null,null,null,null,null,null,null,null,null,null,null,null,null,null,null,null,null,null,null,null,null,null,null,null,null,null,null,null,"","","","","","","","","",0]
[25,null,null,null,null,null,null,null,null,null,null,null,null,null,null,null,null,null,null,null,null,null,null,null,null,null,null,null,null,null,null,null,null,null,null,null,null,null,null,null,null,null,null,null,null,null,null,null,null,null,null,null,null,null,null,null,null,null,null,null,null,null,null,null,null,null,null,null,null,null,null,null,null,null,null,null,null,null,null,null,"","","","","","","","","",0]
[26,null,null,null,null,null,null,null,null,null,null,null,null,null,null,null,null,null,null,null,null,null,null,null,null,null,null,null,null,null,null,null,null,null,null,null,null,null,null,null,null,null,null,null,null,null,null,null,null,null,null,null,null,null,null,null,null,null,null,null,null,null,null,null,null,null,null,null,null,null,null,null,null,null,null,null,null,null,null,null,"","","","","","","","","",0]
[27,null,null,null,null,null,null,null,null,null,null,null,null,null,null,null,null,null,null,null,null,null,null,null,null,null,null,null,null,null,null,null,null,null,null,null,null,null,null,null,null,null,null,null,null,null,null,null,null,null,null,null,null,null,null,null,null,null,null,null,null,null,null,null,null,null,null,null,null,null,null,null,null,null,null,null,null,null,null,null,"","","","","","","","","",0]
[28,null,null,null,null,null,null,"x",1,2,3,4,5,6,7,null,null,null,null,null,null,null,null,null,null,null,null,null,null,null,null,null,null,null,null,null,null,null,null,null,null,null,null,null,null,null,null,null,null,null,null,null,null,null,null,null,null,null,null,null,null,null,null,null,null,null,null,null,null,null,null,null,null,null,null,null,null,null,null,null,1,1,1,1,1,1,1,0,0,1]
[29,null,null,null,null,null,null,"x",1,2,3,4,5,6,8,null,null,null,null,null,null,null,null,null,null,null,null,null,null,null,null,null,null,null,null,null,null,null,null,null,null,null,null,null,null,null,null,null,null,null,null,null,null,null,null,null,null,null,null,null,null,null,null,null,null,null,null,null,null,null,null,null,null,null,null,null,null,null,null,null,1,1,1,1,1,1,0,1,0,1]
[30,null,null,null,null,null,null,"x",1,2,3,4,5,6,9,"x",1,2,3,4,5,7,8,null,null,null,null,null,null,null,null,null,null,null,null,null,null,null,null,null,null,null,null,null,null,null,null,null,null,null,null,null,null,null,null,null,null,null,null,null,null,null,null,null,null,null,null,null,null,null,null,null,null,null,null,null,null,null,null,null,1,1,1,1,1,0.5,0.5,0.5,0.5,2]
[31,null,null,null,null,null,null,"x",1,2,3,4,5,7,9,"x",1,2,3,4,6,7,8,null,null,null,null,null,null,null,null,null,null,null,null,null,null,null,null,null,null,null,null,null,null,null,null,null,null,null,null,null,null,null,null,null,null,null,null,null,null,null,null,null,null,null,null,null,null,null,null,null,null,null,null,null,null,null,null,null,1,1,1,1,0.5,0.5,1,0.5,0.5,2]
[32,null,null,null,null,null,null,"x",1,2,3,4,5,8,9,"x",1,2,3,4,6,7,9,"x",1,2,3,5,6,7,8,null,null,null,null,null,null,null,null,null,null,null,null,null,null,null,null,null,null,null,null,null,null,null,null,null,null,null,null,null,null,null,null,null,null,null,null,null,null,null,null,null,null,null,null,null,null,null,null,null,1,1,1,0.66666666666666663,0.66666666666666663,0.66666666666666663,0.66666666666666663,0.66666666666666663,0.66666666666666663,3]
[33,null,null,null,null,null,null,"x",1,2,3,4,6,8,9,"x",1,2,3,5,6,7,9,"x",1,2,4,5,6,7,8,null,null,null,null,null,null,null,null,null,null,null,null,null,null,null,null,null,null,null,null,null,null,null,null,null,null,null,null,null,null,null,null,null,null,null,null,null,null,null,null,null,null,null,null,null,null,null,null,null,1,1,0.66666666666666663,0.66666666666666663,0.66666666666666663,1,0.66666666666666663,0.66666666666666663,0.66666666666666663,3]
[34,null,null,null,null,null,null,"x",1,2,3,4,7,8,9,"x",1,2,3,5,6,8,9,"x",1,2,4,5,6,7,9,"x",1,3,4,5,6,7,8,null,null,null,null,null,null,null,null,null,null,null,null,null,null,null,null,null,null,null,null,null,null,null,null,null,null,null,null,null,null,null,null,null,null,null,null,null,null,null,null,null,1,0.75,0.75,0.75,0.75,0.75,0.75,0.75,0.75,4]
[35,null,null,null,null,null,null,"x",1,2,3,5,7,8,9,"x",1,2,4,5,6,8,9,"x",1,3,4,5,6,7,9,"x",2,3,4,5,6,7,8,null,null,null,null,null,null,null,null,null,null,null,null,null,null,null,null,null,null,null,null,null,null,null,null,null,null,null,null,null,null,null,null,null,null,null,null,null,null,null,null,null,0.75,0.75,0.75,0.75,1,0.75,0.75,0.75,0.75,4]
[36,null,null,null,null,null,null,"x",1,2,3,6,7,8,9,"x",1,2,4,5,7,8,9,"x",1,3,4,5,6,8,9,"x",2,3,4,5,6,7,9,null,null,null,null,null,null,null,null,null,null,null,null,null,null,null,null,null,null,null,null,null,null,null,null,null,null,null,null,null,null,null,null,null,null,null,null,null,null,null,null,null,0.75,0.75,0.75,0.75,0.75,0.75,0.75,0.75,1,4]
[37,null,null,null,null,null,null,"x",1,2,4,6,7,8,9,"x",1,3,4,5,7,8,9,"x",2,3,4,5,6,8,9,null,null,null,null,null,null,null,null,null,null,null,null,null,null,null,null,null,null,null,null,null,null,null,null,null,null,null,null,null,null,null,null,null,null,null,null,null,null,null,null,null,null,null,null,null,null,null,null,null,0.66666666666666663,0.66666666666666663,0.66666666666666663,1,0.66666666666666663,0.66666666666666663,0.66666666666666663,1,1,3]
[38,null,null,null,null,null,null,"x",1,2,5,6,7,8,9,"x",1,3,4,6,7,8,9,"x",2,3,4,5,7,8,9,null,null,null,null,null,null,null,null,null,null,null,null,null,null,null,null,null,null,null,null,null,null,null,null,null,null,null,null,null,null,null,null,null,null,null,null,null,null,null,null,null,null,null,null,null,null,null,null,null,0.66666666666666663,0.66666666666666663,0.66666666666666663,0.66666666666666663,0.66666666666666663,0.66666666666666663,1,1,1,3]
[39,null,null,null,null,null,null,"x",1,3,5,6,7,8,9,"x",2,3,4,6,7,8,9,null,null,null,null,null,null,null,null,null,null,null,null,null,null,null,null,null,null,null,null,null,null,null,null,null,null,null,null,null,null,null,null,null,null,null,null,null,null,null,null,null,null,null,null,null,null,null,null,null,null,null,null,null,null,null,null,null,0.5,0.5,1,0.5,0.5,1,1,1,1,2]
[40,null,null,null,null,null,null,"x",1,4,5,6,7,8,9,"x",2,3,5,6,7,8,9,null,null,null,null,null,null,null,null,null,null,null,null,null,null,null,null,null,null,null,null,null,null,null,null,null,null,null,null,null,null,null,null,null,null,null,null,null,null,null,null,null,null,null,null,null,null,null,null,null,null,null,null,null,null,null,null,null,0.5,0.5,0.5,0.5,1,1,1,1,1,2]
[41,null,null,null,null,null,null,"x",2,4,5,6,7,8,9,null,null,null,null,null,null,null,null,null,null,null,null,null,null,null,null,null,null,null,null,null,null,null,null,null,null,null,null,null,null,null,null,null,null,null,null,null,null,null,null,null,null,null,null,null,null,null,null,null,null,null,null,null,null,null,null,null,null,null,null,null,null,null,null,null,0,1,0,1,1,1,1,1,1,1]
[42,null,null,null,null,null,null,"x",3,4,5,6,7,8,9,null,null,null,null,null,null,null,null,null,null,null,null,null,null,null,null,null,null,null,null,null,null,null,null,null,null,null,null,null,null,null,null,null,null,null,null,null,null,null,null,null,null,null,null,null,null,null,null,null,null,null,null,null,null,null,null,null,null,null,null,null,null,null,null,null,0,0,1,1,1,1,1,1,1,1]
[43,null,null,null,null,null,null,null,null,null,null,null,null,null,null,null,null,null,null,null,null,null,null,null,null,null,null,null,null,null,null,null,null,null,null,null,null,null,null,null,null,null,null,null,null,null,null,null,null,null,null,null,null,null,null,null,null,null,null,null,null,null,null,null,null,null,null,null,null,null,null,null,null,null,null,null,null,null,null,null,"","","","","","","","","",0]
[44,null,null,null,null,null,null,null,null,null,null,null,null,null,null,null,null,null,null,null,null,null,null,null,null,null,null,null,null,null,null,null,null,null,null,null,null,null,null,null,null,null,null,null,null,null,null,null,null,null,null,null,null,null,null,null,null,null,null,null,null,null,null,null,null,null,null,null,null,null,null,null,null,null,null,null,null,null,null,null,"","","","","","","","","",0]
[45,null,null,null,null,null,null,null,null,null,null,null,null,null,null,null,null,null,null,null,null,null,null,null,null,null,null,null,null,null,null,null,null,null,null,null,null,null,null,null,null,null,null,null,null,null,null,null,null,null,null,null,null,null,null,null,null,null,null,null,null,null,null,null,null,null,null,null,null,null,null,null,null,null,null,null,null,null,null,null,"","","","","","","","","",0]

{"sheet":"8","index":8,"n_rows":46,"n_cols":90,"rows_kept":46,"cut":false,"hidden":false,"merged":[]}
["Summe",null,null,null,null,null,null,null,null,null,null,null,null,null,null,null,null,null,null,null,null,null,null,null,null,null,null,null,null,null,null,null,null,null,null,null,null,null,null,null,null,null,null,null,null,null,null,null,null,null,null,null,null,null,null,null,null,null,null,null,null,null,null,null,null,null,null,null,null,null,null,null,null,null,null,null,null,null,null,null,"Vorkommens-quotient von 1","Vorkommens-quotient von 2","Vorkommens-quotient von 3","Vorkommens-quotient von 4","Vorkommens-quotient von 5","Vorkommens-quotient von 6","Vorkommens-quotient von 7","Vorkommens-quotient von 8","Vorkommens-quotient von 9","Anzahl Zerlegungen der Summe"]
[1,null,null,null,null,null,null,null,null,null,null,null,null,null,null,null,null,null,null,null,null,null,null,null,null,null,null,null,null,null,null,null,null,null,null,null,null,null,null,null,null,null,null,null,null,null,null,null,null,null,null,null,null,null,null,null,null,null,null,null,null,null,null,null,null,null,null,null,null,null,null,null,null,null,null,null,null,null,null,null,{"$f":"IFERROR(COUNTIF($B2:$CB2,1)/$CL2,\"\")","v":""},{"$f":"IFERROR(COUNTIF($B2:$CB2,2)/$CL2,\"\")","v":""},{"$f":"IFERROR(COUNTIF($B2:$CB2,3)/$CL2,\"\")","v":""},{"$f":"IFERROR(COUNTIF($B2:$CB2,4)/$CL2,\"\")","v":""},{"$f":"IFERROR(COUNTIF($B2:$CB2,5)/$CL2,\"\")","v":""},{"$f":"IFERROR(COUNTIF($B2:$CB2,6)/$CL2,\"\")","v":""},{"$f":"IFERROR(COUNTIF($B2:$CB2,7)/$CL2,\"\")","v":""},{"$f":"IFERROR(COUNTIF($B2:$CB2,8)/$CL2,\"\")","v":""},{"$f":"IFERROR(COUNTIF($B2:$CB2,9)/$CL2,\"\")","v":""},{"$f":"COUNTIF(B2:CB2,\"x\")","v":0}]
[2,null,null,null,null,null,null,null,null,null,null,null,null,null,null,null,null,null,null,null,null,null,null,null,null,null,null,null,null,null,null,null,null,null,null,null,null,null,null,null,null,null,null,null,null,null,null,null,null,null,null,null,null,null,null,null,null,null,null,null,null,null,null,null,null,null,null,null,null,null,null,null,null,null,null,null,null,null,null,null,{"$f":"IFERROR(COUNTIF($B3:$CB3,1)/$CL3,\"\")","v":""},{"$f":"IFERROR(COUNTIF($B3:$CB3,2)/$CL3,\"\")","v":""},{"$f":"IFERROR(COUNTIF($B3:$CB3,3)/$CL3,\"\")","v":""},{"$f":"IFERROR(COUNTIF($B3:$CB3,4)/$CL3,\"\")","v":""},{"$f":"IFERROR(COUNTIF($B3:$CB3,5)/$CL3,\"\")","v":""},{"$f":"IFERROR(COUNTIF($B3:$CB3,6)/$CL3,\"\")","v":""},{"$f":"IFERROR(COUNTIF($B3:$CB3,7)/$CL3,\"\")","v":""},{"$f":"IFERROR(COUNTIF($B3:$CB3,8)/$CL3,\"\")","v":""},{"$f":"IFERROR(COUNTIF($B3:$CB3,9)/$CL3,\"\")","v":""},{"$f":"COUNTIF(B3:CB3,\"x\")","v":0}]
[3,null,null,null,null,null,null,null,null,null,null,null,null,null,null,null,null,null,null,null,null,null,null,null,null,null,null,null,null,null,null,null,null,null,null,null,null,null,null,null,null,null,null,null,null,null,null,null,null,null,null,null,null,null,null,null,null,null,null,null,null,null,null,null,null,null,null,null,null,null,null,null,null,null,null,null,null,null,null,null,"","","","","","","","","",0]
[4,null,null,null,null,null,null,null,null,null,null,null,null,null,null,null,null,null,null,null,null,null,null,null,null,null,null,null,null,null,null,null,null,null,null,null,null,null,null,null,null,null,null,null,null,null,null,null,null,null,null,null,null,null,null,null,null,null,null,null,null,null,null,null,null,null,null,null,null,null,null,null,null,null,null,null,null,null,null,null,"","","","","","","","","",0]
[5,null,null,null,null,null,null,null,null,null,null,null,null,null,null,null,null,null,null,null,null,null,null,null,null,null,null,null,null,null,null,null,null,null,null,null,null,null,null,null,null,null,null,null,null,null,null,null,null,null,null,null,null,null,null,null,null,null,null,null,null,null,null,null,null,null,null,null,null,null,null,null,null,null,null,null,null,null,null,null,"","","","","","","","","",{"$f":"COUNTIF(B6:CB6,\"x\")","v":0}]
[6,null,null,null,null,null,null,null,null,null,null,null,null,null,null,null,null,null,null,null,null,null,null,null,null,null,null,null,null,null,null,null,null,null,null,null,null,null,null,null,null,null,null,null,null,null,null,null,null,null,null,null,null,null,null,null,null,null,null,null,null,null,null,null,null,null,null,null,null,null,null,null,null,null,null,null,null,null,null,null,"","","","","","","","","",0]
[7,null,null,null,null,null,null,null,null,null,null,null,null,null,null,null,null,null,null,null,null,null,null,null,null,null,null,null,null,null,null,null,null,null,null,null,null,null,null,null,null,null,null,null,null,null,null,null,null,null,null,null,null,null,null,null,null,null,null,null,null,null,null,null,null,null,null,null,null,null,null,null,null,null,null,null,null,null,null,null,"","","","","","","","","",0]
[8,null,null,null,null,null,null,null,null,null,null,null,null,null,null,null,null,null,null,null,null,null,null,null,null,null,null,null,null,null,null,null,null,null,null,null,null,null,null,null,null,null,null,null,null,null,null,null,null,null,null,null,null,null,null,null,null,null,null,null,null,null,null,null,null,null,null,null,null,null,null,null,null,null,null,null,null,null,null,null,"","","","","","","","","",0]
[9,null,null,null,null,null,null,null,null,null,null,null,null,null,null,null,null,null,null,null,null,null,null,null,null,null,null,null,null,null,null,null,null,null,null,null,null,null,null,null,null,null,null,null,null,null,null,null,null,null,null,null,null,null,null,null,null,null,null,null,null,null,null,null,null,null,null,null,null,null,null,null,null,null,null,null,null,null,null,null,"","","","","","","","","",0]
[10,null,null,null,null,null,null,null,null,null,null,null,null,null,null,null,null,null,null,null,null,null,null,null,null,null,null,null,null,null,null,null,null,null,null,null,null,null,null,null,null,null,null,null,null,null,null,null,null,null,null,null,null,null,null,null,null,null,null,null,null,null,null,null,null,null,null,null,null,null,null,null,null,null,null,null,null,null,null,null,"","","","","","","","","",0]
[11,null,null,null,null,null,null,null,null,null,null,null,null,null,null,null,null,null,null,null,null,null,null,null,null,null,null,null,null,null,null,null,null,null,null,null,null,null,null,null,null,null,null,null,null,null,null,null,null,null,null,null,null,null,null,null,null,null,null,null,null,null,null,null,null,null,null,null,null,null,null,null,null,null,null,null,null,null,null,null,"","","","","","","","","",0]
[12,null,null,null,null,null,null,null,null,null,null,null,null,null,null,null,null,null,null,null,null,null,null,null,null,null,null,null,null,null,null,null,null,null,null,null,null,null,null,null,null,null,null,null,null,null,null,null,null,null,null,null,null,null,null,null,null,null,null,null,null,null,null,null,null,null,null,null,null,null,null,null,null,null,null,null,null,null,null,null,"","","","","","","","","",0]
[13,null,null,null,null,null,null,null,null,null,null,null,null,null,null,null,null,null,null,null,null,null,null,null,null,null,null,null,null,null,null,null,null,null,null,null,null,null,null,null,null,null,null,null,null,null,null,null,null,null,null,null,null,null,null,null,null,null,null,null,null,null,null,null,null,null,null,null,null,null,null,null,null,null,null,null,null,null,null,null,"","","","","","","","","",0]
[14,null,null,null,null,null,null,null,null,null,null,null,null,null,null,null,null,null,null,null,null,null,null,null,null,null,null,null,null,null,null,null,null,null,null,null,null,null,null,null,null,null,null,null,null,null,null,null,null,null,null,null,null,null,null,null,null,null,null,null,null,null,null,null,null,null,null,null,null,null,null,null,null,null,null,null,null,null,null,null,"","","","","","","","","",0]
[15,null,null,null,null,null,null,null,null,null,null,null,null,null,null,null,null,null,null,null,null,null,null,null,null,null,null,null,null,null,null,null,null,null,null,null,null,null,null,null,null,null,null,null,null,null,null,null,null,null,null,null,null,null,null,null,null,null,null,null,null,null,null,null,null,null,null,null,null,null,null,null,null,null,null,null,null,null,null,null,"","","","","","","","","",0]
[16,null,null,null,null,null,null,null,null,null,null,null,null,null,null,null,null,null,null,null,null,null,null,null,null,null,null,null,null,null,null,null,null,null,null,null,null,null,null,null,null,null,null,null,null,null,null,null,null,null,null,null,null,null,null,null,null,null,null,null,null,null,null,null,null,null,null,null,null,null,null,null,null,null,null,null,null,null,null,null,"","","","","","","","","",0]
[17,null,null,null,null,null,null,null,null,null,null,null,null,null,null,null,null,null,null,null,null,null,null,null,null,null,null,null,null,null,null,null,null,null,null,null,null,null,null,null,null,null,null,null,null,null,null,null,null,null,null,null,null,null,null,null,null,null,null,null,null,null,null,null,null,null,null,null,null,null,null,null,null,null,null,null,null,null,null,null,"","","","","","","","","",0]
[18,null,null,null,null,null,null,null,null,null,null,null,null,null,null,null,null,null,null,null,null,null,null,null,null,null,null,null,null,null,null,null,null,null,null,null,null,null,null,null,null,null,null,null,null,null,null,null,null,null,null,null,null,null,null,null,null,null,null,null,null,null,null,null,null,null,null,null,null,null,null,null,null,null,null,null,null,null,null,null,"","","","","","","","","",0]
[19,null,null,null,null,null,null,null,null,null,null,null,null,null,null,null,null,null,null,null,null,null,null,null,null,null,null,null,null,null,null,null,null,null,null,null,null,null,null,null,null,null,null,null,null,null,null,null,null,null,null,null,null,null,null,null,null,null,null,null,null,null,null,null,null,null,null,null,null,null,null,null,null,null,null,null,null,null,null,null,"","","","","","","","","",0]
[20,null,null,null,null,null,null,null,null,null,null,null,null,null,null,null,null,null,null,null,null,null,null,null,null,null,null,null,null,null,null,null,null,null,null,null,null,null,null,null,null,null,null,null,null,null,null,null,null,null,null,null,null,null,null,null,null,null,null,null,null,null,null,null,null,null,null,null,null,null,null,null,null,null,null,null,null,null,null,null,"","","","","","","","","",0]
[21,null,null,null,null,null,null,null,null,null,null,null,null,null,null,null,null,null,null,null,null,null,null,null,null,null,null,null,null,null,null,null,null,null,null,null,null,null,null,null,null,null,null,null,null,null,null,null,null,null,null,null,null,null,null,null,null,null,null,null,null,null,null,null,null,null,null,null,null,null,null,null,null,null,null,null,null,null,null,null,"","","","","","","","","",0]
[22,null,null,null,null,null,null,null,null,null,null,null,null,null,null,null,null,null,null,null,null,null,null,null,null,null,null,null,null,null,null,null,null,null,null,null,null,null,null,null,null,null,null,null,null,null,null,null,null,null,null,null,null,null,null,null,null,null,null,null,null,null,null,null,null,null,null,null,null,null,null,null,null,null,null,null,null,null,null,null,"","","","","","","","","",0]
[23,null,null,null,null,null,null,null,null,null,null,null,null,null,null,null,null,null,null,null,null,null,null,null,null,null,null,null,null,null,null,null,null,null,null,null,null,null,null,null,null,null,null,null,null,null,null,null,null,null,null,null,null,null,null,null,null,null,null,null,null,null,null,null,null,null,null,null,null,null,null,null,null,null,null,null,null,null,null,null,"","","","","","","","","",0]
[24,null,null,null,null,null,null,null,null,null,null,null,null,null,null,null,null,null,null,null,null,null,null,null,null,null,null,null,null,null,null,null,null,null,null,null,null,null,null,null,null,null,null,null,null,null,null,null,null,null,null,null,null,null,null,null,null,null,null,null,null,null,null,null,null,null,null,null,null,null,null,null,null,null,null,null,null,null,null,null,"","","","","","","","","",0]
[25,null,null,null,null,null,null,null,null,null,null,null,null,null,null,null,null,null,null,null,null,null,null,null,null,null,null,null,null,null,null,null,null,null,null,null,null,null,null,null,null,null,null,null,null,null,null,null,null,null,null,null,null,null,null,null,null,null,null,null,null,null,null,null,null,null,null,null,null,null,null,null,null,null,null,null,null,null,null,null,"","","","","","","","","",0]
[26,null,null,null,null,null,null,null,null,null,null,null,null,null,null,null,null,null,null,null,null,null,null,null,null,null,null,null,null,null,null,null,null,null,null,null,null,null,null,null,null,null,null,null,null,null,null,null,null,null,null,null,null,null,null,null,null,null,null,null,null,null,null,null,null,null,null,null,null,null,null,null,null,null,null,null,null,null,null,null,"","","","","","","","","",0]
[27,null,null,null,null,null,null,null,null,null,null,null,null,null,null,null,null,null,null,null,null,null,null,null,null,null,null,null,null,null,null,null,null,null,null,null,null,null,null,null,null,null,null,null,null,null,null,null,null,null,null,null,null,null,null,null,null,null,null,null,null,null,null,null,null,null,null,null,null,null,null,null,null,null,null,null,null,null,null,null,"","","","","","","","","",0]
[28,null,null,null,null,null,null,null,null,null,null,null,null,null,null,null,null,null,null,null,null,null,null,null,null,null,null,null,null,null,null,null,null,null,null,null,null,null,null,null,null,null,null,null,null,null,null,null,null,null,null,null,null,null,null,null,null,null,null,null,null,null,null,null,null,null,null,null,null,null,null,null,null,null,null,null,null,null,null,null,"","","","","","","","","",0]
[29,null,null,null,null,null,null,null,null,null,null,null,null,null,null,null,null,null,null,null,null,null,null,null,null,null,null,null,null,null,null,null,null,null,null,null,null,null,null,null,null,null,null,null,null,null,null,null,null,null,null,null,null,null,null,null,null,null,null,null,null,null,null,null,null,null,null,null,null,null,null,null,null,null,null,null,null,null,null,null,"","","","","","","","","",0]
[30,null,null,null,null,null,null,null,null,null,null,null,null,null,null,null,null,null,null,null,null,null,null,null,null,null,null,null,null,null,null,null,null,null,null,null,null,null,null,null,null,null,null,null,null,null,null,null,null,null,null,null,null,null,null,null,null,null,null,null,null,null,null,null,null,null,null,null,null,null,null,null,null,null,null,null,null,null,null,null,"","","","","","","","","",0]
[31,null,null,null,null,null,null,null,null,null,null,null,null,null,null,null,null,null,null,null,null,null,null,null,null,null,null,null,null,null,null,null,null,null,null,null,null,null,null,null,null,null,null,null,null,null,null,null,null,null,null,null,null,null,null,null,null,null,null,null,null,null,null,null,null,null,null,null,null,null,null,null,null,null,null,null,null,null,null,null,"","","","","","","","","",0]
[32,null,null,null,null,null,null,null,null,null,null,null,null,null,null,null,null,null,null,null,null,null,null,null,null,null,null,null,null,null,null,null,null,null,null,null,null,null,null,null,null,null,null,null,null,null,null,null,null,null,null,null,null,null,null,null,null,null,null,null,null,null,null,null,null,null,null,null,null,null,null,null,null,null,null,null,null,null,null,null,"","","","","","","","","",0]
[33,null,null,null,null,null,null,null,null,null,null,null,null,null,null,null,null,null,null,null,null,null,null,null,null,null,null,null,null,null,null,null,null,null,null,null,null,null,null,null,null,null,null,null,null,null,null,null,null,null,null,null,null,null,null,null,null,null,null,null,null,null,null,null,null,null,null,null,null,null,null,null,null,null,null,null,null,null,null,null,"","","","","","","","","",0]
[34,null,null,null,null,null,null,null,null,null,null,null,null,null,null,null,null,null,null,null,null,null,null,null,null,null,null,null,null,null,null,null,null,null,null,null,null,null,null,null,null,null,null,null,null,null,null,null,null,null,null,null,null,null,null,null,null,null,null,null,null,null,null,null,null,null,null,null,null,null,null,null,null,null,null,null,null,null,null,null,"","","","","","","","","",0]
[35,null,null,null,null,null,null,null,null,null,null,null,null,null,null,null,null,null,null,null,null,null,null,null,null,null,null,null,null,null,null,null,null,null,null,null,null,null,null,null,null,null,null,null,null,null,null,null,null,null,null,null,null,null,null,null,null,null,null,null,null,null,null,null,null,null,null,null,null,null,null,null,null,null,null,null,null,null,null,null,"","","","","","","","","",0]
[36,null,null,null,null,null,null,null,"x",1,2,3,4,5,6,7,8,null,null,null,null,null,null,null,null,null,null,null,null,null,null,null,null,null,null,null,null,null,null,null,null,null,null,null,null,null,null,null,null,null,null,null,null,null,null,null,null,null,null,null,null,null,null,null,null,null,null,null,null,null,null,null,null,null,null,null,null,null,null,null,1,1,1,1,1,1,1,1,0,1]
[37,null,null,null,null,null,null,null,"x",1,2,3,4,5,6,7,9,null,null,null,null,null,null,null,null,null,null,null,null,null,null,null,null,null,null,null,null,null,null,null,null,null,null,null,null,null,null,null,null,null,null,null,null,null,null,null,null,null,null,null,null,null,null,null,null,null,null,null,null,null,null,null,null,null,null,null,null,null,null,null,1,1,1,1,1,1,1,0,1,1]
[38,null,null,null,null,null,null,null,"x",1,2,3,4,5,6,8,9,null,null,null,null,null,null,null,null,null,null,null,null,null,null,null,null,null,null,null,null,null,null,null,null,null,null,null,null,null,null,null,null,null,null,null,null,null,null,null,null,null,null,null,null,null,null,null,null,null,null,null,null,null,null,null,null,null,null,null,null,null,null,null,1,1,1,1,1,1,0,1,1,1]
[39,null,null,null,null,null,null,null,"x",1,2,3,4,5,7,8,9,null,null,null,null,null,null,null,null,null,null,null,null,null,null,null,null,null,null,null,null,null,null,null,null,null,null,null,null,null,null,null,null,null,null,null,null,null,null,null,null,null,null,null,null,null,null,null,null,null,null,null,null,null,null,null,null,null,null,null,null,null,null,null,1,1,1,1,1,0,1,1,1,1]
[40,null,null,null,null,null,null,null,"x",1,2,3,4,6,7,8,9,null,null,null,null,null,null,null,null,null,null,null,null,null,null,null,null,null,null,null,null,null,null,null,null,null,null,null,null,null,null,null,null,null,null,null,null,null,null,null,null,null,null,null,null,null,null,null,null,null,null,null,null,null,null,null,null,null,null,null,null,null,null,null,1,1,1,1,0,1,1,1,1,1]
[41,null,null,null,null,null,null,null,"x",1,2,3,5,6,7,8,9,null,null,null,null,null,null,null,null,null,null,null,null,null,null,null,null,null,null,null,null,null,null,null,null,null,null,null,null,null,null,null,null,null,null,null,null,null,null,null,null,null,null,null,null,null,null,null,null,null,null,null,null,null,null,null,null,null,null,null,null,null,null,null,1,1,1,0,1,1,1,1,1,1]
[42,null,null,null,null,null,null,null,"x",1,2,4,5,6,7,8,9,null,null,null,null,null,null,null,null,null,null,null,null,null,null,null,null,null,null,null,null,null,null,null,null,null,null,null,null,null,null,null,null,null,null,null,null,null,null,null,null,null,null,null,null,null,null,null,null,null,null,null,null,null,null,null,null,null,null,null,null,null,null,null,1,1,0,1,1,1,1,1,1,1]
[43,null,null,null,null,null,null,null,"x",1,3,4,5,6,7,8,9,null,null,null,null,null,null,null,null,null,null,null,null,null,null,null,null,null,null,null,null,null,null,null,null,null,null,null,null,null,null,null,null,null,null,null,null,null,null,null,null,null,null,null,null,null,null,null,null,null,null,null,null,null,null,null,null,null,null,null,null,null,null,null,1,0,1,1,1,1,1,1,1,1]
[44,null,null,null,null,null,null,null,"x",2,3,4,5,6,7,8,9,null,null,null,null,null,null,null,null,null,null,null,null,null,null,null,null,null,null,null,null,null,null,null,null,null,null,null,null,null,null,null,null,null,null,null,null,null,null,null,null,null,null,null,null,null,null,null,null,null,null,null,null,null,null,null,null,null,null,null,null,null,null,null,0,1,1,1,1,1,1,1,1,1]
[45,null,null,null,null,null,null,null,null,null,null,null,null,null,null,null,null,null,null,null,null,null,null,null,null,null,null,null,null,null,null,null,null,null,null,null,null,null,null,null,null,null,null,null,null,null,null,null,null,null,null,null,null,null,null,null,null,null,null,null,null,null,null,null,null,null,null,null,null,null,null,null,null,null,null,null,null,null,null,null,"","","","","","","","","",0]

{"sheet":"9","index":9,"n_rows":46,"n_cols":90,"rows_kept":46,"cut":false,"hidden":false,"merged":[]}
["Summe",null,null,null,null,null,null,null,null,null,null,null,null,null,null,null,null,null,null,null,null,null,null,null,null,null,null,null,null,null,null,null,null,null,null,null,null,null,null,null,null,null,null,null,null,null,null,null,null,null,null,null,null,null,null,null,null,null,null,null,null,null,null,null,null,null,null,null,null,null,null,null,null,null,null,null,null,null,null,null,"Vorkommens-quotient von 1","Vorkommens-quotient von 2","Vorkommens-quotient von 3","Vorkommens-quotient von 4","Vorkommens-quotient von 5","Vorkommens-quotient von 6","Vorkommens-quotient von 7","Vorkommens-quotient von 8","Vorkommens-quotient von 9","Anzahl Zerlegungen der Summe"]
[1,null,null,null,null,null,null,null,null,null,null,null,null,null,null,null,null,null,null,null,null,null,null,null,null,null,null,null,null,null,null,null,null,null,null,null,null,null,null,null,null,null,null,null,null,null,null,null,null,null,null,null,null,null,null,null,null,null,null,null,null,null,null,null,null,null,null,null,null,null,null,null,null,null,null,null,null,null,null,null,{"$f":"IFERROR(COUNTIF($B2:$CB2,1)/$CL2,\"\")","v":""},{"$f":"IFERROR(COUNTIF($B2:$CB2,2)/$CL2,\"\")","v":""},{"$f":"IFERROR(COUNTIF($B2:$CB2,3)/$CL2,\"\")","v":""},{"$f":"IFERROR(COUNTIF($B2:$CB2,4)/$CL2,\"\")","v":""},{"$f":"IFERROR(COUNTIF($B2:$CB2,5)/$CL2,\"\")","v":""},{"$f":"IFERROR(COUNTIF($B2:$CB2,6)/$CL2,\"\")","v":""},{"$f":"IFERROR(COUNTIF($B2:$CB2,7)/$CL2,\"\")","v":""},{"$f":"IFERROR(COUNTIF($B2:$CB2,8)/$CL2,\"\")","v":""},{"$f":"IFERROR(COUNTIF($B2:$CB2,9)/$CL2,\"\")","v":""},{"$f":"COUNTIF(B2:CB2,\"x\")","v":0}]
[2,null,null,null,null,null,null,null,null,null,null,null,null,null,null,null,null,null,null,null,null,null,null,null,null,null,null,null,null,null,null,null,null,null,null,null,null,null,null,null,null,null,null,null,null,null,null,null,null,null,null,null,null,null,null,null,null,null,null,null,null,null,null,null,null,null,null,null,null,null,null,null,null,null,null,null,null,null,null,null,{"$f":"IFERROR(COUNTIF($B3:$CB3,1)/$CL3,\"\")","v":""},{"$f":"IFERROR(COUNTIF($B3:$CB3,2)/$CL3,\"\")","v":""},{"$f":"IFERROR(COUNTIF($B3:$CB3,3)/$CL3,\"\")","v":""},{"$f":"IFERROR(COUNTIF($B3:$CB3,4)/$CL3,\"\")","v":""},{"$f":"IFERROR(COUNTIF($B3:$CB3,5)/$CL3,\"\")","v":""},{"$f":"IFERROR(COUNTIF($B3:$CB3,6)/$CL3,\"\")","v":""},{"$f":"IFERROR(COUNTIF($B3:$CB3,7)/$CL3,\"\")","v":""},{"$f":"IFERROR(COUNTIF($B3:$CB3,8)/$CL3,\"\")","v":""},{"$f":"IFERROR(COUNTIF($B3:$CB3,9)/$CL3,\"\")","v":""},{"$f":"COUNTIF(B3:CB3,\"x\")","v":0}]
[3,null,null,null,null,null,null,null,null,null,null,null,null,null,null,null,null,null,null,null,null,null,null,null,null,null,null,null,null,null,null,null,null,null,null,null,null,null,null,null,null,null,null,null,null,null,null,null,null,null,null,null,null,null,null,null,null,null,null,null,null,null,null,null,null,null,null,null,null,null,null,null,null,null,null,null,null,null,null,null,"","","","","","","","","",0]
[4,null,null,null,null,null,null,null,null,null,null,null,null,null,null,null,null,null,null,null,null,null,null,null,null,null,null,null,null,null,null,null,null,null,null,null,null,null,null,null,null,null,null,null,null,null,null,null,null,null,null,null,null,null,null,null,null,null,null,null,null,null,null,null,null,null,null,null,null,null,null,null,null,null,null,null,null,null,null,null,"","","","","","","","","",0]
[5,null,null,null,null,null,null,null,null,null,null,null,null,null,null,null,null,null,null,null,null,null,null,null,null,null,null,null,null,null,null,null,null,null,null,null,null,null,null,null,null,null,null,null,null,null,null,null,null,null,null,null,null,null,null,null,null,null,null,null,null,null,null,null,null,null,null,null,null,null,null,null,null,null,null,null,null,null,null,null,"","","","","","","","","",{"$f":"COUNTIF(B6:CB6,\"x\")","v":0}]
[6,null,null,null,null,null,null,null,null,null,null,null,null,null,null,null,null,null,null,null,null,null,null,null,null,null,null,null,null,null,null,null,null,null,null,null,null,null,null,null,null,null,null,null,null,null,null,null,null,null,null,null,null,null,null,null,null,null,null,null,null,null,null,null,null,null,null,null,null,null,null,null,null,null,null,null,null,null,null,null,"","","","","","","","","",0]
[7,null,null,null,null,null,null,null,null,null,null,null,null,null,null,null,null,null,null,null,null,null,null,null,null,null,null,null,null,null,null,null,null,null,null,null,null,null,null,null,null,null,null,null,null,null,null,null,null,null,null,null,null,null,null,null,null,null,null,null,null,null,null,null,null,null,null,null,null,null,null,null,null,null,null,null,null,null,null,null,"","","","","","","","","",0]
[8,null,null,null,null,null,null,null,null,null,null,null,null,null,null,null,null,null,null,null,null,null,null,null,null,null,null,null,null,null,null,null,null,null,null,null,null,null,null,null,null,null,null,null,null,null,null,null,null,null,null,null,null,null,null,null,null,null,null,null,null,null,null,null,null,null,null,null,null,null,null,null,null,null,null,null,null,null,null,null,"","","","","","","","","",0]
[9,null,null,null,null,null,null,null,null,null,null,null,null,null,null,null,null,null,null,null,null,null,null,null,null,null,null,null,null,null,null,null,null,null,null,null,null,null,null,null,null,null,null,null,null,null,null,null,null,null,null,null,null,null,null,null,null,null,null,null,null,null,null,null,null,null,null,null,null,null,null,null,null,null,null,null,null,null,null,null,"","","","","","","","","",0]
[10,null,null,null,null,null,null,null,null,null,null,null,null,null,null,null,null,null,null,null,null,null,null,null,null,null,null,null,null,null,null,null,null,null,null,null,null,null,null,null,null,null,null,null,null,null,null,null,null,null,null,null,null,null,null,null,null,null,null,null,null,null,null,null,null,null,null,null,null,null,null,null,null,null,null,null,null,null,null,null,"","","","","","","","","",0]
[11,null,null,null,null,null,null,null,null,null,null,null,null,null,null,null,null,null,null,null,null,null,null,null,null,null,null,null,null,null,null,null,null,null,null,null,null,null,null,null,null,null,null,null,null,null,null,null,null,null,null,null,null,null,null,null,null,null,null,null,null,null,null,null,null,null,null,null,null,null,null,null,null,null,null,null,null,null,null,null,"","","","","","","","","",0]
[12,null,null,null,null,null,null,null,null,null,null,null,null,null,null,null,null,null,null,null,null,null,null,null,null,null,null,null,null,null,null,null,null,null,null,null,null,null,null,null,null,null,null,null,null,null,null,null,null,null,null,null,null,null,null,null,null,null,null,null,null,null,null,null,null,null,null,null,null,null,null,null,null,null,null,null,null,null,null,null,"","","","","","","","","",0]
[13,null,null,null,null,null,null,null,null,null,null,null,null,null,null,null,null,null,null,null,null,null,null,null,null,null,null,null,null,null,null,null,null,null,null,null,null,null,null,null,null,null,null,null,null,null,null,null,null,null,null,null,null,null,null,null,null,null,null,null,null,null,null,null,null,null,null,null,null,null,null,null,null,null,null,null,null,null,null,null,"","","","","","","","","",0]
[14,null,null,null,null,null,null,null,null,null,null,null,null,null,null,null,null,null,null,null,null,null,null,null,null,null,null,null,null,null,null,null,null,null,null,null,null,null,null,null,null,null,null,null,null,null,null,null,null,null,null,null,null,null,null,null,null,null,null,null,null,null,null,null,null,null,null,null,null,null,null,null,null,null,null,null,null,null,null,null,"","","","","","","","","",0]
[15,null,null,null,null,null,null,null,null,null,null,null,null,null,null,null,null,null,null,null,null,null,null,null,null,null,null,null,null,null,null,null,null,null,null,null,null,null,null,null,null,null,null,null,null,null,null,null,null,null,null,null,null,null,null,null,null,null,null,null,null,null,null,null,null,null,null,null,null,null,null,null,null,null,null,null,null,null,null,null,"","","","","","","","","",0]
[16,null,null,null,null,null,null,null,null,null,null,null,null,null,null,null,null,null,null,null,null,null,null,null,null,null,null,null,null,null,null,null,null,null,null,null,null,null,null,null,null,null,null,null,null,null,null,null,null,null,null,null,null,null,null,null,null,null,null,null,null,null,null,null,null,null,null,null,null,null,null,null,null,null,null,null,null,null,null,null,"","","","","","","","","",0]
[17,null,null,null,null,null,null,null,null,null,null,null,null,null,null,null,null,null,null,null,null,null,null,null,null,null,null,null,null,null,null,null,null,null,null,null,null,null,null,null,null,null,null,null,null,null,null,null,null,null,null,null,null,null,null,null,null,null,null,null,null,null,null,null,null,null,null,null,null,null,null,null,null,null,null,null,null,null,null,null,"","","","","","","","","",0]
[18,null,null,null,null,null,null,null,null,null,null,null,null,null,null,null,null,null,null,null,null,null,null,null,null,null,null,null,null,null,null,null,null,null,null,null,null,null,null,null,null,null,null,null,null,null,null,null,null,null,null,null,null,null,null,null,null,null,null,null,null,null,null,null,null,null,null,null,null,null,null,null,null,null,null,null,null,null,null,null,"","","","","","","","","",0]
[19,null,null,null,null,null,null,null,null,null,null,null,null,null,null,null,null,null,null,null,null,null,null,null,null,null,null,null,null,null,null,null,null,null,null,null,null,null,null,null,null,null,null,null,null,null,null,null,null,null,null,null,null,null,null,null,null,null,null,null,null,null,null,null,null,null,null,null,null,null,null,null,null,null,null,null,null,null,null,null,"","","","","","","","","",0]
[20,null,null,null,null,null,null,null,null,null,null,null,null,null,null,null,null,null,null,null,null,null,null,null,null,null,null,null,null,null,null,null,null,null,null,null,null,null,null,null,null,null,null,null,null,null,null,null,null,null,null,null,null,null,null,null,null,null,null,null,null,null,null,null,null,null,null,null,null,null,null,null,null,null,null,null,null,null,null,null,"","","","","","","","","",0]
[21,null,null,null,null,null,null,null,null,null,null,null,null,null,null,null,null,null,null,null,null,null,null,null,null,null,null,null,null,null,null,null,null,null,null,null,null,null,null,null,null,null,null,null,null,null,null,null,null,null,null,null,null,null,null,null,null,null,null,null,null,null,null,null,null,null,null,null,null,null,null,null,null,null,null,null,null,null,null,null,"","","","","","","","","",0]
[22,null,null,null,null,null,null,null,null,null,null,null,null,null,null,null,null,null,null,null,null,null,null,null,null,null,null,null,null,null,null,null,null,null,null,null,null,null,null,null,null,null,null,null,null,null,null,null,null,null,null,null,null,null,null,null,null,null,null,null,null,null,null,null,null,null,null,null,null,null,null,null,null,null,null,null,null,null,null,null,"","","","","","","","","",0]
[23,null,null,null,null,null,null,null,null,null,null,null,null,null,null,null,null,null,null,null,null,null,null,null,null,null,null,null,null,null,null,null,null,null,null,null,null,null,null,null,null,null,null,null,null,null,null,null,null,null,null,null,null,null,null,null,null,null,null,null,null,null,null,null,null,null,null,null,null,null,null,null,null,null,null,null,null,null,null,null,"","","","","","","","","",0]
[24,null,null,null,null,null,null,null,null,null,null,null,null,null,null,null,null,null,null,null,null,null,null,null,null,null,null,null,null,null,null,null,null,null,null,null,null,null,null,null,null,null,null,null,null,null,null,null,null,null,null,null,null,null,null,null,null,null,null,null,null,null,null,null,null,null,null,null,null,null,null,null,null,null,null,null,null,null,null,null,"","","","","","","","","",0]
[25,null,null,null,null,null,null,null,null,null,null,null,null,null,null,null,null,null,null,null,null,null,null,null,null,null,null,null,null,null,null,null,null,null,null,null,null,null,null,null,null,null,null,null,null,null,null,null,null,null,null,null,null,null,null,null,null,null,null,null,null,null,null,null,null,null,null,null,null,null,null,null,null,null,null,null,null,null,null,null,"","","","","","","","","",0]
[26,null,null,null,null,null,null,null,null,null,null,null,null,null,null,null,null,null,null,null,null,null,null,null,null,null,null,null,null,null,null,null,null,null,null,null,null,null,null,null,null,null,null,null,null,null,null,null,null,null,null,null,null,null,null,null,null,null,null,null,null,null,null,null,null,null,null,null,null,null,null,null,null,null,null,null,null,null,null,null,"","","","","","","","","",0]
[27,null,null,null,null,null,null,null,null,null,null,null,null,null,null,null,null,null,null,null,null,null,null,null,null,null,null,null,null,null,null,null,null,null,null,null,null,null,null,null,null,null,null,null,null,null,null,null,null,null,null,null,null,null,null,null,null,null,null,null,null,null,null,null,null,null,null,null,null,null,null,null,null,null,null,null,null,null,null,null,"","","","","","","","","",0]
[28,null,null,null,null,null,null,null,null,null,null,null,null,null,null,null,null,null,null,null,null,null,null,null,null,null,null,null,null,null,null,null,null,null,null,null,null,null,null,null,null,null,null,null,null,null,null,null,null,null,null,null,null,null,null,null,null,null,null,null,null,null,null,null,null,null,null,null,null,null,null,null,null,null,null,null,null,null,null,null,"","","","","","","","","",0]
[29,null,null,null,null,null,null,null,null,null,null,null,null,null,null,null,null,null,null,null,null,null,null,null,null,null,null,null,null,null,null,null,null,null,null,null,null,null,null,null,null,null,null,null,null,null,null,null,null,null,null,null,null,null,null,null,null,null,null,null,null,null,null,null,null,null,null,null,null,null,null,null,null,null,null,null,null,null,null,null,"","","","","","","","","",0]
[30,null,null,null,null,null,null,null,null,null,null,null,null,null,null,null,null,null,null,null,null,null,null,null,null,null,null,null,null,null,null,null,null,null,null,null,null,null,null,null,null,null,null,null,null,null,null,null,null,null,null,null,null,null,null,null,null,null,null,null,null,null,null,null,null,null,null,null,null,null,null,null,null,null,null,null,null,null,null,null,"","","","","","","","","",0]
[31,null,null,null,null,null,null,null,null,null,null,null,null,null,null,null,null,null,null,null,null,null,null,null,null,null,null,null,null,null,null,null,null,null,null,null,null,null,null,null,null,null,null,null,null,null,null,null,null,null,null,null,null,null,null,null,null,null,null,null,null,null,null,null,null,null,null,null,null,null,null,null,null,null,null,null,null,null,null,null,"","","","","","","","","",0]
[32,null,null,null,null,null,null,null,null,null,null,null,null,null,null,null,null,null,null,null,null,null,null,null,null,null,null,null,null,null,null,null,null,null,null,null,null,null,null,null,null,null,null,null,null,null,null,null,null,null,null,null,null,null,null,null,null,null,null,null,null,null,null,null,null,null,null,null,null,null,null,null,null,null,null,null,null,null,null,null,"","","","","","","","","",0]
[33,null,null,null,null,null,null,null,null,null,null,null,null,null,null,null,null,null,null,null,null,null,null,null,null,null,null,null,null,null,null,null,null,null,null,null,null,null,null,null,null,null,null,null,null,null,null,null,null,null,null,null,null,null,null,null,null,null,null,null,null,null,null,null,null,null,null,null,null,null,null,null,null,null,null,null,null,null,null,null,"","","","","","","","","",0]
[34,null,null,null,null,null,null,null,null,null,null,null,null,null,null,null,null,null,null,null,null,null,null,null,null,null,null,null,null,null,null,null,null,null,null,null,null,null,null,null,null,null,null,null,null,null,null,null,null,null,null,null,null,null,null,null,null,null,null,null,null,null,null,null,null,null,null,null,null,null,null,null,null,null,null,null,null,null,null,null,"","","","","","","","","",0]
[35,null,null,null,null,null,null,null,null,null,null,null,null,null,null,null,null,null,null,null,null,null,null,null,null,null,null,null,null,null,null,null,null,null,null,null,null,null,null,null,null,null,null,null,null,null,null,null,null,null,null,null,null,null,null,null,null,null,null,null,null,null,null,null,null,null,null,null,null,null,null,null,null,null,null,null,null,null,null,null,"","","","","","","","","",0]
[36,null,null,null,null,null,null,null,null,null,null,null,null,null,null,null,null,null,null,null,null,null,null,null,null,null,null,null,null,null,null,null,null,null,null,null,null,null,null,null,null,null,null,null,null,null,null,null,null,null,null,null,null,null,null,null,null,null,null,null,null,null,null,null,null,null,null,null,null,null,null,null,null,null,null,null,null,null,null,null,"","","","","","","","","",0]
[37,null,null,null,null,null,null,null,null,null,null,null,null,null,null,null,null,null,null,null,null,null,null,null,null,null,null,null,null,null,null,null,null,null,null,null,null,null,null,null,null,null,null,null,null,null,null,null,null,null,null,null,null,null,null,null,null,null,null,null,null,null,null,null,null,null,null,null,null,null,null,null,null,null,null,null,null,null,null,null,"","","","","","","","","",0]
[38,null,null,null,null,null,null,null,null,null,null,null,null,null,null,null,null,null,null,null,null,null,null,null,null,null,null,null,null,null,null,null,null,null,null,null,null,null,null,null,null,null,null,null,null,null,null,null,null,null,null,null,null,null,null,null,null,null,null,null,null,null,null,null,null,null,null,null,null,null,null,null,null,null,null,null,null,null,null,null,"","","","","","","","","",0]
[39,null,null,null,null,null,null,null,null,null,null,null,null,null,null,null,null,null,null,null,null,null,null,null,null,null,null,null,null,null,null,null,null,null,null,null,null,null,null,null,null,null,null,null,null,null,null,null,null,null,null,null,null,null,null,null,null,null,null,null,null,null,null,null,null,null,null,null,null,null,null,null,null,null,null,null,null,null,null,null,"","","","","","","","","",0]
[40,null,null,null,null,null,null,null,null,null,null,null,null,null,null,null,null,null,null,null,null,null,null,null,null,null,null,null,null,null,null,null,null,null,null,null,null,null,null,null,null,null,null,null,null,null,null,null,null,null,null,null,null,null,null,null,null,null,null,null,null,null,null,null,null,null,null,null,null,null,null,null,null,null,null,null,null,null,null,null,"","","","","","","","","",0]
[41,null,null,null,null,null,null,null,null,null,null,null,null,null,null,null,null,null,null,null,null,null,null,null,null,null,null,null,null,null,null,null,null,null,null,null,null,null,null,null,null,null,null,null,null,null,null,null,null,null,null,null,null,null,null,null,null,null,null,null,null,null,null,null,null,null,null,null,null,null,null,null,null,null,null,null,null,null,null,null,"","","","","","","","","",0]
[42,null,null,null,null,null,null,null,null,null,null,null,null,null,null,null,null,null,null,null,null,null,null,null,null,null,null,null,null,null,null,null,null,null,null,null,null,null,null,null,null,null,null,null,null,null,null,null,null,null,null,null,null,null,null,null,null,null,null,null,null,null,null,null,null,null,null,null,null,null,null,null,null,null,null,null,null,null,null,null,"","","","","","","","","",0]
[43,null,null,null,null,null,null,null,null,null,null,null,null,null,null,null,null,null,null,null,null,null,null,null,null,null,null,null,null,null,null,null,null,null,null,null,null,null,null,null,null,null,null,null,null,null,null,null,null,null,null,null,null,null,null,null,null,null,null,null,null,null,null,null,null,null,null,null,null,null,null,null,null,null,null,null,null,null,null,null,"","","","","","","","","",0]
[44,null,null,null,null,null,null,null,null,null,null,null,null,null,null,null,null,null,null,null,null,null,null,null,null,null,null,null,null,null,null,null,null,null,null,null,null,null,null,null,null,null,null,null,null,null,null,null,null,null,null,null,null,null,null,null,null,null,null,null,null,null,null,null,null,null,null,null,null,null,null,null,null,null,null,null,null,null,null,null,"","","","","","","","","",0]
[45,null,null,null,null,null,null,null,null,"x",1,2,3,4,5,6,7,8,9,null,null,null,null,null,null,null,null,null,null,null,null,null,null,null,null,null,null,null,null,null,null,null,null,null,null,null,null,null,null,null,null,null,null,null,null,null,null,null,null,null,null,null,null,null,null,null,null,null,null,null,null,null,null,null,null,null,null,null,null,null,1,1,1,1,1,1,1,1,1,1]

{"sheet":"Eingabe","index":10,"n_rows":48,"n_cols":10,"rows_kept":48,"cut":false,"hidden":false,"merged":[]}
["s","s","s",16,35,"s",15,4,"s","s"]
["s",13,16.13,"w","w",0.06,"w","w",4,3]
[0.28999999999999998,"w","w","w","w",16.100000000000001,"w","w","w","w"]
[0.14000000000000001,"w","w",33.200000000000003,"w","w","w",16.04,"w","w"]
["s",7,6.28,"w","w","w","w","w",24,23]
[0.22,"w","w","w","w",0.17,"w","w","w","w"]
[7.0000000000000007E-2,"w","w","w",15,"s",35.229999999999997,"w","w","w"]
[0.11,"w","w","w","w",10.28,"w","w","w","w"]
["s",17,16.190000000000001,"w","w","w","w","w",4,3]
[0.16,"w","w",4.1900000000000004,"w","w","w",17.04,"w","w"]
[0.23,"w","w","w","w",0.16,"w","w","w","w"]
["s","s",7.0000000000000007E-2,"w","w",0.16,"w","w","s","s"]
[]
[]
[]
[]
[]
[]
[]
[]
[]
[]
[]
[]
[]
["Füllregel (maximale Grösse: 25 Zeilen):"]
["Breite: hh Felder (hh auf Blatt1 gegeben)"]
["Höhe: vv Felder (vv auf Blatt1 gegeben)"]
["\"Schwarzes Feld\" wird kodiert als \"s\""]
["\"Weisses Feld\" wird kodiert als \"w\""]
["Feld mit nur mit einer Vertikal- und einer Horizontalsumme wird mit Dezimalpunkt eingegeben: Vor dem Punkt steht die Vertikalsumme, nach dem Punkt steht die Horizontalsumme als Hunderstel"]
["(Falls eine der beiden Summen Null ist, wird beim Eintragen auf Blatt1 die Schrift auf Grau gesetzt, so dass die Null nicht lesbar ist.)"]
[]
[]
[]
[]
["s","s","s",16,35,"s",15,4,"s","s"]
["s",13,16.13,"w","w",0.06,"w","w",4,3]
[0.28999999999999998,"w","w","w","w",16.100000000000001,"w","w","w","w"]
[0.14000000000000001,"w","w",33.200000000000003,"w","w","w",16.04,"w","w"]
["s",7,6.28,"w","w","w","w","w",24,23]
[0.22,"w","w","w","w",0.17,"w","w","w","w"]
[7.0000000000000007E-2,"w","w","w",15,"s",35.229999999999997,"w","w","w"]
[0.11,"w","w","w","w",10.28,"w","w","w","w"]
["s",17,16.190000000000001,"w","w","w","w","w",4,3]
[0.16,"w","w",4.1900000000000004,"w","w","w",17.04,"w","w"]
[0.23,"w","w","w","w",0.16,"w","w","w","w"]
["s","s",7.0000000000000007E-2,"w","w",0.16,"w","w","s","s"]

{"sheet":"RekursionsSpeicher","index":11,"n_rows":193,"n_cols":168,"rows_kept":193,"cut":false,"hidden":false,"merged":[[34,132,36,134],[34,147,36,149],[34,150,36,152],[34,162,36,164],[31,150,33,152],[31,153,33,155],[31,159,33,161],[31,162,33,164],[31,165,33,167],[31,132,33,134],[34,165,36,167],[22,159,24,161],[22,162,24,164],[22,165,24,167],[19,165,21,167],[28,129,30,131],[28,132,30,134],[28,135,30,137],[28,141,30,143],[28,144,30,146],[28,153,30,155],[28,156,30,158],[28,159,30,161],[25,138,27,140],[25,141,27,143],[25,144,27,146],[25,156,27,158],[25,159,27,161],[19,156,21,158],[19,159,21,161],[19,129,21,131],[19,132,21,134],[19,135,21,137],[19,147,21,149],[19,150,21,152],[19,162,21,164],[16,150,18,152],[16,153,18,155],[16,159,18,161],[16,162,18,164],[16,132,18,134],[16,135,18,137],[16,138,18,140],[16,144,18,146],[16,147,18,149],[4,165,6,167],[7,129,9,131],[7,132,9,134],[7,135,9,137],[7,141,9,143],[7,144,9,146],[7,147,9,149],[4,129,6,131],[4,132,6,134],[4,144,6,146],[4,147,6,149],[4,150,6,152],[4,162,6,164],[7,162,9,164],[7,165,9,167],[4,117,6,119],[4,120,6,122],[4,123,6,125],[4,135,6,137],[4,141,6,143],[4,156,6,158],[4,159,6,161],[7,117,9,119],[7,120,9,122],[7,123,9,125],[7,156,9,158],[7,150,9,152],[7,159,9,161],[10,117,12,119],[10,120,12,122],[10,123,12,125],[10,126,12,128],[10,147,12,149],[10,150,12,152],[10,162,12,164],[10,165,12,167],[13,123,15,125],[13,126,15,128],[13,165,15,167],[10,129,12,131],[10,135,12,137],[10,138,12,140],[10,141,12,143],[13,135,15,137],[13,138,15,140],[13,141,15,143],[13,144,15,146],[13,150,15,152],[13,153,15,155],[10,153,12,155],[10,156,12,158],[13,162,15,164],[16,117,18,119],[16,120,18,122],[16,123,18,125],[16,126,18,128],[19,117,21,119],[19,120,21,122],[19,123,21,125],[19,126,21,128],[19,153,21,155],[22,120,24,122],[22,123,24,125],[22,156,24,158],[25,117,27,119],[25,120,27,122],[25,129,27,131],[25,132,27,134],[25,147,27,149],[28,117,30,119],[28,120,30,122],[28,126,30,128],[28,147,30,149],[22,129,24,131],[22,132,24,134],[22,135,24,137],[22,138,24,140],[22,144,24,146],[22,147,24,149],[22,150,24,152],[190,150,192,152],[190,153,192,155],[190,159,192,161],[190,162,192,164],[190,165,192,167],[28,162,30,164],[28,165,30,167],[31,117,33,119],[31,120,33,122],[31,123,33,125],[31,126,33,128],[31,138,33,140],[34,117,36,119],[34,120,36,122],[34,123,36,125],[34,126,36,128],[34,135,36,137],[34,138,36,140],[34,141,36,143],[34,153,36,155],[34,159,36,161],[31,135,33,137],[31,141,33,143],[31,147,33,149],[190,117,192,119],[190,120,192,122],[190,123,192,125],[190,126,192,128],[190,132,192,134],[190,135,192,137],[190,138,192,140],[190,141,192,143],[190,147,192,149],[184,162,186,164],[184,165,186,167],[187,117,189,119],[187,120,189,122],[187,123,189,125],[187,126,189,128],[187,132,189,134],[187,135,189,137],[187,138,189,140],[187,141,189,143],[187,147,189,149],[187,150,189,152],[187,153,189,155],[187,159,189,161],[187,162,189,164],[187,165,189,167],[181,159,183,161],[184,117,186,119],[184,120,186,122],[184,126,186,128],[184,129,186,131],[184,132,186,134],[184,135,186,137],[184,141,186,143],[184,144,186,146],[184,147,186,149],[184,153,186,155],[184,156,186,158],[184,159,186,161],[181,117,183,119],[181,120,183,122],[181,129,183,131],[181,132,183,134],[181,138,183,140],[181,141,183,143],[181,144,183,146],[181,147,183,149],[181,156,183,158],[175,153,177,155],[175,156,177,158],[175,159,177,161],[175,162,177,164],[175,165,177,167],[178,120,180,122],[178,123,180,125],[178,129,180,131],[178,132,180,134],[178,135,180,137],[178,138,180,140],[178,144,180,146],[178,147,180,149],[178,150,180,152],[178,156,180,158],[178,159,180,161],[178,162,180,164],[178,165,180,167],[175,117,177,119],[175,120,177,122],[175,123,177,125],[175,126,177,128],[175,129,177,131],[175,132,177,134],[175,135,177,137],[175,147,177,149],[175,150,177,152],[169,165,171,167],[172,117,174,119],[172,120,174,122],[172,123,174,125],[172,126,174,128],[172,132,174,134],[172,135,174,137],[172,138,174,140],[172,144,174,146],[172,147,174,149],[172,150,174,152],[172,153,174,155],[172,159,174,161],[172,162,174,164],[169,123,171,125],[169,126,171,128],[169,135,171,137],[169,138,171,140],[169,141,171,143],[169,144,171,146],[169,150,171,152],[169,153,171,155],[169,162,171,164],[166,150,168,152],[166,153,168,155],[166,156,168,158],[166,162,168,164],[166,165,168,167],[163,117,165,119],[163,120,165,122],[163,123,165,125],[163,129,165,131],[163,132,165,134],[166,117,168,119],[166,120,168,122],[166,123,168,125],[166,126,168,128],[166,129,168,131],[166,135,168,137],[166,138,168,140],[166,141,168,143],[166,147,168,149],[163,135,165,137],[163,141,165,143],[163,144,165,146],[163,147,165,149],[163,150,165,152],[151,150,153,152],[151,153,153,155],[151,159,153,161],[151,162,153,164],[151,165,153,167],[160,150,162,152],[160,156,162,158],[160,159,162,161],[160,162,162,164],[160,165,162,167],[163,156,165,158],[163,159,165,161],[163,162,165,164],[163,165,165,167],[160,117,162,119],[160,120,162,122],[160,123,162,125],[160,129,162,131],[160,132,162,134],[160,135,162,137],[160,141,162,143],[160,144,162,146],[160,147,162,149],[151,117,153,119],[151,120,153,122],[151,123,153,125],[151,126,153,128],[151,132,153,134],[151,135,153,137],[151,138,153,140],[151,141,153,143],[151,147,153,149],[145,162,147,164],[145,165,147,167],[148,117,150,119],[148,120,150,122],[148,123,150,125],[148,126,150,128],[148,132,150,134],[148,135,150,137],[148,138,150,140],[148,141,150,143],[148,147,150,149],[148,150,150,152],[148,153,150,155],[148,159,150,161],[148,162,150,164],[148,165,150,167],[142,159,144,161],[145,117,147,119],[145,120,147,122],[145,126,147,128],[145,129,147,131],[145,132,147,134],[145,135,147,137],[145,141,147,143],[145,144,147,146],[145,147,147,149],[145,153,147,155],[145,156,147,158],[145,159,147,161],[142,117,144,119],[142,120,144,122],[142,129,144,131],[142,132,144,134],[142,138,144,140],[142,141,144,143],[142,144,144,146],[142,147,144,149],[142,156,144,158],[136,153,138,155],[136,156,138,158],[136,159,138,161],[136,162,138,164],[136,165,138,167],[139,120,141,122],[139,123,141,125],[139,129,141,131],[139,132,141,134],[139,135,141,137],[139,138,141,140],[139,144,141,146],[139,147,141,149],[139,150,141,152],[139,156,141,158],[139,159,141,161],[139,162,141,164],[139,165,141,167],[136,117,138,119],[136,120,138,122],[136,123,138,125],[136,126,138,128],[136,129,138,131],[136,132,138,134],[136,135,138,137],[136,147,138,149],[136,150,138,152],[130,165,132,167],[133,117,135,119],[133,120,135,122],[133,123,135,125],[133,126,135,128],[133,132,135,134],[133,135,135,137],[133,138,135,140],[133,144,135,146],[133,147,135,149],[133,150,135,152],[133,153,135,155],[133,159,135,161],[133,162,135,164],[130,123,132,125],[130,126,132,128],[130,135,132,137],[130,138,132,140],[130,141,132,143],[130,144,132,146],[130,150,132,152],[130,153,132,155],[130,162,132,164],[127,150,129,152],[127,153,129,155],[127,156,129,158],[127,162,129,164],[127,165,129,167],[124,117,126,119],[124,120,126,122],[124,123,126,125],[124,129,126,131],[124,132,126,134],[127,117,129,119],[127,120,129,122],[127,123,129,125],[127,126,129,128],[127,129,129,131],[127,135,129,137],[127,138,129,140],[127,141,129,143],[127,147,129,149],[124,135,126,137],[124,141,126,143],[124,144,126,146],[124,147,126,149],[124,150,126,152],[112,150,114,152],[112,153,114,155],[112,159,114,161],[112,162,114,164],[112,165,114,167],[121,150,123,152],[121,156,123,158],[121,159,123,161],[121,162,123,164],[121,165,123,167],[124,156,126,158],[124,159,126,161],[124,162,126,164],[124,165,126,167],[121,117,123,119],[121,120,123,122],[121,123,123,125],[121,129,123,131],[121,132,123,134],[121,135,123,137],[121,141,123,143],[121,144,123,146],[121,147,123,149],[112,117,114,119],[112,120,114,122],[112,123,114,125],[112,126,114,128],[112,132,114,134],[112,135,114,137],[112,138,114,140],[112,141,114,143],[112,147,114,149],[106,162,108,164],[106,165,108,167],[109,117,111,119],[109,120,111,122],[109,123,111,125],[109,126,111,128],[109,132,111,134],[109,135,111,137],[109,138,111,140],[109,141,111,143],[109,147,111,149],[109,150,111,152],[109,153,111,155],[109,159,111,161],[109,162,111,164],[109,165,111,167],[103,159,105,161],[106,117,108,119],[106,120,108,122],[106,126,108,128],[106,129,108,131],[106,132,108,134],[106,135,108,137],[106,141,108,143],[106,144,108,146],[106,147,108,149],[106,153,108,155],[106,156,108,158],[106,159,108,161],[103,117,105,119],[103,120,105,122],[103,129,105,131],[103,132,105,134],[103,138,105,140],[103,141,105,143],[103,144,105,146],[103,147,105,149],[103,156,105,158],[97,153,99,155],[97,156,99,158],[97,159,99,161],[97,162,99,164],[97,165,99,167],[100,120,102,122],[100,123,102,125],[100,129,102,131],[100,132,102,134],[100,135,102,137],[100,138,102,140],[100,144,102,146],[100,147,102,149],[100,150,102,152],[100,156,102,158],[100,159,102,161],[100,162,102,164],[100,165,102,167],[97,117,99,119],[97,120,99,122],[97,123,99,125],[97,126,99,128],[97,129,99,131],[97,132,99,134],[97,135,99,137],[97,147,99,149],[97,150,99,152],[91,165,93,167],[94,117,96,119],[94,120,96,122],[94,123,96,125],[94,126,96,128],[94,132,96,134],[94,135,96,137],[94,138,96,140],[94,144,96,146],[94,147,96,149],[94,150,96,152],[94,153,96,155],[94,159,96,161],[94,162,96,164],[91,123,93,125],[91,126,93,128],[91,135,93,137],[91,138,93,140],[91,141,93,143],[91,144,93,146],[91,150,93,152],[91,153,93,155],[91,162,93,164],[88,150,90,152],[88,153,90,155],[88,156,90,158],[88,162,90,164],[88,165,90,167],[85,117,87,119],[85,120,87,122],[85,123,87,125],[85,129,87,131],[85,132,87,134],[88,117,90,119],[88,120,90,122],[88,123,90,125],[88,126,90,128],[88,129,90,131],[88,135,90,137],[88,138,90,140],[88,141,90,143],[88,147,90,149],[85,135,87,137],[85,141,87,143],[85,144,87,146],[85,147,87,149],[85,150,87,152],[73,150,75,152],[73,153,75,155],[73,159,75,161],[73,162,75,164],[73,165,75,167],[82,150,84,152],[82,156,84,158],[82,159,84,161],[82,162,84,164],[82,165,84,167],[85,156,87,158],[85,159,87,161],[85,162,87,164],[85,165,87,167],[82,117,84,119],[82,120,84,122],[82,123,84,125],[82,129,84,131],[82,132,84,134],[82,135,84,137],[82,141,84,143],[82,144,84,146],[82,147,84,149],[73,117,75,119],[73,120,75,122],[73,123,75,125],[73,126,75,128],[73,132,75,134],[73,135,75,137],[73,138,75,140],[73,141,75,143],[73,147,75,149],[67,162,69,164],[67,165,69,167],[70,117,72,119],[70,120,72,122],[70,123,72,125],[70,126,72,128],[70,132,72,134],[70,135,72,137],[70,138,72,140],[70,141,72,143],[70,147,72,149],[70,150,72,152],[70,153,72,155],[70,159,72,161],[70,162,72,164],[70,165,72,167],[64,159,66,161],[67,117,69,119],[67,120,69,122],[67,126,69,128],[67,129,69,131],[67,132,69,134],[67,135,69,137],[67,141,69,143],[67,144,69,146],[67,147,69,149],[67,153,69,155],[67,156,69,158],[67,159,69,161],[64,117,66,119],[64,120,66,122],[64,129,66,131],[64,132,66,134],[64,138,66,140],[64,141,66,143],[64,144,66,146],[64,147,66,149],[64,156,66,158],[58,165,60,167],[61,120,63,122],[61,123,63,125],[61,129,63,131],[61,132,63,134],[61,135,63,137],[61,138,63,140],[61,144,63,146],[61,147,63,149],[61,150,63,152],[61,156,63,158],[61,159,63,161],[61,162,63,164],[61,165,63,167],[58,153,60,155],[58,156,60,158],[58,159,60,161],[58,162,60,164],[58,147,60,149],[58,150,60,152],[55,117,57,119],[55,120,57,122],[55,123,57,125],[55,126,57,128],[55,132,57,134],[55,135,57,137],[55,138,57,140],[58,117,60,119],[58,120,60,122],[58,123,60,125],[58,126,60,128],[58,129,60,131],[58,132,60,134],[58,135,60,137],[55,144,57,146],[55,147,57,149],[49,150,51,152],[49,153,51,155],[49,156,51,158],[49,162,51,164],[49,165,51,167],[52,123,54,125],[52,126,54,128],[52,135,54,137],[52,138,54,140],[52,141,54,143],[52,144,54,146],[52,150,54,152],[52,153,54,155],[52,162,54,164],[52,165,54,167],[55,150,57,152],[55,153,57,155],[55,159,57,161],[55,162,57,164],[49,117,51,119],[49,120,51,122],[49,123,51,125],[49,126,51,128],[49,129,51,131],[49,135,51,137],[49,138,51,140],[49,141,51,143],[49,147,51,149],[46,135,48,137],[46,141,48,143],[46,144,48,146],[46,147,48,149],[43,135,45,137],[43,141,45,143],[43,144,45,146],[43,147,45,149],[43,150,45,152],[43,117,45,119],[43,120,45,122],[43,123,45,125],[43,129,45,131],[43,132,45,134],[46,117,48,119],[46,120,48,122],[46,123,48,125],[46,129,48,131],[46,132,48,134],[43,156,45,158],[43,159,45,161],[43,162,45,164],[43,165,45,167],[46,150,48,152],[46,156,48,158],[46,159,48,161],[46,162,48,164],[46,165,48,167]]}
[]
[]
[null,null,null,null,null,0,null,null,0,null,null,0,null,null,null,null,null,0,null,null,0,null,null,0,null,null,null,null,null,0,null,null,0,null,null,0,null,null,0,null,null,null,null,null,0,null,null,0,null,null,0,null,null,0,null,null,null,null,null,null,null,null,0,null,null,0,null,null,0,null,null,null,null,null,0,null,null,0,null,null,0,null,null,null,null,null,0,null,null,0,null,null,0,null,null,0,null,null,null,null,null,0,null,null,0,null,null,0,null,null,0,null,null,null,null,null,null,null,null,0,null,null,0,null,null,0,null,null,null,null,null,0,null,null,0,null,null,0,null,null,null,null,null,0,null,null,0,null,null,0,null,null,0,null,null,null,null,null,0,null,null,0,null,null,0,null,null,0]
[null,null,null,null,7,null,null,10,null,null,39,null,null,null,null,null,14,null,null,9,null,null,42,null,null,null,null,null,15,null,null,10,null,null,13,null,null,41,null,null,null,null,null,7,null,null,6,null,null,41,null,null,13,null,null,null,null,null,null,null,null,7,null,null,10,null,null,39,null,null,null,null,null,14,null,null,9,null,null,42,null,null,null,null,null,15,null,null,10,null,null,13,null,null,41,null,null,null,null,null,7,null,null,6,null,null,41,null,null,13,null,null,null,null,null,null,null,null,7,null,null,10,null,null,39,null,null,null,null,null,14,null,null,9,null,null,42,null,null,null,null,null,15,null,null,10,null,null,13,null,null,41,null,null,null,null,null,7,null,null,6,null,null,41,null,null,13]
[null,null,null,1,2,null,1,2,3,null,2,3,null,null,null,null,null,null,null,null,null,null,null,null,null,null,null,null,null,null,null,null,null,null,null,null,null,null,null,null,null,null,null,null,null,null,null,null,null,null,null,null,null,null,null,null,null,null,null,null,null,7,null,null,10,null,null,31,null,null,null,null,null,null,null,null,null,null,null,null,null,null,null,null,null,null,null,null,null,null,null,null,null,null,null,null,null,null,null,null,null,null,null,null,null,null,null,null,null,null,null,null,null,null,null,null,null,null,null,null,null,null,null,null,null,null,null,null,null,9,null,null,8,null,null,6,null,null,null,null,null,3,null,null,2,null,null,1,null,null,5,null,null,null,null,null,2,null,null,4,null,null,9,null,null,5]
[null,null,9,4,null,null,null,null,null,4,5,6,null,null,23,null,null,null,null,null,null,null,null,null,null,null,11,null,null,null,null,null,null,null,null,null,null,null,null,null,null,20,null,null,null,null,null,null,null,null,null,null,null,null,null,null,null,null,null,9,9,null,3,9,null,3,9,null,3,null,null,23,null,9,null,null,8,null,null,6,null,null,null,11,null,3,null,null,2,null,null,1,null,null,5,null,null,null,20,null,2,null,null,4,null,null,9,null,null,5,null,null,null,null,null,null,9,null,null,null,null,null,null,null,null,null,null,null,23,null,null,null,null,null,null,null,null,null,null,null,11,null,null,null,null,null,null,null,null,null,null,null,null,null,null,20]
[null,0,null,null,null,null,null,null,null,null,null,null,null,0,null,null,null,null,null,null,null,null,null,null,null,0,null,null,null,null,null,null,null,null,null,null,null,null,null,null,0,null,null,null,null,null,null,null,null,null,null,null,null,null,null,null,null,null,0,null,null,3,null,null,3,null,null,6,null,null,0,null,null,null,null,null,null,null,null,null,null,null,0,null,null,null,null,null,null,null,null,null,null,null,null,null,null,0,null,null,null,null,null,null,null,null,null,null,null,null,null,null,null,null,null,0,null,null,null,null,null,null,null,null,null,null,null,0,null,null,null,null,null,null,null,null,null,null,null,0,null,null,null,null,null,null,null,null,null,null,null,null,null,null,0]
[null,null,null,1,2,null,null,null,null,null,null,null,null,null,null,null,null,null,null,null,null,null,null,null,null,null,null,null,null,null,null,null,null,null,null,null,null,null,null,null,null,null,null,null,null,null,null,null,null,null,null,null,null,null,null,null,null,null,null,null,null,7,null,null,10,null,null,31,null,null,null,null,null,null,null,null,null,null,null,null,null,null,null,null,null,null,null,null,null,null,null,null,null,null,null,null,null,null,null,null,null,null,null,null,null,null,null,null,null,null,null,null,null,null,null,null,null,null,null,null,null,null,null,null,null,null,null,null,null,2,null,null,1,null,null,3,null,null,null,null,null,5,null,null,8,null,null,7,null,null,9,null,null,null,null,null,1,null,null,2,null,null,7,null,null,3]
[null,null,17,4,null,null,null,null,6,null,null,6,null,null,6,null,null,null,null,null,null,null,null,null,null,null,29,null,null,null,null,null,null,null,null,null,null,null,null,null,null,13,null,null,null,null,null,null,null,null,null,null,null,null,null,null,null,null,null,17,17,null,3,17,null,3,17,null,3,null,null,6,null,2,null,null,1,null,null,3,null,null,null,29,null,5,null,null,8,null,null,7,null,null,9,null,null,null,13,null,1,null,null,2,null,null,7,null,null,3,null,null,null,null,null,null,17,null,null,null,null,null,null,null,null,null,null,null,6,null,null,null,null,null,null,null,null,null,null,null,29,null,null,null,null,null,null,null,null,null,null,null,null,null,null,13]
[null,0,null,null,null,null,7,null,null,7,null,9,null,29,null,null,null,null,null,null,null,null,null,null,null,19,null,null,null,null,null,null,null,null,null,null,null,null,null,null,15,null,null,null,null,null,null,null,null,null,null,null,null,null,null,null,null,null,0,null,null,3,null,null,3,null,null,6,null,null,29,null,null,null,null,null,null,null,null,null,null,null,19,null,null,null,null,null,null,null,null,null,null,null,null,null,null,15,null,null,null,null,null,null,null,null,null,null,null,null,null,null,null,null,null,0,null,null,null,null,null,null,null,null,null,null,null,29,null,null,null,null,null,null,null,null,null,null,null,19,null,null,null,null,null,null,null,null,null,null,null,null,null,null,15]
[null,null,null,1,2,null,1,2,null,1,2,null,null,null,null,null,null,null,null,null,null,null,null,null,null,null,null,null,null,null,null,null,null,null,null,null,null,null,null,null,null,null,null,null,null,null,null,null,null,null,null,null,null,null,null,null,null,null,null,null,null,7,null,null,10,null,null,31,null,null,null,null,null,null,null,null,null,null,null,null,null,null,null,null,null,null,null,null,null,null,null,null,null,null,null,null,null,null,null,null,null,null,null,null,null,null,null,null,null,null,null,null,null,null,null,null,null,null,null,null,null,null,null,null,null,null,5,null,null,3,null,null,null,null,null,7,null,null,9,null,null,6,null,null,null,null,null,5,null,null,8,null,null,6,null,null,4,null,null,null,null,null,8,null,null,4]
[null,null,15,4,null,null,null,null,null,4,null,null,null,null,null,null,null,null,null,null,22,null,null,null,null,null,null,null,null,null,null,null,23,null,null,null,null,null,null,null,null,null,null,null,null,null,null,12,null,null,null,null,null,null,null,null,null,null,null,15,7,null,3,7,null,3,7,null,3,null,5,null,null,3,null,null,null,22,null,7,null,null,9,null,null,6,null,null,null,23,null,5,null,null,8,null,null,6,null,null,4,null,null,null,12,null,8,null,null,4,null,null,null,null,null,null,15,null,null,null,null,null,null,null,null,null,null,null,null,null,null,null,null,null,22,null,null,null,null,null,null,null,null,null,null,null,23,null,null,null,null,null,null,null,null,null,null,null,null,null,null,12]
[null,0,null,null,null,null,null,null,null,null,null,null,null,null,null,null,null,null,null,0,null,null,null,null,null,null,null,null,null,null,null,16,null,null,null,null,null,null,null,null,null,null,null,null,null,null,0,null,null,null,null,null,null,null,null,null,null,null,0,null,null,3,null,null,3,null,null,6,null,null,null,null,null,null,null,null,0,null,null,null,null,null,null,null,null,null,null,null,16,null,null,null,null,null,null,null,null,null,null,null,null,null,null,0,null,null,null,null,null,null,null,null,null,null,null,0,null,null,null,null,null,null,null,null,null,null,null,null,null,null,null,null,null,0,null,null,null,null,null,null,null,null,null,null,null,16,null,null,null,null,null,null,null,null,null,null,null,null,null,null,0]
[null,null,null,null,null,null,null,null,null,null,null,null,null,null,null,null,null,null,null,null,null,null,null,null,null,null,null,null,null,null,null,null,null,null,null,null,null,null,null,null,null,null,null,null,null,null,null,null,null,null,null,null,null,null,null,null,null,null,null,null,null,null,null,null,null,null,null,31,null,null,24,null,null,null,null,null,null,null,null,null,null,null,null,null,null,null,null,null,null,null,null,null,null,null,null,null,null,null,null,null,null,null,null,null,null,null,null,null,null,null,null,null,null,null,null,null,null,null,null,null,null,null,null,null,null,null,null,null,null,null,null,null,null,null,null,4,null,null,2,null,null,1,null,null,7,null,null,null,null,null,4,null,null,3,null,null,null,null,null,null,null,null,2,null,null,1]
[null,null,null,null,null,0,null,null,15,null,null,6,null,null,null,null,null,null,null,null,14,null,null,null,null,null,null,null,null,null,null,null,null,null,null,7,null,null,null,null,null,null,null,null,null,null,null,3,null,null,null,null,null,null,null,null,null,null,null,null,null,null,0,null,null,15,15,null,2,15,null,2,null,null,null,null,null,14,null,4,null,null,2,null,null,1,null,null,7,null,null,null,7,null,4,null,null,3,null,null,null,null,null,null,3,null,2,null,null,1,null,null,null,null,null,null,null,null,null,0,null,null,15,null,null,null,null,null,null,null,null,null,null,null,14,null,null,null,null,null,null,null,null,null,null,null,null,null,null,7,null,null,null,null,null,null,null,null,null,null,null,3]
[null,null,null,null,17,null,null,28,null,7,null,null,null,8,9,null,null,null,null,28,null,null,null,null,null,null,null,null,null,null,null,null,null,null,42,null,null,null,null,null,null,null,null,null,null,null,33,null,null,null,null,null,null,null,null,null,null,null,null,null,null,17,null,null,28,null,null,6,null,null,3,null,null,null,null,null,28,null,null,null,null,null,null,null,null,null,null,null,null,null,null,42,null,null,null,null,null,null,null,null,null,null,null,33,null,null,null,null,null,null,null,null,null,null,null,null,null,null,17,null,null,28,null,null,null,null,null,null,null,null,null,null,null,28,null,null,null,null,null,null,null,null,null,null,null,null,null,null,42,null,null,null,null,null,null,null,null,null,null,null,33]
[null,null,null,null,null,null,null,2,null,null,2,null,null,null,null,null,null,null,null,null,null,null,null,null,null,null,null,null,null,null,null,null,null,null,null,null,null,null,null,null,null,null,null,null,null,null,null,3,null,null,null,null,null,null,null,null,null,null,null,null,null,17,null,null,19,null,null,31,null,null,24,null,null,null,null,null,null,null,null,null,null,null,null,null,null,null,null,null,null,null,null,null,null,null,null,null,null,null,null,null,null,null,null,32,null,null,15,null,null,null,null,null,null,null,null,null,null,null,null,null,null,null,null,null,null,null,null,null,null,null,null,null,7,null,null,9,null,null,8,null,null,null,null,null,9,null,null,8,null,null,7,null,null,5]
[null,null,26,null,null,null,4,5,null,4,5,6,null,null,null,null,null,24,null,null,null,null,null,null,null,null,null,null,null,29,null,null,null,null,null,null,null,null,null,null,null,null,null,null,9,4,5,null,4,5,6,null,null,0,null,null,null,null,null,26,26,null,4,26,null,4,26,null,4,26,null,4,null,null,24,null,7,null,null,9,null,null,8,null,null,null,29,null,9,null,null,8,null,null,7,null,null,5,null,null,null,9,9,null,2,9,null,2,null,null,0,null,null,null,null,null,26,null,null,null,null,null,null,null,null,null,null,null,null,null,null,24,null,null,null,null,null,null,null,null,null,null,null,29,null,null,null,null,null,null,null,null,null,null,null,null,null,null,9,null,null,null,null,null,null,null,null,0]
[null,0,null,null,8,9,7,null,null,7,null,9,7,8,9,null,27,null,null,null,null,null,null,null,null,null,null,null,0,null,null,null,null,null,null,null,null,null,null,null,null,null,null,27,null,null,null,null,null,null,null,null,16,null,null,null,null,null,0,null,null,2,null,null,5,null,null,6,null,null,3,null,null,27,null,null,null,null,null,null,null,null,null,null,null,0,null,null,null,null,null,null,null,null,null,null,null,null,null,null,27,null,null,6,null,null,3,null,null,16,null,null,null,null,null,0,null,null,null,null,null,null,null,null,null,null,null,null,null,null,27,null,null,null,null,null,null,null,null,null,null,null,0,null,null,null,null,null,null,null,null,null,null,null,null,null,null,27,null,null,null,null,null,null,null,null,16]
[null,null,null,null,null,null,1,2,null,1,2,3,null,null,null,null,null,3,1,2,3,null,null,null,null,null,null,null,null,null,null,null,null,null,null,3,null,2,null,null,null,null,null,null,null,null,2,3,null,null,null,null,null,null,null,null,null,null,null,null,null,17,null,null,19,null,null,31,null,null,24,null,null,10,null,null,6,null,null,null,null,null,null,null,null,null,null,null,null,null,null,30,null,null,8,null,null,null,null,null,24,null,null,32,null,null,15,null,null,16,null,null,null,null,null,null,null,null,null,null,null,null,null,null,null,null,null,null,null,null,null,null,null,null,null,5,null,null,null,null,null,null,null,null,null,null,null,null,null,null,null,null,null,1]
[null,null,31,null,null,null,4,null,null,4,null,6,null,null,null,4,null,6,null,null,null,null,null,null,null,null,0,null,null,null,null,null,30,null,5,6,null,null,6,null,null,null,null,null,null,4,5,6,4,5,6,null,null,null,null,null,null,null,null,31,26,null,6,26,null,6,26,null,6,26,null,6,26,null,6,26,null,6,null,5,null,null,null,0,null,null,null,null,null,30,29,null,6,29,null,6,null,1,null,29,null,6,29,null,6,29,null,6,29,null,6,null,null,null,null,null,31,null,null,null,null,null,null,null,null,null,null,null,null,null,null,null,null,null,null,null,null,null,null,null,0,null,null,null,null,null,30]
[null,0,null,null,8,9,7,null,null,7,null,9,7,8,9,null,null,null,null,null,null,null,null,null,null,4,null,null,null,null,null,13,null,7,null,9,null,null,null,null,null,null,7,8,9,7,8,9,null,null,null,7,null,9,null,null,null,null,0,null,null,2,null,null,5,null,null,6,null,null,3,null,null,2,null,null,3,null,null,null,null,null,4,null,null,null,null,null,13,null,null,5,null,null,2,null,null,null,null,null,3,null,null,6,null,null,3,null,null,2,null,null,null,null,null,0,null,null,null,null,null,null,null,null,null,null,null,null,null,null,null,null,null,null,null,null,null,null,null,4,null,null,null,null,null,13]
[null,null,null,null,null,null,null,null,null,null,null,null,null,null,null,null,null,null,null,null,null,null,null,null,null,null,null,null,null,null,null,null,null,null,null,null,null,2,null,null,null,null,null,null,null,null,2,3,null,null,null,null,null,null,null,null,null,null,null,null,null,null,null,null,null,null,null,null,null,null,null,null,null,null,null,null,null,null,null,null,null,null,null,null,null,null,null,null,13,null,null,30,null,null,8,null,null,null,null,null,24,null,null,32,null,null,15,null,null,16,null,null,null,null,null,null,null,null,null,null,6,null,null,8,null,null,null,null,null,9,null,null,6,null,null,8,null,null,3]
[null,null,null,null,null,14,null,null,null,null,null,null,null,null,26,null,null,null,null,null,null,null,null,null,null,null,null,null,null,19,4,null,null,null,5,null,null,null,6,null,null,22,null,null,null,null,null,null,4,5,null,null,null,null,null,null,null,null,null,null,null,null,14,null,6,null,null,8,null,null,null,26,null,9,null,null,6,null,null,8,null,null,3,null,null,null,19,19,null,3,19,null,3,19,null,3,null,null,22,22,null,4,22,null,4,22,null,4,22,null,4,null,null,null,null,null,null,null,null,14,null,null,null,null,null,null,null,null,26,null,null,null,null,null,null,null,null,null,null,null,null,null,null,19,null,null,null,null,null,null,null,null,null,null,null,22]
[null,null,null,null,19,null,null,null,null,null,null,null,null,0,null,null,null,null,null,null,null,null,null,null,null,null,null,null,16,null,null,8,null,null,null,9,null,null,null,null,0,null,7,8,9,null,null,null,null,null,null,7,null,9,null,null,null,null,null,null,null,19,null,null,null,null,null,null,null,null,0,null,null,null,null,null,null,null,null,null,null,null,null,null,null,16,null,null,3,null,null,5,null,null,2,null,null,0,null,null,3,null,null,6,null,null,3,null,null,2,null,null,null,null,null,null,null,null,19,null,null,null,null,null,null,null,null,0,null,null,null,null,null,null,null,null,null,null,null,null,null,null,16,null,null,null,null,null,null,null,null,null,null,null,0]
[null,null,null,null,null,null,1,2,null,null,null,null,null,null,null,null,null,null,null,null,null,null,null,null,null,null,null,null,2,3,null,2,3,null,null,3,null,null,null,null,null,null,null,null,null,null,null,null,null,null,null,null,null,null,null,null,null,null,null,null,null,18,null,null,19,null,null,null,null,null,null,null,null,null,null,null,null,null,null,null,null,null,null,null,null,16,null,null,13,null,null,30,null,null,null,null,null,null,null,null,null,null,null,null,null,null,null,null,null,null,null,null,null,null,null,null,null,null,null,null,null,null,null,null,null,null,null,null,null,8,null,null,4,null,null,null,null,null,1,null,null,null,null,null,null,null,null,null,null,null,null,null,null,null,null,null,3,null,null,1]
[null,null,8,null,null,6,null,null,null,null,null,null,null,null,12,null,null,null,null,null,null,null,null,11,null,null,null,null,5,null,null,null,null,null,5,null,null,null,null,null,null,4,null,null,null,null,null,null,null,null,0,null,null,0,null,null,null,null,null,8,8,null,2,8,null,2,null,null,null,null,null,12,null,8,null,null,4,null,null,null,11,null,1,null,10,null,3,10,null,3,10,null,3,null,null,null,null,null,4,null,3,null,null,1,null,null,null,0,null,null,0,null,null,null,null,null,8,null,null,null,null,null,null,null,null,null,null,null,12,null,null,null,null,null,null,null,null,11,null,null,null,null,null,null,null,null,null,null,null,null,null,null,null,null,null,4,null,null,null,null,null,null,null,null,0,null,null,0]
[null,0,null,7,null,null,null,null,null,null,null,null,null,10,null,null,null,null,null,null,null,null,23,null,null,null,null,null,null,null,null,null,null,null,null,null,null,null,null,null,14,null,null,null,null,null,null,null,null,7,null,null,15,null,null,null,null,null,0,null,null,3,null,null,5,null,null,null,null,null,10,null,null,null,null,null,null,null,null,23,null,null,null,null,null,4,null,null,3,null,null,5,null,null,null,null,null,14,null,null,null,null,null,null,null,null,7,null,null,15,null,null,null,null,null,0,null,null,null,null,null,null,null,null,null,null,null,10,null,null,null,null,null,null,null,null,23,null,null,null,null,null,null,null,null,null,null,null,null,null,null,null,null,null,14,null,null,null,null,null,null,null,null,7,null,null,15]
[null,null,null,null,null,null,null,null,null,null,null,null,1,2,3,null,null,null,1,2,3,null,null,null,null,null,null,null,2,3,null,null,3,null,null,null,null,null,null,null,null,null,null,null,null,null,null,null,null,null,null,null,null,null,null,null,null,null,null,null,null,null,null,null,null,null,null,null,null,null,10,null,null,10,null,null,6,null,null,23,null,null,null,null,null,16,null,null,13,null,null,30,null,null,null,null,null,13,null,null,24,null,null,32,null,null,null,null,null,15,null,null,null,null,null,null,null,1,null,null,3,null,null,null,null,null,null,null,null,null,null,null,null,null,null,null,null,null,null,null,null,null,null,null,null,null,null,null,null,null,null,null,null,null,null,null,null,null,null,null,null,null,4]
[null,null,4,null,null,null,null,null,null,null,null,20,null,5,null,4,null,6,null,null,null,null,null,6,null,null,18,null,5,6,null,null,6,null,5,6,null,null,34,null,null,6,null,null,null,null,null,6,null,null,null,null,null,6,null,null,null,null,null,4,null,1,null,null,3,null,null,null,20,20,null,4,20,null,4,20,null,4,20,null,4,null,null,18,18,null,3,18,null,3,18,null,3,null,null,34,30,null,4,30,null,4,30,null,4,null,4,null,30,null,4,null,null,null,null,null,4,null,null,null,null,null,null,null,null,20,null,null,null,null,null,null,null,null,null,null,null,null,null,null,18,null,null,null,null,null,null,null,null,null,null,null,34]
[null,0,null,null,null,null,null,null,null,null,10,null,null,null,null,7,null,null,null,null,null,null,8,9,null,12,null,null,null,null,7,null,null,7,null,9,null,5,null,7,null,9,7,8,9,7,8,9,null,null,null,7,8,9,null,null,null,null,0,null,null,null,null,null,null,null,null,10,null,null,3,null,null,2,null,null,3,null,null,3,null,null,12,null,null,4,null,null,3,null,null,5,null,null,5,null,null,2,null,null,3,null,null,6,null,null,null,null,null,3,null,null,null,null,null,0,null,null,null,null,null,null,null,null,10,null,null,null,null,null,null,null,null,null,null,null,null,null,null,12,null,null,null,null,null,null,null,null,null,null,null,5]
[null,null,null,null,null,null,null,null,null,null,null,null,null,null,null,null,null,null,null,null,null,null,null,null,null,null,null,null,null,null,null,null,null,null,null,null,null,null,null,null,null,null,null,null,null,null,null,null,1,2,null,1,2,3,null,null,null,null,null,null,null,18,null,null,19,null,null,10,null,null,10,null,null,null,null,null,null,null,null,23,null,null,12,null,null,16,null,null,null,null,null,null,null,null,null,null,null,null,null,null,null,null,null,32,null,null,3,null,null,15,null,null,null,null,null,null,null,null,null,null,null,null,null,null,null,null,null,null,null,null,null,null,5,null,null,null,null,null,null,null,null,null,null,null,null,null,null,4,null,null,2,null,null,1]
[null,null,28,null,null,null,4,5,null,null,null,null,4,null,6,null,null,29,null,null,null,null,null,null,null,null,null,null,null,null,null,null,7,null,null,null,null,null,null,null,null,null,null,null,10,null,5,6,null,null,null,4,null,null,null,null,null,null,null,28,28,null,4,28,null,4,28,null,4,28,null,4,null,null,29,null,5,null,24,null,3,24,null,3,24,null,3,null,null,7,null,4,null,null,2,null,null,1,null,null,null,10,10,null,3,10,null,3,10,null,3,null,null,null,null,null,28,null,null,null,null,null,null,null,null,null,null,null,null,null,null,29,null,null,null,null,null,null,null,null,null,null,null,null,null,null,7,null,null,null,null,null,null,null,null,null,null,null,10]
[null,0,null,null,8,9,7,null,null,null,8,9,7,null,null,null,0,null,null,null,null,null,8,9,7,8,9,7,8,null,null,0,null,null,null,null,null,null,null,null,null,null,null,0,null,7,null,null,null,null,null,null,null,null,null,null,null,null,0,null,null,3,null,null,5,null,null,2,null,null,3,null,null,0,null,null,null,null,null,3,null,null,2,null,null,4,null,null,0,null,null,null,null,null,null,null,null,null,null,null,0,null,null,6,null,null,2,null,null,3,null,null,null,null,null,0,null,null,null,null,null,null,null,null,null,null,null,null,null,null,0,null,null,null,null,null,null,null,null,null,null,null,null,null,null,0,null,null,null,null,null,null,null,null,null,null,null,0]
[null,null,null,null,2,3,1,2,null,1,2,null,1,2,3,null,null,null,null,2,3,null,null,null,null,null,3,1,null,null,null,null,null,null,null,null,null,null,null,null,null,null,null,null,null,null,null,null,1,2,null,null,null,null,null,null,null,null,null,null,null,18,null,null,19,null,null,10,null,null,10,null,null,null,null,null,6,null,null,23,null,null,12,null,null,16,null,null,null,null,null,30,null,null,null,null,null,13,null,null,null,null,null,32,null,null,3,null,null,15,null,null,null,null,null,null,null,null,null,null,null,null,null,null,null,null,null,null,null,null,null,null,null,null,null,null,null,null,null,null,null,null,null,null,null,null,null,null,null,null,3]
[null,null,11,null,null,null,null,5,null,null,null,null,null,5,null,null,null,15,null,null,null,null,null,6,4,5,null,4,null,null,null,null,16,null,null,6,null,null,null,4,null,6,null,null,16,null,null,6,null,null,null,null,5,6,null,null,null,null,null,11,11,null,4,11,null,4,11,null,4,11,null,4,null,null,15,15,null,4,15,null,4,15,null,4,15,null,4,null,null,16,13,null,2,null,3,null,13,null,2,null,null,16,16,null,3,16,null,3,16,null,3,null,null,null,null,null,11,null,null,null,null,null,null,null,null,null,null,null,null,null,null,15,null,null,null,null,null,null,null,null,null,null,null,null,null,null,16,null,null,null,null,null,null,null,null,null,null,null,16]
[null,0,null,null,null,null,null,null,null,null,null,null,null,null,null,null,0,null,null,null,null,null,8,9,null,null,null,null,null,null,null,0,null,7,null,9,null,null,null,7,null,null,null,0,null,7,8,9,null,null,null,7,8,null,null,null,null,null,0,null,null,3,null,null,5,null,null,2,null,null,3,null,null,0,null,null,3,null,null,3,null,null,2,null,null,4,null,null,0,null,null,5,null,null,null,null,null,2,null,null,0,null,null,6,null,null,2,null,null,3,null,null,null,null,null,0,null,null,null,null,null,null,null,null,null,null,null,null,null,null,0,null,null,null,null,null,null,null,null,null,null,null,null,null,null,0,null,null,null,null,null,null,null,null,null,null,null,0]
[]
[]
[]
[]
[null,null,null,null,null,0,null,null,0,null,null,0,null,null,null,null,null,0,null,null,0,null,null,0,null,null,null,null,null,0,null,null,0,null,null,0,null,null,0,null,null,null,null,null,0,null,null,0,null,null,0,null,null,0,null,null,null,null,null,null,null,null,0,null,null,0,null,null,0,null,null,null,null,null,0,null,null,0,null,null,0,null,null,null,null,null,0,null,null,0,null,null,0,null,null,0,null,null,null,null,null,0,null,null,0,null,null,0,null,null,0,null,null,null,null,null,null,null,null,0,null,null,0,null,null,0,null,null,null,null,null,0,null,null,0,null,null,0,null,null,null,null,null,0,null,null,0,null,null,0,null,null,0,null,null,null,null,null,0,null,null,0,null,null,0,null,null,0]
[null,null,null,null,7,null,null,10,null,null,39,null,null,null,null,null,14,null,null,9,null,null,42,null,null,null,null,null,15,null,null,10,null,null,13,null,null,41,null,null,null,null,null,7,null,null,6,null,null,41,null,null,13,null,null,null,null,null,null,null,null,7,null,null,10,null,null,39,null,null,null,null,null,14,null,null,9,null,null,42,null,null,null,null,null,15,null,null,10,null,null,13,null,null,41,null,null,null,null,null,7,null,null,6,null,null,41,null,null,13,null,null,null,null,null,null,null,null,7,null,null,10,null,null,39,null,null,null,null,null,14,null,null,9,null,null,42,null,null,null,null,null,15,null,null,10,null,null,13,null,null,41,null,null,null,null,null,7,null,null,6,null,null,41,null,null,13]
[null,null,null,1,2,null,1,2,3,null,2,3,null,null,null,null,null,null,null,null,null,null,null,null,null,null,null,null,null,null,null,null,null,null,null,null,null,null,null,null,null,null,null,null,null,null,null,null,null,null,null,null,null,null,null,null,null,null,null,null,null,7,null,null,10,null,null,24,null,null,null,null,null,null,null,null,null,null,null,null,null,null,null,null,null,null,null,null,null,null,null,null,null,null,null,null,null,null,null,null,null,null,null,null,null,null,null,null,null,null,null,null,null,null,null,null,null,null,null,null,null,null,null,null,null,null,null,null,null,9,null,null,8,null,null,6,null,null,null,null,null,3,null,null,2,null,null,1,null,null,5,null,null,null,null,null,2,null,null,4,null,null,9,null,null,5]
[null,null,9,4,null,null,null,null,null,4,5,6,null,null,23,null,null,null,null,null,null,null,null,null,null,null,11,null,null,null,null,null,null,null,null,null,null,null,null,null,null,20,null,null,null,null,null,null,null,null,null,null,null,null,null,null,null,null,null,9,9,null,3,9,null,3,9,null,3,null,null,23,null,9,null,null,8,null,null,6,null,null,null,11,null,3,null,null,2,null,null,1,null,null,5,null,null,null,20,null,2,null,null,4,null,null,9,null,null,5,null,null,null,null,null,null,9,null,null,null,null,null,null,null,null,null,null,null,23,null,null,null,null,null,null,null,null,null,null,null,11,null,null,null,null,null,null,null,null,null,null,null,null,null,null,20]
[null,0,null,null,null,null,null,null,null,null,null,null,null,0,null,null,null,null,null,null,null,null,null,null,null,0,null,null,null,null,null,null,null,null,null,null,null,null,null,null,0,null,null,null,null,null,null,null,null,null,null,null,null,null,null,null,null,null,0,null,null,3,null,null,3,null,null,5,null,null,0,null,null,null,null,null,null,null,null,null,null,null,0,null,null,null,null,null,null,null,null,null,null,null,null,null,null,0,null,null,null,null,null,null,null,null,null,null,null,null,null,null,null,null,null,0,null,null,null,null,null,null,null,null,null,null,null,0,null,null,null,null,null,null,null,null,null,null,null,0,null,null,null,null,null,null,null,null,null,null,null,null,null,null,0]
[null,null,null,1,2,null,null,null,null,null,null,null,null,null,null,null,null,null,null,null,null,null,null,null,null,null,null,null,null,null,null,null,null,null,null,null,null,null,null,null,null,null,null,null,null,null,null,null,null,null,null,null,null,null,null,null,null,null,null,null,null,7,null,null,10,null,null,24,null,null,null,null,null,null,null,null,null,null,null,null,null,null,null,null,null,null,null,null,null,null,null,null,null,null,null,null,null,null,null,null,null,null,null,null,null,null,null,null,null,null,null,null,null,null,null,null,null,null,null,null,null,null,null,null,null,null,null,null,null,2,null,null,1,null,null,3,null,null,null,null,null,5,null,null,8,null,null,7,null,null,9,null,null,null,null,null,1,null,null,2,null,null,7,null,null,3]
[null,null,17,4,null,null,null,null,6,null,null,6,null,null,6,null,null,null,null,null,null,null,null,null,null,null,29,null,null,null,null,null,null,null,null,null,null,null,null,null,null,13,null,null,null,null,null,null,null,null,null,null,null,null,null,null,null,null,null,17,17,null,3,17,null,3,17,null,3,null,null,6,null,2,null,null,1,null,null,3,null,null,null,29,null,5,null,null,8,null,null,7,null,null,9,null,null,null,13,null,1,null,null,2,null,null,7,null,null,3,null,null,null,null,null,null,17,null,null,null,null,null,null,null,null,null,null,null,6,null,null,null,null,null,null,null,null,null,null,null,29,null,null,null,null,null,null,null,null,null,null,null,null,null,null,13]
[null,0,null,null,null,null,7,null,null,null,null,9,null,29,null,null,null,null,null,null,null,null,null,null,null,19,null,null,null,null,null,null,null,null,null,null,null,null,null,null,15,null,null,null,null,null,null,null,null,null,null,null,null,null,null,null,null,null,0,null,null,3,null,null,3,null,null,5,null,null,29,null,null,null,null,null,null,null,null,null,null,null,19,null,null,null,null,null,null,null,null,null,null,null,null,null,null,15,null,null,null,null,null,null,null,null,null,null,null,null,null,null,null,null,null,0,null,null,null,null,null,null,null,null,null,null,null,29,null,null,null,null,null,null,null,null,null,null,null,19,null,null,null,null,null,null,null,null,null,null,null,null,null,null,15]
[null,null,null,1,2,null,1,2,null,1,2,null,null,null,null,null,null,null,null,null,null,null,null,null,null,null,null,null,null,null,null,null,null,null,null,null,null,null,null,null,null,null,null,null,null,null,null,null,null,null,null,null,null,null,null,null,null,null,null,null,null,7,null,null,10,null,null,24,null,null,null,null,null,null,null,null,null,null,null,null,null,null,null,null,null,null,null,null,null,null,null,null,null,null,null,null,null,null,null,null,null,null,null,null,null,null,null,null,null,null,null,null,null,null,null,null,null,null,null,null,null,null,null,null,null,null,5,null,null,3,null,null,null,null,null,7,null,null,9,null,null,6,null,null,null,null,null,5,null,null,8,null,null,6,null,null,4,null,null,null,null,null,8,null,null,4]
[null,null,15,4,null,null,null,null,null,4,null,null,null,null,null,null,null,null,null,null,22,null,null,null,null,null,null,null,null,null,null,null,23,null,null,null,null,null,null,null,null,null,null,null,null,null,null,12,null,null,null,null,null,null,null,null,null,null,null,15,7,null,3,7,null,3,7,null,3,null,5,null,null,3,null,null,null,22,null,7,null,null,9,null,null,6,null,null,null,23,null,5,null,null,8,null,null,6,null,null,4,null,null,null,12,null,8,null,null,4,null,null,null,null,null,null,15,null,null,null,null,null,null,null,null,null,null,null,null,null,null,null,null,null,22,null,null,null,null,null,null,null,null,null,null,null,23,null,null,null,null,null,null,null,null,null,null,null,null,null,null,12]
[null,0,null,null,null,null,null,null,null,null,null,null,null,null,null,null,null,null,null,0,null,null,null,null,null,null,null,null,null,null,null,16,null,null,null,null,null,null,null,null,null,null,null,null,null,null,0,null,null,null,null,null,null,null,null,null,null,null,0,null,null,3,null,null,3,null,null,5,null,null,null,null,null,null,null,null,0,null,null,null,null,null,null,null,null,null,null,null,16,null,null,null,null,null,null,null,null,null,null,null,null,null,null,0,null,null,null,null,null,null,null,null,null,null,null,0,null,null,null,null,null,null,null,null,null,null,null,null,null,null,null,null,null,0,null,null,null,null,null,null,null,null,null,null,null,16,null,null,null,null,null,null,null,null,null,null,null,null,null,null,0]
[null,null,null,null,null,null,null,null,null,null,null,null,null,null,null,null,null,null,null,null,null,null,null,null,null,null,null,null,null,null,null,null,null,null,null,null,null,null,null,null,null,null,null,null,null,null,null,null,null,null,null,null,null,null,null,null,null,null,null,null,null,null,null,null,null,null,null,null,null,null,null,null,null,null,null,null,null,null,null,null,null,null,null,null,null,null,null,null,null,null,null,null,null,null,null,null,null,null,null,null,null,null,null,null,null,null,null,null,null,null,null,null,null,null,null,null,null,null,null,null,null,null,null,7,null,null,8,null,null,null,null,null,null,null,null,4,null,null,2,null,null,1,null,null,7,null,null,null,null,null,4,null,null,3,null,null,null,null,null,null,null,null,2,null,null,1]
[null,null,null,null,null,0,null,null,15,null,null,null,null,null,null,null,null,null,null,null,14,null,null,null,null,null,null,null,null,null,null,null,null,null,null,7,null,null,null,null,null,null,null,null,null,null,null,3,null,null,null,null,null,null,null,null,null,null,null,null,null,null,0,null,null,15,null,7,null,null,8,null,null,null,null,null,null,14,null,4,null,null,2,null,null,1,null,null,7,null,null,null,7,null,4,null,null,3,null,null,null,null,null,null,3,null,2,null,null,1,null,null,null,null,null,null,null,null,null,0,null,null,15,null,null,null,null,null,null,null,null,null,null,null,14,null,null,null,null,null,null,null,null,null,null,null,null,null,null,7,null,null,null,null,null,null,null,null,null,null,null,3]
[null,null,null,null,17,null,null,28,null,null,null,null,null,null,null,null,null,null,null,28,null,null,null,null,null,null,null,null,null,null,null,null,null,null,42,null,null,null,null,null,null,null,null,null,null,null,33,null,null,null,null,null,null,null,null,null,null,null,null,null,null,17,null,null,28,null,null,null,null,null,null,null,null,null,null,null,28,null,null,null,null,null,null,null,null,null,null,null,null,null,null,42,null,null,null,null,null,null,null,null,null,null,null,33,null,null,null,null,null,null,null,null,null,null,null,null,null,null,17,null,null,28,null,null,null,null,null,null,null,null,null,null,null,28,null,null,null,null,null,null,null,null,null,null,null,null,null,null,42,null,null,null,null,null,null,null,null,null,null,null,33]
[null,null,null,null,null,null,null,2,null,null,2,null,null,null,null,null,null,null,null,null,null,null,null,null,null,null,null,null,null,null,null,null,null,null,null,null,null,null,null,null,null,null,null,null,null,null,null,3,null,null,null,null,null,null,null,null,null,null,null,null,null,17,null,null,19,null,null,24,null,null,16,null,null,null,null,null,null,null,null,null,null,null,null,null,null,null,null,null,null,null,null,null,null,null,null,null,null,null,null,null,null,null,null,32,null,null,15,null,null,null,null,null,null,null,null,null,null,null,null,null,null,null,null,null,null,null,null,null,null,null,null,null,7,null,null,9,null,null,8,null,null,null,null,null,9,null,null,8,null,null,7,null,null,5]
[null,null,26,null,null,null,4,5,null,4,5,6,null,null,null,null,null,24,null,null,null,null,null,null,null,null,null,null,null,29,null,null,null,null,null,null,null,null,null,null,null,null,null,null,9,4,5,null,4,5,6,null,null,0,null,null,null,null,null,26,26,null,4,26,null,4,26,null,4,26,null,4,null,null,24,null,7,null,null,9,null,null,8,null,null,null,29,null,9,null,null,8,null,null,7,null,null,5,null,null,null,9,9,null,2,9,null,2,null,null,0,null,null,null,null,null,26,null,null,null,null,null,null,null,null,null,null,null,null,null,null,24,null,null,null,null,null,null,null,null,null,null,null,29,null,null,null,null,null,null,null,null,null,null,null,null,null,null,9,null,null,null,null,null,null,null,null,0]
[null,0,null,null,8,9,7,null,null,null,null,9,7,null,9,null,27,null,null,null,null,null,null,null,null,null,null,null,0,null,null,null,null,null,null,null,null,null,null,null,null,null,null,27,null,null,null,null,null,null,null,null,16,null,null,null,null,null,0,null,null,2,null,null,5,null,null,5,null,null,2,null,null,27,null,null,null,null,null,null,null,null,null,null,null,0,null,null,null,null,null,null,null,null,null,null,null,null,null,null,27,null,null,6,null,null,3,null,null,16,null,null,null,null,null,0,null,null,null,null,null,null,null,null,null,null,null,null,null,null,27,null,null,null,null,null,null,null,null,null,null,null,0,null,null,null,null,null,null,null,null,null,null,null,null,null,null,27,null,null,null,null,null,null,null,null,16]
[null,null,null,null,null,null,1,2,null,null,2,3,null,null,null,null,null,3,1,2,3,null,null,null,null,null,null,null,null,null,null,null,null,null,null,3,null,2,null,null,null,null,null,null,null,null,2,3,null,null,null,null,null,null,null,null,null,null,null,null,null,17,null,null,19,null,null,24,null,null,16,null,null,10,null,null,6,null,null,null,null,null,null,null,null,null,null,null,null,null,null,30,null,null,8,null,null,null,null,null,24,null,null,32,null,null,15,null,null,16,null,null,null,null,null,null,null,null,null,null,null,null,null,null,null,null,null,null,null,null,null,null,null,null,null,5,null,null,null,null,null,null,null,null,null,null,null,null,null,null,null,null,null,1]
[null,null,31,null,null,null,4,null,null,4,null,6,null,null,null,4,null,6,null,null,null,null,null,null,null,null,0,null,null,null,null,null,30,null,5,6,null,null,6,null,null,null,null,null,null,4,5,6,4,5,6,null,null,null,null,null,null,null,null,31,26,null,6,26,null,6,26,null,6,26,null,6,26,null,6,26,null,6,null,5,null,null,null,0,null,null,null,null,null,30,29,null,6,29,null,6,null,1,null,29,null,6,29,null,6,29,null,6,29,null,6,null,null,null,null,null,31,null,null,null,null,null,null,null,null,null,null,null,null,null,null,null,null,null,null,null,null,null,null,null,0,null,null,null,null,null,30]
[null,0,null,null,8,9,7,null,null,null,null,9,7,null,9,null,null,null,null,null,null,null,null,null,null,4,null,null,null,null,null,13,null,7,null,9,null,null,null,null,null,null,7,8,9,7,8,9,null,null,null,7,null,9,null,null,null,null,0,null,null,2,null,null,5,null,null,5,null,null,2,null,null,2,null,null,3,null,null,null,null,null,4,null,null,null,null,null,13,null,null,5,null,null,2,null,null,null,null,null,3,null,null,6,null,null,3,null,null,2,null,null,null,null,null,0,null,null,null,null,null,null,null,null,null,null,null,null,null,null,null,null,null,null,null,null,null,null,null,4,null,null,null,null,null,13]
[null,null,null,null,null,null,null,null,null,null,null,null,null,null,null,null,null,null,null,null,null,null,null,null,null,null,null,null,null,null,null,null,null,null,null,null,null,2,null,null,null,null,null,null,null,null,2,3,null,null,null,null,null,null,null,null,null,null,null,null,null,null,null,null,null,null,null,null,null,null,null,null,null,null,null,null,null,null,null,null,null,null,null,null,null,null,null,null,13,null,null,30,null,null,8,null,null,null,null,null,24,null,null,32,null,null,15,null,null,16,null,null,null,null,null,null,null,null,null,null,6,null,null,8,null,null,null,null,null,9,null,null,6,null,null,8,null,null,3]
[null,null,null,null,null,14,null,null,null,null,null,null,null,null,26,null,null,null,null,null,null,null,null,null,null,null,null,null,null,19,4,null,null,null,5,null,null,null,6,null,null,22,null,null,null,null,null,null,4,5,null,null,null,null,null,null,null,null,null,null,null,null,14,null,6,null,null,8,null,null,null,26,null,9,null,null,6,null,null,8,null,null,3,null,null,null,19,19,null,3,19,null,3,19,null,3,null,null,22,22,null,4,22,null,4,22,null,4,22,null,4,null,null,null,null,null,null,null,null,14,null,null,null,null,null,null,null,null,26,null,null,null,null,null,null,null,null,null,null,null,null,null,null,19,null,null,null,null,null,null,null,null,null,null,null,22]
[null,null,null,null,19,null,null,null,null,null,null,null,null,0,null,null,null,null,null,null,null,null,null,null,null,null,null,null,16,null,null,8,null,null,null,9,null,null,null,null,0,null,7,8,9,null,null,null,null,null,null,7,null,9,null,null,null,null,null,null,null,19,null,null,null,null,null,null,null,null,0,null,null,null,null,null,null,null,null,null,null,null,null,null,null,16,null,null,3,null,null,5,null,null,2,null,null,0,null,null,3,null,null,6,null,null,3,null,null,2,null,null,null,null,null,null,null,null,19,null,null,null,null,null,null,null,null,0,null,null,null,null,null,null,null,null,null,null,null,null,null,null,16,null,null,null,null,null,null,null,null,null,null,null,0]
[null,null,null,null,null,null,1,2,null,null,null,null,null,null,null,null,null,null,null,null,null,null,null,null,null,null,null,null,2,3,null,2,3,null,null,3,null,null,null,null,null,null,null,null,null,null,null,null,null,null,null,null,null,null,null,null,null,null,null,null,null,18,null,null,19,null,null,null,null,null,null,null,null,null,null,null,null,null,null,null,null,null,null,null,null,16,null,null,13,null,null,30,null,null,null,null,null,null,null,null,null,null,null,null,null,null,null,null,null,null,null,null,null,null,null,null,null,null,null,null,null,null,null,null,null,null,null,null,null,8,null,null,4,null,null,null,null,null,1,null,null,null,null,null,null,null,null,null,null,null,null,null,null,null,null,null,3,null,null,1]
[null,null,8,null,null,6,null,null,null,null,null,null,null,null,12,null,null,null,null,null,null,null,null,11,null,null,null,null,5,null,null,null,null,null,5,null,null,null,null,null,null,4,null,null,null,null,null,null,null,null,0,null,null,0,null,null,null,null,null,8,8,null,2,8,null,2,null,null,null,null,null,12,null,8,null,null,4,null,null,null,11,null,1,null,10,null,3,10,null,3,10,null,3,null,null,null,null,null,4,null,3,null,null,1,null,null,null,0,null,null,0,null,null,null,null,null,8,null,null,null,null,null,null,null,null,null,null,null,12,null,null,null,null,null,null,null,null,11,null,null,null,null,null,null,null,null,null,null,null,null,null,null,null,null,null,4,null,null,null,null,null,null,null,null,0,null,null,0]
[null,0,null,7,null,null,null,null,null,null,null,null,null,10,null,null,null,null,null,null,null,null,23,null,null,null,null,null,null,null,null,null,null,null,null,null,null,null,null,null,14,null,null,null,null,null,null,null,null,7,null,null,15,null,null,null,null,null,0,null,null,3,null,null,5,null,null,null,null,null,10,null,null,null,null,null,null,null,null,23,null,null,null,null,null,4,null,null,3,null,null,5,null,null,null,null,null,14,null,null,null,null,null,null,null,null,7,null,null,15,null,null,null,null,null,0,null,null,null,null,null,null,null,null,null,null,null,10,null,null,null,null,null,null,null,null,23,null,null,null,null,null,null,null,null,null,null,null,null,null,null,null,null,null,14,null,null,null,null,null,null,null,null,7,null,null,15]
[null,null,null,null,null,null,null,null,null,null,null,null,1,2,3,null,null,null,1,2,3,null,null,null,null,null,null,null,2,3,null,null,3,null,null,null,null,null,null,null,null,null,null,null,null,null,null,null,null,null,null,null,null,null,null,null,null,null,null,null,null,null,null,null,null,null,null,null,null,null,10,null,null,10,null,null,6,null,null,23,null,null,null,null,null,16,null,null,13,null,null,30,null,null,null,null,null,13,null,null,24,null,null,32,null,null,null,null,null,15,null,null,null,null,null,null,null,1,null,null,3,null,null,null,null,null,null,null,null,null,null,null,null,null,null,null,null,null,null,null,null,null,null,null,null,null,null,null,null,null,null,null,null,null,null,null,null,null,null,null,null,null,4]
[null,null,4,null,null,null,null,null,null,null,null,20,null,5,null,4,null,6,null,null,null,null,null,6,null,null,18,null,5,6,null,null,6,null,5,6,null,null,34,null,null,6,null,null,null,null,null,6,null,null,null,null,null,6,null,null,null,null,null,4,null,1,null,null,3,null,null,null,20,20,null,4,20,null,4,20,null,4,20,null,4,null,null,18,18,null,3,18,null,3,18,null,3,null,null,34,30,null,4,30,null,4,30,null,4,null,4,null,30,null,4,null,null,null,null,null,4,null,null,null,null,null,null,null,null,20,null,null,null,null,null,null,null,null,null,null,null,null,null,null,18,null,null,null,null,null,null,null,null,null,null,null,34]
[null,0,null,null,null,null,null,null,null,null,10,null,null,null,null,7,null,null,null,null,null,null,8,9,null,12,null,null,null,null,7,null,null,7,null,9,null,5,null,7,null,9,7,8,9,7,8,9,null,null,null,7,8,9,null,null,null,null,0,null,null,null,null,null,null,null,null,10,null,null,3,null,null,2,null,null,3,null,null,3,null,null,12,null,null,4,null,null,3,null,null,5,null,null,5,null,null,2,null,null,3,null,null,6,null,null,null,null,null,3,null,null,null,null,null,0,null,null,null,null,null,null,null,null,10,null,null,null,null,null,null,null,null,null,null,null,null,null,null,12,null,null,null,null,null,null,null,null,null,null,null,5]
[null,null,null,null,null,null,null,null,null,null,null,null,null,null,null,null,null,null,null,null,null,null,null,null,null,null,null,null,null,null,null,null,null,null,null,null,null,null,null,null,null,null,null,null,null,null,null,null,1,2,null,1,2,3,null,null,null,null,null,null,null,18,null,null,19,null,null,10,null,null,10,null,null,null,null,null,null,null,null,23,null,null,12,null,null,16,null,null,null,null,null,null,null,null,null,null,null,null,null,null,null,null,null,32,null,null,3,null,null,15,null,null,null,null,null,null,null,null,null,null,null,null,null,null,null,null,null,null,null,null,null,null,5,null,null,null,null,null,null,null,null,null,null,null,null,null,null,4,null,null,2,null,null,1]
[null,null,28,null,null,null,4,5,null,null,null,null,4,null,6,null,null,29,null,null,null,null,null,null,null,null,null,null,null,null,null,null,7,null,null,null,null,null,null,null,null,null,null,null,10,null,5,6,null,null,null,4,null,null,null,null,null,null,null,28,28,null,4,28,null,4,28,null,4,28,null,4,null,null,29,null,5,null,24,null,3,24,null,3,24,null,3,null,null,7,null,4,null,null,2,null,null,1,null,null,null,10,10,null,3,10,null,3,10,null,3,null,null,null,null,null,28,null,null,null,null,null,null,null,null,null,null,null,null,null,null,29,null,null,null,null,null,null,null,null,null,null,null,null,null,null,7,null,null,null,null,null,null,null,null,null,null,null,10]
[null,0,null,null,8,9,7,null,null,null,8,9,7,null,null,null,0,null,null,null,null,null,8,9,7,8,9,7,8,null,null,0,null,null,null,null,null,null,null,null,null,null,null,0,null,7,null,null,null,null,null,null,null,null,null,null,null,null,0,null,null,3,null,null,5,null,null,2,null,null,3,null,null,0,null,null,null,null,null,3,null,null,2,null,null,4,null,null,0,null,null,null,null,null,null,null,null,null,null,null,0,null,null,6,null,null,2,null,null,3,null,null,null,null,null,0,null,null,null,null,null,null,null,null,null,null,null,null,null,null,0,null,null,null,null,null,null,null,null,null,null,null,null,null,null,0,null,null,null,null,null,null,null,null,null,null,null,0]
[null,null,null,null,2,3,1,2,null,1,2,null,1,2,3,null,null,null,null,2,3,null,null,null,null,null,3,1,null,null,null,null,null,null,null,null,null,null,null,null,null,null,null,null,null,null,null,null,1,2,null,null,null,null,null,null,null,null,null,null,null,18,null,null,19,null,null,10,null,null,10,null,null,null,null,null,6,null,null,23,null,null,12,null,null,16,null,null,null,null,null,30,null,null,null,null,null,13,null,null,null,null,null,32,null,null,3,null,null,15,null,null,null,null,null,null,null,null,null,null,null,null,null,null,null,null,null,null,null,null,null,null,null,null,null,null,null,null,null,null,null,null,null,null,null,null,null,null,null,null,3]
[null,null,11,null,null,null,null,5,null,null,null,null,null,5,null,null,null,15,null,null,null,null,null,6,4,5,null,4,null,null,null,null,16,null,null,6,null,null,null,4,null,6,null,null,16,null,null,6,null,null,null,null,5,6,null,null,null,null,null,11,11,null,4,11,null,4,11,null,4,11,null,4,null,null,15,15,null,4,15,null,4,15,null,4,15,null,4,null,null,16,13,null,2,null,3,null,13,null,2,null,null,16,16,null,3,16,null,3,16,null,3,null,null,null,null,null,11,null,null,null,null,null,null,null,null,null,null,null,null,null,null,15,null,null,null,null,null,null,null,null,null,null,null,null,null,null,16,null,null,null,null,null,null,null,null,null,null,null,16]
[null,0,null,null,null,null,null,null,null,null,null,null,null,null,null,null,0,null,null,null,null,null,8,9,null,null,null,null,null,null,null,0,null,7,null,9,null,null,null,7,null,null,null,0,null,7,8,9,null,null,null,7,8,null,null,null,null,null,0,null,null,3,null,null,5,null,null,2,null,null,3,null,null,0,null,null,3,null,null,3,null,null,2,null,null,4,null,null,0,null,null,5,null,null,null,null,null,2,null,null,0,null,null,6,null,null,2,null,null,3,null,null,null,null,null,0,null,null,null,null,null,null,null,null,null,null,null,null,null,null,0,null,null,null,null,null,null,null,null,null,null,null,null,null,null,0,null,null,null,null,null,null,null,null,null,null,null,0]
[]
[]
[]
[]
[null,null,null,null,null,0,null,null,0,null,null,0,null,null,null,null,null,0,null,null,0,null,null,0,null,null,null,null,null,0,null,null,0,null,null,0,null,null,0,null,null,null,null,null,0,null,null,0,null,null,0,null,null,0,null,null,null,null,null,null,null,null,0,null,null,0,null,null,0,null,null,null,null,null,0,null,null,0,null,null,0,null,null,null,null,null,0,null,null,0,null,null,0,null,null,0,null,null,null,null,null,0,null,null,0,null,null,0,null,null,0,null,null,null,null,null,null,null,null,0,null,null,0,null,null,0,null,null,null,null,null,0,null,null,0,null,null,0,null,null,null,null,null,0,null,null,0,null,null,0,null,null,0,null,null,null,null,null,0,null,null,0,null,null,0,null,null,0]
[null,null,null,null,7,null,null,10,null,null,39,null,null,null,null,null,14,null,null,9,null,null,42,null,null,null,null,null,15,null,null,10,null,null,13,null,null,41,null,null,null,null,null,7,null,null,6,null,null,41,null,null,13,null,null,null,null,null,null,null,null,7,null,null,10,null,null,39,null,null,null,null,null,14,null,null,9,null,null,42,null,null,null,null,null,15,null,null,10,null,null,13,null,null,41,null,null,null,null,null,7,null,null,6,null,null,41,null,null,13,null,null,null,null,null,null,null,null,7,null,null,10,null,null,39,null,null,null,null,null,14,null,null,9,null,null,42,null,null,null,null,null,15,null,null,10,null,null,13,null,null,41,null,null,null,null,null,7,null,null,6,null,null,41,null,null,13]
[null,null,null,1,2,null,1,2,3,null,2,3,null,null,null,null,null,null,null,null,null,null,null,null,null,null,null,null,null,null,null,null,null,null,null,null,null,null,null,null,null,null,null,null,null,null,null,null,null,null,null,null,null,null,null,null,null,null,null,null,null,7,null,null,10,null,null,24,null,null,null,null,null,null,null,null,null,null,null,null,null,null,null,null,null,null,null,null,null,null,null,null,null,null,null,null,null,null,null,null,null,null,null,null,null,null,null,null,null,null,null,null,null,null,null,null,null,null,null,null,null,null,null,null,null,null,null,null,null,9,null,null,8,null,null,6,null,null,null,null,null,3,null,null,2,null,null,1,null,null,5,null,null,null,null,null,2,null,null,4,null,null,9,null,null,5]
[null,null,9,4,null,null,null,null,null,4,5,6,null,null,23,null,null,null,null,null,null,null,null,null,null,null,11,null,null,null,null,null,null,null,null,null,null,null,null,null,null,20,null,null,null,null,null,null,null,null,null,null,null,null,null,null,null,null,null,9,9,null,3,9,null,3,9,null,3,null,null,23,null,9,null,null,8,null,null,6,null,null,null,11,null,3,null,null,2,null,null,1,null,null,5,null,null,null,20,null,2,null,null,4,null,null,9,null,null,5,null,null,null,null,null,null,9,null,null,null,null,null,null,null,null,null,null,null,23,null,null,null,null,null,null,null,null,null,null,null,11,null,null,null,null,null,null,null,null,null,null,null,null,null,null,20]
[null,0,null,null,null,null,null,null,null,null,null,null,null,0,null,null,null,null,null,null,null,null,null,null,null,0,null,null,null,null,null,null,null,null,null,null,null,null,null,null,0,null,null,null,null,null,null,null,null,null,null,null,null,null,null,null,null,null,0,null,null,3,null,null,3,null,null,5,null,null,0,null,null,null,null,null,null,null,null,null,null,null,0,null,null,null,null,null,null,null,null,null,null,null,null,null,null,0,null,null,null,null,null,null,null,null,null,null,null,null,null,null,null,null,null,0,null,null,null,null,null,null,null,null,null,null,null,0,null,null,null,null,null,null,null,null,null,null,null,0,null,null,null,null,null,null,null,null,null,null,null,null,null,null,0]
[null,null,null,1,2,null,null,null,null,null,null,null,null,null,null,null,null,null,null,null,null,null,null,null,null,null,null,null,null,null,null,null,null,null,null,null,null,null,null,null,null,null,null,null,null,null,null,null,null,null,null,null,null,null,null,null,null,null,null,null,null,7,null,null,10,null,null,24,null,null,null,null,null,null,null,null,null,null,null,null,null,null,null,null,null,null,null,null,null,null,null,null,null,null,null,null,null,null,null,null,null,null,null,null,null,null,null,null,null,null,null,null,null,null,null,null,null,null,null,null,null,null,null,null,null,null,null,null,null,2,null,null,1,null,null,3,null,null,null,null,null,5,null,null,8,null,null,7,null,null,9,null,null,null,null,null,1,null,null,2,null,null,7,null,null,3]
[null,null,17,4,null,null,null,null,6,null,null,6,null,null,6,null,null,null,null,null,null,null,null,null,null,null,29,null,null,null,null,null,null,null,null,null,null,null,null,null,null,13,null,null,null,null,null,null,null,null,null,null,null,null,null,null,null,null,null,17,17,null,3,17,null,3,17,null,3,null,null,6,null,2,null,null,1,null,null,3,null,null,null,29,null,5,null,null,8,null,null,7,null,null,9,null,null,null,13,null,1,null,null,2,null,null,7,null,null,3,null,null,null,null,null,null,17,null,null,null,null,null,null,null,null,null,null,null,6,null,null,null,null,null,null,null,null,null,null,null,29,null,null,null,null,null,null,null,null,null,null,null,null,null,null,13]
[null,0,null,null,null,null,7,null,null,null,null,9,null,29,null,null,null,null,null,null,null,null,null,null,null,19,null,null,null,null,null,null,null,null,null,null,null,null,null,null,15,null,null,null,null,null,null,null,null,null,null,null,null,null,null,null,null,null,0,null,null,3,null,null,3,null,null,5,null,null,29,null,null,null,null,null,null,null,null,null,null,null,19,null,null,null,null,null,null,null,null,null,null,null,null,null,null,15,null,null,null,null,null,null,null,null,null,null,null,null,null,null,null,null,null,0,null,null,null,null,null,null,null,null,null,null,null,29,null,null,null,null,null,null,null,null,null,null,null,19,null,null,null,null,null,null,null,null,null,null,null,null,null,null,15]
[null,null,null,1,2,null,1,2,null,1,2,null,null,null,null,null,null,null,null,null,null,null,null,null,null,null,null,null,null,null,null,null,null,null,null,null,null,null,null,null,null,null,null,null,null,null,null,null,null,null,null,null,null,null,null,null,null,null,null,null,null,7,null,null,10,null,null,24,null,null,null,null,null,null,null,null,null,null,null,null,null,null,null,null,null,null,null,null,null,null,null,null,null,null,null,null,null,null,null,null,null,null,null,null,null,null,null,null,null,null,null,null,null,null,null,null,null,null,null,null,null,null,null,null,null,null,5,null,null,3,null,null,null,null,null,7,null,null,9,null,null,6,null,null,null,null,null,5,null,null,8,null,null,6,null,null,4,null,null,null,null,null,8,null,null,4]
[null,null,15,4,null,null,null,null,null,4,null,null,null,null,null,null,null,null,null,null,22,null,null,null,null,null,null,null,null,null,null,null,23,null,null,null,null,null,null,null,null,null,null,null,null,null,null,12,null,null,null,null,null,null,null,null,null,null,null,15,7,null,3,7,null,3,7,null,3,null,5,null,null,3,null,null,null,22,null,7,null,null,9,null,null,6,null,null,null,23,null,5,null,null,8,null,null,6,null,null,4,null,null,null,12,null,8,null,null,4,null,null,null,null,null,null,15,null,null,null,null,null,null,null,null,null,null,null,null,null,null,null,null,null,22,null,null,null,null,null,null,null,null,null,null,null,23,null,null,null,null,null,null,null,null,null,null,null,null,null,null,12]
[null,0,null,null,null,null,null,null,null,null,null,null,null,null,null,null,null,null,null,0,null,null,null,null,null,null,null,null,null,null,null,16,null,null,null,null,null,null,null,null,null,null,null,null,null,null,0,null,null,null,null,null,null,null,null,null,null,null,0,null,null,3,null,null,3,null,null,5,null,null,null,null,null,null,null,null,0,null,null,null,null,null,null,null,null,null,null,null,16,null,null,null,null,null,null,null,null,null,null,null,null,null,null,0,null,null,null,null,null,null,null,null,null,null,null,0,null,null,null,null,null,null,null,null,null,null,null,null,null,null,null,null,null,0,null,null,null,null,null,null,null,null,null,null,null,16,null,null,null,null,null,null,null,null,null,null,null,null,null,null,0]
[null,null,null,null,null,null,null,null,null,null,null,null,null,null,null,null,null,null,null,null,null,null,null,null,null,null,null,null,null,null,null,null,null,null,null,null,null,null,null,null,null,null,null,null,null,null,null,null,null,null,null,null,null,null,null,null,null,null,null,null,null,null,null,null,null,null,null,null,null,null,null,null,null,null,null,null,null,null,null,null,null,null,null,null,null,null,null,null,null,null,null,null,null,null,null,null,null,null,null,null,null,null,null,null,null,null,null,null,null,null,null,null,null,null,null,null,null,null,null,null,null,null,null,7,null,null,8,null,null,null,null,null,null,null,null,4,null,null,2,null,null,1,null,null,7,null,null,null,null,null,4,null,null,3,null,null,null,null,null,null,null,null,2,null,null,1]
[null,null,null,null,null,0,null,null,15,null,null,null,null,null,null,null,null,null,null,null,14,null,null,null,null,null,null,null,null,null,null,null,null,null,null,7,null,null,null,null,null,null,null,null,null,null,null,3,null,null,null,null,null,null,null,null,null,null,null,null,null,null,0,null,null,15,null,7,null,null,8,null,null,null,null,null,null,14,null,4,null,null,2,null,null,1,null,null,7,null,null,null,7,null,4,null,null,3,null,null,null,null,null,null,3,null,2,null,null,1,null,null,null,null,null,null,null,null,null,0,null,null,15,null,null,null,null,null,null,null,null,null,null,null,14,null,null,null,null,null,null,null,null,null,null,null,null,null,null,7,null,null,null,null,null,null,null,null,null,null,null,3]
[null,null,null,null,17,null,null,28,null,null,null,null,null,null,null,null,null,null,null,28,null,null,null,null,null,null,null,null,null,null,null,null,null,null,42,null,null,null,null,null,null,null,null,null,null,null,33,null,null,null,null,null,null,null,null,null,null,null,null,null,null,17,null,null,28,null,null,null,null,null,null,null,null,null,null,null,28,null,null,null,null,null,null,null,null,null,null,null,null,null,null,42,null,null,null,null,null,null,null,null,null,null,null,33,null,null,null,null,null,null,null,null,null,null,null,null,null,null,17,null,null,28,null,null,null,null,null,null,null,null,null,null,null,28,null,null,null,null,null,null,null,null,null,null,null,null,null,null,42,null,null,null,null,null,null,null,null,null,null,null,33]
[null,null,null,null,null,null,null,2,null,null,2,null,null,null,null,null,null,null,null,null,null,null,null,null,null,null,null,null,null,null,null,null,null,null,null,null,null,null,null,null,null,null,null,null,null,null,null,null,null,null,null,null,null,null,null,null,null,null,null,null,null,17,null,null,19,null,null,24,null,null,16,null,null,null,null,null,null,null,null,null,null,null,null,null,null,null,null,null,null,null,null,null,null,null,null,null,null,null,null,null,null,null,null,null,null,null,null,null,null,null,null,null,null,null,null,null,null,null,null,null,null,null,null,null,null,null,null,null,null,null,null,null,7,null,null,9,null,null,8,null,null,null,null,null,9,null,null,8,null,null,7,null,null,5,null,null,null,null,null,3,null,null,6]
[null,null,26,null,null,null,4,5,null,4,5,6,null,null,null,null,null,24,null,null,null,null,null,null,null,null,null,null,null,29,null,null,null,null,null,null,null,null,null,null,null,null,null,null,9,null,null,null,null,null,null,null,null,0,null,null,null,null,null,26,26,null,4,26,null,4,26,null,4,26,null,4,null,null,24,null,7,null,null,9,null,null,8,null,null,null,29,null,9,null,null,8,null,null,7,null,null,5,null,null,null,9,null,3,null,null,6,null,null,null,0,null,null,null,null,null,26,null,null,null,null,null,null,null,null,null,null,null,null,null,null,24,null,null,null,null,null,null,null,null,null,null,null,29,null,null,null,null,null,null,null,null,null,null,null,null,null,null,9,null,null,null,null,null,null,null,null,0]
[null,0,null,null,8,9,7,null,null,null,null,9,7,null,9,null,27,null,null,null,null,null,null,null,null,null,null,null,0,null,null,null,null,null,null,null,null,null,null,null,null,null,null,27,null,null,null,null,null,null,null,null,16,null,null,null,null,null,0,null,null,2,null,null,5,null,null,5,null,null,2,null,null,27,null,null,null,null,null,null,null,null,null,null,null,0,null,null,null,null,null,null,null,null,null,null,null,null,null,null,27,null,null,null,null,null,null,null,null,16,null,null,null,null,null,0,null,null,null,null,null,null,null,null,null,null,null,null,null,null,27,null,null,null,null,null,null,null,null,null,null,null,0,null,null,null,null,null,null,null,null,null,null,null,null,null,null,27,null,null,null,null,null,null,null,null,16]
[null,null,null,null,null,null,1,2,null,null,2,3,null,null,null,null,null,3,1,2,3,null,null,null,null,null,null,null,null,null,null,null,null,null,null,3,null,2,null,null,null,null,null,null,null,null,null,null,null,null,null,null,null,null,null,null,null,null,null,null,null,17,null,null,19,null,null,24,null,null,16,null,null,10,null,null,6,null,null,null,null,null,null,null,null,null,null,null,null,null,null,30,null,null,8,null,null,null,null,null,24,null,null,27,null,null,9,null,null,16,null,null,null,null,null,null,null,null,null,null,null,null,null,null,null,null,null,null,null,null,null,null,null,null,null,5,null,null,null,null,null,null,null,null,null,null,null,null,null,null,null,null,null,1]
[null,null,31,null,null,null,4,null,null,4,null,6,null,null,null,4,null,6,null,null,null,null,null,null,null,null,0,null,null,null,null,null,30,null,5,6,null,null,6,null,null,null,null,null,null,4,5,6,4,5,null,null,null,null,null,null,null,null,null,31,26,null,6,26,null,6,26,null,6,26,null,6,26,null,6,26,null,6,null,5,null,null,null,0,null,null,null,null,null,30,29,null,6,29,null,6,null,1,null,29,null,6,29,null,6,29,null,6,29,null,6,null,null,null,null,null,31,null,null,null,null,null,null,null,null,null,null,null,null,null,null,null,null,null,null,null,null,null,null,null,0,null,null,null,null,null,30]
[null,0,null,null,8,9,7,null,null,null,null,9,7,null,9,null,null,null,null,null,null,null,null,null,null,4,null,null,null,null,null,13,null,7,null,9,null,null,null,null,null,null,7,8,9,7,null,9,null,null,null,7,null,9,null,null,null,null,0,null,null,2,null,null,5,null,null,5,null,null,2,null,null,2,null,null,3,null,null,null,null,null,4,null,null,null,null,null,13,null,null,5,null,null,2,null,null,null,null,null,3,null,null,4,null,null,2,null,null,2,null,null,null,null,null,0,null,null,null,null,null,null,null,null,null,null,null,null,null,null,null,null,null,null,null,null,null,null,null,4,null,null,null,null,null,13]
[null,null,null,null,null,null,null,null,null,null,null,null,null,null,null,null,null,null,null,null,null,null,null,null,null,null,null,null,null,null,null,null,null,null,null,null,null,2,null,null,null,null,null,null,null,null,null,null,null,null,null,null,null,null,null,null,null,null,null,null,null,null,null,null,null,null,null,null,null,null,null,null,null,null,null,null,null,null,null,null,null,null,null,null,null,null,null,null,13,null,null,30,null,null,8,null,null,null,null,null,24,null,null,null,null,null,9,null,null,16,null,null,null,null,null,null,null,null,null,null,6,null,null,8,null,null,null,null,null,9,null,null,6,null,null,8,null,null,3,null,null,null,null,null,null,null,null,null,null,null,null,null,null,null,null,null,null,null,null,2]
[null,null,null,null,null,14,null,null,null,null,null,null,null,null,26,null,null,null,null,null,null,null,null,null,null,null,null,null,null,19,4,null,null,null,5,null,null,null,6,null,null,22,null,null,null,null,null,null,4,5,null,null,null,null,null,null,null,null,null,null,null,null,14,null,6,null,null,8,null,null,null,26,null,9,null,null,6,null,null,8,null,null,3,null,null,null,19,19,null,3,19,null,3,19,null,3,null,null,22,20,null,3,null,2,null,20,null,3,20,null,3,null,null,null,null,null,null,null,null,14,null,null,null,null,null,null,null,null,26,null,null,null,null,null,null,null,null,null,null,null,null,null,null,19,null,null,null,null,null,null,null,null,null,null,null,22]
[null,null,null,null,19,null,null,null,null,null,null,null,null,0,null,null,null,null,null,null,null,null,null,null,null,null,null,null,16,null,null,8,null,null,null,9,null,null,null,null,0,null,7,8,9,null,null,null,null,null,null,7,null,9,null,null,null,null,null,null,null,19,null,null,null,null,null,null,null,null,0,null,null,null,null,null,null,null,null,null,null,null,null,null,null,16,null,null,3,null,null,5,null,null,2,null,null,0,null,null,3,null,null,null,null,null,2,null,null,2,null,null,null,null,null,null,null,null,19,null,null,null,null,null,null,null,null,0,null,null,null,null,null,null,null,null,null,null,null,null,null,null,16,null,null,null,null,null,null,null,null,null,null,null,0]
[null,null,null,null,null,null,1,2,null,null,null,null,null,null,null,null,null,null,null,null,null,null,null,null,null,null,null,null,2,3,null,2,3,null,null,3,null,null,null,null,null,null,null,null,null,null,null,null,null,null,null,null,null,null,null,null,null,null,null,null,null,18,null,null,19,null,null,null,null,null,null,null,null,null,null,null,null,null,null,null,null,null,null,null,null,16,null,null,13,null,null,30,null,null,null,null,null,null,null,null,null,null,null,null,null,null,null,null,null,null,null,null,null,null,null,null,null,null,null,null,null,null,null,null,null,null,null,null,null,8,null,null,4,null,null,null,null,null,1,null,null,null,null,null,null,null,null,null,null,null,null,null,null,null,null,null,3,null,null,1]
[null,null,8,null,null,6,null,null,null,null,null,null,null,null,12,null,null,null,null,null,null,null,null,11,null,null,null,null,5,null,null,null,null,null,5,null,null,null,null,null,null,4,null,null,null,null,null,null,null,null,0,null,null,0,null,null,null,null,null,8,8,null,2,8,null,2,null,null,null,null,null,12,null,8,null,null,4,null,null,null,11,null,1,null,10,null,3,10,null,3,10,null,3,null,null,null,null,null,4,null,3,null,null,1,null,null,null,0,null,null,0,null,null,null,null,null,8,null,null,null,null,null,null,null,null,null,null,null,12,null,null,null,null,null,null,null,null,11,null,null,null,null,null,null,null,null,null,null,null,null,null,null,null,null,null,4,null,null,null,null,null,null,null,null,0,null,null,0]
[null,0,null,7,null,null,null,null,null,null,null,null,null,10,null,null,null,null,null,null,null,null,23,null,null,null,null,null,null,null,null,null,null,null,null,null,null,null,null,null,14,null,null,null,null,null,null,null,null,7,null,null,15,null,null,null,null,null,0,null,null,3,null,null,5,null,null,null,null,null,10,null,null,null,null,null,null,null,null,23,null,null,null,null,null,4,null,null,3,null,null,5,null,null,null,null,null,14,null,null,null,null,null,null,null,null,7,null,null,15,null,null,null,null,null,0,null,null,null,null,null,null,null,null,null,null,null,10,null,null,null,null,null,null,null,null,23,null,null,null,null,null,null,null,null,null,null,null,null,null,null,null,null,null,14,null,null,null,null,null,null,null,null,7,null,null,15]
[null,null,null,null,null,null,null,null,null,null,null,null,1,2,3,null,null,null,1,2,3,null,null,null,null,null,null,null,2,3,null,null,3,null,null,null,null,null,null,null,null,null,null,null,null,null,null,null,null,null,null,null,null,null,null,null,null,null,null,null,null,null,null,null,null,null,null,null,null,null,10,null,null,10,null,null,6,null,null,23,null,null,null,null,null,16,null,null,13,null,null,30,null,null,null,null,null,13,null,null,24,null,null,27,null,null,null,null,null,15,null,null,null,null,null,null,null,1,null,null,3,null,null,null,null,null,null,null,null,null,null,null,null,null,null,null,null,null,null,null,null,null,null,null,null,null,null,null,null,null,null,null,null,null,null,null,null,null,null,null,null,null,4]
[null,null,4,null,null,null,null,null,null,null,null,20,null,5,null,4,null,6,null,null,null,null,null,6,null,null,18,null,5,6,null,null,6,null,5,6,null,null,34,null,null,6,null,null,null,null,null,6,null,null,null,null,null,6,null,null,null,null,null,4,null,1,null,null,3,null,null,null,20,20,null,4,20,null,4,20,null,4,20,null,4,null,null,18,18,null,3,18,null,3,18,null,3,null,null,34,30,null,4,30,null,4,30,null,4,null,4,null,30,null,4,null,null,null,null,null,4,null,null,null,null,null,null,null,null,20,null,null,null,null,null,null,null,null,null,null,null,null,null,null,18,null,null,null,null,null,null,null,null,null,null,null,34]
[null,0,null,null,null,null,null,null,null,null,10,null,null,null,null,7,null,null,null,null,null,null,8,9,null,12,null,null,null,null,7,null,null,7,null,9,null,5,null,7,null,9,7,8,9,7,8,9,null,null,null,7,8,9,null,null,null,null,0,null,null,null,null,null,null,null,null,10,null,null,3,null,null,2,null,null,3,null,null,3,null,null,12,null,null,4,null,null,3,null,null,5,null,null,5,null,null,2,null,null,3,null,null,4,null,null,null,null,null,3,null,null,null,null,null,0,null,null,null,null,null,null,null,null,10,null,null,null,null,null,null,null,null,null,null,null,null,null,null,12,null,null,null,null,null,null,null,null,null,null,null,5]
[null,null,null,null,null,null,null,null,null,null,null,null,null,null,null,null,null,null,null,null,null,null,null,null,null,null,null,null,null,null,null,null,null,null,null,null,null,null,null,null,null,null,null,null,null,null,null,null,1,2,null,1,2,3,null,null,null,null,null,null,null,18,null,null,19,null,null,10,null,null,10,null,null,null,null,null,null,null,null,23,null,null,12,null,null,16,null,null,null,null,null,null,null,null,null,null,null,null,null,null,null,null,null,27,null,null,3,null,null,15,null,null,null,null,null,null,null,null,null,null,null,null,null,null,null,null,null,null,null,null,null,null,5,null,null,null,null,null,null,null,null,null,null,null,null,null,null,4,null,null,2,null,null,1]
[null,null,28,null,null,null,4,5,null,null,null,null,4,null,6,null,null,29,null,null,null,null,null,null,null,null,null,null,null,null,null,null,7,null,null,null,null,null,null,null,null,null,null,null,10,null,5,6,null,null,null,4,null,null,null,null,null,null,null,28,28,null,4,28,null,4,28,null,4,28,null,4,null,null,29,null,5,null,24,null,3,24,null,3,24,null,3,null,null,7,null,4,null,null,2,null,null,1,null,null,null,10,10,null,3,10,null,3,10,null,3,null,null,null,null,null,28,null,null,null,null,null,null,null,null,null,null,null,null,null,null,29,null,null,null,null,null,null,null,null,null,null,null,null,null,null,7,null,null,null,null,null,null,null,null,null,null,null,10]
[null,0,null,null,8,9,7,null,null,null,8,9,7,null,null,null,0,null,null,null,null,null,8,9,7,8,9,7,8,null,null,0,null,null,null,null,null,null,null,null,null,null,null,0,null,7,null,null,null,null,null,null,null,null,null,null,null,null,0,null,null,3,null,null,5,null,null,2,null,null,3,null,null,0,null,null,null,null,null,3,null,null,2,null,null,4,null,null,0,null,null,null,null,null,null,null,null,null,null,null,0,null,null,4,null,null,2,null,null,3,null,null,null,null,null,0,null,null,null,null,null,null,null,null,null,null,null,null,null,null,0,null,null,null,null,null,null,null,null,null,null,null,null,null,null,0,null,null,null,null,null,null,null,null,null,null,null,0]
[null,null,null,null,2,3,1,2,null,1,2,null,1,2,3,null,null,null,null,2,3,null,null,null,null,null,3,1,null,null,null,null,null,null,null,null,null,null,null,null,null,null,null,null,null,null,null,null,1,2,null,null,null,null,null,null,null,null,null,null,null,18,null,null,19,null,null,10,null,null,10,null,null,null,null,null,6,null,null,23,null,null,12,null,null,16,null,null,null,null,null,30,null,null,null,null,null,13,null,null,null,null,null,27,null,null,3,null,null,15,null,null,null,null,null,null,null,null,null,null,null,null,null,null,null,null,null,null,null,null,null,null,null,null,null,null,null,null,null,null,null,null,null,null,null,null,null,null,null,null,3]
[null,null,11,null,null,null,null,5,null,null,null,null,null,5,null,null,null,15,null,null,null,null,null,6,4,5,null,4,null,null,null,null,16,null,null,6,null,null,null,4,null,6,null,null,16,null,null,6,null,null,null,null,5,6,null,null,null,null,null,11,11,null,4,11,null,4,11,null,4,11,null,4,null,null,15,15,null,4,15,null,4,15,null,4,15,null,4,null,null,16,13,null,2,null,3,null,13,null,2,null,null,16,16,null,3,16,null,3,16,null,3,null,null,null,null,null,11,null,null,null,null,null,null,null,null,null,null,null,null,null,null,15,null,null,null,null,null,null,null,null,null,null,null,null,null,null,16,null,null,null,null,null,null,null,null,null,null,null,16]
[null,0,null,null,null,null,null,null,null,null,null,null,null,null,null,null,0,null,null,null,null,null,8,9,null,null,null,null,null,null,null,0,null,7,null,9,null,null,null,7,null,null,null,0,null,7,8,9,null,null,null,7,8,null,null,null,null,null,0,null,null,3,null,null,5,null,null,2,null,null,3,null,null,0,null,null,3,null,null,3,null,null,2,null,null,4,null,null,0,null,null,5,null,null,null,null,null,2,null,null,0,null,null,4,null,null,2,null,null,3,null,null,null,null,null,0,null,null,null,null,null,null,null,null,null,null,null,null,null,null,0,null,null,null,null,null,null,null,null,null,null,null,null,null,null,0,null,null,null,null,null,null,null,null,null,null,null,0]
[]
[]
[]
[]
[null,null,null,null,null,0,null,null,0,null,null,0,null,null,null,null,null,0,null,null,0,null,null,0,null,null,null,null,null,0,null,null,0,null,null,0,null,null,0,null,null,null,null,null,0,null,null,0,null,null,0,null,null,0,null,null,null,null,null,null,null,null,0,null,null,0,null,null,0,null,null,null,null,null,0,null,null,0,null,null,0,null,null,null,null,null,0,null,null,0,null,null,0,null,null,0,null,null,null,null,null,0,null,null,0,null,null,0,null,null,0,null,null,null,null,null,null,null,null,0,null,null,0,null,null,0,null,null,null,null,null,0,null,null,0,null,null,0,null,null,null,null,null,0,null,null,0,null,null,0,null,null,0,null,null,null,null,null,0,null,null,0,null,null,0,null,null,0]
[null,null,null,null,7,null,null,10,null,null,39,null,null,null,null,null,14,null,null,9,null,null,42,null,null,null,null,null,15,null,null,10,null,null,13,null,null,41,null,null,null,null,null,7,null,null,6,null,null,41,null,null,13,null,null,null,null,null,null,null,null,7,null,null,10,null,null,39,null,null,null,null,null,14,null,null,9,null,null,42,null,null,null,null,null,15,null,null,10,null,null,13,null,null,41,null,null,null,null,null,7,null,null,6,null,null,41,null,null,13,null,null,null,null,null,null,null,null,7,null,null,10,null,null,39,null,null,null,null,null,14,null,null,9,null,null,42,null,null,null,null,null,15,null,null,10,null,null,13,null,null,41,null,null,null,null,null,7,null,null,6,null,null,41,null,null,13]
[null,null,null,1,2,null,1,2,3,null,2,3,null,null,null,null,null,null,null,null,null,null,null,null,null,null,null,null,null,null,null,null,null,null,null,null,null,null,null,null,null,null,null,null,null,null,null,null,null,null,null,null,null,null,null,null,null,null,null,null,null,7,null,null,10,null,null,24,null,null,null,null,null,null,null,null,null,null,null,null,null,null,null,null,null,null,null,null,null,null,null,null,null,null,null,null,null,null,null,null,null,null,null,null,null,null,null,null,null,null,null,null,null,null,null,null,null,null,null,null,null,null,null,null,null,null,null,null,null,9,null,null,8,null,null,6,null,null,null,null,null,3,null,null,2,null,null,1,null,null,5,null,null,null,null,null,2,null,null,4,null,null,9,null,null,5]
[null,null,9,4,null,null,null,null,null,4,5,6,null,null,23,null,null,null,null,null,null,null,null,null,null,null,11,null,null,null,null,null,null,null,null,null,null,null,null,null,null,20,null,null,null,null,null,null,null,null,null,null,null,null,null,null,null,null,null,9,9,null,3,9,null,3,9,null,3,null,null,23,null,9,null,null,8,null,null,6,null,null,null,11,null,3,null,null,2,null,null,1,null,null,5,null,null,null,20,null,2,null,null,4,null,null,9,null,null,5,null,null,null,null,null,null,9,null,null,null,null,null,null,null,null,null,null,null,23,null,null,null,null,null,null,null,null,null,null,null,11,null,null,null,null,null,null,null,null,null,null,null,null,null,null,20]
[null,0,null,null,null,null,null,null,null,null,null,null,null,0,null,null,null,null,null,null,null,null,null,null,null,0,null,null,null,null,null,null,null,null,null,null,null,null,null,null,0,null,null,null,null,null,null,null,null,null,null,null,null,null,null,null,null,null,0,null,null,3,null,null,3,null,null,5,null,null,0,null,null,null,null,null,null,null,null,null,null,null,0,null,null,null,null,null,null,null,null,null,null,null,null,null,null,0,null,null,null,null,null,null,null,null,null,null,null,null,null,null,null,null,null,0,null,null,null,null,null,null,null,null,null,null,null,0,null,null,null,null,null,null,null,null,null,null,null,0,null,null,null,null,null,null,null,null,null,null,null,null,null,null,0]
[null,null,null,1,2,null,null,null,null,null,null,null,null,null,null,null,null,null,null,null,null,null,null,null,null,null,null,null,null,null,null,null,null,null,null,null,null,null,null,null,null,null,null,null,null,null,null,null,null,null,null,null,null,null,null,null,null,null,null,null,null,7,null,null,10,null,null,24,null,null,null,null,null,null,null,null,null,null,null,null,null,null,null,null,null,null,null,null,null,null,null,null,null,null,null,null,null,null,null,null,null,null,null,null,null,null,null,null,null,null,null,null,null,null,null,null,null,null,null,null,null,null,null,null,null,null,null,null,null,2,null,null,1,null,null,3,null,null,null,null,null,5,null,null,8,null,null,7,null,null,9,null,null,null,null,null,1,null,null,2,null,null,7,null,null,3]
[null,null,17,4,null,null,null,null,6,null,null,6,null,null,6,null,null,null,null,null,null,null,null,null,null,null,29,null,null,null,null,null,null,null,null,null,null,null,null,null,null,13,null,null,null,null,null,null,null,null,null,null,null,null,null,null,null,null,null,17,17,null,3,17,null,3,17,null,3,null,null,6,null,2,null,null,1,null,null,3,null,null,null,29,null,5,null,null,8,null,null,7,null,null,9,null,null,null,13,null,1,null,null,2,null,null,7,null,null,3,null,null,null,null,null,null,17,null,null,null,null,null,null,null,null,null,null,null,6,null,null,null,null,null,null,null,null,null,null,null,29,null,null,null,null,null,null,null,null,null,null,null,null,null,null,13]
[null,0,null,null,null,null,7,null,null,null,null,9,null,29,null,null,null,null,null,null,null,null,null,null,null,19,null,null,null,null,null,null,null,null,null,null,null,null,null,null,15,null,null,null,null,null,null,null,null,null,null,null,null,null,null,null,null,null,0,null,null,3,null,null,3,null,null,5,null,null,29,null,null,null,null,null,null,null,null,null,null,null,19,null,null,null,null,null,null,null,null,null,null,null,null,null,null,15,null,null,null,null,null,null,null,null,null,null,null,null,null,null,null,null,null,0,null,null,null,null,null,null,null,null,null,null,null,29,null,null,null,null,null,null,null,null,null,null,null,19,null,null,null,null,null,null,null,null,null,null,null,null,null,null,15]
[null,null,null,1,2,null,1,2,null,1,2,null,null,null,null,null,null,null,null,null,null,null,null,null,null,null,null,null,null,null,null,null,null,null,null,null,null,null,null,null,null,null,null,null,null,null,null,null,null,null,null,null,null,null,null,null,null,null,null,null,null,7,null,null,10,null,null,24,null,null,null,null,null,null,null,null,null,null,null,null,null,null,null,null,null,null,null,null,null,null,null,null,null,null,null,null,null,null,null,null,null,null,null,null,null,null,null,null,null,null,null,null,null,null,null,null,null,null,null,null,null,null,null,null,null,null,5,null,null,3,null,null,null,null,null,7,null,null,9,null,null,6,null,null,null,null,null,5,null,null,8,null,null,6,null,null,4,null,null,null,null,null,8,null,null,4]
[null,null,15,4,null,null,null,null,null,4,null,null,null,null,null,null,null,null,null,null,22,null,null,null,null,null,null,null,null,null,null,null,23,null,null,null,null,null,null,null,null,null,null,null,null,null,null,12,null,null,null,null,null,null,null,null,null,null,null,15,7,null,3,7,null,3,7,null,3,null,5,null,null,3,null,null,null,22,null,7,null,null,9,null,null,6,null,null,null,23,null,5,null,null,8,null,null,6,null,null,4,null,null,null,12,null,8,null,null,4,null,null,null,null,null,null,15,null,null,null,null,null,null,null,null,null,null,null,null,null,null,null,null,null,22,null,null,null,null,null,null,null,null,null,null,null,23,null,null,null,null,null,null,null,null,null,null,null,null,null,null,12]
[null,0,null,null,null,null,null,null,null,null,null,null,null,null,null,null,null,null,null,0,null,null,null,null,null,null,null,null,null,null,null,16,null,null,null,null,null,null,null,null,null,null,null,null,null,null,0,null,null,null,null,null,null,null,null,null,null,null,0,null,null,3,null,null,3,null,null,5,null,null,null,null,null,null,null,null,0,null,null,null,null,null,null,null,null,null,null,null,16,null,null,null,null,null,null,null,null,null,null,null,null,null,null,0,null,null,null,null,null,null,null,null,null,null,null,0,null,null,null,null,null,null,null,null,null,null,null,null,null,null,null,null,null,0,null,null,null,null,null,null,null,null,null,null,null,16,null,null,null,null,null,null,null,null,null,null,null,null,null,null,0]
[null,null,null,null,null,null,null,null,null,null,null,null,null,null,null,null,null,null,null,null,null,null,null,null,null,null,null,null,null,null,null,null,null,null,null,null,null,null,null,null,null,null,null,null,null,null,null,null,null,null,null,null,null,null,null,null,null,null,null,null,null,null,null,null,null,null,null,null,null,null,null,null,null,null,null,null,null,null,null,null,null,null,null,null,null,null,null,null,null,null,null,null,null,null,null,null,null,null,null,null,null,null,null,null,null,null,null,null,null,null,null,null,null,null,null,null,null,null,null,null,null,null,null,7,null,null,8,null,null,null,null,null,null,null,null,4,null,null,2,null,null,1,null,null,7,null,null,null,null,null,4,null,null,3,null,null,null,null,null,null,null,null,2,null,null,1]
[null,null,null,null,null,0,null,null,15,null,null,null,null,null,null,null,null,null,null,null,14,null,null,null,null,null,null,null,null,null,null,null,null,null,null,7,null,null,null,null,null,null,null,null,null,null,null,3,null,null,null,null,null,null,null,null,null,null,null,null,null,null,0,null,null,15,null,7,null,null,8,null,null,null,null,null,null,14,null,4,null,null,2,null,null,1,null,null,7,null,null,null,7,null,4,null,null,3,null,null,null,null,null,null,3,null,2,null,null,1,null,null,null,null,null,null,null,null,null,0,null,null,15,null,null,null,null,null,null,null,null,null,null,null,14,null,null,null,null,null,null,null,null,null,null,null,null,null,null,7,null,null,null,null,null,null,null,null,null,null,null,3]
[null,null,null,null,17,null,null,28,null,null,null,null,null,null,null,null,null,null,null,28,null,null,null,null,null,null,null,null,null,null,null,null,null,null,42,null,null,null,null,null,null,null,null,null,null,null,33,null,null,null,null,null,null,null,null,null,null,null,null,null,null,17,null,null,28,null,null,null,null,null,null,null,null,null,null,null,28,null,null,null,null,null,null,null,null,null,null,null,null,null,null,42,null,null,null,null,null,null,null,null,null,null,null,33,null,null,null,null,null,null,null,null,null,null,null,null,null,null,17,null,null,28,null,null,null,null,null,null,null,null,null,null,null,28,null,null,null,null,null,null,null,null,null,null,null,null,null,null,42,null,null,null,null,null,null,null,null,null,null,null,33]
[null,null,null,null,null,null,null,null,null,null,2,null,null,null,null,null,null,null,null,null,null,null,null,null,null,null,null,null,null,null,null,null,null,null,null,null,null,null,null,null,null,null,null,null,null,null,null,null,null,null,null,null,null,null,null,null,null,null,null,null,null,17,null,null,17,null,null,24,null,null,16,null,null,null,null,null,null,null,null,null,null,null,null,null,null,null,null,null,null,null,null,null,null,null,null,null,null,null,null,null,null,null,null,null,null,null,null,null,null,null,null,null,null,null,null,null,null,null,null,null,null,null,null,null,null,null,null,null,null,null,null,null,7,null,null,9,null,null,8,null,null,null,null,null,9,null,null,8,null,null,7,null,null,5,null,null,null,null,null,3,null,null,6]
[null,null,26,null,null,null,4,5,null,4,5,6,null,null,null,null,null,24,null,null,null,null,null,null,null,null,null,null,null,29,null,null,null,null,null,null,null,null,null,null,null,null,null,null,9,null,null,null,null,null,null,null,null,0,null,null,null,null,null,26,26,null,4,26,null,4,26,null,4,26,null,4,null,null,24,null,7,null,null,9,null,null,8,null,null,null,29,null,9,null,null,8,null,null,7,null,null,5,null,null,null,9,null,3,null,null,6,null,null,null,0,null,null,null,null,null,26,null,null,null,null,null,null,null,null,null,null,null,null,null,null,24,null,null,null,null,null,null,null,null,null,null,null,29,null,null,null,null,null,null,null,null,null,null,null,null,null,null,9,null,null,null,null,null,null,null,null,0]
[null,0,null,null,8,9,7,null,null,null,null,null,7,null,9,null,27,null,null,null,null,null,null,null,null,null,null,null,0,null,null,null,null,null,null,null,null,null,null,null,null,null,null,27,null,null,null,null,null,null,null,null,16,null,null,null,null,null,0,null,null,2,null,null,4,null,null,5,null,null,2,null,null,27,null,null,null,null,null,null,null,null,null,null,null,0,null,null,null,null,null,null,null,null,null,null,null,null,null,null,27,null,null,null,null,null,null,null,null,16,null,null,null,null,null,0,null,null,null,null,null,null,null,null,null,null,null,null,null,null,27,null,null,null,null,null,null,null,null,null,null,null,0,null,null,null,null,null,null,null,null,null,null,null,null,null,null,27,null,null,null,null,null,null,null,null,16]
[null,null,null,null,null,null,1,null,null,null,2,3,null,null,null,null,null,3,1,2,3,null,null,null,null,null,null,null,null,null,null,null,null,null,null,3,null,2,null,null,null,null,null,null,null,null,null,null,null,null,null,null,null,null,null,null,null,null,null,null,null,17,null,null,17,null,null,24,null,null,16,null,null,10,null,null,6,null,null,null,null,null,null,null,null,null,null,null,null,null,null,30,null,null,8,null,null,null,null,null,24,null,null,27,null,null,9,null,null,16,null,null,null,null,null,null,null,null,null,null,null,null,null,null,null,null,null,null,null,null,null,null,null,null,null,5,null,null,null,null,null,null,null,null,null,null,null,null,null,null,null,null,null,1]
[null,null,31,null,null,null,4,null,null,4,null,6,null,null,null,4,null,6,null,null,null,null,null,null,null,null,0,null,null,null,null,null,30,null,5,6,null,null,6,null,null,null,null,null,null,4,5,6,4,5,null,null,null,null,null,null,null,null,null,31,26,null,6,26,null,6,26,null,6,26,null,6,26,null,6,26,null,6,null,5,null,null,null,0,null,null,null,null,null,30,29,null,6,29,null,6,null,1,null,29,null,6,29,null,6,29,null,6,29,null,6,null,null,null,null,null,31,null,null,null,null,null,null,null,null,null,null,null,null,null,null,null,null,null,null,null,null,null,null,null,0,null,null,null,null,null,30]
[null,0,null,null,8,9,7,null,null,null,null,9,7,null,9,null,null,null,null,null,null,null,null,null,null,4,null,null,null,null,null,13,null,7,null,9,null,null,null,null,null,null,7,8,9,7,null,9,null,null,null,7,null,9,null,null,null,null,0,null,null,2,null,null,4,null,null,5,null,null,2,null,null,2,null,null,3,null,null,null,null,null,4,null,null,null,null,null,13,null,null,5,null,null,2,null,null,null,null,null,3,null,null,4,null,null,2,null,null,2,null,null,null,null,null,0,null,null,null,null,null,null,null,null,null,null,null,null,null,null,null,null,null,null,null,null,null,null,null,4,null,null,null,null,null,13]
[null,null,null,null,null,null,null,null,null,null,null,null,null,null,null,null,null,null,null,null,null,null,null,null,null,null,null,null,null,null,null,null,null,null,null,null,null,2,null,null,null,null,null,null,null,null,null,null,null,null,null,null,null,null,null,null,null,null,null,null,null,null,null,null,null,null,null,null,null,null,null,null,null,null,null,null,null,null,null,null,null,null,null,null,null,null,null,null,13,null,null,30,null,null,8,null,null,null,null,null,24,null,null,null,null,null,9,null,null,16,null,null,null,null,null,null,null,null,null,null,6,null,null,8,null,null,null,null,null,9,null,null,6,null,null,8,null,null,3,null,null,null,null,null,null,null,null,null,null,null,null,null,null,null,null,null,null,null,null,2]
[null,null,null,null,null,14,null,null,null,null,null,null,null,null,26,null,null,null,null,null,null,null,null,null,null,null,null,null,null,19,4,null,null,null,5,null,null,null,6,null,null,22,null,null,null,null,null,null,4,5,null,null,null,null,null,null,null,null,null,null,null,null,14,null,6,null,null,8,null,null,null,26,null,9,null,null,6,null,null,8,null,null,3,null,null,null,19,19,null,3,19,null,3,19,null,3,null,null,22,20,null,3,null,2,null,20,null,3,20,null,3,null,null,null,null,null,null,null,null,14,null,null,null,null,null,null,null,null,26,null,null,null,null,null,null,null,null,null,null,null,null,null,null,19,null,null,null,null,null,null,null,null,null,null,null,22]
[null,null,null,null,19,null,null,null,null,null,null,null,null,0,null,null,null,null,null,null,null,null,null,null,null,null,null,null,16,null,null,8,null,null,null,9,null,null,null,null,0,null,7,8,9,null,null,null,null,null,null,7,null,9,null,null,null,null,null,null,null,19,null,null,null,null,null,null,null,null,0,null,null,null,null,null,null,null,null,null,null,null,null,null,null,16,null,null,3,null,null,5,null,null,2,null,null,0,null,null,3,null,null,null,null,null,2,null,null,2,null,null,null,null,null,null,null,null,19,null,null,null,null,null,null,null,null,0,null,null,null,null,null,null,null,null,null,null,null,null,null,null,16,null,null,null,null,null,null,null,null,null,null,null,0]
[null,null,null,null,null,null,null,null,null,null,null,null,null,null,null,null,null,null,null,null,null,null,null,null,null,null,null,null,2,3,null,2,3,null,null,3,null,null,null,null,null,null,null,null,null,null,null,null,null,null,null,null,null,null,null,null,null,null,null,null,null,null,null,null,null,null,null,null,null,null,null,null,null,null,null,null,null,null,null,null,null,null,null,null,null,16,null,null,13,null,null,30,null,null,null,null,null,null,null,null,null,null,null,null,null,null,null,null,null,null,null,null,null,null,null,null,null,6,null,null,2,null,null,null,null,null,null,null,null,8,null,null,4,null,null,null,null,null,1,null,null,null,null,null,null,null,null,null,null,null,null,null,null,null,null,null,3,null,null,1]
[null,null,8,null,null,null,null,null,null,null,null,null,null,null,12,null,null,null,null,null,null,null,null,11,null,null,null,null,5,null,null,null,null,null,5,null,null,null,null,null,null,4,null,null,null,null,null,null,null,null,0,null,null,0,null,null,null,null,null,8,null,6,null,null,2,null,null,null,null,null,null,12,null,8,null,null,4,null,null,null,11,null,1,null,10,null,3,10,null,3,10,null,3,null,null,null,null,null,4,null,3,null,null,1,null,null,null,0,null,null,0,null,null,null,null,null,8,null,null,null,null,null,null,null,null,null,null,null,12,null,null,null,null,null,null,null,null,11,null,null,null,null,null,null,null,null,null,null,null,null,null,null,null,null,null,4,null,null,null,null,null,null,null,null,0,null,null,0]
[null,0,null,null,null,null,null,null,null,null,null,null,null,10,null,null,null,null,null,null,null,null,23,null,null,null,null,null,null,null,null,null,null,null,null,null,null,null,null,null,14,null,null,null,null,null,null,null,null,7,null,null,15,null,null,null,null,null,0,null,null,null,null,null,null,null,null,null,null,null,10,null,null,null,null,null,null,null,null,23,null,null,null,null,null,4,null,null,3,null,null,5,null,null,null,null,null,14,null,null,null,null,null,null,null,null,7,null,null,15,null,null,null,null,null,0,null,null,null,null,null,null,null,null,null,null,null,10,null,null,null,null,null,null,null,null,23,null,null,null,null,null,null,null,null,null,null,null,null,null,null,null,null,null,14,null,null,null,null,null,null,null,null,7,null,null,15]
[null,null,null,null,null,null,null,null,null,null,null,null,1,2,3,null,null,null,1,2,3,null,null,null,null,null,null,null,2,3,null,null,3,null,null,null,null,null,null,null,null,null,null,null,null,null,null,null,null,null,null,null,null,null,null,null,null,null,null,null,null,null,null,null,null,null,null,null,null,null,10,null,null,10,null,null,6,null,null,23,null,null,null,null,null,16,null,null,13,null,null,30,null,null,null,null,null,13,null,null,24,null,null,27,null,null,null,null,null,15,null,null,null,null,null,null,null,1,null,null,3,null,null,null,null,null,null,null,null,null,null,null,null,null,null,null,null,null,null,null,null,null,null,null,null,null,null,null,null,null,null,null,null,null,null,null,null,null,null,null,null,null,4]
[null,null,4,null,null,null,null,null,null,null,null,20,null,5,null,4,null,6,null,null,null,null,null,6,null,null,18,null,5,6,null,null,6,null,5,6,null,null,34,null,null,6,null,null,null,null,null,6,null,null,null,null,null,6,null,null,null,null,null,4,null,1,null,null,3,null,null,null,20,20,null,4,20,null,4,20,null,4,20,null,4,null,null,18,18,null,3,18,null,3,18,null,3,null,null,34,30,null,4,30,null,4,30,null,4,null,4,null,30,null,4,null,null,null,null,null,4,null,null,null,null,null,null,null,null,20,null,null,null,null,null,null,null,null,null,null,null,null,null,null,18,null,null,null,null,null,null,null,null,null,null,null,34]
[null,0,null,null,null,null,null,null,null,null,10,null,null,null,null,7,null,null,null,null,null,null,8,9,null,12,null,null,null,null,7,null,null,7,null,9,null,5,null,7,null,9,7,8,9,7,8,9,null,null,null,7,8,9,null,null,null,null,0,null,null,null,null,null,null,null,null,10,null,null,3,null,null,2,null,null,3,null,null,3,null,null,12,null,null,4,null,null,3,null,null,5,null,null,5,null,null,2,null,null,3,null,null,4,null,null,null,null,null,3,null,null,null,null,null,0,null,null,null,null,null,null,null,null,10,null,null,null,null,null,null,null,null,null,null,null,null,null,null,12,null,null,null,null,null,null,null,null,null,null,null,5]
[null,null,null,null,null,null,null,null,null,null,null,null,null,null,null,null,null,null,null,null,null,null,null,null,null,null,null,null,null,null,null,null,null,null,null,null,null,null,null,null,null,null,null,null,null,null,null,null,1,2,null,1,2,3,null,null,null,null,null,null,null,null,null,null,17,null,null,null,null,null,10,null,null,null,null,null,null,null,null,23,null,null,12,null,null,16,null,null,null,null,null,null,null,null,null,null,null,null,null,null,null,null,null,27,null,null,3,null,null,15,null,null,null,null,null,null,null,9,null,null,null,null,null,8,null,null,null,null,null,null,null,null,5,null,null,null,null,null,null,null,null,null,null,null,null,null,null,4,null,null,2,null,null,1]
[null,null,28,null,null,null,4,5,null,null,null,null,4,null,6,null,null,29,null,null,null,null,null,null,null,null,null,null,null,null,null,null,7,null,null,null,null,null,null,null,null,null,null,null,10,null,5,6,null,null,null,4,null,null,null,null,null,null,null,28,null,9,null,11,null,2,null,8,null,11,null,2,null,null,29,null,5,null,24,null,3,24,null,3,24,null,3,null,null,7,null,4,null,null,2,null,null,1,null,null,null,10,10,null,3,10,null,3,10,null,3,null,null,null,null,null,28,null,null,null,null,null,null,null,null,null,null,null,null,null,null,29,null,null,null,null,null,null,null,null,null,null,null,null,null,null,7,null,null,null,null,null,null,null,null,null,null,null,10]
[null,0,null,null,null,null,7,null,null,null,null,null,7,null,null,null,0,null,null,null,null,null,8,9,7,8,9,7,8,null,null,0,null,null,null,null,null,null,null,null,null,null,null,0,null,7,null,null,null,null,null,null,null,null,null,null,null,null,0,null,null,null,null,null,4,null,null,null,null,null,3,null,null,0,null,null,null,null,null,3,null,null,2,null,null,4,null,null,0,null,null,null,null,null,null,null,null,null,null,null,0,null,null,4,null,null,2,null,null,3,null,null,null,null,null,0,null,null,null,null,null,null,null,null,null,null,null,null,null,null,0,null,null,null,null,null,null,null,null,null,null,null,null,null,null,0,null,null,null,null,null,null,null,null,null,null,null,0]
[null,null,null,null,null,null,1,null,null,null,null,null,1,null,null,null,null,null,null,2,3,null,null,null,null,null,3,1,null,null,null,null,null,null,null,null,null,null,null,null,null,null,null,null,null,null,null,null,1,2,null,null,null,null,null,null,null,null,null,null,null,null,null,null,17,null,null,null,null,null,10,null,null,null,null,null,6,null,null,23,null,null,12,null,null,16,null,null,null,null,null,30,null,null,null,null,null,13,null,null,null,null,null,27,null,null,3,null,null,15,null,null,null,null,null,null,null,3,null,null,null,null,null,2,null,null,null,null,null,null,null,null,null,null,null,null,null,null,null,null,null,null,null,null,null,null,null,null,null,null,3]
[null,null,11,null,null,null,null,5,null,null,null,null,null,5,null,null,null,15,null,null,null,null,null,6,4,5,null,4,null,null,null,null,16,null,null,6,null,null,null,4,null,6,null,null,16,null,null,6,null,null,null,null,5,6,null,null,null,null,null,11,null,3,null,6,null,2,null,2,null,6,null,2,null,null,15,15,null,4,15,null,4,15,null,4,15,null,4,null,null,16,13,null,2,null,3,null,13,null,2,null,null,16,16,null,3,16,null,3,16,null,3,null,null,null,null,null,11,null,null,null,null,null,null,null,null,null,null,null,null,null,null,15,null,null,null,null,null,null,null,null,null,null,null,null,null,null,16,null,null,null,null,null,null,null,null,null,null,null,16]
[null,0,null,null,null,null,null,null,null,null,null,null,null,null,null,null,0,null,null,null,null,null,8,9,null,null,null,null,null,null,null,0,null,7,null,9,null,null,null,7,null,null,null,0,null,7,8,9,null,null,null,7,8,null,null,null,null,null,0,null,null,null,null,null,4,null,null,null,null,null,3,null,null,0,null,null,3,null,null,3,null,null,2,null,null,4,null,null,0,null,null,5,null,null,null,null,null,2,null,null,0,null,null,4,null,null,2,null,null,3,null,null,null,null,null,0,null,null,null,null,null,null,null,null,null,null,null,null,null,null,0,null,null,null,null,null,null,null,null,null,null,null,null,null,null,0,null,null,null,null,null,null,null,null,null,null,null,0]
[]
[]
[]
[]
[null,null,null,null,null,0,null,null,0,null,null,0,null,null,null,null,null,0,null,null,0,null,null,0,null,null,null,null,null,0,null,null,0,null,null,0,null,null,0,null,null,null,null,null,0,null,null,0,null,null,0,null,null,0,null,null,null,null,null,null,null,null,0,null,null,0,null,null,0,null,null,null,null,null,0,null,null,0,null,null,0,null,null,null,null,null,0,null,null,0,null,null,0,null,null,0,null,null,null,null,null,0,null,null,0,null,null,0,null,null,0,null,null,null,null,null,null,null,null,0,null,null,0,null,null,0,null,null,null,null,null,0,null,null,0,null,null,0,null,null,null,null,null,0,null,null,0,null,null,0,null,null,0,null,null,null,null,null,0,null,null,0,null,null,0,null,null,0]
[null,null,null,null,7,null,null,10,null,null,39,null,null,null,null,null,14,null,null,9,null,null,42,null,null,null,null,null,15,null,null,10,null,null,13,null,null,41,null,null,null,null,null,7,null,null,6,null,null,41,null,null,13,null,null,null,null,null,null,null,null,7,null,null,10,null,null,39,null,null,null,null,null,14,null,null,9,null,null,42,null,null,null,null,null,15,null,null,10,null,null,13,null,null,41,null,null,null,null,null,7,null,null,6,null,null,41,null,null,13,null,null,null,null,null,null,null,null,7,null,null,10,null,null,39,null,null,null,null,null,14,null,null,9,null,null,42,null,null,null,null,null,15,null,null,10,null,null,13,null,null,41,null,null,null,null,null,7,null,null,6,null,null,41,null,null,13]
[null,null,null,1,2,null,1,2,3,null,2,3,null,null,null,null,null,null,null,null,null,null,null,null,null,null,null,null,null,null,null,null,null,null,null,null,null,null,null,null,null,null,null,null,null,null,null,null,null,null,null,null,null,null,null,null,null,null,null,null,null,7,null,null,10,null,null,24,null,null,null,null,null,null,null,null,null,null,null,null,null,null,null,null,null,null,null,null,null,null,null,null,null,null,null,null,null,null,null,null,null,null,null,null,null,null,null,null,null,null,null,null,null,null,null,null,null,null,null,null,null,null,null,null,null,null,null,null,null,9,null,null,8,null,null,6,null,null,null,null,null,3,null,null,2,null,null,1,null,null,5,null,null,null,null,null,2,null,null,4,null,null,9,null,null,5]
[null,null,9,4,null,null,null,null,null,4,5,6,null,null,23,null,null,null,null,null,null,null,null,null,null,null,11,null,null,null,null,null,null,null,null,null,null,null,null,null,null,20,null,null,null,null,null,null,null,null,null,null,null,null,null,null,null,null,null,9,9,null,3,9,null,3,9,null,3,null,null,23,null,9,null,null,8,null,null,6,null,null,null,11,null,3,null,null,2,null,null,1,null,null,5,null,null,null,20,null,2,null,null,4,null,null,9,null,null,5,null,null,null,null,null,null,9,null,null,null,null,null,null,null,null,null,null,null,23,null,null,null,null,null,null,null,null,null,null,null,11,null,null,null,null,null,null,null,null,null,null,null,null,null,null,20]
[null,0,null,null,null,null,null,null,null,null,null,null,null,0,null,null,null,null,null,null,null,null,null,null,null,0,null,null,null,null,null,null,null,null,null,null,null,null,null,null,0,null,null,null,null,null,null,null,null,null,null,null,null,null,null,null,null,null,0,null,null,3,null,null,3,null,null,5,null,null,0,null,null,null,null,null,null,null,null,null,null,null,0,null,null,null,null,null,null,null,null,null,null,null,null,null,null,0,null,null,null,null,null,null,null,null,null,null,null,null,null,null,null,null,null,0,null,null,null,null,null,null,null,null,null,null,null,0,null,null,null,null,null,null,null,null,null,null,null,0,null,null,null,null,null,null,null,null,null,null,null,null,null,null,0]
[null,null,null,1,2,null,null,null,null,null,null,null,null,null,null,null,null,null,null,null,null,null,null,null,null,null,null,null,null,null,null,null,null,null,null,null,null,null,null,null,null,null,null,null,null,null,null,null,null,null,null,null,null,null,null,null,null,null,null,null,null,7,null,null,10,null,null,24,null,null,null,null,null,null,null,null,null,null,null,null,null,null,null,null,null,null,null,null,null,null,null,null,null,null,null,null,null,null,null,null,null,null,null,null,null,null,null,null,null,null,null,null,null,null,null,null,null,null,null,null,null,null,null,null,null,null,null,null,null,2,null,null,1,null,null,3,null,null,null,null,null,5,null,null,8,null,null,7,null,null,9,null,null,null,null,null,1,null,null,2,null,null,7,null,null,3]
[null,null,17,4,null,null,null,null,6,null,null,6,null,null,6,null,null,null,null,null,null,null,null,null,null,null,29,null,null,null,null,null,null,null,null,null,null,null,null,null,null,13,null,null,null,null,null,null,null,null,null,null,null,null,null,null,null,null,null,17,17,null,3,17,null,3,17,null,3,null,null,6,null,2,null,null,1,null,null,3,null,null,null,29,null,5,null,null,8,null,null,7,null,null,9,null,null,null,13,null,1,null,null,2,null,null,7,null,null,3,null,null,null,null,null,null,17,null,null,null,null,null,null,null,null,null,null,null,6,null,null,null,null,null,null,null,null,null,null,null,29,null,null,null,null,null,null,null,null,null,null,null,null,null,null,13]
[null,0,null,null,null,null,7,null,null,null,null,9,null,29,null,null,null,null,null,null,null,null,null,null,null,19,null,null,null,null,null,null,null,null,null,null,null,null,null,null,15,null,null,null,null,null,null,null,null,null,null,null,null,null,null,null,null,null,0,null,null,3,null,null,3,null,null,5,null,null,29,null,null,null,null,null,null,null,null,null,null,null,19,null,null,null,null,null,null,null,null,null,null,null,null,null,null,15,null,null,null,null,null,null,null,null,null,null,null,null,null,null,null,null,null,0,null,null,null,null,null,null,null,null,null,null,null,29,null,null,null,null,null,null,null,null,null,null,null,19,null,null,null,null,null,null,null,null,null,null,null,null,null,null,15]
[null,null,null,1,2,null,1,2,null,1,2,null,null,null,null,null,null,null,null,null,null,null,null,null,null,null,null,null,null,null,null,null,null,null,null,null,null,null,null,null,null,null,null,null,null,null,null,null,null,null,null,null,null,null,null,null,null,null,null,null,null,7,null,null,10,null,null,24,null,null,null,null,null,null,null,null,null,null,null,null,null,null,null,null,null,null,null,null,null,null,null,null,null,null,null,null,null,null,null,null,null,null,null,null,null,null,null,null,null,null,null,null,null,null,null,null,null,null,null,null,null,null,null,null,null,null,5,null,null,3,null,null,null,null,null,7,null,null,9,null,null,6,null,null,null,null,null,5,null,null,8,null,null,6,null,null,4,null,null,null,null,null,8,null,null,4]
[null,null,15,4,null,null,null,null,null,4,null,null,null,null,null,null,null,null,null,null,22,null,null,null,null,null,null,null,null,null,null,null,23,null,null,null,null,null,null,null,null,null,null,null,null,null,null,12,null,null,null,null,null,null,null,null,null,null,null,15,7,null,3,7,null,3,7,null,3,null,5,null,null,3,null,null,null,22,null,7,null,null,9,null,null,6,null,null,null,23,null,5,null,null,8,null,null,6,null,null,4,null,null,null,12,null,8,null,null,4,null,null,null,null,null,null,15,null,null,null,null,null,null,null,null,null,null,null,null,null,null,null,null,null,22,null,null,null,null,null,null,null,null,null,null,null,23,null,null,null,null,null,null,null,null,null,null,null,null,null,null,12]
[null,0,null,null,null,null,null,null,null,null,null,null,null,null,null,null,null,null,null,0,null,null,null,null,null,null,null,null,null,null,null,16,null,null,null,null,null,null,null,null,null,null,null,null,null,null,0,null,null,null,null,null,null,null,null,null,null,null,0,null,null,3,null,null,3,null,null,5,null,null,null,null,null,null,null,null,0,null,null,null,null,null,null,null,null,null,null,null,16,null,null,null,null,null,null,null,null,null,null,null,null,null,null,0,null,null,null,null,null,null,null,null,null,null,null,0,null,null,null,null,null,null,null,null,null,null,null,null,null,null,null,null,null,0,null,null,null,null,null,null,null,null,null,null,null,16,null,null,null,null,null,null,null,null,null,null,null,null,null,null,0]
[null,null,null,null,null,null,null,null,null,null,null,null,null,null,null,null,null,null,null,null,null,null,null,null,null,null,null,null,null,null,null,null,null,null,null,null,null,null,null,null,null,null,null,null,null,null,null,null,null,null,null,null,null,null,null,null,null,null,null,null,null,null,null,null,null,null,null,null,null,null,null,null,null,null,null,null,null,null,null,null,null,null,null,null,null,null,null,null,null,null,null,null,null,null,null,null,null,null,null,null,null,null,null,null,null,null,null,null,null,null,null,null,null,null,null,null,null,null,null,null,null,null,null,7,null,null,8,null,null,null,null,null,null,null,null,4,null,null,2,null,null,1,null,null,7,null,null,null,null,null,4,null,null,3,null,null,null,null,null,null,null,null,2,null,null,1]
[null,null,null,null,null,0,null,null,15,null,null,null,null,null,null,null,null,null,null,null,14,null,null,null,null,null,null,null,null,null,null,null,null,null,null,7,null,null,null,null,null,null,null,null,null,null,null,3,null,null,null,null,null,null,null,null,null,null,null,null,null,null,0,null,null,15,null,7,null,null,8,null,null,null,null,null,null,14,null,4,null,null,2,null,null,1,null,null,7,null,null,null,7,null,4,null,null,3,null,null,null,null,null,null,3,null,2,null,null,1,null,null,null,null,null,null,null,null,null,0,null,null,15,null,null,null,null,null,null,null,null,null,null,null,14,null,null,null,null,null,null,null,null,null,null,null,null,null,null,7,null,null,null,null,null,null,null,null,null,null,null,3]
[null,null,null,null,17,null,null,28,null,null,null,null,null,null,null,null,null,null,null,28,null,null,null,null,null,null,null,null,null,null,null,null,null,null,42,null,null,null,null,null,null,null,null,null,null,null,33,null,null,null,null,null,null,null,null,null,null,null,null,null,null,17,null,null,28,null,null,null,null,null,null,null,null,null,null,null,28,null,null,null,null,null,null,null,null,null,null,null,null,null,null,42,null,null,null,null,null,null,null,null,null,null,null,33,null,null,null,null,null,null,null,null,null,null,null,null,null,null,17,null,null,28,null,null,null,null,null,null,null,null,null,null,null,28,null,null,null,null,null,null,null,null,null,null,null,null,null,null,42,null,null,null,null,null,null,null,null,null,null,null,33]
[null,null,null,null,null,null,null,null,null,null,null,null,null,null,null,null,null,null,null,null,null,null,null,null,null,null,null,null,null,null,null,null,null,null,null,null,null,null,null,null,null,null,null,null,null,null,null,null,null,null,null,null,null,null,null,null,null,null,null,null,null,17,null,null,10,null,null,24,null,null,16,null,null,null,null,null,null,null,null,null,null,null,null,null,null,null,null,null,null,null,null,null,null,null,null,null,null,null,null,null,null,null,null,null,null,null,null,null,null,null,null,null,null,null,null,null,null,null,null,null,null,null,null,null,null,null,null,null,null,null,null,null,7,null,null,9,null,null,8,null,null,null,null,null,9,null,null,8,null,null,7,null,null,5,null,null,null,null,null,3,null,null,6]
[null,null,26,null,null,null,4,5,null,4,5,6,null,null,null,null,null,24,null,null,null,null,null,null,null,null,null,null,null,29,null,null,null,null,null,null,null,null,null,null,null,null,null,null,9,null,null,null,null,null,null,null,null,0,null,null,null,null,null,26,26,null,4,26,null,4,26,null,4,26,null,4,null,null,24,null,7,null,null,9,null,null,8,null,null,null,29,null,9,null,null,8,null,null,7,null,null,5,null,null,null,9,null,3,null,null,6,null,null,null,0,null,null,null,null,null,26,null,null,null,null,null,null,null,null,null,null,null,null,null,null,24,null,null,null,null,null,null,null,null,null,null,null,29,null,null,null,null,null,null,null,null,null,null,null,null,null,null,9,null,null,null,null,null,null,null,null,0]
[null,0,null,null,8,9,null,null,null,null,null,null,7,null,9,null,27,null,null,null,null,null,null,null,null,null,null,null,0,null,null,null,null,null,null,null,null,null,null,null,null,null,null,27,null,null,null,null,null,null,null,null,16,null,null,null,null,null,0,null,null,2,null,null,3,null,null,5,null,null,2,null,null,27,null,null,null,null,null,null,null,null,null,null,null,0,null,null,null,null,null,null,null,null,null,null,null,null,null,null,27,null,null,null,null,null,null,null,null,16,null,null,null,null,null,0,null,null,null,null,null,null,null,null,null,null,null,null,null,null,27,null,null,null,null,null,null,null,null,null,null,null,0,null,null,null,null,null,null,null,null,null,null,null,null,null,null,27,null,null,null,null,null,null,null,null,16]
[null,null,null,null,null,null,1,null,null,null,2,3,null,null,null,null,null,3,1,2,3,null,null,null,null,null,null,null,null,null,null,null,null,null,null,3,null,2,null,null,null,null,null,null,null,null,null,null,null,null,null,null,null,null,null,null,null,null,null,null,null,17,null,null,10,null,null,24,null,null,16,null,null,10,null,null,6,null,null,null,null,null,null,null,null,null,null,null,null,null,null,30,null,null,8,null,null,null,null,null,24,null,null,27,null,null,9,null,null,16,null,null,null,null,null,null,null,null,null,null,null,null,null,null,null,null,null,null,null,null,null,null,null,null,null,5,null,null,null,null,null,null,null,null,null,null,null,null,null,null,null,null,null,1]
[null,null,31,null,null,null,4,null,null,4,null,6,null,null,null,4,null,6,null,null,null,null,null,null,null,null,0,null,null,null,null,null,30,null,5,6,null,null,6,null,null,null,null,null,null,4,5,6,4,5,null,null,null,null,null,null,null,null,null,31,26,null,6,26,null,6,26,null,6,26,null,6,26,null,6,26,null,6,null,5,null,null,null,0,null,null,null,null,null,30,29,null,6,29,null,6,null,1,null,29,null,6,29,null,6,29,null,6,29,null,6,null,null,null,null,null,31,null,null,null,null,null,null,null,null,null,null,null,null,null,null,null,null,null,null,null,null,null,null,null,0,null,null,null,null,null,30]
[null,0,null,null,8,9,null,null,null,null,null,9,7,null,9,null,null,null,null,null,null,null,null,null,null,4,null,null,null,null,null,13,null,7,null,9,null,null,null,null,null,null,7,8,9,7,null,9,null,null,null,7,null,9,null,null,null,null,0,null,null,2,null,null,3,null,null,5,null,null,2,null,null,2,null,null,3,null,null,null,null,null,4,null,null,null,null,null,13,null,null,5,null,null,2,null,null,null,null,null,3,null,null,4,null,null,2,null,null,2,null,null,null,null,null,0,null,null,null,null,null,null,null,null,null,null,null,null,null,null,null,null,null,null,null,null,null,null,null,4,null,null,null,null,null,13]
[null,null,null,null,null,null,null,null,null,null,null,null,null,null,null,null,null,null,null,null,null,null,null,null,null,null,null,null,null,null,null,null,null,null,null,null,null,2,null,null,null,null,null,null,null,null,null,null,null,null,null,null,null,null,null,null,null,null,null,null,null,null,null,null,null,null,null,null,null,null,null,null,null,null,null,null,null,null,null,null,null,null,null,null,null,null,null,null,13,null,null,30,null,null,8,null,null,null,null,null,24,null,null,null,null,null,9,null,null,16,null,null,null,null,null,null,null,null,null,null,6,null,null,8,null,null,null,null,null,9,null,null,6,null,null,8,null,null,3,null,null,null,null,null,null,null,null,null,null,null,null,null,null,null,null,null,null,null,null,2]
[null,null,null,null,null,14,null,null,null,null,null,null,null,null,26,null,null,null,null,null,null,null,null,null,null,null,null,null,null,19,4,null,null,null,5,null,null,null,6,null,null,22,null,null,null,null,null,null,4,5,null,null,null,null,null,null,null,null,null,null,null,null,14,null,6,null,null,8,null,null,null,26,null,9,null,null,6,null,null,8,null,null,3,null,null,null,19,19,null,3,19,null,3,19,null,3,null,null,22,20,null,3,null,2,null,20,null,3,20,null,3,null,null,null,null,null,null,null,null,14,null,null,null,null,null,null,null,null,26,null,null,null,null,null,null,null,null,null,null,null,null,null,null,19,null,null,null,null,null,null,null,null,null,null,null,22]
[null,null,null,null,19,null,null,null,null,null,null,null,null,0,null,null,null,null,null,null,null,null,null,null,null,null,null,null,16,null,null,8,null,null,null,9,null,null,null,null,0,null,7,8,9,null,null,null,null,null,null,7,null,9,null,null,null,null,null,null,null,19,null,null,null,null,null,null,null,null,0,null,null,null,null,null,null,null,null,null,null,null,null,null,null,16,null,null,3,null,null,5,null,null,2,null,null,0,null,null,3,null,null,null,null,null,2,null,null,2,null,null,null,null,null,null,null,null,19,null,null,null,null,null,null,null,null,0,null,null,null,null,null,null,null,null,null,null,null,null,null,null,16,null,null,null,null,null,null,null,null,null,null,null,0]
[null,null,null,null,null,null,null,null,null,null,null,null,null,null,null,null,null,null,null,null,null,null,null,null,null,null,null,null,2,3,null,2,3,null,null,3,null,null,null,null,null,null,null,null,null,null,null,null,null,null,null,null,null,null,null,null,null,null,null,null,null,null,null,null,null,null,null,null,null,null,null,null,null,null,null,null,null,null,null,null,null,null,null,null,null,16,null,null,13,null,null,30,null,null,null,null,null,null,null,null,null,null,null,null,null,null,null,null,null,null,null,null,null,null,null,null,null,6,null,null,2,null,null,null,null,null,null,null,null,8,null,null,4,null,null,null,null,null,1,null,null,null,null,null,null,null,null,null,null,null,null,null,null,null,null,null,3,null,null,1]
[null,null,8,null,null,null,null,null,null,null,null,null,null,null,12,null,null,null,null,null,null,null,null,11,null,null,null,null,5,null,null,null,null,null,5,null,null,null,null,null,null,4,null,null,null,null,null,null,null,null,0,null,null,0,null,null,null,null,null,8,null,6,null,null,2,null,null,null,null,null,null,12,null,8,null,null,4,null,null,null,11,null,1,null,10,null,3,10,null,3,10,null,3,null,null,null,null,null,4,null,3,null,null,1,null,null,null,0,null,null,0,null,null,null,null,null,8,null,null,null,null,null,null,null,null,null,null,null,12,null,null,null,null,null,null,null,null,11,null,null,null,null,null,null,null,null,null,null,null,null,null,null,null,null,null,4,null,null,null,null,null,null,null,null,0,null,null,0]
[null,0,null,null,null,null,null,null,null,null,null,null,null,10,null,null,null,null,null,null,null,null,23,null,null,null,null,null,null,null,null,null,null,null,null,null,null,null,null,null,14,null,null,null,null,null,null,null,null,7,null,null,15,null,null,null,null,null,0,null,null,null,null,null,null,null,null,null,null,null,10,null,null,null,null,null,null,null,null,23,null,null,null,null,null,4,null,null,3,null,null,5,null,null,null,null,null,14,null,null,null,null,null,null,null,null,7,null,null,15,null,null,null,null,null,0,null,null,null,null,null,null,null,null,null,null,null,10,null,null,null,null,null,null,null,null,23,null,null,null,null,null,null,null,null,null,null,null,null,null,null,null,null,null,14,null,null,null,null,null,null,null,null,7,null,null,15]
[null,null,null,null,null,null,null,null,null,null,null,null,1,null,null,null,null,null,1,2,3,null,null,null,null,null,null,null,2,3,null,null,3,null,null,null,null,null,null,null,null,null,null,null,null,null,null,null,null,null,null,null,null,null,null,null,null,null,null,null,null,null,null,null,null,null,null,null,null,null,6,null,null,10,null,null,6,null,null,23,null,null,null,null,null,16,null,null,13,null,null,30,null,null,null,null,null,13,null,null,24,null,null,27,null,null,null,null,null,15,null,null,null,null,null,null,null,1,null,null,3,null,null,null,null,null,null,null,null,null,null,null,null,null,null,null,null,null,null,null,null,null,null,null,null,null,null,null,null,null,null,null,null,null,null,null,null,null,null,null,null,null,4]
[null,null,4,null,null,null,null,null,null,null,null,20,null,5,null,4,null,6,null,null,null,null,null,6,null,null,18,null,5,6,null,null,6,null,5,6,null,null,34,null,null,6,null,null,null,null,null,6,null,null,null,null,null,6,null,null,null,null,null,4,null,1,null,null,3,null,null,null,20,20,null,4,20,null,4,20,null,4,20,null,4,null,null,18,18,null,3,18,null,3,18,null,3,null,null,34,30,null,4,30,null,4,30,null,4,null,4,null,30,null,4,null,null,null,null,null,4,null,null,null,null,null,null,null,null,20,null,null,null,null,null,null,null,null,null,null,null,null,null,null,18,null,null,null,null,null,null,null,null,null,null,null,34]
[null,0,null,null,null,null,null,null,null,null,10,null,null,null,null,7,null,null,null,null,null,null,8,9,null,12,null,null,null,null,7,null,null,7,null,9,null,5,null,7,null,9,7,8,9,7,8,9,null,null,null,7,8,9,null,null,null,null,0,null,null,null,null,null,null,null,null,10,null,null,2,null,null,2,null,null,3,null,null,3,null,null,12,null,null,4,null,null,3,null,null,5,null,null,5,null,null,2,null,null,3,null,null,4,null,null,null,null,null,3,null,null,null,null,null,0,null,null,null,null,null,null,null,null,10,null,null,null,null,null,null,null,null,null,null,null,null,null,null,12,null,null,null,null,null,null,null,null,null,null,null,5]
[null,null,null,null,null,null,null,null,null,null,null,null,null,null,null,null,null,null,null,null,null,null,null,null,null,null,null,null,null,null,null,null,null,null,null,null,null,null,null,null,null,null,null,null,null,null,null,null,1,2,null,1,2,3,null,null,null,null,null,null,null,null,null,null,null,null,null,null,null,null,null,null,null,null,null,null,null,null,null,23,null,null,12,null,null,16,null,null,null,null,null,null,null,null,null,null,null,null,null,null,null,null,null,27,null,null,3,null,null,15,null,null,null,null,null,null,null,9,null,null,7,null,null,8,null,null,4,null,null,null,null,null,5,null,null,null,null,null,null,null,null,null,null,null,null,null,null,4,null,null,2,null,null,1]
[null,null,28,null,null,null,null,null,null,null,null,null,null,null,null,null,null,29,null,null,null,null,null,null,null,null,null,null,null,null,null,null,7,null,null,null,null,null,null,null,null,null,null,null,10,null,5,6,null,null,null,4,null,null,null,null,null,null,null,28,null,9,null,null,7,null,null,8,null,null,4,null,null,null,29,null,5,null,24,null,3,24,null,3,24,null,3,null,null,7,null,4,null,null,2,null,null,1,null,null,null,10,10,null,3,10,null,3,10,null,3,null,null,null,null,null,28,null,null,null,null,null,null,null,null,null,null,null,null,null,null,29,null,null,null,null,null,null,null,null,null,null,null,null,null,null,7,null,null,null,null,null,null,null,null,null,null,null,10]
[null,0,null,null,null,null,null,null,null,null,null,null,null,null,null,null,0,null,null,null,null,null,8,9,7,8,9,7,8,null,null,0,null,null,null,null,null,null,null,null,null,null,null,0,null,7,null,null,null,null,null,null,null,null,null,null,null,null,0,null,null,null,null,null,null,null,null,null,null,null,null,null,null,0,null,null,null,null,null,3,null,null,2,null,null,4,null,null,0,null,null,null,null,null,null,null,null,null,null,null,0,null,null,4,null,null,2,null,null,3,null,null,null,null,null,0,null,null,null,null,null,null,null,null,null,null,null,null,null,null,0,null,null,null,null,null,null,null,null,null,null,null,null,null,null,0,null,null,null,null,null,null,null,null,null,null,null,0]
[null,null,null,null,null,null,1,null,null,null,null,null,1,null,null,null,null,null,null,2,3,null,null,null,null,null,3,1,null,null,null,null,null,null,null,null,null,null,null,null,null,null,null,null,null,null,null,null,1,2,null,null,null,null,null,null,null,null,null,null,null,null,null,null,10,null,null,null,null,null,6,null,null,null,null,null,6,null,null,23,null,null,12,null,null,16,null,null,null,null,null,30,null,null,null,null,null,13,null,null,null,null,null,27,null,null,3,null,null,15,null,null,null,null,null,null,null,3,null,null,null,null,null,2,null,null,null,null,null,null,null,null,null,null,null,null,null,null,null,null,null,null,null,null,null,null,null,null,null,null,3]
[null,null,11,null,null,null,null,5,null,null,null,null,null,5,null,null,null,15,null,null,null,null,null,6,4,5,null,4,null,null,null,null,16,null,null,6,null,null,null,4,null,6,null,null,16,null,null,6,null,null,null,null,5,6,null,null,null,null,null,11,null,3,null,6,null,2,null,2,null,6,null,2,null,null,15,15,null,4,15,null,4,15,null,4,15,null,4,null,null,16,13,null,2,null,3,null,13,null,2,null,null,16,16,null,3,16,null,3,16,null,3,null,null,null,null,null,11,null,null,null,null,null,null,null,null,null,null,null,null,null,null,15,null,null,null,null,null,null,null,null,null,null,null,null,null,null,16,null,null,null,null,null,null,null,null,null,null,null,16]
[null,0,null,null,null,null,null,null,null,null,null,null,null,null,null,null,0,null,null,null,null,null,8,9,null,null,null,null,null,null,null,0,null,7,null,9,null,null,null,7,null,null,null,0,null,7,8,9,null,null,null,7,8,null,null,null,null,null,0,null,null,null,null,null,3,null,null,null,null,null,2,null,null,0,null,null,3,null,null,3,null,null,2,null,null,4,null,null,0,null,null,5,null,null,null,null,null,2,null,null,0,null,null,4,null,null,2,null,null,3,null,null,null,null,null,0,null,null,null,null,null,null,null,null,null,null,null,null,null,null,0,null,null,null,null,null,null,null,null,null,null,null,null,null,null,0,null,null,null,null,null,null,null,null,null,null,null,0]